Workbook

Sheet PERSONAL->

Sheet Staff
B1: Need more?... | C1: Http://exceldepartment.com | E1: =IF(Admin!$B$10="NO","",IF(Admin!$B$2="MONTH",IF(MONTH(NOW())<>MONTH(Admin!$B$4),"This is a free version. Contact Exceldepartment for unlocking full potential of the model.",""), IF(Admin!$B$2="QRT",IF(INT((MONTH(NOW())+2)/3)<>INT((MONTH(Admin!$B$4)+2)/3),"This is a free version. Contact Exceldepartment for unlocking full potential of the model.",""), IF(Admin!$B$2="YEAR",IF(YEAR(NOW())<>YEAR(Admin!$B$4),"This is a free version. Contact Exceldepartment for unlocking full potential of the model.",""), "This is a free version. Contact Exceldepartment for unlocking full potential of the model.")))) -> This is a free version. Contact Exceldepartment for unlocking full potential of the model.
A2: StaffSheet | B2: Name | C2: Staff Name Here | F2: Main Category Type | G2: STAFF | K2: Status_DropDown | L2: 0_AttentionNeeded | N2: 99_discountinued
B4: Description - Short | C4: =IFERROR(INDEX(4:4,MATCH(C2,6:6,0)),"") ->  | K4: Agents | L4: LL | M4: IK | N4: GA
B6: Description - Long | L6: Lukas Lilja | M6: Ivan Kocis | N6: Göran Axelsson
B8: Prio
B11: _People involved
B15: Description of Client
B19: Description of problem
B22: _Name | C22: _Description | D22: _hours | E22: _price
B25: Totalt | D25: =SUM(D23:D24) -> 0 | E25: 1250
B30: Work
A31: _Key | B31: _Project | C31: _SubProject | D31: _Task | E31: _StartDate | F31: _Hours | G31: _Comment | H31: _Staff | I31: _TotalHoursPerDay | J31: _TotalHours | K31: _HourBalance | L31: _Cost | M31: _ProjectAndSubProject
H32: =$C$4 ->  | I32: =+SUMIFS($G:$G,$F:$F,$E32) -> 0 | J32: =SUMIFS(ClientMaster!$H:$H,ClientMaster!$F:$F,$N32,ClientMaster!$G:$G,$O32) -> 0 | K32: =IFERROR(IF(LEFT($N32,3)="XLD",0,$J32-(SUMIFS(ClientMaster!$L:$L,ClientMaster!$J:$J,$N32,ClientMaster!$K:$K,$O32)+IF($A32="",$F32,0))),0) -> 0 | M32: =IF($B32="","",$B32&"_"&$C32) -> 
I33: =+SUMIFS($G:$G,$F:$F,$E33) -> 0 | J33: =SUMIFS(ClientMaster!$H:$H,ClientMaster!$F:$F,$N33,ClientMaster!$G:$G,$O33) -> 0 | K33: =IFERROR(IF(LEFT($N33,3)="XLD",0,$J33-(SUMIFS(ClientMaster!$L:$L,ClientMaster!$J:$J,$N33,ClientMaster!$K:$K,$O33)+IF($A33="",$F33,0))),0) -> 0 | M33: =IF($B33="","",$B33&"_"&$C33) -> 
I34: =+SUMIFS($G:$G,$F:$F,$E34) -> 0 | J34: =SUMIFS(ClientMaster!$H:$H,ClientMaster!$F:$F,$N34,ClientMaster!$G:$G,$O34) -> 0 | K34: =IFERROR(IF(LEFT($N34,3)="XLD",0,$J34-(SUMIFS(ClientMaster!$L:$L,ClientMaster!$J:$J,$N34,ClientMaster!$K:$K,$O34)+IF($A34="",$F34,0))),0) -> 0 | M34: =IF($B34="","",$B34&"_"&$C34) -> 
B37: Holidays
A38: _Key | B38: _Project | C38: _SubProject | D38: _Task | E38: _Staff | F38: _StartDate | G38: _Description | H38: _Hours | I38: _EndDate | J38: _Comment | K38: _Status | L38: _MainCategory | M38: _Category | N38: _SubCategory
E39: =$C$4 -> 

Sheet LL
B1: Need more?... | C1: Http://exceldepartment.com | E1: =IF(Admin!$B$10="NO","",IF(Admin!$B$2="MONTH",IF(MONTH(NOW())<>MONTH(Admin!$B$4),"This is a free version. Contact Exceldepartment for unlocking full potential of the model.",""), IF(Admin!$B$2="QRT",IF(INT((MONTH(NOW())+2)/3)<>INT((MONTH(Admin!$B$4)+2)/3),"This is a free version. Contact Exceldepartment for unlocking full potential of the model.",""), IF(Admin!$B$2="YEAR",IF(YEAR(NOW())<>YEAR(Admin!$B$4),"This is a free version. Contact Exceldepartment for unlocking full potential of the model.",""), "This is a free version. Contact Exceldepartment for unlocking full potential of the model.")))) -> This is a free version. Contact Exceldepartment for unlocking full potential of the model.
A2: StaffSheet | B2: Name | C2: Lukas Lilja | F2: Main Category Type | G2: STAFF | K2: Status_DropDown | L2: 0_AttentionNeeded | N2: 99_discountinued
B4: Description - Short | C4: =IFERROR(INDEX(4:4,MATCH(C2,6:6,0)),"") -> LL | K4: Agents | L4: LL | M4: IK | N4: GA
B6: Description - Long | L6: Lukas Lilja | M6: Ivan Kocis | N6: Göran Axelsson
B8: Prio
B11: _People involved
B15: Description of Client
B19: Description of problem
B22: _Name | C22: _Description | D22: _hours | E22: _price
B25: Totalt | D25: =SUM(D23:D24) -> 0 | E25: 1250
B30: Work
A31: _Key | B31: _Project | C31: _SubProject | D31: _Task | E31: _StartDate | F31: _Hours | G31: _Comment | H31: _Staff | I31: _TotalHoursPerDay | J31: _TotalHours | K31: _HourBalance | L31: _Cost | M31: _ProjectAndSubProject
A32: InterntInternalInternal-0,25027777673676806520231024 | B32: Internt | C32: Internal | D32: Internal | E32: 2023-06-17 | F32: 0.2502777767 | H32: =$C$4 -> LL | I32: =+SUMIFS($G:$G,$F:$F,$E32) -> 0 | J32: =SUMIFS(ClientMaster!$H:$H,ClientMaster!$F:$F,$N32,ClientMaster!$G:$G,$O32) -> 0 | K32: =IFERROR(IF(LEFT($N32,3)="XLD",0,$J32-(SUMIFS(ClientMaster!$L:$L,ClientMaster!$J:$J,$N32,ClientMaster!$K:$K,$O32)+IF($A32="",$F32,0))),0) -> 0 | M32: =IF($B32="","",$B32&"_"&$C32) -> Internt_Internal
A33: ProjectAUpdates2303Updates2303-1,6747222871320231024 | B33: ProjectA | C33: Updates2303 | D33: Updates2303 | E33: 2023-06-17 | F33: 1.67472222 | H33: LL | I33: =+SUMIFS($G:$G,$F:$F,$E33) -> 0 | J33: =SUMIFS(ClientMaster!$H:$H,ClientMaster!$F:$F,$N33,ClientMaster!$G:$G,$O33) -> 0 | K33: =IFERROR(IF(LEFT($N33,3)="XLD",0,$J33-(SUMIFS(ClientMaster!$L:$L,ClientMaster!$J:$J,$N33,ClientMaster!$K:$K,$O33)+IF($A33="",$F33,0))),0) -> 0 | M33: =IF($B33="","",$B33&"_"&$C33) -> ProjectA_Updates2303
A34: ProjectCOfferOfImprovementsOfferOfImprov570020231024 | B34: ProjectC | C34: OfferOfImprovements | D34: OfferOfImprovements | E34: 2023-06-17 | F34: 0 | H34: LL | I34: =+SUMIFS($G:$G,$F:$F,$E34) -> 0 | J34: =SUMIFS(ClientMaster!$H:$H,ClientMaster!$F:$F,$N34,ClientMaster!$G:$G,$O34) -> 0 | K34: =IFERROR(IF(LEFT($N34,3)="XLD",0,$J34-(SUMIFS(ClientMaster!$L:$L,ClientMaster!$J:$J,$N34,ClientMaster!$K:$K,$O34)+IF($A34="",$F34,0))),0) -> 0 | M34: ProjectC_OfferOfImprovements
A35: ProjectCSupportSupport-1206120231024 | B35: ProjectC | C35: Support | D35: Support | E35: 2023-06-17 | F35: 1 | H35: LL | I35: =+SUMIFS($G:$G,$F:$F,$E35) -> 0 | J35: =SUMIFS(ClientMaster!$H:$H,ClientMaster!$F:$F,$N35,ClientMaster!$G:$G,$O35) -> 0 | K35: =IFERROR(IF(LEFT($N35,3)="XLD",0,$J35-(SUMIFS(ClientMaster!$L:$L,ClientMaster!$J:$J,$N35,ClientMaster!$K:$K,$O35)+IF($A35="",$F35,0))),0) -> 0 | M35: ProjectC_Support
A36: ProjectCCompany_19Company_19-1,5359420231024 | B36: ProjectC | C36: Company_19 | D36: Company_19 | E36: 2023-06-17 | F36: 1.5 | H36: LL | I36: =+SUMIFS($G:$G,$F:$F,$E36) -> 0 | J36: =SUMIFS(ClientMaster!$H:$H,ClientMaster!$F:$F,$N36,ClientMaster!$G:$G,$O36) -> 0 | K36: =IFERROR(IF(LEFT($N36,3)="XLD",0,$J36-(SUMIFS(ClientMaster!$L:$L,ClientMaster!$J:$J,$N36,ClientMaster!$K:$K,$O36)+IF($A36="",$F36,0))),0) -> 0 | M36: ProjectC_Company_19
A37: ProjectCSupport2305Support2305-8,3333332253420231024 | B37: ProjectC | C37: Support2305 | D37: Support2305 | E37: 2023-06-17 | F37: 0.08333333273 | H37: LL | I37: =+SUMIFS($G:$G,$F:$F,$E37) -> 0 | J37: =SUMIFS(ClientMaster!$H:$H,ClientMaster!$F:$F,$N37,ClientMaster!$G:$G,$O37) -> 0 | K37: =IFERROR(IF(LEFT($N37,3)="XLD",0,$J37-(SUMIFS(ClientMaster!$L:$L,ClientMaster!$J:$J,$N37,ClientMaster!$K:$K,$O37)+IF($A37="",$F37,0))),0) -> 0 | M37: ProjectC_Support2305
A38: ProjectCManualHelp2305ManualHelp2305-1,6126020231024 | B38: ProjectC | C38: ManualHelp2305 | D38: ManualHelp2305 | E38: 2023-06-18 | F38: 1.674722222 | H38: LL | I38: =+SUMIFS($G:$G,$F:$F,$E38) -> 0 | J38: =SUMIFS(ClientMaster!$H:$H,ClientMaster!$F:$F,$N38,ClientMaster!$G:$G,$O38) -> 0 | K38: =IFERROR(IF(LEFT($N38,3)="XLD",0,$J38-(SUMIFS(ClientMaster!$L:$L,ClientMaster!$J:$J,$N38,ClientMaster!$K:$K,$O38)+IF($A38="",$F38,0))),0) -> 0 | M38: ProjectC_ManualHelp2305
A39: InterntInternalInternal-0,08329820231024 | B39: Internt | C39: Internal | D39: Internal | E39: 2023-06-18 | F39: 0.08 | G39: 8:43 - 18:4 / Schedule_P | H39: LL | I39: =+SUMIFS($G:$G,$F:$F,$E39) -> 0 | J39: =SUMIFS(ClientMaster!$H:$H,ClientMaster!$F:$F,$N39,ClientMaster!$G:$G,$O39) -> 0 | K39: =IFERROR(IF(LEFT($N39,3)="XLD",0,$J39-(SUMIFS(ClientMaster!$L:$L,ClientMaster!$J:$J,$N39,ClientMaster!$K:$K,$O39)+IF($A39="",$F39,0))),0) -> 0 | M39: Internt_Internal
A40: InterntInternalInternal-0,08524120231024 | B40: Internt | C40: Internal | D40: Internal | E40: 2023-06-18 | F40: 0.08 | G40: 8:43 - 18:4 / Schedule_I | H40: LL | I40: =+SUMIFS($G:$G,$F:$F,$E40) -> 0 | J40: =SUMIFS(ClientMaster!$H:$H,ClientMaster!$F:$F,$N40,ClientMaster!$G:$G,$O40) -> 0 | K40: =IFERROR(IF(LEFT($N40,3)="XLD",0,$J40-(SUMIFS(ClientMaster!$L:$L,ClientMaster!$J:$J,$N40,ClientMaster!$K:$K,$O40)+IF($A40="",$F40,0))),0) -> 0 | M40: Internt_Internal
A41: InterntInternalInternal-1,12694320231024 | B41: Internt | C41: Internal | D41: Internal | E41: 2023-06-18 | F41: 1.12 | G41: 8:43 - 18:4 / BudgetAndA | H41: LL | I41: =+SUMIFS($G:$G,$F:$F,$E41) -> 0 | J41: =SUMIFS(ClientMaster!$H:$H,ClientMaster!$F:$F,$N41,ClientMaster!$G:$G,$O41) -> 0 | K41: =IFERROR(IF(LEFT($N41,3)="XLD",0,$J41-(SUMIFS(ClientMaster!$L:$L,ClientMaster!$J:$J,$N41,ClientMaster!$K:$K,$O41)+IF($A41="",$F41,0))),0) -> 0 | M41: Internt_Internal
A42: ProjectBSupportSupport-2,24120220231024 | B42: ProjectB | C42: Support | D42: Support | E42: 2023-06-18 | F42: 2.24 | G42: 10:43 - 15:39 / ProdCostMo | H42: LL | I42: =+SUMIFS($G:$G,$F:$F,$E42) -> 0 | J42: =SUMIFS(ClientMaster!$H:$H,ClientMaster!$F:$F,$N42,ClientMaster!$G:$G,$O42) -> 0 | K42: =IFERROR(IF(LEFT($N42,3)="XLD",0,$J42-(SUMIFS(ClientMaster!$L:$L,ClientMaster!$J:$J,$N42,ClientMaster!$K:$K,$O42)+IF($A42="",$F42,0))),0) -> 0 | M42: ProjectB_Support
A43: ProjectBSupportSupport-1,12220820231024 | B43: ProjectB | C43: Support | D43: Support | E43: 2023-06-18 | F43: 1.12 | G43: 14:9 - 15:19 / AddaMoble | H43: LL | I43: =+SUMIFS($G:$G,$F:$F,$E43) -> 0 | J43: =SUMIFS(ClientMaster!$H:$H,ClientMaster!$F:$F,$N43,ClientMaster!$G:$G,$O43) -> 0 | K43: =IFERROR(IF(LEFT($N43,3)="XLD",0,$J43-(SUMIFS(ClientMaster!$L:$L,ClientMaster!$J:$J,$N43,ClientMaster!$K:$K,$O43)+IF($A43="",$F43,0))),0) -> 0 | M43: ProjectB_Support
A44: ProjectBUNKNOWNUNKNOWN-0,08466520231024 | B44: ProjectB | C44: UNKNOWN | D44: UNKNOWN | E44: 2023-06-18 | F44: 0.08 | G44: 18:24 - 19:50 / StatsBudge | H44: LL | I44: =+SUMIFS($G:$G,$F:$F,$E44) -> 0 | J44: =SUMIFS(ClientMaster!$H:$H,ClientMaster!$F:$F,$N44,ClientMaster!$G:$G,$O44) -> 0 | K44: =IFERROR(IF(LEFT($N44,3)="XLD",0,$J44-(SUMIFS(ClientMaster!$L:$L,ClientMaster!$J:$J,$N44,ClientMaster!$K:$K,$O44)+IF($A44="",$F44,0))),0) -> 0 | M44: ProjectB_UNKNOWN
A45: ProjectBInvoicingInvoicing-2,5200420231024 | B45: ProjectB | C45: Invoicing | D45: Invoicing | E45: 2023-06-19 | F45: 2.5 | H45: LL | I45: =+SUMIFS($G:$G,$F:$F,$E45) -> 0 | J45: =SUMIFS(ClientMaster!$H:$H,ClientMaster!$F:$F,$N45,ClientMaster!$G:$G,$O45) -> 0 | K45: =IFERROR(IF(LEFT($N45,3)="XLD",0,$J45-(SUMIFS(ClientMaster!$L:$L,ClientMaster!$J:$J,$N45,ClientMaster!$K:$K,$O45)+IF($A45="",$F45,0))),0) -> 0 | M45: ProjectB_Invoicing
A46: ProjectBLiquidityLiquidity-0,5954920231024 | B46: ProjectB | C46: Liquidity | D46: Liquidity | E46: 2023-06-19 | F46: 0.5 | H46: LL | I46: =+SUMIFS($G:$G,$F:$F,$E46) -> 0 | J46: =SUMIFS(ClientMaster!$H:$H,ClientMaster!$F:$F,$N46,ClientMaster!$G:$G,$O46) -> 0 | K46: =IFERROR(IF(LEFT($N46,3)="XLD",0,$J46-(SUMIFS(ClientMaster!$L:$L,ClientMaster!$J:$J,$N46,ClientMaster!$K:$K,$O46)+IF($A46="",$F46,0))),0) -> 0 | M46: ProjectB_Liquidity
A47: InterntEmail ImporterEmail Importer-1,5157220231024 | B47: Internt | C47: Email Importer | D47: Email Importer | E47: 2023-06-19 | F47: 1.5 | H47: LL | I47: =+SUMIFS($G:$G,$F:$F,$E47) -> 0 | J47: =SUMIFS(ClientMaster!$H:$H,ClientMaster!$F:$F,$N47,ClientMaster!$G:$G,$O47) -> 0 | K47: =IFERROR(IF(LEFT($N47,3)="XLD",0,$J47-(SUMIFS(ClientMaster!$L:$L,ClientMaster!$J:$J,$N47,ClientMaster!$K:$K,$O47)+IF($A47="",$F47,0))),0) -> 0 | M47: Internt_Email Importer
A48: ProjectCFileNorseFileNorse-2474720231024 | B48: ProjectC | C48: FileNorse | D48: FileNorse | E48: 2023-06-19 | F48: 2 | H48: LL | I48: =+SUMIFS($G:$G,$F:$F,$E48) -> 0 | J48: =SUMIFS(ClientMaster!$H:$H,ClientMaster!$F:$F,$N48,ClientMaster!$G:$G,$O48) -> 0 | K48: =IFERROR(IF(LEFT($N48,3)="XLD",0,$J48-(SUMIFS(ClientMaster!$L:$L,ClientMaster!$J:$J,$N48,ClientMaster!$K:$K,$O48)+IF($A48="",$F48,0))),0) -> 0 | M48: ProjectC_FileNorse
A49: ProjectCCompany_23Company_23-2,5110520231024 | B49: ProjectC | C49: Company_23 | D49: Company_23 | E49: 2023-06-19 | F49: 2.5 | H49: LL | I49: =+SUMIFS($G:$G,$F:$F,$E49) -> 0 | J49: =SUMIFS(ClientMaster!$H:$H,ClientMaster!$F:$F,$N49,ClientMaster!$G:$G,$O49) -> 0 | K49: =IFERROR(IF(LEFT($N49,3)="XLD",0,$J49-(SUMIFS(ClientMaster!$L:$L,ClientMaster!$J:$J,$N49,ClientMaster!$K:$K,$O49)+IF($A49="",$F49,0))),0) -> 0 | M49: ProjectC_Company_23
B52: Holidays
A53: _Key | B53: _Project | C53: _SubProject | D53: _Task | E53: _Staff | F53: _StartDate | G53: _Description | H53: _Hours | I53: _EndDate | J53: _Comment | K53: _Status | L53: _MainCategory | M53: _Category | N53: _SubCategory
A54: 816220231024 | E54: =$C$4 -> LL
A55: 609820231024 | E55: LL
A56: 265220231024 | E56: LL

Sheet IK
B1: Need more?... | C1: Http://exceldepartment.com | E1: =IF(Admin!$B$10="NO","",IF(Admin!$B$2="MONTH",IF(MONTH(NOW())<>MONTH(Admin!$B$4),"This is a free version. Contact Exceldepartment for unlocking full potential of the model.",""), IF(Admin!$B$2="QRT",IF(INT((MONTH(NOW())+2)/3)<>INT((MONTH(Admin!$B$4)+2)/3),"This is a free version. Contact Exceldepartment for unlocking full potential of the model.",""), IF(Admin!$B$2="YEAR",IF(YEAR(NOW())<>YEAR(Admin!$B$4),"This is a free version. Contact Exceldepartment for unlocking full potential of the model.",""), "This is a free version. Contact Exceldepartment for unlocking full potential of the model.")))) -> This is a free version. Contact Exceldepartment for unlocking full potential of the model.
A2: StaffSheet | B2: Name | C2: Göran Axelsson | F2: Main Category Type | G2: STAFF | K2: Status_DropDown | L2: 0_AttentionNeeded | N2: 99_discountinued
B4: Description - Short | C4: =IFERROR(INDEX(4:4,MATCH(C2,6:6,0)),"") -> GA | K4: Agents | L4: LL | M4: IK | N4: GA
B6: Description - Long | L6: Lukas Lilja | M6: Ivan Kocis | N6: Göran Axelsson
B8: Prio
B11: _People involved
B15: Description of Client
B19: Description of problem
B22: _Name | C22: _Description | D22: _hours | E22: _price
B25: Totalt | D25: =SUM(D23:D24) -> 0 | E25: 1250
B30: Work
A31: _Key | B31: _Project | C31: _SubProject | D31: _Task | E31: _StartDate | F31: _Hours | G31: _Comment | H31: _Staff | I31: _TotalHoursPerDay | J31: _TotalHours | K31: _HourBalance | L31: _Cost | M31: _ProjectAndSubProject
A32: InterntXLD_Internal-1,5748820231024 | B32: Internt | C32: XLD_Internal | E32: 2023-06-21 | F32: 1.5 | G32: schedule, email, customer contact, project planning, staff etc | H32: =$C$4 -> GA | I32: =+SUMIFS($G:$G,$F:$F,$E32) -> 0 | J32: =SUMIFS(ClientMaster!$H:$H,ClientMaster!$F:$F,$N32,ClientMaster!$G:$G,$O32) -> 0 | K32: =IFERROR(IF(LEFT($N32,3)="XLD",0,$J32-(SUMIFS(ClientMaster!$L:$L,ClientMaster!$J:$J,$N32,ClientMaster!$K:$K,$O32)+IF($A32="",$F32,0))),0) -> 0 | M32: =IF($B32="","",$B32&"_"&$C32) -> Internt_XLD_Internal
A33: InterntXLD_Internal-0,9652320231024 | B33: Internt | C33: XLD_Internal | E33: 2023-06-21 | F33: 0.9 | G33: Organize, Clean and understand ColorDB | H33: GA | I33: 0 | J33: =SUMIFS(ClientMaster!$H:$H,ClientMaster!$F:$F,$N33,ClientMaster!$G:$G,$O33) -> 0 | K33: =IFERROR(IF(LEFT($N33,3)="XLD",0,$J33-(SUMIFS(ClientMaster!$L:$L,ClientMaster!$J:$J,$N33,ClientMaster!$K:$K,$O33)+IF($A33="",$F33,0))),0) -> 0 | M33: Internt_XLD_Internal
A34: ProjectABasic model 2306-3429320231024 | B34: ProjectA | C34: Basic model 2306 | E34: 2023-06-21 | F34: 3 | G34: fixed design, functions, and little gets a long time on 3D map | H34: GA | I34: 0 | J34: =SUMIFS(ClientMaster!$H:$H,ClientMaster!$F:$F,$N34,ClientMaster!$G:$G,$O34) -> 0 | K34: =IFERROR(IF(LEFT($N34,3)="XLD",0,$J34-(SUMIFS(ClientMaster!$L:$L,ClientMaster!$J:$J,$N34,ClientMaster!$K:$K,$O34)+IF($A34="",$F34,0))),0) -> 0 | M34: ProjectA_Basic model 2306
A35: ProjectABasic model 2306-0,5867020231024 | B35: ProjectA | C35: Basic model 2306 | E35: 2023-06-21 | F35: 0.5 | G35: meeting with customer and lukas | H35: GA | I35: 0 | J35: =SUMIFS(ClientMaster!$H:$H,ClientMaster!$F:$F,$N35,ClientMaster!$G:$G,$O35) -> 0 | K35: =IFERROR(IF(LEFT($N35,3)="XLD",0,$J35-(SUMIFS(ClientMaster!$L:$L,ClientMaster!$J:$J,$N35,ClientMaster!$K:$K,$O35)+IF($A35="",$F35,0))),0) -> 0 | M35: ProjectA_Basic model 2306
A36: ProjectA230615_OffertMall-1239320231024 | B36: ProjectA | C36: 230615_OffertMall | E36: 2023-06-21 | F36: 1 | G36: meeting with customer and lukas | H36: GA | I36: 0 | J36: =SUMIFS(ClientMaster!$H:$H,ClientMaster!$F:$F,$N36,ClientMaster!$G:$G,$O36) -> 0 | K36: =IFERROR(IF(LEFT($N36,3)="XLD",0,$J36-(SUMIFS(ClientMaster!$L:$L,ClientMaster!$J:$J,$N36,ClientMaster!$K:$K,$O36)+IF($A36="",$F36,0))),0) -> 0 | M36: ProjectA_230615_OffertMall
A37: InterntMeetingAboutClientProject-0,4603120231024 | B37: Internt | C37: MeetingAboutClientProject | E37: 2023-06-22 | F37: 0.4 | G37: meeting with Ivan (about Company_1) | H37: GA | I37: 0 | J37: =SUMIFS(ClientMaster!$H:$H,ClientMaster!$F:$F,$N37,ClientMaster!$G:$G,$O37) -> 0 | K37: =IFERROR(IF(LEFT($N37,3)="XLD",0,$J37-(SUMIFS(ClientMaster!$L:$L,ClientMaster!$J:$J,$N37,ClientMaster!$K:$K,$O37)+IF($A37="",$F37,0))),0) -> 0 | M37: Internt_MeetingAboutClientProject
A38: ProjectBUpdates2303Suggestion-2257620231024 | B38: ProjectB | C38: Updates2303Suggestion | E38: 2023-06-22 | F38: 2 | G38: delete in db and restore in quick save | H38: GA | I38: 0 | J38: =SUMIFS(ClientMaster!$H:$H,ClientMaster!$F:$F,$N38,ClientMaster!$G:$G,$O38) -> 0 | K38: =IFERROR(IF(LEFT($N38,3)="XLD",0,$J38-(SUMIFS(ClientMaster!$L:$L,ClientMaster!$J:$J,$N38,ClientMaster!$K:$K,$O38)+IF($A38="",$F38,0))),0) -> 0 | M38: ProjectB_Updates2303Suggestion
A39: ProjectB230425_XX-1453720231024 | B39: ProjectB | C39: 230425_XX | E39: 2023-06-22 | F39: 1 | G39: have gone through the pivot tables and fix some formulas to get the right data | H39: GA | I39: 0 | J39: =SUMIFS(ClientMaster!$H:$H,ClientMaster!$F:$F,$N39,ClientMaster!$G:$G,$O39) -> 0 | K39: =IFERROR(IF(LEFT($N39,3)="XLD",0,$J39-(SUMIFS(ClientMaster!$L:$L,ClientMaster!$J:$J,$N39,ClientMaster!$K:$K,$O39)+IF($A39="",$F39,0))),0) -> 0 | M39: ProjectB_230425_XX
A40: ProjectBMonthlyBudget-2897520231024 | B40: ProjectB | C40: MonthlyBudget | E40: 2023-06-22 | F40: 2 | G40: added the missing customer addresses (the most important ones) | H40: GA | I40: 0 | J40: =SUMIFS(ClientMaster!$H:$H,ClientMaster!$F:$F,$N40,ClientMaster!$G:$G,$O40) -> 0 | K40: =IFERROR(IF(LEFT($N40,3)="XLD",0,$J40-(SUMIFS(ClientMaster!$L:$L,ClientMaster!$J:$J,$N40,ClientMaster!$K:$K,$O40)+IF($A40="",$F40,0))),0) -> 0 | M40: ProjectB_MonthlyBudget
A41: InterntXLD_Internal-2438020231024 | B41: Internt | C41: XLD_Internal | E41: 2023-06-23 | F41: 2 | G41: schedule, email, customer contact, project planning, staff etc | H41: GA | I41: 0 | J41: =SUMIFS(ClientMaster!$H:$H,ClientMaster!$F:$F,$N41,ClientMaster!$G:$G,$O41) -> 0 | K41: =IFERROR(IF(LEFT($N41,3)="XLD",0,$J41-(SUMIFS(ClientMaster!$L:$L,ClientMaster!$J:$J,$N41,ClientMaster!$K:$K,$O41)+IF($A41="",$F41,0))),0) -> 0 | M41: Internt_XLD_Internal
A42: ProjectBXLD_Internal-0,6862120231024 | B42: ProjectB | C42: XLD_Internal | E42: 2023-06-23 | F42: 0.6 | G42: meeting ivan, pontus | H42: GA | I42: 0 | J42: =SUMIFS(ClientMaster!$H:$H,ClientMaster!$F:$F,$N42,ClientMaster!$G:$G,$O42) -> 0 | K42: =IFERROR(IF(LEFT($N42,3)="XLD",0,$J42-(SUMIFS(ClientMaster!$L:$L,ClientMaster!$J:$J,$N42,ClientMaster!$K:$K,$O42)+IF($A42="",$F42,0))),0) -> 0 | M42: ProjectB_XLD_Internal
A43: ProjectBXLD_Internal-1,3836420231024 | B43: ProjectB | C43: XLD_Internal | E43: 2023-06-23 | F43: 1.3 | G43: meeting lukas, pontus | H43: GA | I43: 0 | J43: =SUMIFS(ClientMaster!$H:$H,ClientMaster!$F:$F,$N43,ClientMaster!$G:$G,$O43) -> 0 | K43: =IFERROR(IF(LEFT($N43,3)="XLD",0,$J43-(SUMIFS(ClientMaster!$L:$L,ClientMaster!$J:$J,$N43,ClientMaster!$K:$K,$O43)+IF($A43="",$F43,0))),0) -> 0 | M43: ProjectB_XLD_Internal
A44: ProjectBQuarterlBudget-2,7807920231024 | B44: ProjectB | C44: QuarterlBudget | E44: 2023-06-23 | F44: 2.7 | G44: fixed (hopefully) the last wishes from Fredrik for Q1 | H44: GA | I44: 0 | J44: =SUMIFS(ClientMaster!$H:$H,ClientMaster!$F:$F,$N44,ClientMaster!$G:$G,$O44) -> 0 | K44: =IFERROR(IF(LEFT($N44,3)="XLD",0,$J44-(SUMIFS(ClientMaster!$L:$L,ClientMaster!$J:$J,$N44,ClientMaster!$K:$K,$O44)+IF($A44="",$F44,0))),0) -> 0 | M44: ProjectB_QuarterlBudget
A45: ProjectBHandOverFile-0,5626520231024 | B45: ProjectB | C45: HandOverFile | E45: 2023-06-23 | F45: 0.5 | G45: fixed so the model can read "Sheet" and "Blad" | H45: GA | I45: 0 | J45: =SUMIFS(ClientMaster!$H:$H,ClientMaster!$F:$F,$N45,ClientMaster!$G:$G,$O45) -> 0 | K45: =IFERROR(IF(LEFT($N45,3)="XLD",0,$J45-(SUMIFS(ClientMaster!$L:$L,ClientMaster!$J:$J,$N45,ClientMaster!$K:$K,$O45)+IF($A45="",$F45,0))),0) -> 0 | M45: ProjectB_HandOverFile
A46: ProjectBCSV Import-0,8764020231024 | B46: ProjectB | C46: CSV Import | E46: 2023-06-23 | F46: 0.8 | G46: have hopefully solved the problem with their model (code change in ExportCSV) | H46: GA | I46: 0 | J46: =SUMIFS(ClientMaster!$H:$H,ClientMaster!$F:$F,$N46,ClientMaster!$G:$G,$O46) -> 0 | K46: =IFERROR(IF(LEFT($N46,3)="XLD",0,$J46-(SUMIFS(ClientMaster!$L:$L,ClientMaster!$J:$J,$N46,ClientMaster!$K:$K,$O46)+IF($A46="",$F46,0))),0) -> 0 | M46: ProjectB_CSV Import
A47: XLD_InternalXLD_Internal-2,8769620231024 | B47: XLD_Internal | C47: XLD_Internal | E47: 2023-06-23 | F47: 2.8 | G47: schedule, email, customer contact, project planning, staff etc | H47: GA | I47: 0 | J47: =SUMIFS(ClientMaster!$H:$H,ClientMaster!$F:$F,$N47,ClientMaster!$G:$G,$O47) -> 0 | K47: =IFERROR(IF(LEFT($N47,3)="XLD",0,$J47-(SUMIFS(ClientMaster!$L:$L,ClientMaster!$J:$J,$N47,ClientMaster!$K:$K,$O47)+IF($A47="",$F47,0))),0) -> 0 | M47: XLD_Internal_XLD_Internal
A48: ProjectBSupport2303-1,2331120231024 | B48: ProjectB | C48: Support2303 | E48: 2023-06-24 | F48: 1.2 | G48: last on PriceHistory | H48: GA | I48: 0 | J48: =SUMIFS(ClientMaster!$H:$H,ClientMaster!$F:$F,$N48,ClientMaster!$G:$G,$O48) -> 0 | K48: =IFERROR(IF(LEFT($N48,3)="XLD",0,$J48-(SUMIFS(ClientMaster!$L:$L,ClientMaster!$J:$J,$N48,ClientMaster!$K:$K,$O48)+IF($A48="",$F48,0))),0) -> 0 | M48: ProjectB_Support2303
A49: ProjectBPremium_Not_Zero-0,7522320231024 | B49: ProjectB | C49: Premium_Not_Zero | E49: 2023-06-24 | F49: 0.7 | G49: Meeting | H49: GA | I49: =+SUMIFS($G:$G,$F:$F,$E49) -> 0 | J49: =SUMIFS(ClientMaster!$H:$H,ClientMaster!$F:$F,$N49,ClientMaster!$G:$G,$O49) -> 0 | K49: =IFERROR(IF(LEFT($N49,3)="XLD",0,$J49-(SUMIFS(ClientMaster!$L:$L,ClientMaster!$J:$J,$N49,ClientMaster!$K:$K,$O49)+IF($A49="",$F49,0))),0) -> 0 | M49: =IF($B49="","",$B49&"_"&$C49) -> ProjectB_Premium_Not_Zero
A50: ProjectBPremium_Not_Zero-0,7231420231024 | B50: ProjectB | C50: Premium_Not_Zero | E50: 2023-06-24 | F50: 0.7 | G50: a quick draft (3x the rate) | H50: GA | I50: =+SUMIFS($G:$G,$F:$F,$E50) -> 0 | J50: =SUMIFS(ClientMaster!$H:$H,ClientMaster!$F:$F,$N50,ClientMaster!$G:$G,$O50) -> 0 | K50: =IFERROR(IF(LEFT($N50,3)="XLD",0,$J50-(SUMIFS(ClientMaster!$L:$L,ClientMaster!$J:$J,$N50,ClientMaster!$K:$K,$O50)+IF($A50="",$F50,0))),0) -> 0 | M50: =IF($B50="","",$B50&"_"&$C50) -> ProjectB_Premium_Not_Zero
B53: Holidays
A54: _Key | B54: _Project | C54: _SubProject | D54: _Task | E54: _Staff | F54: _StartDate | G54: _Description | H54: _Hours | I54: _EndDate | J54: _Comment | K54: _Status | L54: _MainCategory | M54: _Category | N54: _SubCategory
A55: StaffPlanningHolidayThe Thailand trip4_H140920231024 | B55: StaffPlanning | C55: Holiday | D55: The Thailand trip | E55: =$C$4 -> GA | F55: 2023-03-01 | G55: The Thailand trip | H55: 112.5 | I55: 2023-03-20 | K55: 4_HolidayRequested | L55: DayOff | M55: Holiday | N55: The Thailand trip
A56: StaffPlanningHolidayThailand trip_22_Wor898420231024 | B56: StaffPlanning | C56: Holiday | D56: Thailand trip_2 | E56: GA | F56: 2023-04-24 | G56: Thailand trip 2 (8v) | H56: 300 | I56: 2023-06-16 | K56: 2_Working | L56: DayOff | M56: Holiday | N56: Thailand trip_2
A57: StaffPlanningHolidayPassaPa4_HolidayRequ184320231024 | B57: StaffPlanning | C57: Holiday | D57: PassaPa | E57: GA | F57: 2023-04-21 | G57: free to do things with the girl when she is in stockholm | H57: 7.5 | I57: 2023-04-21 | K57: 4_HolidayRequested | L57: DayOff | M57: Holiday | N57: PassaPa
A58: StaffPlanningHolidayDeduction3_NotAvaila958920231024 | B58: StaffPlanning | C58: Holiday | D58: Deduction | E58: GA | F58: 2023-06-24 | H58: 23 | I58: 2023-04-19 | K58: 3_NotAvailable | L58: DayOff | M58: MissingDays | N58: Deduction
A59: StaffPlanningHolidayDeduction23_NotAvail220420231024 | B59: StaffPlanning | C59: Holiday | D59: Deduction2 | E59: GA | F59: 2023-06-25 | G59: GA : 3 days deduction for private but important matters | H59: 23 | I59: 2023-05-17 | K59: 3_NotAvailable | L59: DayOff | M59: MissingDays | N59: Deduction2

Sheet PROJEKT->

Sheet Project
B1: Need more?... | C1: Http://exceldepartment.com | E1: =IF(Admin!$B$10="NO","",IF(Admin!$B$2="MONTH",IF(MONTH(NOW())<>MONTH(Admin!$B$4),"This is a free version. Contact Exceldepartment for unlocking full potential of the model.",""), IF(Admin!$B$2="QRT",IF(INT((MONTH(NOW())+2)/3)<>INT((MONTH(Admin!$B$4)+2)/3),"This is a free version. Contact Exceldepartment for unlocking full potential of the model.",""), IF(Admin!$B$2="YEAR",IF(YEAR(NOW())<>YEAR(Admin!$B$4),"This is a free version. Contact Exceldepartment for unlocking full potential of the model.",""), "This is a free version. Contact Exceldepartment for unlocking full potential of the model.")))) -> This is a free version. Contact Exceldepartment for unlocking full potential of the model.
A2: ProjectSheet | B2: Name | C2: Client Name Here | F2: Main Category Type | G2: XLD_PROJECT
B4: Description - Short
B6: Description - Long
B8: Prio
A11: _Key | B11: _SubCategory | C11: _Description | D11: _hours | E11: _Comment | F11: _Prio | G11: _Category | H11: _Staff | I11: _startDate | J11: _endDate | K11: _Status
B12: CurrentStatus | D12: 0 | G12: CurrentStatus | I12: =TODAY() -> 2023-10-24 | J12: =I12 -> 2023-10-24 | K12: 1_Assigned
B13: Second In Command | D13: 0 | G13: CurrentStatus | I13: =TODAY() -> 2023-10-24 | J13: =I13 -> 2023-10-24 | K13: 1_Assigned
B14: BillingDetails | D14: 0 | G14: CurrentStatus | I14: =TODAY() -> 2023-10-24 | J14: =I14 -> 2023-10-24 | K14: 1_Assigned
B16: _People involved
B20: Description of Client
B25: Description of problem
A37: _Key | B37: _Project | C37: _SubProject | D37: _Task | E37: _Staff | F37: _Status | G37: _Hours | H37: _StartDate | I37: _EndDate | J37: _Description | K37: _MainCategory | L37: _Category | M37: _SubCategory | N37: _Comment
B38: =$C$2 -> Client Name Here
B39: =$C$2 -> Client Name Here
B40: Client Name Here
A44: _Key | B44: _Project | C44: _SubProject | D44: _Task | E44: _Staff | F44: _Status | G44: _Hours | H44: _StartDate | I44: _EndDate | J44: _Description | K44: _MainCategory | L44: _Category | M44: _SubCategory | N44: _Comment
B45: =$C$2 -> Client Name Here
B46: Client Name Here
B47: Client Name Here

Sheet ProjektA
B1: Need more?... | C1: Http://exceldepartment.com | E1: =IF(Admin!$B$10="NO","",IF(Admin!$B$2="MONTH",IF(MONTH(NOW())<>MONTH(Admin!$B$4),"This is a free version. Contact Exceldepartment for unlocking full potential of the model.",""), IF(Admin!$B$2="QRT",IF(INT((MONTH(NOW())+2)/3)<>INT((MONTH(Admin!$B$4)+2)/3),"This is a free version. Contact Exceldepartment for unlocking full potential of the model.",""), IF(Admin!$B$2="YEAR",IF(YEAR(NOW())<>YEAR(Admin!$B$4),"This is a free version. Contact Exceldepartment for unlocking full potential of the model.",""), "This is a free version. Contact Exceldepartment for unlocking full potential of the model.")))) -> This is a free version. Contact Exceldepartment for unlocking full potential of the model.
A2: ProjectSheet | B2: Name | C2: ProjektA | F2: Main Category Type | G2: XLD_PROJECT
B4: Description - Short
B6: Description - Long
B8: Prio
A11: _Key | B11: _SubCategory | C11: _Description | D11: _hours | E11: _Comment | F11: _Prio | G11: _Category | H11: _Staff | I11: _startDate | J11: _endDate | K11: _Status
B12: CurrentStatus | D12: 0 | G12: CurrentStatus | I12: =TODAY() -> 2023-10-24 | J12: =I12 -> 2023-10-24 | K12: 1_Assigned
B13: Second In Command | D13: 0 | G13: CurrentStatus | I13: =TODAY() -> 2023-10-24 | J13: =I13 -> 2023-10-24 | K13: 1_Assigned
B14: BillingDetails | D14: 0 | G14: CurrentStatus | I14: =TODAY() -> 2023-10-24 | J14: =I14 -> 2023-10-24 | K14: 1_Assigned
B16: _People involved
B20: Description of Client
B25: Description of problem
A37: _Key | B37: _Project | C37: _SubProject | D37: _Task | E37: _Staff | F37: _Status | G37: _Hours | H37: _StartDate | I37: _EndDate | J37: _Description | K37: _MainCategory | L37: _Category | M37: _SubCategory | N37: _Comment
A38: ProjektAPrototypeAMinimumOrderMain_Test_579520231024 | B38: =$C$2 -> ProjektA | C38: PrototypeA | D38: MinimumOrder | E38: IK | F38: 3_Prototype | G38: 0.5 | H38: 2023-06-22 | I38: 2023-06-29 | J38: Minimum order value to be added. | K38: Main_Test_ModelA | L38: Prototype2306A | M38: MinimumOrder | N38: if the number is below a certain level, the seller receives a warning about the sales minimum
A39: ProjektAPrototypeAUserChoosesParametersM908820231024 | B39: =$C$2 -> ProjektA | C39: PrototypeA | D39: UserChoosesParameters | E39: LL | F39: 3_Prototype | G39: 1 | H39: 2023-06-22 | I39: 2023-06-29 | J39: User chose the parameters, | K39: Main_Test_ModelA | L39: Prototype2306A | M39: UserChoosesParameters | N39: the seller selects parameters for the product/item to bring out the desired item group. In the first version there will only be one article group
A40: ProjektAPrototypeAModelPresentsThreeAlte214720231024 | B40: ProjektA | C40: PrototypeA | D40: ModelPresentsThreeAlternatives | E40: IK | F40: 6_Implemented | G40: 1 | H40: 2023-06-22 | I40: 2023-06-29 | J40: Model shows three alternatives | K40: Main_Test_ModelA | L40: Prototype2306A | M40: ModelPresentsThreeAlternatives | N40: from the article group that the seller has chosen, you see 3 articles (basic, standard, premium) in the pdf offer
A41: ProjektAPrototypeAStandard priceMain_Tes628320231024 | B41: ProjektA | C41: PrototypeA | D41: Standard price | E41: LL | F41: 3_Prototype | G41: 1 | H41: 2023-06-22 | I41: 2023-06-29 | J41: Basic x*3, standard x*6, premium x*12 | K41: Main_Test_ModelA | L41: Prototype2306A | M41: Standard price | N41: the 3 different articles are based on price difference from a standard price (taken from a settings sheet/cell)
A42: ProjektAPrototypeACustomerCategoryMain_T801920231024 | B42: ProjektA | C42: PrototypeA | D42: CustomerCategory | E42: LL | F42: 6_Implemented | G42: 1 | H42: 2023-06-22 | I42: 2023-06-29 | J42: Customers are A, B, C, D | K42: Main_Test_ModelA | L42: Prototype2306A | M42: CustomerCategory | N42: 4 different output price columns that can either have formulas or direct value
A46: _Key | B46: _Project | C46: _SubProject | D46: _Task | E46: _Staff | F46: _Status | G46: _Hours | H46: _StartDate | I46: _EndDate | J46: _Description | K46: _MainCategory | L46: _Category | M46: _SubCategory | N46: _Comment
A47: ProjektAUpgradesANoOfParametersMain_Test111320231024 | B47: =$C$2 -> ProjektA | C47: UpgradesA | D47: NoOfParameters | E47: IK | F47: 6_Implemented | G47: 0.1 | H47: 2023-06-22 | I47: 2023-06-29 | J47: Minimum 5, maximum 10. | K47: Main_Test_ModelA | L47: Prototype_5A | M47: NoOfParameters
A48: ProjektAUpgradesAcleanUpDesignMain_Test_586120231024 | B48: ProjektA | C48: UpgradesA | D48: cleanUpDesign | E48: IK | F48: 3_Prototype | G48: 0.5 | H48: 2023-06-22 | I48: 2023-06-29 | J48: remove merged cells, chose colors for input, create small distance between the input parameters | K48: Main_Test_ModelA | L48: Prototype_5A | M48: cleanUpDesign
A49: ProjektAUpgradesASaveButtonMain_Test_Mod887020231024 | B49: ProjektA | C49: UpgradesA | D49: SaveButton | E49: LL | F49: 3_Prototype | G49: 2 | H49: 2023-06-22 | I49: 2023-06-29 | J49: A save button that moves the data to the offer page. | K49: Main_Test_ModelA | L49: Prototype_5A | M49: SaveButton | N49: Code in VBA?
A50: ProjektAUpgradesACreateAlternativesMain_315520231024 | B50: ProjektA | C50: UpgradesA | D50: CreateAlternatives | E50: LL | F50: 6_Implemented | G50: 2 | H50: 2023-06-22 | I50: 2023-06-29 | J50: based on the choices above, show the tree possible offers, with the 3 different price-classes | K50: Main_Test_ModelA | L50: Prototype_5A | M50: CreateAlternatives | N50: Code in VBA? can be good, to copy and paste as value
A51: ProjektAUpgradesACreateRefMain_Test_Mode959020231024 | B51: ProjektA | C51: UpgradesA | D51: CreateRef | E51: LL | F51: 1_Assigned | G51: 0.5 | H51: 2023-08-09 | I51: 2023-08-10 | J51: Create a ref based on Parameter | K51: Main_Test_ModelA | L51: Prototype_5A | M51: CreateRef | N51: a type of unique key that is based on different data from the article

Sheet ProjektB
B1: Need more?... | C1: Http://exceldepartment.com | E1: =IF(Admin!$B$10="NO","",IF(Admin!$B$2="MONTH",IF(MONTH(NOW())<>MONTH(Admin!$B$4),"This is a free version. Contact Exceldepartment for unlocking full potential of the model.",""), IF(Admin!$B$2="QRT",IF(INT((MONTH(NOW())+2)/3)<>INT((MONTH(Admin!$B$4)+2)/3),"This is a free version. Contact Exceldepartment for unlocking full potential of the model.",""), IF(Admin!$B$2="YEAR",IF(YEAR(NOW())<>YEAR(Admin!$B$4),"This is a free version. Contact Exceldepartment for unlocking full potential of the model.",""), "This is a free version. Contact Exceldepartment for unlocking full potential of the model.")))) -> This is a free version. Contact Exceldepartment for unlocking full potential of the model.
A2: ProjectSheet | B2: Name | C2: ProjektB | F2: Main Category Type | G2: XLD_PROJECT
B4: Description - Short
B6: Description - Long
B8: Prio
A11: _Key | B11: _SubCategory | C11: _Description | D11: _hours | E11: _Comment | F11: _Prio | G11: _Category | H11: _Staff | I11: _startDate | J11: _endDate | K11: _Status
B12: CurrentStatus | D12: 0 | G12: CurrentStatus | I12: =TODAY() -> 2023-10-24 | J12: =I12 -> 2023-10-24 | K12: 1_Assigned
B13: Second In Command | D13: 0 | G13: CurrentStatus | I13: =TODAY() -> 2023-10-24 | J13: =I13 -> 2023-10-24 | K13: 1_Assigned
B14: BillingDetails | D14: 0 | G14: CurrentStatus | I14: =TODAY() -> 2023-10-24 | J14: =I14 -> 2023-10-24 | K14: 1_Assigned
B16: _People involved
B20: Description of Client
B25: Description of problem
A37: _Key | B37: _Project | C37: _SubProject | D37: _Task | E37: _Staff | F37: _Status | G37: _Hours | H37: _StartDate | I37: _EndDate | J37: _Description | K37: _MainCategory | L37: _Category | M37: _SubCategory | N37: _Comment
A38: ProjektB453420231024 | B38: =$C$2 -> ProjektB | C38: PrototypeB | D38: MinimumOrder | E38: IK | F38: 3_Prototype | G38: 30 | H38: 2023-06-29 | I38: 2023-07-06 | J38: Minimum order value to be added. | K38: Main_Test_ModelB | L38: Prototype2306B | M38: MinimumOrder | N38: if the number is below a certain level, the seller receives a warning about the sales minimum
A39: ProjektBPrototypeBUserChoosesParametersM967720231024 | B39: =$C$2 -> ProjektB | C39: PrototypeB | D39: UserChoosesParameters | E39: IK | F39: 3_Prototype | G39: 60 | H39: 2023-06-29 | I39: 2023-07-06 | J39: User chose the parameters, | K39: Main_Test_ModelB | L39: Prototype2306B | M39: UserChoosesParameters | N39: the seller selects parameters for the product/item to bring out the desired item group. In the first version there will only be one article group
A40: ProjektBPrototypeBModelPresentsThreeAlte333520231024 | B40: ProjektB | C40: PrototypeB | D40: ModelPresentsThreeAlternatives | E40: IK | F40: 6_Implemented | G40: 60 | H40: 2023-06-29 | I40: 2023-07-06 | J40: Model shows three alternatives | K40: Main_Test_ModelB | L40: Prototype2306B | M40: ModelPresentsThreeAlternatives | N40: from the article group that the seller has chosen, you see 3 articles (basic, standard, premium) in the pdf offer
A41: ProjektB464020231024 | B41: =$C$2 -> ProjektB | C41: PrototypeB | D41: Standard price | E41: LL | F41: 3_Prototype | G41: 60 | H41: 2023-06-29 | I41: 2023-07-06 | J41: Basic x*3, standard x*6, premium x*12 | K41: Main_Test_ModelB | L41: Prototype2306B | M41: Standard price | N41: the 3 different articles are based on price difference from a standard price (taken from a settings sheet/cell)
A42: ProjektB471220231024 | B42: ProjektB | C42: PrototypeB | D42: CustomerCategory | E42: LL | F42: 6_Implemented | G42: 60 | H42: 2023-06-29 | I42: 2023-07-06 | J42: Customers are A, B, C, D | K42: Main_Test_ModelB | L42: Prototype2306B | M42: CustomerCategory | N42: 4 different output price columns that can either have formulas or direct value
A46: _Key | B46: _Project | C46: _SubProject | D46: _Task | E46: _Staff | F46: _Status | G46: _Hours | H46: _StartDate | I46: _EndDate | J46: _Description | K46: _MainCategory | L46: _Category | M46: _SubCategory | N46: _Comment
A47: ProjektB745920231024 | B47: =$C$2 -> ProjektB | C47: UpgradesB | D47: NoOfParameters | E47: IK | F47: 6_Implemented | G47: 0.6 | H47: 2023-06-29 | I47: 2023-07-06 | J47: Minimum 5, maximum 10. | K47: Main_Test_ModelB | L47: Prototype_5B | M47: NoOfParameters
A48: ProjektBUpgradesBcleanUpDesignMain_Test_705020231024 | B48: ProjektB | C48: UpgradesB | D48: cleanUpDesign | E48: IK | F48: 3_Prototype | G48: 3 | H48: 2023-06-29 | I48: 2023-07-06 | J48: remove merged cells, chose colors for input, create small distance between the input parameters | K48: Main_Test_ModelB | L48: Prototype_5B | M48: cleanUpDesign
A49: ProjektBUpgradesBSaveButtonMain_Test_Mod832020231024 | B49: ProjektB | C49: UpgradesB | D49: SaveButton | E49: LL | F49: 3_Prototype | G49: 12 | H49: 2023-06-29 | I49: 2023-07-06 | J49: A save button that moves the data to the offer page. | K49: Main_Test_ModelB | L49: Prototype_5B | M49: SaveButton | N49: Code in VBA?
A50: ProjektB770820231024 | B50: ProjektB | C50: UpgradesB | D50: CreateAlternatives | E50: LL | F50: 6_Implemented | G50: 12 | H50: 2023-06-29 | I50: 2023-07-06 | J50: based on the choices above, show the tree possible offers, with the 3 different price-classes | K50: Main_Test_ModelB | L50: Prototype_5B | M50: CreateAlternatives | N50: Code in VBA? can be good, to copy and paste as value
A51: ProjektB682420231024 | B51: ProjektB | C51: UpgradesB | D51: CreateRef | E51: LL | F51: 1_Assigned | G51: 3 | H51: 2023-08-16 | I51: 2023-08-17 | J51: Create a ref based on Parameter | K51: Main_Test_ModelB | L51: Prototype_5B | M51: CreateRef | N51: a type of unique key that is based on different data from the article

Sheet Schedule
B1: Need more?... | C1: Http://exceldepartment.com | D1: Active User | P1: LL | Q1: =SUM(R1:W1) -> 0 | R1: =SUMIFS(INDEX(R:R,11):INDEX(R:R,100000),INDEX($F:$F,11):INDEX($F:$F,100000),$P1,INDEX($J:$J,11):INDEX($J:$J,100000),"0_AttentionNeeded") +SUMIFS(INDEX(R:R,11):INDEX(R:R,100000),INDEX($F:$F,11):INDEX($F:$F,100000),$P1,INDEX($J:$J,11):INDEX($J:$J,100000),"1_Assigned") +SUMIFS(INDEX(R:R,11):INDEX(R:R,100000),INDEX($F:$F,11):INDEX($F:$F,100000),$P1,INDEX($J:$J,11):INDEX($J:$J,100000),"2_InProgress") +SUMIFS(INDEX(R:R,11):INDEX(R:R,100000),INDEX($F:$F,11):INDEX($F:$F,100000),$P1,INDEX($J:$J,11):INDEX($J:$J,100000),"3_Prototype") +SUMIFS(INDEX(R:R,11):INDEX(R:R,100000),INDEX($F:$F,11):INDEX($F:$F,100000),$P1,INDEX($J:$J,11):INDEX($J:$J,100000),"4_Testing") -> 0 | S1: =SUMIFS(INDEX(S:S,11):INDEX(S:S,100000),INDEX($F:$F,11):INDEX($F:$F,100000),$P1,INDEX($J:$J,11):INDEX($J:$J,100000),"0_AttentionNeeded") +SUMIFS(INDEX(S:S,11):INDEX(S:S,100000),INDEX($F:$F,11):INDEX($F:$F,100000),$P1,INDEX($J:$J,11):INDEX($J:$J,100000),"1_Assigned") +SUMIFS(INDEX(S:S,11):INDEX(S:S,100000),INDEX($F:$F,11):INDEX($F:$F,100000),$P1,INDEX($J:$J,11):INDEX($J:$J,100000),"2_InProgress") +SUMIFS(INDEX(S:S,11):INDEX(S:S,100000),INDEX($F:$F,11):INDEX($F:$F,100000),$P1,INDEX($J:$J,11):INDEX($J:$J,100000),"3_Prototype") +SUMIFS(INDEX(S:S,11):INDEX(S:S,100000),INDEX($F:$F,11):INDEX($F:$F,100000),$P1,INDEX($J:$J,11):INDEX($J:$J,100000),"4_Testing") -> 0 | T1: =SUMIFS(INDEX(T:T,11):INDEX(T:T,100000),INDEX($F:$F,11):INDEX($F:$F,100000),$P1,INDEX($J:$J,11):INDEX($J:$J,100000),"0_AttentionNeeded") +SUMIFS(INDEX(T:T,11):INDEX(T:T,100000),INDEX($F:$F,11):INDEX($F:$F,100000),$P1,INDEX($J:$J,11):INDEX($J:$J,100000),"1_Assigned") +SUMIFS(INDEX(T:T,11):INDEX(T:T,100000),INDEX($F:$F,11):INDEX($F:$F,100000),$P1,INDEX($J:$J,11):INDEX($J:$J,100000),"2_InProgress") +SUMIFS(INDEX(T:T,11):INDEX(T:T,100000),INDEX($F:$F,11):INDEX($F:$F,100000),$P1,INDEX($J:$J,11):INDEX($J:$J,100000),"3_Prototype") +SUMIFS(INDEX(T:T,11):INDEX(T:T,100000),INDEX($F:$F,11):INDEX($F:$F,100000),$P1,INDEX($J:$J,11):INDEX($J:$J,100000),"4_Testing") -> 0 | U1: =SUMIFS(INDEX(U:U,11):INDEX(U:U,100000),INDEX($F:$F,11):INDEX($F:$F,100000),$P1,INDEX($J:$J,11):INDEX($J:$J,100000),"0_AttentionNeeded") +SUMIFS(INDEX(U:U,11):INDEX(U:U,100000),INDEX($F:$F,11):INDEX($F:$F,100000),$P1,INDEX($J:$J,11):INDEX($J:$J,100000),"1_Assigned") +SUMIFS(INDEX(U:U,11):INDEX(U:U,100000),INDEX($F:$F,11):INDEX($F:$F,100000),$P1,INDEX($J:$J,11):INDEX($J:$J,100000),"2_InProgress") +SUMIFS(INDEX(U:U,11):INDEX(U:U,100000),INDEX($F:$F,11):INDEX($F:$F,100000),$P1,INDEX($J:$J,11):INDEX($J:$J,100000),"3_Prototype") +SUMIFS(INDEX(U:U,11):INDEX(U:U,100000),INDEX($F:$F,11):INDEX($F:$F,100000),$P1,INDEX($J:$J,11):INDEX($J:$J,100000),"4_Testing") -> 0 | V1: =SUMIFS(INDEX(V:V,11):INDEX(V:V,100000),INDEX($F:$F,11):INDEX($F:$F,100000),$P1,INDEX($J:$J,11):INDEX($J:$J,100000),"0_AttentionNeeded") +SUMIFS(INDEX(V:V,11):INDEX(V:V,100000),INDEX($F:$F,11):INDEX($F:$F,100000),$P1,INDEX($J:$J,11):INDEX($J:$J,100000),"1_Assigned") +SUMIFS(INDEX(V:V,11):INDEX(V:V,100000),INDEX($F:$F,11):INDEX($F:$F,100000),$P1,INDEX($J:$J,11):INDEX($J:$J,100000),"2_InProgress") +SUMIFS(INDEX(V:V,11):INDEX(V:V,100000),INDEX($F:$F,11):INDEX($F:$F,100000),$P1,INDEX($J:$J,11):INDEX($J:$J,100000),"3_Prototype") +SUMIFS(INDEX(V:V,11):INDEX(V:V,100000),INDEX($F:$F,11):INDEX($F:$F,100000),$P1,INDEX($J:$J,11):INDEX($J:$J,100000),"4_Testing") -> 0 | W1: =SUMIFS(INDEX(W:W,11):INDEX(W:W,100000),INDEX($F:$F,11):INDEX($F:$F,100000),$P1,INDEX($J:$J,11):INDEX($J:$J,100000),"0_AttentionNeeded") +SUMIFS(INDEX(W:W,11):INDEX(W:W,100000),INDEX($F:$F,11):INDEX($F:$F,100000),$P1,INDEX($J:$J,11):INDEX($J:$J,100000),"1_Assigned") +SUMIFS(INDEX(W:W,11):INDEX(W:W,100000),INDEX($F:$F,11):INDEX($F:$F,100000),$P1,INDEX($J:$J,11):INDEX($J:$J,100000),"2_InProgress") +SUMIFS(INDEX(W:W,11):INDEX(W:W,100000),INDEX($F:$F,11):INDEX($F:$F,100000),$P1,INDEX($J:$J,11):INDEX($J:$J,100000),"3_Prototype") +SUMIFS(INDEX(W:W,11):INDEX(W:W,100000),INDEX($F:$F,11):INDEX($F:$F,100000),$P1,INDEX($J:$J,11):INDEX($J:$J,100000),"4_Testing") -> 0 | X1: =SUM(Y1:AD1) -> 2.5 | Y1: =SUMIFS(INDEX(Y:Y,11):INDEX(Y:Y,100000),INDEX($F:$F,11):INDEX($F:$F,100000),$P1,INDEX($J:$J,11):INDEX($J:$J,100000),"0_AttentionNeeded") +SUMIFS(INDEX(Y:Y,11):INDEX(Y:Y,100000),INDEX($F:$F,11):INDEX($F:$F,100000),$P1,INDEX($J:$J,11):INDEX($J:$J,100000),"1_Assigned") +SUMIFS(INDEX(Y:Y,11):INDEX(Y:Y,100000),INDEX($F:$F,11):INDEX($F:$F,100000),$P1,INDEX($J:$J,11):INDEX($J:$J,100000),"2_InProgress") +SUMIFS(INDEX(Y:Y,11):INDEX(Y:Y,100000),INDEX($F:$F,11):INDEX($F:$F,100000),$P1,INDEX($J:$J,11):INDEX($J:$J,100000),"3_Prototype") +SUMIFS(INDEX(Y:Y,11):INDEX(Y:Y,100000),INDEX($F:$F,11):INDEX($F:$F,100000),$P1,INDEX($J:$J,11):INDEX($J:$J,100000),"4_Testing") -> 0.5 | Z1: =SUMIFS(INDEX(Z:Z,11):INDEX(Z:Z,100000),INDEX($F:$F,11):INDEX($F:$F,100000),$P1,INDEX($J:$J,11):INDEX($J:$J,100000),"0_AttentionNeeded") +SUMIFS(INDEX(Z:Z,11):INDEX(Z:Z,100000),INDEX($F:$F,11):INDEX($F:$F,100000),$P1,INDEX($J:$J,11):INDEX($J:$J,100000),"1_Assigned") +SUMIFS(INDEX(Z:Z,11):INDEX(Z:Z,100000),INDEX($F:$F,11):INDEX($F:$F,100000),$P1,INDEX($J:$J,11):INDEX($J:$J,100000),"2_InProgress") +SUMIFS(INDEX(Z:Z,11):INDEX(Z:Z,100000),INDEX($F:$F,11):INDEX($F:$F,100000),$P1,INDEX($J:$J,11):INDEX($J:$J,100000),"3_Prototype") +SUMIFS(INDEX(Z:Z,11):INDEX(Z:Z,100000),INDEX($F:$F,11):INDEX($F:$F,100000),$P1,INDEX($J:$J,11):INDEX($J:$J,100000),"4_Testing") -> 0.5 | AA1: =SUMIFS(INDEX(AA:AA,11):INDEX(AA:AA,100000),INDEX($F:$F,11):INDEX($F:$F,100000),$P1,INDEX($J:$J,11):INDEX($J:$J,100000),"0_AttentionNeeded") +SUMIFS(INDEX(AA:AA,11):INDEX(AA:AA,100000),INDEX($F:$F,11):INDEX($F:$F,100000),$P1,INDEX($J:$J,11):INDEX($J:$J,100000),"1_Assigned") +SUMIFS(INDEX(AA:AA,11):INDEX(AA:AA,100000),INDEX($F:$F,11):INDEX($F:$F,100000),$P1,INDEX($J:$J,11):INDEX($J:$J,100000),"2_InProgress") +SUMIFS(INDEX(AA:AA,11):INDEX(AA:AA,100000),INDEX($F:$F,11):INDEX($F:$F,100000),$P1,INDEX($J:$J,11):INDEX($J:$J,100000),"3_Prototype") +SUMIFS(INDEX(AA:AA,11):INDEX(AA:AA,100000),INDEX($F:$F,11):INDEX($F:$F,100000),$P1,INDEX($J:$J,11):INDEX($J:$J,100000),"4_Testing") -> 0.5 | AB1: =SUMIFS(INDEX(AB:AB,11):INDEX(AB:AB,100000),INDEX($F:$F,11):INDEX($F:$F,100000),$P1,INDEX($J:$J,11):INDEX($J:$J,100000),"0_AttentionNeeded") +SUMIFS(INDEX(AB:AB,11):INDEX(AB:AB,100000),INDEX($F:$F,11):INDEX($F:$F,100000),$P1,INDEX($J:$J,11):INDEX($J:$J,100000),"1_Assigned") +SUMIFS(INDEX(AB:AB,11):INDEX(AB:AB,100000),INDEX($F:$F,11):INDEX($F:$F,100000),$P1,INDEX($J:$J,11):INDEX($J:$J,100000),"2_InProgress") +SUMIFS(INDEX(AB:AB,11):INDEX(AB:AB,100000),INDEX($F:$F,11):INDEX($F:$F,100000),$P1,INDEX($J:$J,11):INDEX($J:$J,100000),"3_Prototype") +SUMIFS(INDEX(AB:AB,11):INDEX(AB:AB,100000),INDEX($F:$F,11):INDEX($F:$F,100000),$P1,INDEX($J:$J,11):INDEX($J:$J,100000),"4_Testing") -> 0.5 | AC1: =SUMIFS(INDEX(AC:AC,11):INDEX(AC:AC,100000),INDEX($F:$F,11):INDEX($F:$F,100000),$P1,INDEX($J:$J,11):INDEX($J:$J,100000),"0_AttentionNeeded") +SUMIFS(INDEX(AC:AC,11):INDEX(AC:AC,100000),INDEX($F:$F,11):INDEX($F:$F,100000),$P1,INDEX($J:$J,11):INDEX($J:$J,100000),"1_Assigned") +SUMIFS(INDEX(AC:AC,11):INDEX(AC:AC,100000),INDEX($F:$F,11):INDEX($F:$F,100000),$P1,INDEX($J:$J,11):INDEX($J:$J,100000),"2_InProgress") +SUMIFS(INDEX(AC:AC,11):INDEX(AC:AC,100000),INDEX($F:$F,11):INDEX($F:$F,100000),$P1,INDEX($J:$J,11):INDEX($J:$J,100000),"3_Prototype") +SUMIFS(INDEX(AC:AC,11):INDEX(AC:AC,100000),INDEX($F:$F,11):INDEX($F:$F,100000),$P1,INDEX($J:$J,11):INDEX($J:$J,100000),"4_Testing") -> 0.5 | AD1: =SUMIFS(INDEX(AD:AD,11):INDEX(AD:AD,100000),INDEX($F:$F,11):INDEX($F:$F,100000),$P1,INDEX($J:$J,11):INDEX($J:$J,100000),"0_AttentionNeeded") +SUMIFS(INDEX(AD:AD,11):INDEX(AD:AD,100000),INDEX($F:$F,11):INDEX($F:$F,100000),$P1,INDEX($J:$J,11):INDEX($J:$J,100000),"1_Assigned") +SUMIFS(INDEX(AD:AD,11):INDEX(AD:AD,100000),INDEX($F:$F,11):INDEX($F:$F,100000),$P1,INDEX($J:$J,11):INDEX($J:$J,100000),"2_InProgress") +SUMIFS(INDEX(AD:AD,11):INDEX(AD:AD,100000),INDEX($F:$F,11):INDEX($F:$F,100000),$P1,INDEX($J:$J,11):INDEX($J:$J,100000),"3_Prototype") +SUMIFS(INDEX(AD:AD,11):INDEX(AD:AD,100000),INDEX($F:$F,11):INDEX($F:$F,100000),$P1,INDEX($J:$J,11):INDEX($J:$J,100000),"4_Testing") -> 0 | AE1: =SUM(AF1:AK1) -> 110 | AF1: =SUMIFS(INDEX(AF:AF,11):INDEX(AF:AF,100000),INDEX($F:$F,11):INDEX($F:$F,100000),$P1,INDEX($J:$J,11):INDEX($J:$J,100000),"0_AttentionNeeded") +SUMIFS(INDEX(AF:AF,11):INDEX(AF:AF,100000),INDEX($F:$F,11):INDEX($F:$F,100000),$P1,INDEX($J:$J,11):INDEX($J:$J,100000),"1_Assigned") +SUMIFS(INDEX(AF:AF,11):INDEX(AF:AF,100000),INDEX($F:$F,11):INDEX($F:$F,100000),$P1,INDEX($J:$J,11):INDEX($J:$J,100000),"2_InProgress") +SUMIFS(INDEX(AF:AF,11):INDEX(AF:AF,100000),INDEX($F:$F,11):INDEX($F:$F,100000),$P1,INDEX($J:$J,11):INDEX($J:$J,100000),"3_Prototype") +SUMIFS(INDEX(AF:AF,11):INDEX(AF:AF,100000),INDEX($F:$F,11):INDEX($F:$F,100000),$P1,INDEX($J:$J,11):INDEX($J:$J,100000),"4_Testing") -> 22 | AG1: =SUMIFS(INDEX(AG:AG,11):INDEX(AG:AG,100000),INDEX($F:$F,11):INDEX($F:$F,100000),$P1,INDEX($J:$J,11):INDEX($J:$J,100000),"0_AttentionNeeded") +SUMIFS(INDEX(AG:AG,11):INDEX(AG:AG,100000),INDEX($F:$F,11):INDEX($F:$F,100000),$P1,INDEX($J:$J,11):INDEX($J:$J,100000),"1_Assigned") +SUMIFS(INDEX(AG:AG,11):INDEX(AG:AG,100000),INDEX($F:$F,11):INDEX($F:$F,100000),$P1,INDEX($J:$J,11):INDEX($J:$J,100000),"2_InProgress") +SUMIFS(INDEX(AG:AG,11):INDEX(AG:AG,100000),INDEX($F:$F,11):INDEX($F:$F,100000),$P1,INDEX($J:$J,11):INDEX($J:$J,100000),"3_Prototype") +SUMIFS(INDEX(AG:AG,11):INDEX(AG:AG,100000),INDEX($F:$F,11):INDEX($F:$F,100000),$P1,INDEX($J:$J,11):INDEX($J:$J,100000),"4_Testing") -> 22 | AH1: =SUMIFS(INDEX(AH:AH,11):INDEX(AH:AH,100000),INDEX($F:$F,11):INDEX($F:$F,100000),$P1,INDEX($J:$J,11):INDEX($J:$J,100000),"0_AttentionNeeded") +SUMIFS(INDEX(AH:AH,11):INDEX(AH:AH,100000),INDEX($F:$F,11):INDEX($F:$F,100000),$P1,INDEX($J:$J,11):INDEX($J:$J,100000),"1_Assigned") +SUMIFS(INDEX(AH:AH,11):INDEX(AH:AH,100000),INDEX($F:$F,11):INDEX($F:$F,100000),$P1,INDEX($J:$J,11):INDEX($J:$J,100000),"2_InProgress") +SUMIFS(INDEX(AH:AH,11):INDEX(AH:AH,100000),INDEX($F:$F,11):INDEX($F:$F,100000),$P1,INDEX($J:$J,11):INDEX($J:$J,100000),"3_Prototype") +SUMIFS(INDEX(AH:AH,11):INDEX(AH:AH,100000),INDEX($F:$F,11):INDEX($F:$F,100000),$P1,INDEX($J:$J,11):INDEX($J:$J,100000),"4_Testing") -> 22 | AI1: =SUMIFS(INDEX(AI:AI,11):INDEX(AI:AI,100000),INDEX($F:$F,11):INDEX($F:$F,100000),$P1,INDEX($J:$J,11):INDEX($J:$J,100000),"0_AttentionNeeded") +SUMIFS(INDEX(AI:AI,11):INDEX(AI:AI,100000),INDEX($F:$F,11):INDEX($F:$F,100000),$P1,INDEX($J:$J,11):INDEX($J:$J,100000),"1_Assigned") +SUMIFS(INDEX(AI:AI,11):INDEX(AI:AI,100000),INDEX($F:$F,11):INDEX($F:$F,100000),$P1,INDEX($J:$J,11):INDEX($J:$J,100000),"2_InProgress") +SUMIFS(INDEX(AI:AI,11):INDEX(AI:AI,100000),INDEX($F:$F,11):INDEX($F:$F,100000),$P1,INDEX($J:$J,11):INDEX($J:$J,100000),"3_Prototype") +SUMIFS(INDEX(AI:AI,11):INDEX(AI:AI,100000),INDEX($F:$F,11):INDEX($F:$F,100000),$P1,INDEX($J:$J,11):INDEX($J:$J,100000),"4_Testing") -> 22 | AJ1: =SUMIFS(INDEX(AJ:AJ,11):INDEX(AJ:AJ,100000),INDEX($F:$F,11):INDEX($F:$F,100000),$P1,INDEX($J:$J,11):INDEX($J:$J,100000),"0_AttentionNeeded") +SUMIFS(INDEX(AJ:AJ,11):INDEX(AJ:AJ,100000),INDEX($F:$F,11):INDEX($F:$F,100000),$P1,INDEX($J:$J,11):INDEX($J:$J,100000),"1_Assigned") +SUMIFS(INDEX(AJ:AJ,11):INDEX(AJ:AJ,100000),INDEX($F:$F,11):INDEX($F:$F,100000),$P1,INDEX($J:$J,11):INDEX($J:$J,100000),"2_InProgress") +SUMIFS(INDEX(AJ:AJ,11):INDEX(AJ:AJ,100000),INDEX($F:$F,11):INDEX($F:$F,100000),$P1,INDEX($J:$J,11):INDEX($J:$J,100000),"3_Prototype") +SUMIFS(INDEX(AJ:AJ,11):INDEX(AJ:AJ,100000),INDEX($F:$F,11):INDEX($F:$F,100000),$P1,INDEX($J:$J,11):INDEX($J:$J,100000),"4_Testing") -> 22 | AK1: =SUMIFS(INDEX(AK:AK,11):INDEX(AK:AK,100000),INDEX($F:$F,11):INDEX($F:$F,100000),$P1,INDEX($J:$J,11):INDEX($J:$J,100000),"0_AttentionNeeded") +SUMIFS(INDEX(AK:AK,11):INDEX(AK:AK,100000),INDEX($F:$F,11):INDEX($F:$F,100000),$P1,INDEX($J:$J,11):INDEX($J:$J,100000),"1_Assigned") +SUMIFS(INDEX(AK:AK,11):INDEX(AK:AK,100000),INDEX($F:$F,11):INDEX($F:$F,100000),$P1,INDEX($J:$J,11):INDEX($J:$J,100000),"2_InProgress") +SUMIFS(INDEX(AK:AK,11):INDEX(AK:AK,100000),INDEX($F:$F,11):INDEX($F:$F,100000),$P1,INDEX($J:$J,11):INDEX($J:$J,100000),"3_Prototype") +SUMIFS(INDEX(AK:AK,11):INDEX(AK:AK,100000),INDEX($F:$F,11):INDEX($F:$F,100000),$P1,INDEX($J:$J,11):INDEX($J:$J,100000),"4_Testing") -> 0 | AL1: =SUM(AM1:AR1) -> 0 | AM1: =SUMIFS(INDEX(AM:AM,11):INDEX(AM:AM,100000),INDEX($F:$F,11):INDEX($F:$F,100000),$P1,INDEX($J:$J,11):INDEX($J:$J,100000),"0_AttentionNeeded") +SUMIFS(INDEX(AM:AM,11):INDEX(AM:AM,100000),INDEX($F:$F,11):INDEX($F:$F,100000),$P1,INDEX($J:$J,11):INDEX($J:$J,100000),"1_Assigned") +SUMIFS(INDEX(AM:AM,11):INDEX(AM:AM,100000),INDEX($F:$F,11):INDEX($F:$F,100000),$P1,INDEX($J:$J,11):INDEX($J:$J,100000),"2_InProgress") +SUMIFS(INDEX(AM:AM,11):INDEX(AM:AM,100000),INDEX($F:$F,11):INDEX($F:$F,100000),$P1,INDEX($J:$J,11):INDEX($J:$J,100000),"3_Prototype") +SUMIFS(INDEX(AM:AM,11):INDEX(AM:AM,100000),INDEX($F:$F,11):INDEX($F:$F,100000),$P1,INDEX($J:$J,11):INDEX($J:$J,100000),"4_Testing") -> 0 | AN1: =SUMIFS(INDEX(AN:AN,11):INDEX(AN:AN,100000),INDEX($F:$F,11):INDEX($F:$F,100000),$P1,INDEX($J:$J,11):INDEX($J:$J,100000),"0_AttentionNeeded") +SUMIFS(INDEX(AN:AN,11):INDEX(AN:AN,100000),INDEX($F:$F,11):INDEX($F:$F,100000),$P1,INDEX($J:$J,11):INDEX($J:$J,100000),"1_Assigned") +SUMIFS(INDEX(AN:AN,11):INDEX(AN:AN,100000),INDEX($F:$F,11):INDEX($F:$F,100000),$P1,INDEX($J:$J,11):INDEX($J:$J,100000),"2_InProgress") +SUMIFS(INDEX(AN:AN,11):INDEX(AN:AN,100000),INDEX($F:$F,11):INDEX($F:$F,100000),$P1,INDEX($J:$J,11):INDEX($J:$J,100000),"3_Prototype") +SUMIFS(INDEX(AN:AN,11):INDEX(AN:AN,100000),INDEX($F:$F,11):INDEX($F:$F,100000),$P1,INDEX($J:$J,11):INDEX($J:$J,100000),"4_Testing") -> 0 | AO1: =SUMIFS(INDEX(AO:AO,11):INDEX(AO:AO,100000),INDEX($F:$F,11):INDEX($F:$F,100000),$P1,INDEX($J:$J,11):INDEX($J:$J,100000),"0_AttentionNeeded") +SUMIFS(INDEX(AO:AO,11):INDEX(AO:AO,100000),INDEX($F:$F,11):INDEX($F:$F,100000),$P1,INDEX($J:$J,11):INDEX($J:$J,100000),"1_Assigned") +SUMIFS(INDEX(AO:AO,11):INDEX(AO:AO,100000),INDEX($F:$F,11):INDEX($F:$F,100000),$P1,INDEX($J:$J,11):INDEX($J:$J,100000),"2_InProgress") +SUMIFS(INDEX(AO:AO,11):INDEX(AO:AO,100000),INDEX($F:$F,11):INDEX($F:$F,100000),$P1,INDEX($J:$J,11):INDEX($J:$J,100000),"3_Prototype") +SUMIFS(INDEX(AO:AO,11):INDEX(AO:AO,100000),INDEX($F:$F,11):INDEX($F:$F,100000),$P1,INDEX($J:$J,11):INDEX($J:$J,100000),"4_Testing") -> 0 | AP1: =SUMIFS(INDEX(AP:AP,11):INDEX(AP:AP,100000),INDEX($F:$F,11):INDEX($F:$F,100000),$P1,INDEX($J:$J,11):INDEX($J:$J,100000),"0_AttentionNeeded") +SUMIFS(INDEX(AP:AP,11):INDEX(AP:AP,100000),INDEX($F:$F,11):INDEX($F:$F,100000),$P1,INDEX($J:$J,11):INDEX($J:$J,100000),"1_Assigned") +SUMIFS(INDEX(AP:AP,11):INDEX(AP:AP,100000),INDEX($F:$F,11):INDEX($F:$F,100000),$P1,INDEX($J:$J,11):INDEX($J:$J,100000),"2_InProgress") +SUMIFS(INDEX(AP:AP,11):INDEX(AP:AP,100000),INDEX($F:$F,11):INDEX($F:$F,100000),$P1,INDEX($J:$J,11):INDEX($J:$J,100000),"3_Prototype") +SUMIFS(INDEX(AP:AP,11):INDEX(AP:AP,100000),INDEX($F:$F,11):INDEX($F:$F,100000),$P1,INDEX($J:$J,11):INDEX($J:$J,100000),"4_Testing") -> 0 | AQ1: =SUMIFS(INDEX(AQ:AQ,11):INDEX(AQ:AQ,100000),INDEX($F:$F,11):INDEX($F:$F,100000),$P1,INDEX($J:$J,11):INDEX($J:$J,100000),"0_AttentionNeeded") +SUMIFS(INDEX(AQ:AQ,11):INDEX(AQ:AQ,100000),INDEX($F:$F,11):INDEX($F:$F,100000),$P1,INDEX($J:$J,11):INDEX($J:$J,100000),"1_Assigned") +SUMIFS(INDEX(AQ:AQ,11):INDEX(AQ:AQ,100000),INDEX($F:$F,11):INDEX($F:$F,100000),$P1,INDEX($J:$J,11):INDEX($J:$J,100000),"2_InProgress") +SUMIFS(INDEX(AQ:AQ,11):INDEX(AQ:AQ,100000),INDEX($F:$F,11):INDEX($F:$F,100000),$P1,INDEX($J:$J,11):INDEX($J:$J,100000),"3_Prototype") +SUMIFS(INDEX(AQ:AQ,11):INDEX(AQ:AQ,100000),INDEX($F:$F,11):INDEX($F:$F,100000),$P1,INDEX($J:$J,11):INDEX($J:$J,100000),"4_Testing") -> 0 | AR1: =SUMIFS(INDEX(AR:AR,11):INDEX(AR:AR,100000),INDEX($F:$F,11):INDEX($F:$F,100000),$P1,INDEX($J:$J,11):INDEX($J:$J,100000),"0_AttentionNeeded") +SUMIFS(INDEX(AR:AR,11):INDEX(AR:AR,100000),INDEX($F:$F,11):INDEX($F:$F,100000),$P1,INDEX($J:$J,11):INDEX($J:$J,100000),"1_Assigned") +SUMIFS(INDEX(AR:AR,11):INDEX(AR:AR,100000),INDEX($F:$F,11):INDEX($F:$F,100000),$P1,INDEX($J:$J,11):INDEX($J:$J,100000),"2_InProgress") +SUMIFS(INDEX(AR:AR,11):INDEX(AR:AR,100000),INDEX($F:$F,11):INDEX($F:$F,100000),$P1,INDEX($J:$J,11):INDEX($J:$J,100000),"3_Prototype") +SUMIFS(INDEX(AR:AR,11):INDEX(AR:AR,100000),INDEX($F:$F,11):INDEX($F:$F,100000),$P1,INDEX($J:$J,11):INDEX($J:$J,100000),"4_Testing") -> 0 | AS1: =SUM(AT1:AY1) -> 0 | AT1: =SUMIFS(INDEX(AT:AT,11):INDEX(AT:AT,100000),INDEX($F:$F,11):INDEX($F:$F,100000),$P1,INDEX($J:$J,11):INDEX($J:$J,100000),"0_AttentionNeeded") +SUMIFS(INDEX(AT:AT,11):INDEX(AT:AT,100000),INDEX($F:$F,11):INDEX($F:$F,100000),$P1,INDEX($J:$J,11):INDEX($J:$J,100000),"1_Assigned") +SUMIFS(INDEX(AT:AT,11):INDEX(AT:AT,100000),INDEX($F:$F,11):INDEX($F:$F,100000),$P1,INDEX($J:$J,11):INDEX($J:$J,100000),"2_InProgress") +SUMIFS(INDEX(AT:AT,11):INDEX(AT:AT,100000),INDEX($F:$F,11):INDEX($F:$F,100000),$P1,INDEX($J:$J,11):INDEX($J:$J,100000),"3_Prototype") +SUMIFS(INDEX(AT:AT,11):INDEX(AT:AT,100000),INDEX($F:$F,11):INDEX($F:$F,100000),$P1,INDEX($J:$J,11):INDEX($J:$J,100000),"4_Testing") -> 0 | AU1: =SUMIFS(INDEX(AU:AU,11):INDEX(AU:AU,100000),INDEX($F:$F,11):INDEX($F:$F,100000),$P1,INDEX($J:$J,11):INDEX($J:$J,100000),"0_AttentionNeeded") +SUMIFS(INDEX(AU:AU,11):INDEX(AU:AU,100000),INDEX($F:$F,11):INDEX($F:$F,100000),$P1,INDEX($J:$J,11):INDEX($J:$J,100000),"1_Assigned") +SUMIFS(INDEX(AU:AU,11):INDEX(AU:AU,100000),INDEX($F:$F,11):INDEX($F:$F,100000),$P1,INDEX($J:$J,11):INDEX($J:$J,100000),"2_InProgress") +SUMIFS(INDEX(AU:AU,11):INDEX(AU:AU,100000),INDEX($F:$F,11):INDEX($F:$F,100000),$P1,INDEX($J:$J,11):INDEX($J:$J,100000),"3_Prototype") +SUMIFS(INDEX(AU:AU,11):INDEX(AU:AU,100000),INDEX($F:$F,11):INDEX($F:$F,100000),$P1,INDEX($J:$J,11):INDEX($J:$J,100000),"4_Testing") -> 0 | AV1: =SUMIFS(INDEX(AV:AV,11):INDEX(AV:AV,100000),INDEX($F:$F,11):INDEX($F:$F,100000),$P1,INDEX($J:$J,11):INDEX($J:$J,100000),"0_AttentionNeeded") +SUMIFS(INDEX(AV:AV,11):INDEX(AV:AV,100000),INDEX($F:$F,11):INDEX($F:$F,100000),$P1,INDEX($J:$J,11):INDEX($J:$J,100000),"1_Assigned") +SUMIFS(INDEX(AV:AV,11):INDEX(AV:AV,100000),INDEX($F:$F,11):INDEX($F:$F,100000),$P1,INDEX($J:$J,11):INDEX($J:$J,100000),"2_InProgress") +SUMIFS(INDEX(AV:AV,11):INDEX(AV:AV,100000),INDEX($F:$F,11):INDEX($F:$F,100000),$P1,INDEX($J:$J,11):INDEX($J:$J,100000),"3_Prototype") +SUMIFS(INDEX(AV:AV,11):INDEX(AV:AV,100000),INDEX($F:$F,11):INDEX($F:$F,100000),$P1,INDEX($J:$J,11):INDEX($J:$J,100000),"4_Testing") -> 0 | AW1: =SUMIFS(INDEX(AW:AW,11):INDEX(AW:AW,100000),INDEX($F:$F,11):INDEX($F:$F,100000),$P1,INDEX($J:$J,11):INDEX($J:$J,100000),"0_AttentionNeeded") +SUMIFS(INDEX(AW:AW,11):INDEX(AW:AW,100000),INDEX($F:$F,11):INDEX($F:$F,100000),$P1,INDEX($J:$J,11):INDEX($J:$J,100000),"1_Assigned") +SUMIFS(INDEX(AW:AW,11):INDEX(AW:AW,100000),INDEX($F:$F,11):INDEX($F:$F,100000),$P1,INDEX($J:$J,11):INDEX($J:$J,100000),"2_InProgress") +SUMIFS(INDEX(AW:AW,11):INDEX(AW:AW,100000),INDEX($F:$F,11):INDEX($F:$F,100000),$P1,INDEX($J:$J,11):INDEX($J:$J,100000),"3_Prototype") +SUMIFS(INDEX(AW:AW,11):INDEX(AW:AW,100000),INDEX($F:$F,11):INDEX($F:$F,100000),$P1,INDEX($J:$J,11):INDEX($J:$J,100000),"4_Testing") -> 0 | AX1: =SUMIFS(INDEX(AX:AX,11):INDEX(AX:AX,100000),INDEX($F:$F,11):INDEX($F:$F,100000),$P1,INDEX($J:$J,11):INDEX($J:$J,100000),"0_AttentionNeeded") +SUMIFS(INDEX(AX:AX,11):INDEX(AX:AX,100000),INDEX($F:$F,11):INDEX($F:$F,100000),$P1,INDEX($J:$J,11):INDEX($J:$J,100000),"1_Assigned") +SUMIFS(INDEX(AX:AX,11):INDEX(AX:AX,100000),INDEX($F:$F,11):INDEX($F:$F,100000),$P1,INDEX($J:$J,11):INDEX($J:$J,100000),"2_InProgress") +SUMIFS(INDEX(AX:AX,11):INDEX(AX:AX,100000),INDEX($F:$F,11):INDEX($F:$F,100000),$P1,INDEX($J:$J,11):INDEX($J:$J,100000),"3_Prototype") +SUMIFS(INDEX(AX:AX,11):INDEX(AX:AX,100000),INDEX($F:$F,11):INDEX($F:$F,100000),$P1,INDEX($J:$J,11):INDEX($J:$J,100000),"4_Testing") -> 0 | AY1: =SUMIFS(INDEX(AY:AY,11):INDEX(AY:AY,100000),INDEX($F:$F,11):INDEX($F:$F,100000),$P1,INDEX($J:$J,11):INDEX($J:$J,100000),"0_AttentionNeeded") +SUMIFS(INDEX(AY:AY,11):INDEX(AY:AY,100000),INDEX($F:$F,11):INDEX($F:$F,100000),$P1,INDEX($J:$J,11):INDEX($J:$J,100000),"1_Assigned") +SUMIFS(INDEX(AY:AY,11):INDEX(AY:AY,100000),INDEX($F:$F,11):INDEX($F:$F,100000),$P1,INDEX($J:$J,11):INDEX($J:$J,100000),"2_InProgress") +SUMIFS(INDEX(AY:AY,11):INDEX(AY:AY,100000),INDEX($F:$F,11):INDEX($F:$F,100000),$P1,INDEX($J:$J,11):INDEX($J:$J,100000),"3_Prototype") +SUMIFS(INDEX(AY:AY,11):INDEX(AY:AY,100000),INDEX($F:$F,11):INDEX($F:$F,100000),$P1,INDEX($J:$J,11):INDEX($J:$J,100000),"4_Testing") -> 0 | AZ1: =SUM(BA1:BF1) -> 0 | BA1: =SUMIFS(INDEX(BA:BA,11):INDEX(BA:BA,100000),INDEX($F:$F,11):INDEX($F:$F,100000),$P1,INDEX($J:$J,11):INDEX($J:$J,100000),"0_AttentionNeeded") +SUMIFS(INDEX(BA:BA,11):INDEX(BA:BA,100000),INDEX($F:$F,11):INDEX($F:$F,100000),$P1,INDEX($J:$J,11):INDEX($J:$J,100000),"1_Assigned") +SUMIFS(INDEX(BA:BA,11):INDEX(BA:BA,100000),INDEX($F:$F,11):INDEX($F:$F,100000),$P1,INDEX($J:$J,11):INDEX($J:$J,100000),"2_InProgress") +SUMIFS(INDEX(BA:BA,11):INDEX(BA:BA,100000),INDEX($F:$F,11):INDEX($F:$F,100000),$P1,INDEX($J:$J,11):INDEX($J:$J,100000),"3_Prototype") +SUMIFS(INDEX(BA:BA,11):INDEX(BA:BA,100000),INDEX($F:$F,11):INDEX($F:$F,100000),$P1,INDEX($J:$J,11):INDEX($J:$J,100000),"4_Testing") -> 0 | BB1: =SUMIFS(INDEX(BB:BB,11):INDEX(BB:BB,100000),INDEX($F:$F,11):INDEX($F:$F,100000),$P1,INDEX($J:$J,11):INDEX($J:$J,100000),"0_AttentionNeeded") +SUMIFS(INDEX(BB:BB,11):INDEX(BB:BB,100000),INDEX($F:$F,11):INDEX($F:$F,100000),$P1,INDEX($J:$J,11):INDEX($J:$J,100000),"1_Assigned") +SUMIFS(INDEX(BB:BB,11):INDEX(BB:BB,100000),INDEX($F:$F,11):INDEX($F:$F,100000),$P1,INDEX($J:$J,11):INDEX($J:$J,100000),"2_InProgress") +SUMIFS(INDEX(BB:BB,11):INDEX(BB:BB,100000),INDEX($F:$F,11):INDEX($F:$F,100000),$P1,INDEX($J:$J,11):INDEX($J:$J,100000),"3_Prototype") +SUMIFS(INDEX(BB:BB,11):INDEX(BB:BB,100000),INDEX($F:$F,11):INDEX($F:$F,100000),$P1,INDEX($J:$J,11):INDEX($J:$J,100000),"4_Testing") -> 0 | BC1: =SUMIFS(INDEX(BC:BC,11):INDEX(BC:BC,100000),INDEX($F:$F,11):INDEX($F:$F,100000),$P1,INDEX($J:$J,11):INDEX($J:$J,100000),"0_AttentionNeeded") +SUMIFS(INDEX(BC:BC,11):INDEX(BC:BC,100000),INDEX($F:$F,11):INDEX($F:$F,100000),$P1,INDEX($J:$J,11):INDEX($J:$J,100000),"1_Assigned") +SUMIFS(INDEX(BC:BC,11):INDEX(BC:BC,100000),INDEX($F:$F,11):INDEX($F:$F,100000),$P1,INDEX($J:$J,11):INDEX($J:$J,100000),"2_InProgress") +SUMIFS(INDEX(BC:BC,11):INDEX(BC:BC,100000),INDEX($F:$F,11):INDEX($F:$F,100000),$P1,INDEX($J:$J,11):INDEX($J:$J,100000),"3_Prototype") +SUMIFS(INDEX(BC:BC,11):INDEX(BC:BC,100000),INDEX($F:$F,11):INDEX($F:$F,100000),$P1,INDEX($J:$J,11):INDEX($J:$J,100000),"4_Testing") -> 0 | BD1: =SUMIFS(INDEX(BD:BD,11):INDEX(BD:BD,100000),INDEX($F:$F,11):INDEX($F:$F,100000),$P1,INDEX($J:$J,11):INDEX($J:$J,100000),"0_AttentionNeeded") +SUMIFS(INDEX(BD:BD,11):INDEX(BD:BD,100000),INDEX($F:$F,11):INDEX($F:$F,100000),$P1,INDEX($J:$J,11):INDEX($J:$J,100000),"1_Assigned") +SUMIFS(INDEX(BD:BD,11):INDEX(BD:BD,100000),INDEX($F:$F,11):INDEX($F:$F,100000),$P1,INDEX($J:$J,11):INDEX($J:$J,100000),"2_InProgress") +SUMIFS(INDEX(BD:BD,11):INDEX(BD:BD,100000),INDEX($F:$F,11):INDEX($F:$F,100000),$P1,INDEX($J:$J,11):INDEX($J:$J,100000),"3_Prototype") +SUMIFS(INDEX(BD:BD,11):INDEX(BD:BD,100000),INDEX($F:$F,11):INDEX($F:$F,100000),$P1,INDEX($J:$J,11):INDEX($J:$J,100000),"4_Testing") -> 0 | BE1: =SUMIFS(INDEX(BE:BE,11):INDEX(BE:BE,100000),INDEX($F:$F,11):INDEX($F:$F,100000),$P1,INDEX($J:$J,11):INDEX($J:$J,100000),"0_AttentionNeeded") +SUMIFS(INDEX(BE:BE,11):INDEX(BE:BE,100000),INDEX($F:$F,11):INDEX($F:$F,100000),$P1,INDEX($J:$J,11):INDEX($J:$J,100000),"1_Assigned") +SUMIFS(INDEX(BE:BE,11):INDEX(BE:BE,100000),INDEX($F:$F,11):INDEX($F:$F,100000),$P1,INDEX($J:$J,11):INDEX($J:$J,100000),"2_InProgress") +SUMIFS(INDEX(BE:BE,11):INDEX(BE:BE,100000),INDEX($F:$F,11):INDEX($F:$F,100000),$P1,INDEX($J:$J,11):INDEX($J:$J,100000),"3_Prototype") +SUMIFS(INDEX(BE:BE,11):INDEX(BE:BE,100000),INDEX($F:$F,11):INDEX($F:$F,100000),$P1,INDEX($J:$J,11):INDEX($J:$J,100000),"4_Testing") -> 0 | BF1: =SUMIFS(INDEX(BF:BF,11):INDEX(BF:BF,100000),INDEX($F:$F,11):INDEX($F:$F,100000),$P1,INDEX($J:$J,11):INDEX($J:$J,100000),"0_AttentionNeeded") +SUMIFS(INDEX(BF:BF,11):INDEX(BF:BF,100000),INDEX($F:$F,11):INDEX($F:$F,100000),$P1,INDEX($J:$J,11):INDEX($J:$J,100000),"1_Assigned") +SUMIFS(INDEX(BF:BF,11):INDEX(BF:BF,100000),INDEX($F:$F,11):INDEX($F:$F,100000),$P1,INDEX($J:$J,11):INDEX($J:$J,100000),"2_InProgress") +SUMIFS(INDEX(BF:BF,11):INDEX(BF:BF,100000),INDEX($F:$F,11):INDEX($F:$F,100000),$P1,INDEX($J:$J,11):INDEX($J:$J,100000),"3_Prototype") +SUMIFS(INDEX(BF:BF,11):INDEX(BF:BF,100000),INDEX($F:$F,11):INDEX($F:$F,100000),$P1,INDEX($J:$J,11):INDEX($J:$J,100000),"4_Testing") -> 0
A2: ScheduleSheet | P2: GA | Q2: =SUM(R2:W2) -> 0 | R2: =SUMIFS(INDEX(R:R,11):INDEX(R:R,100000),INDEX($F:$F,11):INDEX($F:$F,100000),$P2,INDEX($J:$J,11):INDEX($J:$J,100000),"0_AttentionNeeded") +SUMIFS(INDEX(R:R,11):INDEX(R:R,100000),INDEX($F:$F,11):INDEX($F:$F,100000),$P2,INDEX($J:$J,11):INDEX($J:$J,100000),"1_Assigned") +SUMIFS(INDEX(R:R,11):INDEX(R:R,100000),INDEX($F:$F,11):INDEX($F:$F,100000),$P2,INDEX($J:$J,11):INDEX($J:$J,100000),"2_InProgress") +SUMIFS(INDEX(R:R,11):INDEX(R:R,100000),INDEX($F:$F,11):INDEX($F:$F,100000),$P2,INDEX($J:$J,11):INDEX($J:$J,100000),"3_Prototype") +SUMIFS(INDEX(R:R,11):INDEX(R:R,100000),INDEX($F:$F,11):INDEX($F:$F,100000),$P2,INDEX($J:$J,11):INDEX($J:$J,100000),"4_Testing") -> 0 | S2: =SUMIFS(INDEX(S:S,11):INDEX(S:S,100000),INDEX($F:$F,11):INDEX($F:$F,100000),$P2,INDEX($J:$J,11):INDEX($J:$J,100000),"0_AttentionNeeded") +SUMIFS(INDEX(S:S,11):INDEX(S:S,100000),INDEX($F:$F,11):INDEX($F:$F,100000),$P2,INDEX($J:$J,11):INDEX($J:$J,100000),"1_Assigned") +SUMIFS(INDEX(S:S,11):INDEX(S:S,100000),INDEX($F:$F,11):INDEX($F:$F,100000),$P2,INDEX($J:$J,11):INDEX($J:$J,100000),"2_InProgress") +SUMIFS(INDEX(S:S,11):INDEX(S:S,100000),INDEX($F:$F,11):INDEX($F:$F,100000),$P2,INDEX($J:$J,11):INDEX($J:$J,100000),"3_Prototype") +SUMIFS(INDEX(S:S,11):INDEX(S:S,100000),INDEX($F:$F,11):INDEX($F:$F,100000),$P2,INDEX($J:$J,11):INDEX($J:$J,100000),"4_Testing") -> 0 | T2: =SUMIFS(INDEX(T:T,11):INDEX(T:T,100000),INDEX($F:$F,11):INDEX($F:$F,100000),$P2,INDEX($J:$J,11):INDEX($J:$J,100000),"0_AttentionNeeded") +SUMIFS(INDEX(T:T,11):INDEX(T:T,100000),INDEX($F:$F,11):INDEX($F:$F,100000),$P2,INDEX($J:$J,11):INDEX($J:$J,100000),"1_Assigned") +SUMIFS(INDEX(T:T,11):INDEX(T:T,100000),INDEX($F:$F,11):INDEX($F:$F,100000),$P2,INDEX($J:$J,11):INDEX($J:$J,100000),"2_InProgress") +SUMIFS(INDEX(T:T,11):INDEX(T:T,100000),INDEX($F:$F,11):INDEX($F:$F,100000),$P2,INDEX($J:$J,11):INDEX($J:$J,100000),"3_Prototype") +SUMIFS(INDEX(T:T,11):INDEX(T:T,100000),INDEX($F:$F,11):INDEX($F:$F,100000),$P2,INDEX($J:$J,11):INDEX($J:$J,100000),"4_Testing") -> 0 | U2: =SUMIFS(INDEX(U:U,11):INDEX(U:U,100000),INDEX($F:$F,11):INDEX($F:$F,100000),$P2,INDEX($J:$J,11):INDEX($J:$J,100000),"0_AttentionNeeded") +SUMIFS(INDEX(U:U,11):INDEX(U:U,100000),INDEX($F:$F,11):INDEX($F:$F,100000),$P2,INDEX($J:$J,11):INDEX($J:$J,100000),"1_Assigned") +SUMIFS(INDEX(U:U,11):INDEX(U:U,100000),INDEX($F:$F,11):INDEX($F:$F,100000),$P2,INDEX($J:$J,11):INDEX($J:$J,100000),"2_InProgress") +SUMIFS(INDEX(U:U,11):INDEX(U:U,100000),INDEX($F:$F,11):INDEX($F:$F,100000),$P2,INDEX($J:$J,11):INDEX($J:$J,100000),"3_Prototype") +SUMIFS(INDEX(U:U,11):INDEX(U:U,100000),INDEX($F:$F,11):INDEX($F:$F,100000),$P2,INDEX($J:$J,11):INDEX($J:$J,100000),"4_Testing") -> 0 | V2: =SUMIFS(INDEX(V:V,11):INDEX(V:V,100000),INDEX($F:$F,11):INDEX($F:$F,100000),$P2,INDEX($J:$J,11):INDEX($J:$J,100000),"0_AttentionNeeded") +SUMIFS(INDEX(V:V,11):INDEX(V:V,100000),INDEX($F:$F,11):INDEX($F:$F,100000),$P2,INDEX($J:$J,11):INDEX($J:$J,100000),"1_Assigned") +SUMIFS(INDEX(V:V,11):INDEX(V:V,100000),INDEX($F:$F,11):INDEX($F:$F,100000),$P2,INDEX($J:$J,11):INDEX($J:$J,100000),"2_InProgress") +SUMIFS(INDEX(V:V,11):INDEX(V:V,100000),INDEX($F:$F,11):INDEX($F:$F,100000),$P2,INDEX($J:$J,11):INDEX($J:$J,100000),"3_Prototype") +SUMIFS(INDEX(V:V,11):INDEX(V:V,100000),INDEX($F:$F,11):INDEX($F:$F,100000),$P2,INDEX($J:$J,11):INDEX($J:$J,100000),"4_Testing") -> 0 | W2: =SUMIFS(INDEX(W:W,11):INDEX(W:W,100000),INDEX($F:$F,11):INDEX($F:$F,100000),$P2,INDEX($J:$J,11):INDEX($J:$J,100000),"0_AttentionNeeded") +SUMIFS(INDEX(W:W,11):INDEX(W:W,100000),INDEX($F:$F,11):INDEX($F:$F,100000),$P2,INDEX($J:$J,11):INDEX($J:$J,100000),"1_Assigned") +SUMIFS(INDEX(W:W,11):INDEX(W:W,100000),INDEX($F:$F,11):INDEX($F:$F,100000),$P2,INDEX($J:$J,11):INDEX($J:$J,100000),"2_InProgress") +SUMIFS(INDEX(W:W,11):INDEX(W:W,100000),INDEX($F:$F,11):INDEX($F:$F,100000),$P2,INDEX($J:$J,11):INDEX($J:$J,100000),"3_Prototype") +SUMIFS(INDEX(W:W,11):INDEX(W:W,100000),INDEX($F:$F,11):INDEX($F:$F,100000),$P2,INDEX($J:$J,11):INDEX($J:$J,100000),"4_Testing") -> 0 | X2: =SUM(Y2:AD2) -> 1.666666667 | Y2: =SUMIFS(INDEX(Y:Y,11):INDEX(Y:Y,100000),INDEX($F:$F,11):INDEX($F:$F,100000),$P2,INDEX($J:$J,11):INDEX($J:$J,100000),"0_AttentionNeeded") +SUMIFS(INDEX(Y:Y,11):INDEX(Y:Y,100000),INDEX($F:$F,11):INDEX($F:$F,100000),$P2,INDEX($J:$J,11):INDEX($J:$J,100000),"1_Assigned") +SUMIFS(INDEX(Y:Y,11):INDEX(Y:Y,100000),INDEX($F:$F,11):INDEX($F:$F,100000),$P2,INDEX($J:$J,11):INDEX($J:$J,100000),"2_InProgress") +SUMIFS(INDEX(Y:Y,11):INDEX(Y:Y,100000),INDEX($F:$F,11):INDEX($F:$F,100000),$P2,INDEX($J:$J,11):INDEX($J:$J,100000),"3_Prototype") +SUMIFS(INDEX(Y:Y,11):INDEX(Y:Y,100000),INDEX($F:$F,11):INDEX($F:$F,100000),$P2,INDEX($J:$J,11):INDEX($J:$J,100000),"4_Testing") -> 0.3333333333 | Z2: =SUMIFS(INDEX(Z:Z,11):INDEX(Z:Z,100000),INDEX($F:$F,11):INDEX($F:$F,100000),$P2,INDEX($J:$J,11):INDEX($J:$J,100000),"0_AttentionNeeded") +SUMIFS(INDEX(Z:Z,11):INDEX(Z:Z,100000),INDEX($F:$F,11):INDEX($F:$F,100000),$P2,INDEX($J:$J,11):INDEX($J:$J,100000),"1_Assigned") +SUMIFS(INDEX(Z:Z,11):INDEX(Z:Z,100000),INDEX($F:$F,11):INDEX($F:$F,100000),$P2,INDEX($J:$J,11):INDEX($J:$J,100000),"2_InProgress") +SUMIFS(INDEX(Z:Z,11):INDEX(Z:Z,100000),INDEX($F:$F,11):INDEX($F:$F,100000),$P2,INDEX($J:$J,11):INDEX($J:$J,100000),"3_Prototype") +SUMIFS(INDEX(Z:Z,11):INDEX(Z:Z,100000),INDEX($F:$F,11):INDEX($F:$F,100000),$P2,INDEX($J:$J,11):INDEX($J:$J,100000),"4_Testing") -> 0.3333333333 | AA2: =SUMIFS(INDEX(AA:AA,11):INDEX(AA:AA,100000),INDEX($F:$F,11):INDEX($F:$F,100000),$P2,INDEX($J:$J,11):INDEX($J:$J,100000),"0_AttentionNeeded") +SUMIFS(INDEX(AA:AA,11):INDEX(AA:AA,100000),INDEX($F:$F,11):INDEX($F:$F,100000),$P2,INDEX($J:$J,11):INDEX($J:$J,100000),"1_Assigned") +SUMIFS(INDEX(AA:AA,11):INDEX(AA:AA,100000),INDEX($F:$F,11):INDEX($F:$F,100000),$P2,INDEX($J:$J,11):INDEX($J:$J,100000),"2_InProgress") +SUMIFS(INDEX(AA:AA,11):INDEX(AA:AA,100000),INDEX($F:$F,11):INDEX($F:$F,100000),$P2,INDEX($J:$J,11):INDEX($J:$J,100000),"3_Prototype") +SUMIFS(INDEX(AA:AA,11):INDEX(AA:AA,100000),INDEX($F:$F,11):INDEX($F:$F,100000),$P2,INDEX($J:$J,11):INDEX($J:$J,100000),"4_Testing") -> 0.3333333333 | AB2: =SUMIFS(INDEX(AB:AB,11):INDEX(AB:AB,100000),INDEX($F:$F,11):INDEX($F:$F,100000),$P2,INDEX($J:$J,11):INDEX($J:$J,100000),"0_AttentionNeeded") +SUMIFS(INDEX(AB:AB,11):INDEX(AB:AB,100000),INDEX($F:$F,11):INDEX($F:$F,100000),$P2,INDEX($J:$J,11):INDEX($J:$J,100000),"1_Assigned") +SUMIFS(INDEX(AB:AB,11):INDEX(AB:AB,100000),INDEX($F:$F,11):INDEX($F:$F,100000),$P2,INDEX($J:$J,11):INDEX($J:$J,100000),"2_InProgress") +SUMIFS(INDEX(AB:AB,11):INDEX(AB:AB,100000),INDEX($F:$F,11):INDEX($F:$F,100000),$P2,INDEX($J:$J,11):INDEX($J:$J,100000),"3_Prototype") +SUMIFS(INDEX(AB:AB,11):INDEX(AB:AB,100000),INDEX($F:$F,11):INDEX($F:$F,100000),$P2,INDEX($J:$J,11):INDEX($J:$J,100000),"4_Testing") -> 0.3333333333 | AC2: =SUMIFS(INDEX(AC:AC,11):INDEX(AC:AC,100000),INDEX($F:$F,11):INDEX($F:$F,100000),$P2,INDEX($J:$J,11):INDEX($J:$J,100000),"0_AttentionNeeded") +SUMIFS(INDEX(AC:AC,11):INDEX(AC:AC,100000),INDEX($F:$F,11):INDEX($F:$F,100000),$P2,INDEX($J:$J,11):INDEX($J:$J,100000),"1_Assigned") +SUMIFS(INDEX(AC:AC,11):INDEX(AC:AC,100000),INDEX($F:$F,11):INDEX($F:$F,100000),$P2,INDEX($J:$J,11):INDEX($J:$J,100000),"2_InProgress") +SUMIFS(INDEX(AC:AC,11):INDEX(AC:AC,100000),INDEX($F:$F,11):INDEX($F:$F,100000),$P2,INDEX($J:$J,11):INDEX($J:$J,100000),"3_Prototype") +SUMIFS(INDEX(AC:AC,11):INDEX(AC:AC,100000),INDEX($F:$F,11):INDEX($F:$F,100000),$P2,INDEX($J:$J,11):INDEX($J:$J,100000),"4_Testing") -> 0.3333333333 | AD2: =SUMIFS(INDEX(AD:AD,11):INDEX(AD:AD,100000),INDEX($F:$F,11):INDEX($F:$F,100000),$P2,INDEX($J:$J,11):INDEX($J:$J,100000),"0_AttentionNeeded") +SUMIFS(INDEX(AD:AD,11):INDEX(AD:AD,100000),INDEX($F:$F,11):INDEX($F:$F,100000),$P2,INDEX($J:$J,11):INDEX($J:$J,100000),"1_Assigned") +SUMIFS(INDEX(AD:AD,11):INDEX(AD:AD,100000),INDEX($F:$F,11):INDEX($F:$F,100000),$P2,INDEX($J:$J,11):INDEX($J:$J,100000),"2_InProgress") +SUMIFS(INDEX(AD:AD,11):INDEX(AD:AD,100000),INDEX($F:$F,11):INDEX($F:$F,100000),$P2,INDEX($J:$J,11):INDEX($J:$J,100000),"3_Prototype") +SUMIFS(INDEX(AD:AD,11):INDEX(AD:AD,100000),INDEX($F:$F,11):INDEX($F:$F,100000),$P2,INDEX($J:$J,11):INDEX($J:$J,100000),"4_Testing") -> 0 | AE2: =SUM(AF2:AK2) -> 27.5 | AF2: =SUMIFS(INDEX(AF:AF,11):INDEX(AF:AF,100000),INDEX($F:$F,11):INDEX($F:$F,100000),$P2,INDEX($J:$J,11):INDEX($J:$J,100000),"0_AttentionNeeded") +SUMIFS(INDEX(AF:AF,11):INDEX(AF:AF,100000),INDEX($F:$F,11):INDEX($F:$F,100000),$P2,INDEX($J:$J,11):INDEX($J:$J,100000),"1_Assigned") +SUMIFS(INDEX(AF:AF,11):INDEX(AF:AF,100000),INDEX($F:$F,11):INDEX($F:$F,100000),$P2,INDEX($J:$J,11):INDEX($J:$J,100000),"2_InProgress") +SUMIFS(INDEX(AF:AF,11):INDEX(AF:AF,100000),INDEX($F:$F,11):INDEX($F:$F,100000),$P2,INDEX($J:$J,11):INDEX($J:$J,100000),"3_Prototype") +SUMIFS(INDEX(AF:AF,11):INDEX(AF:AF,100000),INDEX($F:$F,11):INDEX($F:$F,100000),$P2,INDEX($J:$J,11):INDEX($J:$J,100000),"4_Testing") -> 5.5 | AG2: =SUMIFS(INDEX(AG:AG,11):INDEX(AG:AG,100000),INDEX($F:$F,11):INDEX($F:$F,100000),$P2,INDEX($J:$J,11):INDEX($J:$J,100000),"0_AttentionNeeded") +SUMIFS(INDEX(AG:AG,11):INDEX(AG:AG,100000),INDEX($F:$F,11):INDEX($F:$F,100000),$P2,INDEX($J:$J,11):INDEX($J:$J,100000),"1_Assigned") +SUMIFS(INDEX(AG:AG,11):INDEX(AG:AG,100000),INDEX($F:$F,11):INDEX($F:$F,100000),$P2,INDEX($J:$J,11):INDEX($J:$J,100000),"2_InProgress") +SUMIFS(INDEX(AG:AG,11):INDEX(AG:AG,100000),INDEX($F:$F,11):INDEX($F:$F,100000),$P2,INDEX($J:$J,11):INDEX($J:$J,100000),"3_Prototype") +SUMIFS(INDEX(AG:AG,11):INDEX(AG:AG,100000),INDEX($F:$F,11):INDEX($F:$F,100000),$P2,INDEX($J:$J,11):INDEX($J:$J,100000),"4_Testing") -> 5.5 | AH2: =SUMIFS(INDEX(AH:AH,11):INDEX(AH:AH,100000),INDEX($F:$F,11):INDEX($F:$F,100000),$P2,INDEX($J:$J,11):INDEX($J:$J,100000),"0_AttentionNeeded") +SUMIFS(INDEX(AH:AH,11):INDEX(AH:AH,100000),INDEX($F:$F,11):INDEX($F:$F,100000),$P2,INDEX($J:$J,11):INDEX($J:$J,100000),"1_Assigned") +SUMIFS(INDEX(AH:AH,11):INDEX(AH:AH,100000),INDEX($F:$F,11):INDEX($F:$F,100000),$P2,INDEX($J:$J,11):INDEX($J:$J,100000),"2_InProgress") +SUMIFS(INDEX(AH:AH,11):INDEX(AH:AH,100000),INDEX($F:$F,11):INDEX($F:$F,100000),$P2,INDEX($J:$J,11):INDEX($J:$J,100000),"3_Prototype") +SUMIFS(INDEX(AH:AH,11):INDEX(AH:AH,100000),INDEX($F:$F,11):INDEX($F:$F,100000),$P2,INDEX($J:$J,11):INDEX($J:$J,100000),"4_Testing") -> 5.5 | AI2: =SUMIFS(INDEX(AI:AI,11):INDEX(AI:AI,100000),INDEX($F:$F,11):INDEX($F:$F,100000),$P2,INDEX($J:$J,11):INDEX($J:$J,100000),"0_AttentionNeeded") +SUMIFS(INDEX(AI:AI,11):INDEX(AI:AI,100000),INDEX($F:$F,11):INDEX($F:$F,100000),$P2,INDEX($J:$J,11):INDEX($J:$J,100000),"1_Assigned") +SUMIFS(INDEX(AI:AI,11):INDEX(AI:AI,100000),INDEX($F:$F,11):INDEX($F:$F,100000),$P2,INDEX($J:$J,11):INDEX($J:$J,100000),"2_InProgress") +SUMIFS(INDEX(AI:AI,11):INDEX(AI:AI,100000),INDEX($F:$F,11):INDEX($F:$F,100000),$P2,INDEX($J:$J,11):INDEX($J:$J,100000),"3_Prototype") +SUMIFS(INDEX(AI:AI,11):INDEX(AI:AI,100000),INDEX($F:$F,11):INDEX($F:$F,100000),$P2,INDEX($J:$J,11):INDEX($J:$J,100000),"4_Testing") -> 5.5 | AJ2: =SUMIFS(INDEX(AJ:AJ,11):INDEX(AJ:AJ,100000),INDEX($F:$F,11):INDEX($F:$F,100000),$P2,INDEX($J:$J,11):INDEX($J:$J,100000),"0_AttentionNeeded") +SUMIFS(INDEX(AJ:AJ,11):INDEX(AJ:AJ,100000),INDEX($F:$F,11):INDEX($F:$F,100000),$P2,INDEX($J:$J,11):INDEX($J:$J,100000),"1_Assigned") +SUMIFS(INDEX(AJ:AJ,11):INDEX(AJ:AJ,100000),INDEX($F:$F,11):INDEX($F:$F,100000),$P2,INDEX($J:$J,11):INDEX($J:$J,100000),"2_InProgress") +SUMIFS(INDEX(AJ:AJ,11):INDEX(AJ:AJ,100000),INDEX($F:$F,11):INDEX($F:$F,100000),$P2,INDEX($J:$J,11):INDEX($J:$J,100000),"3_Prototype") +SUMIFS(INDEX(AJ:AJ,11):INDEX(AJ:AJ,100000),INDEX($F:$F,11):INDEX($F:$F,100000),$P2,INDEX($J:$J,11):INDEX($J:$J,100000),"4_Testing") -> 5.5 | AK2: =SUMIFS(INDEX(AK:AK,11):INDEX(AK:AK,100000),INDEX($F:$F,11):INDEX($F:$F,100000),$P2,INDEX($J:$J,11):INDEX($J:$J,100000),"0_AttentionNeeded") +SUMIFS(INDEX(AK:AK,11):INDEX(AK:AK,100000),INDEX($F:$F,11):INDEX($F:$F,100000),$P2,INDEX($J:$J,11):INDEX($J:$J,100000),"1_Assigned") +SUMIFS(INDEX(AK:AK,11):INDEX(AK:AK,100000),INDEX($F:$F,11):INDEX($F:$F,100000),$P2,INDEX($J:$J,11):INDEX($J:$J,100000),"2_InProgress") +SUMIFS(INDEX(AK:AK,11):INDEX(AK:AK,100000),INDEX($F:$F,11):INDEX($F:$F,100000),$P2,INDEX($J:$J,11):INDEX($J:$J,100000),"3_Prototype") +SUMIFS(INDEX(AK:AK,11):INDEX(AK:AK,100000),INDEX($F:$F,11):INDEX($F:$F,100000),$P2,INDEX($J:$J,11):INDEX($J:$J,100000),"4_Testing") -> 0 | AL2: =SUM(AM2:AR2) -> 0 | AM2: =SUMIFS(INDEX(AM:AM,11):INDEX(AM:AM,100000),INDEX($F:$F,11):INDEX($F:$F,100000),$P2,INDEX($J:$J,11):INDEX($J:$J,100000),"0_AttentionNeeded") +SUMIFS(INDEX(AM:AM,11):INDEX(AM:AM,100000),INDEX($F:$F,11):INDEX($F:$F,100000),$P2,INDEX($J:$J,11):INDEX($J:$J,100000),"1_Assigned") +SUMIFS(INDEX(AM:AM,11):INDEX(AM:AM,100000),INDEX($F:$F,11):INDEX($F:$F,100000),$P2,INDEX($J:$J,11):INDEX($J:$J,100000),"2_InProgress") +SUMIFS(INDEX(AM:AM,11):INDEX(AM:AM,100000),INDEX($F:$F,11):INDEX($F:$F,100000),$P2,INDEX($J:$J,11):INDEX($J:$J,100000),"3_Prototype") +SUMIFS(INDEX(AM:AM,11):INDEX(AM:AM,100000),INDEX($F:$F,11):INDEX($F:$F,100000),$P2,INDEX($J:$J,11):INDEX($J:$J,100000),"4_Testing") -> 0 | AN2: =SUMIFS(INDEX(AN:AN,11):INDEX(AN:AN,100000),INDEX($F:$F,11):INDEX($F:$F,100000),$P2,INDEX($J:$J,11):INDEX($J:$J,100000),"0_AttentionNeeded") +SUMIFS(INDEX(AN:AN,11):INDEX(AN:AN,100000),INDEX($F:$F,11):INDEX($F:$F,100000),$P2,INDEX($J:$J,11):INDEX($J:$J,100000),"1_Assigned") +SUMIFS(INDEX(AN:AN,11):INDEX(AN:AN,100000),INDEX($F:$F,11):INDEX($F:$F,100000),$P2,INDEX($J:$J,11):INDEX($J:$J,100000),"2_InProgress") +SUMIFS(INDEX(AN:AN,11):INDEX(AN:AN,100000),INDEX($F:$F,11):INDEX($F:$F,100000),$P2,INDEX($J:$J,11):INDEX($J:$J,100000),"3_Prototype") +SUMIFS(INDEX(AN:AN,11):INDEX(AN:AN,100000),INDEX($F:$F,11):INDEX($F:$F,100000),$P2,INDEX($J:$J,11):INDEX($J:$J,100000),"4_Testing") -> 0 | AO2: =SUMIFS(INDEX(AO:AO,11):INDEX(AO:AO,100000),INDEX($F:$F,11):INDEX($F:$F,100000),$P2,INDEX($J:$J,11):INDEX($J:$J,100000),"0_AttentionNeeded") +SUMIFS(INDEX(AO:AO,11):INDEX(AO:AO,100000),INDEX($F:$F,11):INDEX($F:$F,100000),$P2,INDEX($J:$J,11):INDEX($J:$J,100000),"1_Assigned") +SUMIFS(INDEX(AO:AO,11):INDEX(AO:AO,100000),INDEX($F:$F,11):INDEX($F:$F,100000),$P2,INDEX($J:$J,11):INDEX($J:$J,100000),"2_InProgress") +SUMIFS(INDEX(AO:AO,11):INDEX(AO:AO,100000),INDEX($F:$F,11):INDEX($F:$F,100000),$P2,INDEX($J:$J,11):INDEX($J:$J,100000),"3_Prototype") +SUMIFS(INDEX(AO:AO,11):INDEX(AO:AO,100000),INDEX($F:$F,11):INDEX($F:$F,100000),$P2,INDEX($J:$J,11):INDEX($J:$J,100000),"4_Testing") -> 0 | AP2: =SUMIFS(INDEX(AP:AP,11):INDEX(AP:AP,100000),INDEX($F:$F,11):INDEX($F:$F,100000),$P2,INDEX($J:$J,11):INDEX($J:$J,100000),"0_AttentionNeeded") +SUMIFS(INDEX(AP:AP,11):INDEX(AP:AP,100000),INDEX($F:$F,11):INDEX($F:$F,100000),$P2,INDEX($J:$J,11):INDEX($J:$J,100000),"1_Assigned") +SUMIFS(INDEX(AP:AP,11):INDEX(AP:AP,100000),INDEX($F:$F,11):INDEX($F:$F,100000),$P2,INDEX($J:$J,11):INDEX($J:$J,100000),"2_InProgress") +SUMIFS(INDEX(AP:AP,11):INDEX(AP:AP,100000),INDEX($F:$F,11):INDEX($F:$F,100000),$P2,INDEX($J:$J,11):INDEX($J:$J,100000),"3_Prototype") +SUMIFS(INDEX(AP:AP,11):INDEX(AP:AP,100000),INDEX($F:$F,11):INDEX($F:$F,100000),$P2,INDEX($J:$J,11):INDEX($J:$J,100000),"4_Testing") -> 0 | AQ2: =SUMIFS(INDEX(AQ:AQ,11):INDEX(AQ:AQ,100000),INDEX($F:$F,11):INDEX($F:$F,100000),$P2,INDEX($J:$J,11):INDEX($J:$J,100000),"0_AttentionNeeded") +SUMIFS(INDEX(AQ:AQ,11):INDEX(AQ:AQ,100000),INDEX($F:$F,11):INDEX($F:$F,100000),$P2,INDEX($J:$J,11):INDEX($J:$J,100000),"1_Assigned") +SUMIFS(INDEX(AQ:AQ,11):INDEX(AQ:AQ,100000),INDEX($F:$F,11):INDEX($F:$F,100000),$P2,INDEX($J:$J,11):INDEX($J:$J,100000),"2_InProgress") +SUMIFS(INDEX(AQ:AQ,11):INDEX(AQ:AQ,100000),INDEX($F:$F,11):INDEX($F:$F,100000),$P2,INDEX($J:$J,11):INDEX($J:$J,100000),"3_Prototype") +SUMIFS(INDEX(AQ:AQ,11):INDEX(AQ:AQ,100000),INDEX($F:$F,11):INDEX($F:$F,100000),$P2,INDEX($J:$J,11):INDEX($J:$J,100000),"4_Testing") -> 0 | AR2: =SUMIFS(INDEX(AR:AR,11):INDEX(AR:AR,100000),INDEX($F:$F,11):INDEX($F:$F,100000),$P2,INDEX($J:$J,11):INDEX($J:$J,100000),"0_AttentionNeeded") +SUMIFS(INDEX(AR:AR,11):INDEX(AR:AR,100000),INDEX($F:$F,11):INDEX($F:$F,100000),$P2,INDEX($J:$J,11):INDEX($J:$J,100000),"1_Assigned") +SUMIFS(INDEX(AR:AR,11):INDEX(AR:AR,100000),INDEX($F:$F,11):INDEX($F:$F,100000),$P2,INDEX($J:$J,11):INDEX($J:$J,100000),"2_InProgress") +SUMIFS(INDEX(AR:AR,11):INDEX(AR:AR,100000),INDEX($F:$F,11):INDEX($F:$F,100000),$P2,INDEX($J:$J,11):INDEX($J:$J,100000),"3_Prototype") +SUMIFS(INDEX(AR:AR,11):INDEX(AR:AR,100000),INDEX($F:$F,11):INDEX($F:$F,100000),$P2,INDEX($J:$J,11):INDEX($J:$J,100000),"4_Testing") -> 0 | AS2: =SUM(AT2:AY2) -> 0 | AT2: =SUMIFS(INDEX(AT:AT,11):INDEX(AT:AT,100000),INDEX($F:$F,11):INDEX($F:$F,100000),$P2,INDEX($J:$J,11):INDEX($J:$J,100000),"0_AttentionNeeded") +SUMIFS(INDEX(AT:AT,11):INDEX(AT:AT,100000),INDEX($F:$F,11):INDEX($F:$F,100000),$P2,INDEX($J:$J,11):INDEX($J:$J,100000),"1_Assigned") +SUMIFS(INDEX(AT:AT,11):INDEX(AT:AT,100000),INDEX($F:$F,11):INDEX($F:$F,100000),$P2,INDEX($J:$J,11):INDEX($J:$J,100000),"2_InProgress") +SUMIFS(INDEX(AT:AT,11):INDEX(AT:AT,100000),INDEX($F:$F,11):INDEX($F:$F,100000),$P2,INDEX($J:$J,11):INDEX($J:$J,100000),"3_Prototype") +SUMIFS(INDEX(AT:AT,11):INDEX(AT:AT,100000),INDEX($F:$F,11):INDEX($F:$F,100000),$P2,INDEX($J:$J,11):INDEX($J:$J,100000),"4_Testing") -> 0 | AU2: =SUMIFS(INDEX(AU:AU,11):INDEX(AU:AU,100000),INDEX($F:$F,11):INDEX($F:$F,100000),$P2,INDEX($J:$J,11):INDEX($J:$J,100000),"0_AttentionNeeded") +SUMIFS(INDEX(AU:AU,11):INDEX(AU:AU,100000),INDEX($F:$F,11):INDEX($F:$F,100000),$P2,INDEX($J:$J,11):INDEX($J:$J,100000),"1_Assigned") +SUMIFS(INDEX(AU:AU,11):INDEX(AU:AU,100000),INDEX($F:$F,11):INDEX($F:$F,100000),$P2,INDEX($J:$J,11):INDEX($J:$J,100000),"2_InProgress") +SUMIFS(INDEX(AU:AU,11):INDEX(AU:AU,100000),INDEX($F:$F,11):INDEX($F:$F,100000),$P2,INDEX($J:$J,11):INDEX($J:$J,100000),"3_Prototype") +SUMIFS(INDEX(AU:AU,11):INDEX(AU:AU,100000),INDEX($F:$F,11):INDEX($F:$F,100000),$P2,INDEX($J:$J,11):INDEX($J:$J,100000),"4_Testing") -> 0 | AV2: =SUMIFS(INDEX(AV:AV,11):INDEX(AV:AV,100000),INDEX($F:$F,11):INDEX($F:$F,100000),$P2,INDEX($J:$J,11):INDEX($J:$J,100000),"0_AttentionNeeded") +SUMIFS(INDEX(AV:AV,11):INDEX(AV:AV,100000),INDEX($F:$F,11):INDEX($F:$F,100000),$P2,INDEX($J:$J,11):INDEX($J:$J,100000),"1_Assigned") +SUMIFS(INDEX(AV:AV,11):INDEX(AV:AV,100000),INDEX($F:$F,11):INDEX($F:$F,100000),$P2,INDEX($J:$J,11):INDEX($J:$J,100000),"2_InProgress") +SUMIFS(INDEX(AV:AV,11):INDEX(AV:AV,100000),INDEX($F:$F,11):INDEX($F:$F,100000),$P2,INDEX($J:$J,11):INDEX($J:$J,100000),"3_Prototype") +SUMIFS(INDEX(AV:AV,11):INDEX(AV:AV,100000),INDEX($F:$F,11):INDEX($F:$F,100000),$P2,INDEX($J:$J,11):INDEX($J:$J,100000),"4_Testing") -> 0 | AW2: =SUMIFS(INDEX(AW:AW,11):INDEX(AW:AW,100000),INDEX($F:$F,11):INDEX($F:$F,100000),$P2,INDEX($J:$J,11):INDEX($J:$J,100000),"0_AttentionNeeded") +SUMIFS(INDEX(AW:AW,11):INDEX(AW:AW,100000),INDEX($F:$F,11):INDEX($F:$F,100000),$P2,INDEX($J:$J,11):INDEX($J:$J,100000),"1_Assigned") +SUMIFS(INDEX(AW:AW,11):INDEX(AW:AW,100000),INDEX($F:$F,11):INDEX($F:$F,100000),$P2,INDEX($J:$J,11):INDEX($J:$J,100000),"2_InProgress") +SUMIFS(INDEX(AW:AW,11):INDEX(AW:AW,100000),INDEX($F:$F,11):INDEX($F:$F,100000),$P2,INDEX($J:$J,11):INDEX($J:$J,100000),"3_Prototype") +SUMIFS(INDEX(AW:AW,11):INDEX(AW:AW,100000),INDEX($F:$F,11):INDEX($F:$F,100000),$P2,INDEX($J:$J,11):INDEX($J:$J,100000),"4_Testing") -> 0 | AX2: =SUMIFS(INDEX(AX:AX,11):INDEX(AX:AX,100000),INDEX($F:$F,11):INDEX($F:$F,100000),$P2,INDEX($J:$J,11):INDEX($J:$J,100000),"0_AttentionNeeded") +SUMIFS(INDEX(AX:AX,11):INDEX(AX:AX,100000),INDEX($F:$F,11):INDEX($F:$F,100000),$P2,INDEX($J:$J,11):INDEX($J:$J,100000),"1_Assigned") +SUMIFS(INDEX(AX:AX,11):INDEX(AX:AX,100000),INDEX($F:$F,11):INDEX($F:$F,100000),$P2,INDEX($J:$J,11):INDEX($J:$J,100000),"2_InProgress") +SUMIFS(INDEX(AX:AX,11):INDEX(AX:AX,100000),INDEX($F:$F,11):INDEX($F:$F,100000),$P2,INDEX($J:$J,11):INDEX($J:$J,100000),"3_Prototype") +SUMIFS(INDEX(AX:AX,11):INDEX(AX:AX,100000),INDEX($F:$F,11):INDEX($F:$F,100000),$P2,INDEX($J:$J,11):INDEX($J:$J,100000),"4_Testing") -> 0 | AY2: =SUMIFS(INDEX(AY:AY,11):INDEX(AY:AY,100000),INDEX($F:$F,11):INDEX($F:$F,100000),$P2,INDEX($J:$J,11):INDEX($J:$J,100000),"0_AttentionNeeded") +SUMIFS(INDEX(AY:AY,11):INDEX(AY:AY,100000),INDEX($F:$F,11):INDEX($F:$F,100000),$P2,INDEX($J:$J,11):INDEX($J:$J,100000),"1_Assigned") +SUMIFS(INDEX(AY:AY,11):INDEX(AY:AY,100000),INDEX($F:$F,11):INDEX($F:$F,100000),$P2,INDEX($J:$J,11):INDEX($J:$J,100000),"2_InProgress") +SUMIFS(INDEX(AY:AY,11):INDEX(AY:AY,100000),INDEX($F:$F,11):INDEX($F:$F,100000),$P2,INDEX($J:$J,11):INDEX($J:$J,100000),"3_Prototype") +SUMIFS(INDEX(AY:AY,11):INDEX(AY:AY,100000),INDEX($F:$F,11):INDEX($F:$F,100000),$P2,INDEX($J:$J,11):INDEX($J:$J,100000),"4_Testing") -> 0 | AZ2: =SUM(BA2:BF2) -> 0 | BA2: =SUMIFS(INDEX(BA:BA,11):INDEX(BA:BA,100000),INDEX($F:$F,11):INDEX($F:$F,100000),$P2,INDEX($J:$J,11):INDEX($J:$J,100000),"0_AttentionNeeded") +SUMIFS(INDEX(BA:BA,11):INDEX(BA:BA,100000),INDEX($F:$F,11):INDEX($F:$F,100000),$P2,INDEX($J:$J,11):INDEX($J:$J,100000),"1_Assigned") +SUMIFS(INDEX(BA:BA,11):INDEX(BA:BA,100000),INDEX($F:$F,11):INDEX($F:$F,100000),$P2,INDEX($J:$J,11):INDEX($J:$J,100000),"2_InProgress") +SUMIFS(INDEX(BA:BA,11):INDEX(BA:BA,100000),INDEX($F:$F,11):INDEX($F:$F,100000),$P2,INDEX($J:$J,11):INDEX($J:$J,100000),"3_Prototype") +SUMIFS(INDEX(BA:BA,11):INDEX(BA:BA,100000),INDEX($F:$F,11):INDEX($F:$F,100000),$P2,INDEX($J:$J,11):INDEX($J:$J,100000),"4_Testing") -> 0 | BB2: =SUMIFS(INDEX(BB:BB,11):INDEX(BB:BB,100000),INDEX($F:$F,11):INDEX($F:$F,100000),$P2,INDEX($J:$J,11):INDEX($J:$J,100000),"0_AttentionNeeded") +SUMIFS(INDEX(BB:BB,11):INDEX(BB:BB,100000),INDEX($F:$F,11):INDEX($F:$F,100000),$P2,INDEX($J:$J,11):INDEX($J:$J,100000),"1_Assigned") +SUMIFS(INDEX(BB:BB,11):INDEX(BB:BB,100000),INDEX($F:$F,11):INDEX($F:$F,100000),$P2,INDEX($J:$J,11):INDEX($J:$J,100000),"2_InProgress") +SUMIFS(INDEX(BB:BB,11):INDEX(BB:BB,100000),INDEX($F:$F,11):INDEX($F:$F,100000),$P2,INDEX($J:$J,11):INDEX($J:$J,100000),"3_Prototype") +SUMIFS(INDEX(BB:BB,11):INDEX(BB:BB,100000),INDEX($F:$F,11):INDEX($F:$F,100000),$P2,INDEX($J:$J,11):INDEX($J:$J,100000),"4_Testing") -> 0 | BC2: =SUMIFS(INDEX(BC:BC,11):INDEX(BC:BC,100000),INDEX($F:$F,11):INDEX($F:$F,100000),$P2,INDEX($J:$J,11):INDEX($J:$J,100000),"0_AttentionNeeded") +SUMIFS(INDEX(BC:BC,11):INDEX(BC:BC,100000),INDEX($F:$F,11):INDEX($F:$F,100000),$P2,INDEX($J:$J,11):INDEX($J:$J,100000),"1_Assigned") +SUMIFS(INDEX(BC:BC,11):INDEX(BC:BC,100000),INDEX($F:$F,11):INDEX($F:$F,100000),$P2,INDEX($J:$J,11):INDEX($J:$J,100000),"2_InProgress") +SUMIFS(INDEX(BC:BC,11):INDEX(BC:BC,100000),INDEX($F:$F,11):INDEX($F:$F,100000),$P2,INDEX($J:$J,11):INDEX($J:$J,100000),"3_Prototype") +SUMIFS(INDEX(BC:BC,11):INDEX(BC:BC,100000),INDEX($F:$F,11):INDEX($F:$F,100000),$P2,INDEX($J:$J,11):INDEX($J:$J,100000),"4_Testing") -> 0 | BD2: =SUMIFS(INDEX(BD:BD,11):INDEX(BD:BD,100000),INDEX($F:$F,11):INDEX($F:$F,100000),$P2,INDEX($J:$J,11):INDEX($J:$J,100000),"0_AttentionNeeded") +SUMIFS(INDEX(BD:BD,11):INDEX(BD:BD,100000),INDEX($F:$F,11):INDEX($F:$F,100000),$P2,INDEX($J:$J,11):INDEX($J:$J,100000),"1_Assigned") +SUMIFS(INDEX(BD:BD,11):INDEX(BD:BD,100000),INDEX($F:$F,11):INDEX($F:$F,100000),$P2,INDEX($J:$J,11):INDEX($J:$J,100000),"2_InProgress") +SUMIFS(INDEX(BD:BD,11):INDEX(BD:BD,100000),INDEX($F:$F,11):INDEX($F:$F,100000),$P2,INDEX($J:$J,11):INDEX($J:$J,100000),"3_Prototype") +SUMIFS(INDEX(BD:BD,11):INDEX(BD:BD,100000),INDEX($F:$F,11):INDEX($F:$F,100000),$P2,INDEX($J:$J,11):INDEX($J:$J,100000),"4_Testing") -> 0 | BE2: =SUMIFS(INDEX(BE:BE,11):INDEX(BE:BE,100000),INDEX($F:$F,11):INDEX($F:$F,100000),$P2,INDEX($J:$J,11):INDEX($J:$J,100000),"0_AttentionNeeded") +SUMIFS(INDEX(BE:BE,11):INDEX(BE:BE,100000),INDEX($F:$F,11):INDEX($F:$F,100000),$P2,INDEX($J:$J,11):INDEX($J:$J,100000),"1_Assigned") +SUMIFS(INDEX(BE:BE,11):INDEX(BE:BE,100000),INDEX($F:$F,11):INDEX($F:$F,100000),$P2,INDEX($J:$J,11):INDEX($J:$J,100000),"2_InProgress") +SUMIFS(INDEX(BE:BE,11):INDEX(BE:BE,100000),INDEX($F:$F,11):INDEX($F:$F,100000),$P2,INDEX($J:$J,11):INDEX($J:$J,100000),"3_Prototype") +SUMIFS(INDEX(BE:BE,11):INDEX(BE:BE,100000),INDEX($F:$F,11):INDEX($F:$F,100000),$P2,INDEX($J:$J,11):INDEX($J:$J,100000),"4_Testing") -> 0 | BF2: =SUMIFS(INDEX(BF:BF,11):INDEX(BF:BF,100000),INDEX($F:$F,11):INDEX($F:$F,100000),$P2,INDEX($J:$J,11):INDEX($J:$J,100000),"0_AttentionNeeded") +SUMIFS(INDEX(BF:BF,11):INDEX(BF:BF,100000),INDEX($F:$F,11):INDEX($F:$F,100000),$P2,INDEX($J:$J,11):INDEX($J:$J,100000),"1_Assigned") +SUMIFS(INDEX(BF:BF,11):INDEX(BF:BF,100000),INDEX($F:$F,11):INDEX($F:$F,100000),$P2,INDEX($J:$J,11):INDEX($J:$J,100000),"2_InProgress") +SUMIFS(INDEX(BF:BF,11):INDEX(BF:BF,100000),INDEX($F:$F,11):INDEX($F:$F,100000),$P2,INDEX($J:$J,11):INDEX($J:$J,100000),"3_Prototype") +SUMIFS(INDEX(BF:BF,11):INDEX(BF:BF,100000),INDEX($F:$F,11):INDEX($F:$F,100000),$P2,INDEX($J:$J,11):INDEX($J:$J,100000),"4_Testing") -> 0
P3: IK | Q3: =SUM(R3:W3) -> 0 | R3: =SUMIFS(INDEX(R:R,11):INDEX(R:R,100000),INDEX($F:$F,11):INDEX($F:$F,100000),$P3,INDEX($J:$J,11):INDEX($J:$J,100000),"0_AttentionNeeded") +SUMIFS(INDEX(R:R,11):INDEX(R:R,100000),INDEX($F:$F,11):INDEX($F:$F,100000),$P3,INDEX($J:$J,11):INDEX($J:$J,100000),"1_Assigned") +SUMIFS(INDEX(R:R,11):INDEX(R:R,100000),INDEX($F:$F,11):INDEX($F:$F,100000),$P3,INDEX($J:$J,11):INDEX($J:$J,100000),"2_InProgress") +SUMIFS(INDEX(R:R,11):INDEX(R:R,100000),INDEX($F:$F,11):INDEX($F:$F,100000),$P3,INDEX($J:$J,11):INDEX($J:$J,100000),"3_Prototype") +SUMIFS(INDEX(R:R,11):INDEX(R:R,100000),INDEX($F:$F,11):INDEX($F:$F,100000),$P3,INDEX($J:$J,11):INDEX($J:$J,100000),"4_Testing") -> 0 | S3: =SUMIFS(INDEX(S:S,11):INDEX(S:S,100000),INDEX($F:$F,11):INDEX($F:$F,100000),$P3,INDEX($J:$J,11):INDEX($J:$J,100000),"0_AttentionNeeded") +SUMIFS(INDEX(S:S,11):INDEX(S:S,100000),INDEX($F:$F,11):INDEX($F:$F,100000),$P3,INDEX($J:$J,11):INDEX($J:$J,100000),"1_Assigned") +SUMIFS(INDEX(S:S,11):INDEX(S:S,100000),INDEX($F:$F,11):INDEX($F:$F,100000),$P3,INDEX($J:$J,11):INDEX($J:$J,100000),"2_InProgress") +SUMIFS(INDEX(S:S,11):INDEX(S:S,100000),INDEX($F:$F,11):INDEX($F:$F,100000),$P3,INDEX($J:$J,11):INDEX($J:$J,100000),"3_Prototype") +SUMIFS(INDEX(S:S,11):INDEX(S:S,100000),INDEX($F:$F,11):INDEX($F:$F,100000),$P3,INDEX($J:$J,11):INDEX($J:$J,100000),"4_Testing") -> 0 | T3: =SUMIFS(INDEX(T:T,11):INDEX(T:T,100000),INDEX($F:$F,11):INDEX($F:$F,100000),$P3,INDEX($J:$J,11):INDEX($J:$J,100000),"0_AttentionNeeded") +SUMIFS(INDEX(T:T,11):INDEX(T:T,100000),INDEX($F:$F,11):INDEX($F:$F,100000),$P3,INDEX($J:$J,11):INDEX($J:$J,100000),"1_Assigned") +SUMIFS(INDEX(T:T,11):INDEX(T:T,100000),INDEX($F:$F,11):INDEX($F:$F,100000),$P3,INDEX($J:$J,11):INDEX($J:$J,100000),"2_InProgress") +SUMIFS(INDEX(T:T,11):INDEX(T:T,100000),INDEX($F:$F,11):INDEX($F:$F,100000),$P3,INDEX($J:$J,11):INDEX($J:$J,100000),"3_Prototype") +SUMIFS(INDEX(T:T,11):INDEX(T:T,100000),INDEX($F:$F,11):INDEX($F:$F,100000),$P3,INDEX($J:$J,11):INDEX($J:$J,100000),"4_Testing") -> 0 | U3: =SUMIFS(INDEX(U:U,11):INDEX(U:U,100000),INDEX($F:$F,11):INDEX($F:$F,100000),$P3,INDEX($J:$J,11):INDEX($J:$J,100000),"0_AttentionNeeded") +SUMIFS(INDEX(U:U,11):INDEX(U:U,100000),INDEX($F:$F,11):INDEX($F:$F,100000),$P3,INDEX($J:$J,11):INDEX($J:$J,100000),"1_Assigned") +SUMIFS(INDEX(U:U,11):INDEX(U:U,100000),INDEX($F:$F,11):INDEX($F:$F,100000),$P3,INDEX($J:$J,11):INDEX($J:$J,100000),"2_InProgress") +SUMIFS(INDEX(U:U,11):INDEX(U:U,100000),INDEX($F:$F,11):INDEX($F:$F,100000),$P3,INDEX($J:$J,11):INDEX($J:$J,100000),"3_Prototype") +SUMIFS(INDEX(U:U,11):INDEX(U:U,100000),INDEX($F:$F,11):INDEX($F:$F,100000),$P3,INDEX($J:$J,11):INDEX($J:$J,100000),"4_Testing") -> 0 | V3: =SUMIFS(INDEX(V:V,11):INDEX(V:V,100000),INDEX($F:$F,11):INDEX($F:$F,100000),$P3,INDEX($J:$J,11):INDEX($J:$J,100000),"0_AttentionNeeded") +SUMIFS(INDEX(V:V,11):INDEX(V:V,100000),INDEX($F:$F,11):INDEX($F:$F,100000),$P3,INDEX($J:$J,11):INDEX($J:$J,100000),"1_Assigned") +SUMIFS(INDEX(V:V,11):INDEX(V:V,100000),INDEX($F:$F,11):INDEX($F:$F,100000),$P3,INDEX($J:$J,11):INDEX($J:$J,100000),"2_InProgress") +SUMIFS(INDEX(V:V,11):INDEX(V:V,100000),INDEX($F:$F,11):INDEX($F:$F,100000),$P3,INDEX($J:$J,11):INDEX($J:$J,100000),"3_Prototype") +SUMIFS(INDEX(V:V,11):INDEX(V:V,100000),INDEX($F:$F,11):INDEX($F:$F,100000),$P3,INDEX($J:$J,11):INDEX($J:$J,100000),"4_Testing") -> 0 | W3: =SUMIFS(INDEX(W:W,11):INDEX(W:W,100000),INDEX($F:$F,11):INDEX($F:$F,100000),$P3,INDEX($J:$J,11):INDEX($J:$J,100000),"0_AttentionNeeded") +SUMIFS(INDEX(W:W,11):INDEX(W:W,100000),INDEX($F:$F,11):INDEX($F:$F,100000),$P3,INDEX($J:$J,11):INDEX($J:$J,100000),"1_Assigned") +SUMIFS(INDEX(W:W,11):INDEX(W:W,100000),INDEX($F:$F,11):INDEX($F:$F,100000),$P3,INDEX($J:$J,11):INDEX($J:$J,100000),"2_InProgress") +SUMIFS(INDEX(W:W,11):INDEX(W:W,100000),INDEX($F:$F,11):INDEX($F:$F,100000),$P3,INDEX($J:$J,11):INDEX($J:$J,100000),"3_Prototype") +SUMIFS(INDEX(W:W,11):INDEX(W:W,100000),INDEX($F:$F,11):INDEX($F:$F,100000),$P3,INDEX($J:$J,11):INDEX($J:$J,100000),"4_Testing") -> 0 | X3: =SUM(Y3:AD3) -> 0 | Y3: =SUMIFS(INDEX(Y:Y,11):INDEX(Y:Y,100000),INDEX($F:$F,11):INDEX($F:$F,100000),$P3,INDEX($J:$J,11):INDEX($J:$J,100000),"0_AttentionNeeded") +SUMIFS(INDEX(Y:Y,11):INDEX(Y:Y,100000),INDEX($F:$F,11):INDEX($F:$F,100000),$P3,INDEX($J:$J,11):INDEX($J:$J,100000),"1_Assigned") +SUMIFS(INDEX(Y:Y,11):INDEX(Y:Y,100000),INDEX($F:$F,11):INDEX($F:$F,100000),$P3,INDEX($J:$J,11):INDEX($J:$J,100000),"2_InProgress") +SUMIFS(INDEX(Y:Y,11):INDEX(Y:Y,100000),INDEX($F:$F,11):INDEX($F:$F,100000),$P3,INDEX($J:$J,11):INDEX($J:$J,100000),"3_Prototype") +SUMIFS(INDEX(Y:Y,11):INDEX(Y:Y,100000),INDEX($F:$F,11):INDEX($F:$F,100000),$P3,INDEX($J:$J,11):INDEX($J:$J,100000),"4_Testing") -> 0 | Z3: =SUMIFS(INDEX(Z:Z,11):INDEX(Z:Z,100000),INDEX($F:$F,11):INDEX($F:$F,100000),$P3,INDEX($J:$J,11):INDEX($J:$J,100000),"0_AttentionNeeded") +SUMIFS(INDEX(Z:Z,11):INDEX(Z:Z,100000),INDEX($F:$F,11):INDEX($F:$F,100000),$P3,INDEX($J:$J,11):INDEX($J:$J,100000),"1_Assigned") +SUMIFS(INDEX(Z:Z,11):INDEX(Z:Z,100000),INDEX($F:$F,11):INDEX($F:$F,100000),$P3,INDEX($J:$J,11):INDEX($J:$J,100000),"2_InProgress") +SUMIFS(INDEX(Z:Z,11):INDEX(Z:Z,100000),INDEX($F:$F,11):INDEX($F:$F,100000),$P3,INDEX($J:$J,11):INDEX($J:$J,100000),"3_Prototype") +SUMIFS(INDEX(Z:Z,11):INDEX(Z:Z,100000),INDEX($F:$F,11):INDEX($F:$F,100000),$P3,INDEX($J:$J,11):INDEX($J:$J,100000),"4_Testing") -> 0 | AA3: =SUMIFS(INDEX(AA:AA,11):INDEX(AA:AA,100000),INDEX($F:$F,11):INDEX($F:$F,100000),$P3,INDEX($J:$J,11):INDEX($J:$J,100000),"0_AttentionNeeded") +SUMIFS(INDEX(AA:AA,11):INDEX(AA:AA,100000),INDEX($F:$F,11):INDEX($F:$F,100000),$P3,INDEX($J:$J,11):INDEX($J:$J,100000),"1_Assigned") +SUMIFS(INDEX(AA:AA,11):INDEX(AA:AA,100000),INDEX($F:$F,11):INDEX($F:$F,100000),$P3,INDEX($J:$J,11):INDEX($J:$J,100000),"2_InProgress") +SUMIFS(INDEX(AA:AA,11):INDEX(AA:AA,100000),INDEX($F:$F,11):INDEX($F:$F,100000),$P3,INDEX($J:$J,11):INDEX($J:$J,100000),"3_Prototype") +SUMIFS(INDEX(AA:AA,11):INDEX(AA:AA,100000),INDEX($F:$F,11):INDEX($F:$F,100000),$P3,INDEX($J:$J,11):INDEX($J:$J,100000),"4_Testing") -> 0 | AB3: =SUMIFS(INDEX(AB:AB,11):INDEX(AB:AB,100000),INDEX($F:$F,11):INDEX($F:$F,100000),$P3,INDEX($J:$J,11):INDEX($J:$J,100000),"0_AttentionNeeded") +SUMIFS(INDEX(AB:AB,11):INDEX(AB:AB,100000),INDEX($F:$F,11):INDEX($F:$F,100000),$P3,INDEX($J:$J,11):INDEX($J:$J,100000),"1_Assigned") +SUMIFS(INDEX(AB:AB,11):INDEX(AB:AB,100000),INDEX($F:$F,11):INDEX($F:$F,100000),$P3,INDEX($J:$J,11):INDEX($J:$J,100000),"2_InProgress") +SUMIFS(INDEX(AB:AB,11):INDEX(AB:AB,100000),INDEX($F:$F,11):INDEX($F:$F,100000),$P3,INDEX($J:$J,11):INDEX($J:$J,100000),"3_Prototype") +SUMIFS(INDEX(AB:AB,11):INDEX(AB:AB,100000),INDEX($F:$F,11):INDEX($F:$F,100000),$P3,INDEX($J:$J,11):INDEX($J:$J,100000),"4_Testing") -> 0 | AC3: =SUMIFS(INDEX(AC:AC,11):INDEX(AC:AC,100000),INDEX($F:$F,11):INDEX($F:$F,100000),$P3,INDEX($J:$J,11):INDEX($J:$J,100000),"0_AttentionNeeded") +SUMIFS(INDEX(AC:AC,11):INDEX(AC:AC,100000),INDEX($F:$F,11):INDEX($F:$F,100000),$P3,INDEX($J:$J,11):INDEX($J:$J,100000),"1_Assigned") +SUMIFS(INDEX(AC:AC,11):INDEX(AC:AC,100000),INDEX($F:$F,11):INDEX($F:$F,100000),$P3,INDEX($J:$J,11):INDEX($J:$J,100000),"2_InProgress") +SUMIFS(INDEX(AC:AC,11):INDEX(AC:AC,100000),INDEX($F:$F,11):INDEX($F:$F,100000),$P3,INDEX($J:$J,11):INDEX($J:$J,100000),"3_Prototype") +SUMIFS(INDEX(AC:AC,11):INDEX(AC:AC,100000),INDEX($F:$F,11):INDEX($F:$F,100000),$P3,INDEX($J:$J,11):INDEX($J:$J,100000),"4_Testing") -> 0 | AD3: =SUMIFS(INDEX(AD:AD,11):INDEX(AD:AD,100000),INDEX($F:$F,11):INDEX($F:$F,100000),$P3,INDEX($J:$J,11):INDEX($J:$J,100000),"0_AttentionNeeded") +SUMIFS(INDEX(AD:AD,11):INDEX(AD:AD,100000),INDEX($F:$F,11):INDEX($F:$F,100000),$P3,INDEX($J:$J,11):INDEX($J:$J,100000),"1_Assigned") +SUMIFS(INDEX(AD:AD,11):INDEX(AD:AD,100000),INDEX($F:$F,11):INDEX($F:$F,100000),$P3,INDEX($J:$J,11):INDEX($J:$J,100000),"2_InProgress") +SUMIFS(INDEX(AD:AD,11):INDEX(AD:AD,100000),INDEX($F:$F,11):INDEX($F:$F,100000),$P3,INDEX($J:$J,11):INDEX($J:$J,100000),"3_Prototype") +SUMIFS(INDEX(AD:AD,11):INDEX(AD:AD,100000),INDEX($F:$F,11):INDEX($F:$F,100000),$P3,INDEX($J:$J,11):INDEX($J:$J,100000),"4_Testing") -> 0 | AE3: =SUM(AF3:AK3) -> 0 | AF3: =SUMIFS(INDEX(AF:AF,11):INDEX(AF:AF,100000),INDEX($F:$F,11):INDEX($F:$F,100000),$P3,INDEX($J:$J,11):INDEX($J:$J,100000),"0_AttentionNeeded") +SUMIFS(INDEX(AF:AF,11):INDEX(AF:AF,100000),INDEX($F:$F,11):INDEX($F:$F,100000),$P3,INDEX($J:$J,11):INDEX($J:$J,100000),"1_Assigned") +SUMIFS(INDEX(AF:AF,11):INDEX(AF:AF,100000),INDEX($F:$F,11):INDEX($F:$F,100000),$P3,INDEX($J:$J,11):INDEX($J:$J,100000),"2_InProgress") +SUMIFS(INDEX(AF:AF,11):INDEX(AF:AF,100000),INDEX($F:$F,11):INDEX($F:$F,100000),$P3,INDEX($J:$J,11):INDEX($J:$J,100000),"3_Prototype") +SUMIFS(INDEX(AF:AF,11):INDEX(AF:AF,100000),INDEX($F:$F,11):INDEX($F:$F,100000),$P3,INDEX($J:$J,11):INDEX($J:$J,100000),"4_Testing") -> 0 | AG3: =SUMIFS(INDEX(AG:AG,11):INDEX(AG:AG,100000),INDEX($F:$F,11):INDEX($F:$F,100000),$P3,INDEX($J:$J,11):INDEX($J:$J,100000),"0_AttentionNeeded") +SUMIFS(INDEX(AG:AG,11):INDEX(AG:AG,100000),INDEX($F:$F,11):INDEX($F:$F,100000),$P3,INDEX($J:$J,11):INDEX($J:$J,100000),"1_Assigned") +SUMIFS(INDEX(AG:AG,11):INDEX(AG:AG,100000),INDEX($F:$F,11):INDEX($F:$F,100000),$P3,INDEX($J:$J,11):INDEX($J:$J,100000),"2_InProgress") +SUMIFS(INDEX(AG:AG,11):INDEX(AG:AG,100000),INDEX($F:$F,11):INDEX($F:$F,100000),$P3,INDEX($J:$J,11):INDEX($J:$J,100000),"3_Prototype") +SUMIFS(INDEX(AG:AG,11):INDEX(AG:AG,100000),INDEX($F:$F,11):INDEX($F:$F,100000),$P3,INDEX($J:$J,11):INDEX($J:$J,100000),"4_Testing") -> 0 | AH3: =SUMIFS(INDEX(AH:AH,11):INDEX(AH:AH,100000),INDEX($F:$F,11):INDEX($F:$F,100000),$P3,INDEX($J:$J,11):INDEX($J:$J,100000),"0_AttentionNeeded") +SUMIFS(INDEX(AH:AH,11):INDEX(AH:AH,100000),INDEX($F:$F,11):INDEX($F:$F,100000),$P3,INDEX($J:$J,11):INDEX($J:$J,100000),"1_Assigned") +SUMIFS(INDEX(AH:AH,11):INDEX(AH:AH,100000),INDEX($F:$F,11):INDEX($F:$F,100000),$P3,INDEX($J:$J,11):INDEX($J:$J,100000),"2_InProgress") +SUMIFS(INDEX(AH:AH,11):INDEX(AH:AH,100000),INDEX($F:$F,11):INDEX($F:$F,100000),$P3,INDEX($J:$J,11):INDEX($J:$J,100000),"3_Prototype") +SUMIFS(INDEX(AH:AH,11):INDEX(AH:AH,100000),INDEX($F:$F,11):INDEX($F:$F,100000),$P3,INDEX($J:$J,11):INDEX($J:$J,100000),"4_Testing") -> 0 | AI3: =SUMIFS(INDEX(AI:AI,11):INDEX(AI:AI,100000),INDEX($F:$F,11):INDEX($F:$F,100000),$P3,INDEX($J:$J,11):INDEX($J:$J,100000),"0_AttentionNeeded") +SUMIFS(INDEX(AI:AI,11):INDEX(AI:AI,100000),INDEX($F:$F,11):INDEX($F:$F,100000),$P3,INDEX($J:$J,11):INDEX($J:$J,100000),"1_Assigned") +SUMIFS(INDEX(AI:AI,11):INDEX(AI:AI,100000),INDEX($F:$F,11):INDEX($F:$F,100000),$P3,INDEX($J:$J,11):INDEX($J:$J,100000),"2_InProgress") +SUMIFS(INDEX(AI:AI,11):INDEX(AI:AI,100000),INDEX($F:$F,11):INDEX($F:$F,100000),$P3,INDEX($J:$J,11):INDEX($J:$J,100000),"3_Prototype") +SUMIFS(INDEX(AI:AI,11):INDEX(AI:AI,100000),INDEX($F:$F,11):INDEX($F:$F,100000),$P3,INDEX($J:$J,11):INDEX($J:$J,100000),"4_Testing") -> 0 | AJ3: =SUMIFS(INDEX(AJ:AJ,11):INDEX(AJ:AJ,100000),INDEX($F:$F,11):INDEX($F:$F,100000),$P3,INDEX($J:$J,11):INDEX($J:$J,100000),"0_AttentionNeeded") +SUMIFS(INDEX(AJ:AJ,11):INDEX(AJ:AJ,100000),INDEX($F:$F,11):INDEX($F:$F,100000),$P3,INDEX($J:$J,11):INDEX($J:$J,100000),"1_Assigned") +SUMIFS(INDEX(AJ:AJ,11):INDEX(AJ:AJ,100000),INDEX($F:$F,11):INDEX($F:$F,100000),$P3,INDEX($J:$J,11):INDEX($J:$J,100000),"2_InProgress") +SUMIFS(INDEX(AJ:AJ,11):INDEX(AJ:AJ,100000),INDEX($F:$F,11):INDEX($F:$F,100000),$P3,INDEX($J:$J,11):INDEX($J:$J,100000),"3_Prototype") +SUMIFS(INDEX(AJ:AJ,11):INDEX(AJ:AJ,100000),INDEX($F:$F,11):INDEX($F:$F,100000),$P3,INDEX($J:$J,11):INDEX($J:$J,100000),"4_Testing") -> 0 | AK3: =SUMIFS(INDEX(AK:AK,11):INDEX(AK:AK,100000),INDEX($F:$F,11):INDEX($F:$F,100000),$P3,INDEX($J:$J,11):INDEX($J:$J,100000),"0_AttentionNeeded") +SUMIFS(INDEX(AK:AK,11):INDEX(AK:AK,100000),INDEX($F:$F,11):INDEX($F:$F,100000),$P3,INDEX($J:$J,11):INDEX($J:$J,100000),"1_Assigned") +SUMIFS(INDEX(AK:AK,11):INDEX(AK:AK,100000),INDEX($F:$F,11):INDEX($F:$F,100000),$P3,INDEX($J:$J,11):INDEX($J:$J,100000),"2_InProgress") +SUMIFS(INDEX(AK:AK,11):INDEX(AK:AK,100000),INDEX($F:$F,11):INDEX($F:$F,100000),$P3,INDEX($J:$J,11):INDEX($J:$J,100000),"3_Prototype") +SUMIFS(INDEX(AK:AK,11):INDEX(AK:AK,100000),INDEX($F:$F,11):INDEX($F:$F,100000),$P3,INDEX($J:$J,11):INDEX($J:$J,100000),"4_Testing") -> 0 | AL3: =SUM(AM3:AR3) -> 0 | AM3: =SUMIFS(INDEX(AM:AM,11):INDEX(AM:AM,100000),INDEX($F:$F,11):INDEX($F:$F,100000),$P3,INDEX($J:$J,11):INDEX($J:$J,100000),"0_AttentionNeeded") +SUMIFS(INDEX(AM:AM,11):INDEX(AM:AM,100000),INDEX($F:$F,11):INDEX($F:$F,100000),$P3,INDEX($J:$J,11):INDEX($J:$J,100000),"1_Assigned") +SUMIFS(INDEX(AM:AM,11):INDEX(AM:AM,100000),INDEX($F:$F,11):INDEX($F:$F,100000),$P3,INDEX($J:$J,11):INDEX($J:$J,100000),"2_InProgress") +SUMIFS(INDEX(AM:AM,11):INDEX(AM:AM,100000),INDEX($F:$F,11):INDEX($F:$F,100000),$P3,INDEX($J:$J,11):INDEX($J:$J,100000),"3_Prototype") +SUMIFS(INDEX(AM:AM,11):INDEX(AM:AM,100000),INDEX($F:$F,11):INDEX($F:$F,100000),$P3,INDEX($J:$J,11):INDEX($J:$J,100000),"4_Testing") -> 0 | AN3: =SUMIFS(INDEX(AN:AN,11):INDEX(AN:AN,100000),INDEX($F:$F,11):INDEX($F:$F,100000),$P3,INDEX($J:$J,11):INDEX($J:$J,100000),"0_AttentionNeeded") +SUMIFS(INDEX(AN:AN,11):INDEX(AN:AN,100000),INDEX($F:$F,11):INDEX($F:$F,100000),$P3,INDEX($J:$J,11):INDEX($J:$J,100000),"1_Assigned") +SUMIFS(INDEX(AN:AN,11):INDEX(AN:AN,100000),INDEX($F:$F,11):INDEX($F:$F,100000),$P3,INDEX($J:$J,11):INDEX($J:$J,100000),"2_InProgress") +SUMIFS(INDEX(AN:AN,11):INDEX(AN:AN,100000),INDEX($F:$F,11):INDEX($F:$F,100000),$P3,INDEX($J:$J,11):INDEX($J:$J,100000),"3_Prototype") +SUMIFS(INDEX(AN:AN,11):INDEX(AN:AN,100000),INDEX($F:$F,11):INDEX($F:$F,100000),$P3,INDEX($J:$J,11):INDEX($J:$J,100000),"4_Testing") -> 0 | AO3: =SUMIFS(INDEX(AO:AO,11):INDEX(AO:AO,100000),INDEX($F:$F,11):INDEX($F:$F,100000),$P3,INDEX($J:$J,11):INDEX($J:$J,100000),"0_AttentionNeeded") +SUMIFS(INDEX(AO:AO,11):INDEX(AO:AO,100000),INDEX($F:$F,11):INDEX($F:$F,100000),$P3,INDEX($J:$J,11):INDEX($J:$J,100000),"1_Assigned") +SUMIFS(INDEX(AO:AO,11):INDEX(AO:AO,100000),INDEX($F:$F,11):INDEX($F:$F,100000),$P3,INDEX($J:$J,11):INDEX($J:$J,100000),"2_InProgress") +SUMIFS(INDEX(AO:AO,11):INDEX(AO:AO,100000),INDEX($F:$F,11):INDEX($F:$F,100000),$P3,INDEX($J:$J,11):INDEX($J:$J,100000),"3_Prototype") +SUMIFS(INDEX(AO:AO,11):INDEX(AO:AO,100000),INDEX($F:$F,11):INDEX($F:$F,100000),$P3,INDEX($J:$J,11):INDEX($J:$J,100000),"4_Testing") -> 0 | AP3: =SUMIFS(INDEX(AP:AP,11):INDEX(AP:AP,100000),INDEX($F:$F,11):INDEX($F:$F,100000),$P3,INDEX($J:$J,11):INDEX($J:$J,100000),"0_AttentionNeeded") +SUMIFS(INDEX(AP:AP,11):INDEX(AP:AP,100000),INDEX($F:$F,11):INDEX($F:$F,100000),$P3,INDEX($J:$J,11):INDEX($J:$J,100000),"1_Assigned") +SUMIFS(INDEX(AP:AP,11):INDEX(AP:AP,100000),INDEX($F:$F,11):INDEX($F:$F,100000),$P3,INDEX($J:$J,11):INDEX($J:$J,100000),"2_InProgress") +SUMIFS(INDEX(AP:AP,11):INDEX(AP:AP,100000),INDEX($F:$F,11):INDEX($F:$F,100000),$P3,INDEX($J:$J,11):INDEX($J:$J,100000),"3_Prototype") +SUMIFS(INDEX(AP:AP,11):INDEX(AP:AP,100000),INDEX($F:$F,11):INDEX($F:$F,100000),$P3,INDEX($J:$J,11):INDEX($J:$J,100000),"4_Testing") -> 0 | AQ3: =SUMIFS(INDEX(AQ:AQ,11):INDEX(AQ:AQ,100000),INDEX($F:$F,11):INDEX($F:$F,100000),$P3,INDEX($J:$J,11):INDEX($J:$J,100000),"0_AttentionNeeded") +SUMIFS(INDEX(AQ:AQ,11):INDEX(AQ:AQ,100000),INDEX($F:$F,11):INDEX($F:$F,100000),$P3,INDEX($J:$J,11):INDEX($J:$J,100000),"1_Assigned") +SUMIFS(INDEX(AQ:AQ,11):INDEX(AQ:AQ,100000),INDEX($F:$F,11):INDEX($F:$F,100000),$P3,INDEX($J:$J,11):INDEX($J:$J,100000),"2_InProgress") +SUMIFS(INDEX(AQ:AQ,11):INDEX(AQ:AQ,100000),INDEX($F:$F,11):INDEX($F:$F,100000),$P3,INDEX($J:$J,11):INDEX($J:$J,100000),"3_Prototype") +SUMIFS(INDEX(AQ:AQ,11):INDEX(AQ:AQ,100000),INDEX($F:$F,11):INDEX($F:$F,100000),$P3,INDEX($J:$J,11):INDEX($J:$J,100000),"4_Testing") -> 0 | AR3: =SUMIFS(INDEX(AR:AR,11):INDEX(AR:AR,100000),INDEX($F:$F,11):INDEX($F:$F,100000),$P3,INDEX($J:$J,11):INDEX($J:$J,100000),"0_AttentionNeeded") +SUMIFS(INDEX(AR:AR,11):INDEX(AR:AR,100000),INDEX($F:$F,11):INDEX($F:$F,100000),$P3,INDEX($J:$J,11):INDEX($J:$J,100000),"1_Assigned") +SUMIFS(INDEX(AR:AR,11):INDEX(AR:AR,100000),INDEX($F:$F,11):INDEX($F:$F,100000),$P3,INDEX($J:$J,11):INDEX($J:$J,100000),"2_InProgress") +SUMIFS(INDEX(AR:AR,11):INDEX(AR:AR,100000),INDEX($F:$F,11):INDEX($F:$F,100000),$P3,INDEX($J:$J,11):INDEX($J:$J,100000),"3_Prototype") +SUMIFS(INDEX(AR:AR,11):INDEX(AR:AR,100000),INDEX($F:$F,11):INDEX($F:$F,100000),$P3,INDEX($J:$J,11):INDEX($J:$J,100000),"4_Testing") -> 0 | AS3: =SUM(AT3:AY3) -> 0 | AT3: =SUMIFS(INDEX(AT:AT,11):INDEX(AT:AT,100000),INDEX($F:$F,11):INDEX($F:$F,100000),$P3,INDEX($J:$J,11):INDEX($J:$J,100000),"0_AttentionNeeded") +SUMIFS(INDEX(AT:AT,11):INDEX(AT:AT,100000),INDEX($F:$F,11):INDEX($F:$F,100000),$P3,INDEX($J:$J,11):INDEX($J:$J,100000),"1_Assigned") +SUMIFS(INDEX(AT:AT,11):INDEX(AT:AT,100000),INDEX($F:$F,11):INDEX($F:$F,100000),$P3,INDEX($J:$J,11):INDEX($J:$J,100000),"2_InProgress") +SUMIFS(INDEX(AT:AT,11):INDEX(AT:AT,100000),INDEX($F:$F,11):INDEX($F:$F,100000),$P3,INDEX($J:$J,11):INDEX($J:$J,100000),"3_Prototype") +SUMIFS(INDEX(AT:AT,11):INDEX(AT:AT,100000),INDEX($F:$F,11):INDEX($F:$F,100000),$P3,INDEX($J:$J,11):INDEX($J:$J,100000),"4_Testing") -> 0 | AU3: =SUMIFS(INDEX(AU:AU,11):INDEX(AU:AU,100000),INDEX($F:$F,11):INDEX($F:$F,100000),$P3,INDEX($J:$J,11):INDEX($J:$J,100000),"0_AttentionNeeded") +SUMIFS(INDEX(AU:AU,11):INDEX(AU:AU,100000),INDEX($F:$F,11):INDEX($F:$F,100000),$P3,INDEX($J:$J,11):INDEX($J:$J,100000),"1_Assigned") +SUMIFS(INDEX(AU:AU,11):INDEX(AU:AU,100000),INDEX($F:$F,11):INDEX($F:$F,100000),$P3,INDEX($J:$J,11):INDEX($J:$J,100000),"2_InProgress") +SUMIFS(INDEX(AU:AU,11):INDEX(AU:AU,100000),INDEX($F:$F,11):INDEX($F:$F,100000),$P3,INDEX($J:$J,11):INDEX($J:$J,100000),"3_Prototype") +SUMIFS(INDEX(AU:AU,11):INDEX(AU:AU,100000),INDEX($F:$F,11):INDEX($F:$F,100000),$P3,INDEX($J:$J,11):INDEX($J:$J,100000),"4_Testing") -> 0 | AV3: =SUMIFS(INDEX(AV:AV,11):INDEX(AV:AV,100000),INDEX($F:$F,11):INDEX($F:$F,100000),$P3,INDEX($J:$J,11):INDEX($J:$J,100000),"0_AttentionNeeded") +SUMIFS(INDEX(AV:AV,11):INDEX(AV:AV,100000),INDEX($F:$F,11):INDEX($F:$F,100000),$P3,INDEX($J:$J,11):INDEX($J:$J,100000),"1_Assigned") +SUMIFS(INDEX(AV:AV,11):INDEX(AV:AV,100000),INDEX($F:$F,11):INDEX($F:$F,100000),$P3,INDEX($J:$J,11):INDEX($J:$J,100000),"2_InProgress") +SUMIFS(INDEX(AV:AV,11):INDEX(AV:AV,100000),INDEX($F:$F,11):INDEX($F:$F,100000),$P3,INDEX($J:$J,11):INDEX($J:$J,100000),"3_Prototype") +SUMIFS(INDEX(AV:AV,11):INDEX(AV:AV,100000),INDEX($F:$F,11):INDEX($F:$F,100000),$P3,INDEX($J:$J,11):INDEX($J:$J,100000),"4_Testing") -> 0 | AW3: =SUMIFS(INDEX(AW:AW,11):INDEX(AW:AW,100000),INDEX($F:$F,11):INDEX($F:$F,100000),$P3,INDEX($J:$J,11):INDEX($J:$J,100000),"0_AttentionNeeded") +SUMIFS(INDEX(AW:AW,11):INDEX(AW:AW,100000),INDEX($F:$F,11):INDEX($F:$F,100000),$P3,INDEX($J:$J,11):INDEX($J:$J,100000),"1_Assigned") +SUMIFS(INDEX(AW:AW,11):INDEX(AW:AW,100000),INDEX($F:$F,11):INDEX($F:$F,100000),$P3,INDEX($J:$J,11):INDEX($J:$J,100000),"2_InProgress") +SUMIFS(INDEX(AW:AW,11):INDEX(AW:AW,100000),INDEX($F:$F,11):INDEX($F:$F,100000),$P3,INDEX($J:$J,11):INDEX($J:$J,100000),"3_Prototype") +SUMIFS(INDEX(AW:AW,11):INDEX(AW:AW,100000),INDEX($F:$F,11):INDEX($F:$F,100000),$P3,INDEX($J:$J,11):INDEX($J:$J,100000),"4_Testing") -> 0 | AX3: =SUMIFS(INDEX(AX:AX,11):INDEX(AX:AX,100000),INDEX($F:$F,11):INDEX($F:$F,100000),$P3,INDEX($J:$J,11):INDEX($J:$J,100000),"0_AttentionNeeded") +SUMIFS(INDEX(AX:AX,11):INDEX(AX:AX,100000),INDEX($F:$F,11):INDEX($F:$F,100000),$P3,INDEX($J:$J,11):INDEX($J:$J,100000),"1_Assigned") +SUMIFS(INDEX(AX:AX,11):INDEX(AX:AX,100000),INDEX($F:$F,11):INDEX($F:$F,100000),$P3,INDEX($J:$J,11):INDEX($J:$J,100000),"2_InProgress") +SUMIFS(INDEX(AX:AX,11):INDEX(AX:AX,100000),INDEX($F:$F,11):INDEX($F:$F,100000),$P3,INDEX($J:$J,11):INDEX($J:$J,100000),"3_Prototype") +SUMIFS(INDEX(AX:AX,11):INDEX(AX:AX,100000),INDEX($F:$F,11):INDEX($F:$F,100000),$P3,INDEX($J:$J,11):INDEX($J:$J,100000),"4_Testing") -> 0 | AY3: =SUMIFS(INDEX(AY:AY,11):INDEX(AY:AY,100000),INDEX($F:$F,11):INDEX($F:$F,100000),$P3,INDEX($J:$J,11):INDEX($J:$J,100000),"0_AttentionNeeded") +SUMIFS(INDEX(AY:AY,11):INDEX(AY:AY,100000),INDEX($F:$F,11):INDEX($F:$F,100000),$P3,INDEX($J:$J,11):INDEX($J:$J,100000),"1_Assigned") +SUMIFS(INDEX(AY:AY,11):INDEX(AY:AY,100000),INDEX($F:$F,11):INDEX($F:$F,100000),$P3,INDEX($J:$J,11):INDEX($J:$J,100000),"2_InProgress") +SUMIFS(INDEX(AY:AY,11):INDEX(AY:AY,100000),INDEX($F:$F,11):INDEX($F:$F,100000),$P3,INDEX($J:$J,11):INDEX($J:$J,100000),"3_Prototype") +SUMIFS(INDEX(AY:AY,11):INDEX(AY:AY,100000),INDEX($F:$F,11):INDEX($F:$F,100000),$P3,INDEX($J:$J,11):INDEX($J:$J,100000),"4_Testing") -> 0 | AZ3: =SUM(BA3:BF3) -> 0 | BA3: =SUMIFS(INDEX(BA:BA,11):INDEX(BA:BA,100000),INDEX($F:$F,11):INDEX($F:$F,100000),$P3,INDEX($J:$J,11):INDEX($J:$J,100000),"0_AttentionNeeded") +SUMIFS(INDEX(BA:BA,11):INDEX(BA:BA,100000),INDEX($F:$F,11):INDEX($F:$F,100000),$P3,INDEX($J:$J,11):INDEX($J:$J,100000),"1_Assigned") +SUMIFS(INDEX(BA:BA,11):INDEX(BA:BA,100000),INDEX($F:$F,11):INDEX($F:$F,100000),$P3,INDEX($J:$J,11):INDEX($J:$J,100000),"2_InProgress") +SUMIFS(INDEX(BA:BA,11):INDEX(BA:BA,100000),INDEX($F:$F,11):INDEX($F:$F,100000),$P3,INDEX($J:$J,11):INDEX($J:$J,100000),"3_Prototype") +SUMIFS(INDEX(BA:BA,11):INDEX(BA:BA,100000),INDEX($F:$F,11):INDEX($F:$F,100000),$P3,INDEX($J:$J,11):INDEX($J:$J,100000),"4_Testing") -> 0 | BB3: =SUMIFS(INDEX(BB:BB,11):INDEX(BB:BB,100000),INDEX($F:$F,11):INDEX($F:$F,100000),$P3,INDEX($J:$J,11):INDEX($J:$J,100000),"0_AttentionNeeded") +SUMIFS(INDEX(BB:BB,11):INDEX(BB:BB,100000),INDEX($F:$F,11):INDEX($F:$F,100000),$P3,INDEX($J:$J,11):INDEX($J:$J,100000),"1_Assigned") +SUMIFS(INDEX(BB:BB,11):INDEX(BB:BB,100000),INDEX($F:$F,11):INDEX($F:$F,100000),$P3,INDEX($J:$J,11):INDEX($J:$J,100000),"2_InProgress") +SUMIFS(INDEX(BB:BB,11):INDEX(BB:BB,100000),INDEX($F:$F,11):INDEX($F:$F,100000),$P3,INDEX($J:$J,11):INDEX($J:$J,100000),"3_Prototype") +SUMIFS(INDEX(BB:BB,11):INDEX(BB:BB,100000),INDEX($F:$F,11):INDEX($F:$F,100000),$P3,INDEX($J:$J,11):INDEX($J:$J,100000),"4_Testing") -> 0 | BC3: =SUMIFS(INDEX(BC:BC,11):INDEX(BC:BC,100000),INDEX($F:$F,11):INDEX($F:$F,100000),$P3,INDEX($J:$J,11):INDEX($J:$J,100000),"0_AttentionNeeded") +SUMIFS(INDEX(BC:BC,11):INDEX(BC:BC,100000),INDEX($F:$F,11):INDEX($F:$F,100000),$P3,INDEX($J:$J,11):INDEX($J:$J,100000),"1_Assigned") +SUMIFS(INDEX(BC:BC,11):INDEX(BC:BC,100000),INDEX($F:$F,11):INDEX($F:$F,100000),$P3,INDEX($J:$J,11):INDEX($J:$J,100000),"2_InProgress") +SUMIFS(INDEX(BC:BC,11):INDEX(BC:BC,100000),INDEX($F:$F,11):INDEX($F:$F,100000),$P3,INDEX($J:$J,11):INDEX($J:$J,100000),"3_Prototype") +SUMIFS(INDEX(BC:BC,11):INDEX(BC:BC,100000),INDEX($F:$F,11):INDEX($F:$F,100000),$P3,INDEX($J:$J,11):INDEX($J:$J,100000),"4_Testing") -> 0 | BD3: =SUMIFS(INDEX(BD:BD,11):INDEX(BD:BD,100000),INDEX($F:$F,11):INDEX($F:$F,100000),$P3,INDEX($J:$J,11):INDEX($J:$J,100000),"0_AttentionNeeded") +SUMIFS(INDEX(BD:BD,11):INDEX(BD:BD,100000),INDEX($F:$F,11):INDEX($F:$F,100000),$P3,INDEX($J:$J,11):INDEX($J:$J,100000),"1_Assigned") +SUMIFS(INDEX(BD:BD,11):INDEX(BD:BD,100000),INDEX($F:$F,11):INDEX($F:$F,100000),$P3,INDEX($J:$J,11):INDEX($J:$J,100000),"2_InProgress") +SUMIFS(INDEX(BD:BD,11):INDEX(BD:BD,100000),INDEX($F:$F,11):INDEX($F:$F,100000),$P3,INDEX($J:$J,11):INDEX($J:$J,100000),"3_Prototype") +SUMIFS(INDEX(BD:BD,11):INDEX(BD:BD,100000),INDEX($F:$F,11):INDEX($F:$F,100000),$P3,INDEX($J:$J,11):INDEX($J:$J,100000),"4_Testing") -> 0 | BE3: =SUMIFS(INDEX(BE:BE,11):INDEX(BE:BE,100000),INDEX($F:$F,11):INDEX($F:$F,100000),$P3,INDEX($J:$J,11):INDEX($J:$J,100000),"0_AttentionNeeded") +SUMIFS(INDEX(BE:BE,11):INDEX(BE:BE,100000),INDEX($F:$F,11):INDEX($F:$F,100000),$P3,INDEX($J:$J,11):INDEX($J:$J,100000),"1_Assigned") +SUMIFS(INDEX(BE:BE,11):INDEX(BE:BE,100000),INDEX($F:$F,11):INDEX($F:$F,100000),$P3,INDEX($J:$J,11):INDEX($J:$J,100000),"2_InProgress") +SUMIFS(INDEX(BE:BE,11):INDEX(BE:BE,100000),INDEX($F:$F,11):INDEX($F:$F,100000),$P3,INDEX($J:$J,11):INDEX($J:$J,100000),"3_Prototype") +SUMIFS(INDEX(BE:BE,11):INDEX(BE:BE,100000),INDEX($F:$F,11):INDEX($F:$F,100000),$P3,INDEX($J:$J,11):INDEX($J:$J,100000),"4_Testing") -> 0 | BF3: =SUMIFS(INDEX(BF:BF,11):INDEX(BF:BF,100000),INDEX($F:$F,11):INDEX($F:$F,100000),$P3,INDEX($J:$J,11):INDEX($J:$J,100000),"0_AttentionNeeded") +SUMIFS(INDEX(BF:BF,11):INDEX(BF:BF,100000),INDEX($F:$F,11):INDEX($F:$F,100000),$P3,INDEX($J:$J,11):INDEX($J:$J,100000),"1_Assigned") +SUMIFS(INDEX(BF:BF,11):INDEX(BF:BF,100000),INDEX($F:$F,11):INDEX($F:$F,100000),$P3,INDEX($J:$J,11):INDEX($J:$J,100000),"2_InProgress") +SUMIFS(INDEX(BF:BF,11):INDEX(BF:BF,100000),INDEX($F:$F,11):INDEX($F:$F,100000),$P3,INDEX($J:$J,11):INDEX($J:$J,100000),"3_Prototype") +SUMIFS(INDEX(BF:BF,11):INDEX(BF:BF,100000),INDEX($F:$F,11):INDEX($F:$F,100000),$P3,INDEX($J:$J,11):INDEX($J:$J,100000),"4_Testing") -> 0
P4: N1 | Q4: 0 | R4: =SUMIFS(INDEX(R:R,11):INDEX(R:R,100000),INDEX($F:$F,11):INDEX($F:$F,100000),$P4,INDEX($J:$J,11):INDEX($J:$J,100000),"0_AttentionNeeded") +SUMIFS(INDEX(R:R,11):INDEX(R:R,100000),INDEX($F:$F,11):INDEX($F:$F,100000),$P4,INDEX($J:$J,11):INDEX($J:$J,100000),"1_Assigned") +SUMIFS(INDEX(R:R,11):INDEX(R:R,100000),INDEX($F:$F,11):INDEX($F:$F,100000),$P4,INDEX($J:$J,11):INDEX($J:$J,100000),"2_InProgress") +SUMIFS(INDEX(R:R,11):INDEX(R:R,100000),INDEX($F:$F,11):INDEX($F:$F,100000),$P4,INDEX($J:$J,11):INDEX($J:$J,100000),"3_Prototype") +SUMIFS(INDEX(R:R,11):INDEX(R:R,100000),INDEX($F:$F,11):INDEX($F:$F,100000),$P4,INDEX($J:$J,11):INDEX($J:$J,100000),"4_Testing") -> 0 | S4: =SUMIFS(INDEX(S:S,11):INDEX(S:S,100000),INDEX($F:$F,11):INDEX($F:$F,100000),$P4,INDEX($J:$J,11):INDEX($J:$J,100000),"0_AttentionNeeded") +SUMIFS(INDEX(S:S,11):INDEX(S:S,100000),INDEX($F:$F,11):INDEX($F:$F,100000),$P4,INDEX($J:$J,11):INDEX($J:$J,100000),"1_Assigned") +SUMIFS(INDEX(S:S,11):INDEX(S:S,100000),INDEX($F:$F,11):INDEX($F:$F,100000),$P4,INDEX($J:$J,11):INDEX($J:$J,100000),"2_InProgress") +SUMIFS(INDEX(S:S,11):INDEX(S:S,100000),INDEX($F:$F,11):INDEX($F:$F,100000),$P4,INDEX($J:$J,11):INDEX($J:$J,100000),"3_Prototype") +SUMIFS(INDEX(S:S,11):INDEX(S:S,100000),INDEX($F:$F,11):INDEX($F:$F,100000),$P4,INDEX($J:$J,11):INDEX($J:$J,100000),"4_Testing") -> 0 | T4: =SUMIFS(INDEX(T:T,11):INDEX(T:T,100000),INDEX($F:$F,11):INDEX($F:$F,100000),$P4,INDEX($J:$J,11):INDEX($J:$J,100000),"0_AttentionNeeded") +SUMIFS(INDEX(T:T,11):INDEX(T:T,100000),INDEX($F:$F,11):INDEX($F:$F,100000),$P4,INDEX($J:$J,11):INDEX($J:$J,100000),"1_Assigned") +SUMIFS(INDEX(T:T,11):INDEX(T:T,100000),INDEX($F:$F,11):INDEX($F:$F,100000),$P4,INDEX($J:$J,11):INDEX($J:$J,100000),"2_InProgress") +SUMIFS(INDEX(T:T,11):INDEX(T:T,100000),INDEX($F:$F,11):INDEX($F:$F,100000),$P4,INDEX($J:$J,11):INDEX($J:$J,100000),"3_Prototype") +SUMIFS(INDEX(T:T,11):INDEX(T:T,100000),INDEX($F:$F,11):INDEX($F:$F,100000),$P4,INDEX($J:$J,11):INDEX($J:$J,100000),"4_Testing") -> 0 | U4: =SUMIFS(INDEX(U:U,11):INDEX(U:U,100000),INDEX($F:$F,11):INDEX($F:$F,100000),$P4,INDEX($J:$J,11):INDEX($J:$J,100000),"0_AttentionNeeded") +SUMIFS(INDEX(U:U,11):INDEX(U:U,100000),INDEX($F:$F,11):INDEX($F:$F,100000),$P4,INDEX($J:$J,11):INDEX($J:$J,100000),"1_Assigned") +SUMIFS(INDEX(U:U,11):INDEX(U:U,100000),INDEX($F:$F,11):INDEX($F:$F,100000),$P4,INDEX($J:$J,11):INDEX($J:$J,100000),"2_InProgress") +SUMIFS(INDEX(U:U,11):INDEX(U:U,100000),INDEX($F:$F,11):INDEX($F:$F,100000),$P4,INDEX($J:$J,11):INDEX($J:$J,100000),"3_Prototype") +SUMIFS(INDEX(U:U,11):INDEX(U:U,100000),INDEX($F:$F,11):INDEX($F:$F,100000),$P4,INDEX($J:$J,11):INDEX($J:$J,100000),"4_Testing") -> 0 | V4: =SUMIFS(INDEX(V:V,11):INDEX(V:V,100000),INDEX($F:$F,11):INDEX($F:$F,100000),$P4,INDEX($J:$J,11):INDEX($J:$J,100000),"0_AttentionNeeded") +SUMIFS(INDEX(V:V,11):INDEX(V:V,100000),INDEX($F:$F,11):INDEX($F:$F,100000),$P4,INDEX($J:$J,11):INDEX($J:$J,100000),"1_Assigned") +SUMIFS(INDEX(V:V,11):INDEX(V:V,100000),INDEX($F:$F,11):INDEX($F:$F,100000),$P4,INDEX($J:$J,11):INDEX($J:$J,100000),"2_InProgress") +SUMIFS(INDEX(V:V,11):INDEX(V:V,100000),INDEX($F:$F,11):INDEX($F:$F,100000),$P4,INDEX($J:$J,11):INDEX($J:$J,100000),"3_Prototype") +SUMIFS(INDEX(V:V,11):INDEX(V:V,100000),INDEX($F:$F,11):INDEX($F:$F,100000),$P4,INDEX($J:$J,11):INDEX($J:$J,100000),"4_Testing") -> 0 | W4: =SUMIFS(INDEX(W:W,11):INDEX(W:W,100000),INDEX($F:$F,11):INDEX($F:$F,100000),$P4,INDEX($J:$J,11):INDEX($J:$J,100000),"0_AttentionNeeded") +SUMIFS(INDEX(W:W,11):INDEX(W:W,100000),INDEX($F:$F,11):INDEX($F:$F,100000),$P4,INDEX($J:$J,11):INDEX($J:$J,100000),"1_Assigned") +SUMIFS(INDEX(W:W,11):INDEX(W:W,100000),INDEX($F:$F,11):INDEX($F:$F,100000),$P4,INDEX($J:$J,11):INDEX($J:$J,100000),"2_InProgress") +SUMIFS(INDEX(W:W,11):INDEX(W:W,100000),INDEX($F:$F,11):INDEX($F:$F,100000),$P4,INDEX($J:$J,11):INDEX($J:$J,100000),"3_Prototype") +SUMIFS(INDEX(W:W,11):INDEX(W:W,100000),INDEX($F:$F,11):INDEX($F:$F,100000),$P4,INDEX($J:$J,11):INDEX($J:$J,100000),"4_Testing") -> 0 | X4: 0 | Y4: =SUMIFS(INDEX(Y:Y,11):INDEX(Y:Y,100000),INDEX($F:$F,11):INDEX($F:$F,100000),$P4,INDEX($J:$J,11):INDEX($J:$J,100000),"0_AttentionNeeded") +SUMIFS(INDEX(Y:Y,11):INDEX(Y:Y,100000),INDEX($F:$F,11):INDEX($F:$F,100000),$P4,INDEX($J:$J,11):INDEX($J:$J,100000),"1_Assigned") +SUMIFS(INDEX(Y:Y,11):INDEX(Y:Y,100000),INDEX($F:$F,11):INDEX($F:$F,100000),$P4,INDEX($J:$J,11):INDEX($J:$J,100000),"2_InProgress") +SUMIFS(INDEX(Y:Y,11):INDEX(Y:Y,100000),INDEX($F:$F,11):INDEX($F:$F,100000),$P4,INDEX($J:$J,11):INDEX($J:$J,100000),"3_Prototype") +SUMIFS(INDEX(Y:Y,11):INDEX(Y:Y,100000),INDEX($F:$F,11):INDEX($F:$F,100000),$P4,INDEX($J:$J,11):INDEX($J:$J,100000),"4_Testing") -> 0 | Z4: =SUMIFS(INDEX(Z:Z,11):INDEX(Z:Z,100000),INDEX($F:$F,11):INDEX($F:$F,100000),$P4,INDEX($J:$J,11):INDEX($J:$J,100000),"0_AttentionNeeded") +SUMIFS(INDEX(Z:Z,11):INDEX(Z:Z,100000),INDEX($F:$F,11):INDEX($F:$F,100000),$P4,INDEX($J:$J,11):INDEX($J:$J,100000),"1_Assigned") +SUMIFS(INDEX(Z:Z,11):INDEX(Z:Z,100000),INDEX($F:$F,11):INDEX($F:$F,100000),$P4,INDEX($J:$J,11):INDEX($J:$J,100000),"2_InProgress") +SUMIFS(INDEX(Z:Z,11):INDEX(Z:Z,100000),INDEX($F:$F,11):INDEX($F:$F,100000),$P4,INDEX($J:$J,11):INDEX($J:$J,100000),"3_Prototype") +SUMIFS(INDEX(Z:Z,11):INDEX(Z:Z,100000),INDEX($F:$F,11):INDEX($F:$F,100000),$P4,INDEX($J:$J,11):INDEX($J:$J,100000),"4_Testing") -> 0 | AA4: =SUMIFS(INDEX(AA:AA,11):INDEX(AA:AA,100000),INDEX($F:$F,11):INDEX($F:$F,100000),$P4,INDEX($J:$J,11):INDEX($J:$J,100000),"0_AttentionNeeded") +SUMIFS(INDEX(AA:AA,11):INDEX(AA:AA,100000),INDEX($F:$F,11):INDEX($F:$F,100000),$P4,INDEX($J:$J,11):INDEX($J:$J,100000),"1_Assigned") +SUMIFS(INDEX(AA:AA,11):INDEX(AA:AA,100000),INDEX($F:$F,11):INDEX($F:$F,100000),$P4,INDEX($J:$J,11):INDEX($J:$J,100000),"2_InProgress") +SUMIFS(INDEX(AA:AA,11):INDEX(AA:AA,100000),INDEX($F:$F,11):INDEX($F:$F,100000),$P4,INDEX($J:$J,11):INDEX($J:$J,100000),"3_Prototype") +SUMIFS(INDEX(AA:AA,11):INDEX(AA:AA,100000),INDEX($F:$F,11):INDEX($F:$F,100000),$P4,INDEX($J:$J,11):INDEX($J:$J,100000),"4_Testing") -> 0 | AB4: =SUMIFS(INDEX(AB:AB,11):INDEX(AB:AB,100000),INDEX($F:$F,11):INDEX($F:$F,100000),$P4,INDEX($J:$J,11):INDEX($J:$J,100000),"0_AttentionNeeded") +SUMIFS(INDEX(AB:AB,11):INDEX(AB:AB,100000),INDEX($F:$F,11):INDEX($F:$F,100000),$P4,INDEX($J:$J,11):INDEX($J:$J,100000),"1_Assigned") +SUMIFS(INDEX(AB:AB,11):INDEX(AB:AB,100000),INDEX($F:$F,11):INDEX($F:$F,100000),$P4,INDEX($J:$J,11):INDEX($J:$J,100000),"2_InProgress") +SUMIFS(INDEX(AB:AB,11):INDEX(AB:AB,100000),INDEX($F:$F,11):INDEX($F:$F,100000),$P4,INDEX($J:$J,11):INDEX($J:$J,100000),"3_Prototype") +SUMIFS(INDEX(AB:AB,11):INDEX(AB:AB,100000),INDEX($F:$F,11):INDEX($F:$F,100000),$P4,INDEX($J:$J,11):INDEX($J:$J,100000),"4_Testing") -> 0 | AC4: =SUMIFS(INDEX(AC:AC,11):INDEX(AC:AC,100000),INDEX($F:$F,11):INDEX($F:$F,100000),$P4,INDEX($J:$J,11):INDEX($J:$J,100000),"0_AttentionNeeded") +SUMIFS(INDEX(AC:AC,11):INDEX(AC:AC,100000),INDEX($F:$F,11):INDEX($F:$F,100000),$P4,INDEX($J:$J,11):INDEX($J:$J,100000),"1_Assigned") +SUMIFS(INDEX(AC:AC,11):INDEX(AC:AC,100000),INDEX($F:$F,11):INDEX($F:$F,100000),$P4,INDEX($J:$J,11):INDEX($J:$J,100000),"2_InProgress") +SUMIFS(INDEX(AC:AC,11):INDEX(AC:AC,100000),INDEX($F:$F,11):INDEX($F:$F,100000),$P4,INDEX($J:$J,11):INDEX($J:$J,100000),"3_Prototype") +SUMIFS(INDEX(AC:AC,11):INDEX(AC:AC,100000),INDEX($F:$F,11):INDEX($F:$F,100000),$P4,INDEX($J:$J,11):INDEX($J:$J,100000),"4_Testing") -> 0 | AD4: =SUMIFS(INDEX(AD:AD,11):INDEX(AD:AD,100000),INDEX($F:$F,11):INDEX($F:$F,100000),$P4,INDEX($J:$J,11):INDEX($J:$J,100000),"0_AttentionNeeded") +SUMIFS(INDEX(AD:AD,11):INDEX(AD:AD,100000),INDEX($F:$F,11):INDEX($F:$F,100000),$P4,INDEX($J:$J,11):INDEX($J:$J,100000),"1_Assigned") +SUMIFS(INDEX(AD:AD,11):INDEX(AD:AD,100000),INDEX($F:$F,11):INDEX($F:$F,100000),$P4,INDEX($J:$J,11):INDEX($J:$J,100000),"2_InProgress") +SUMIFS(INDEX(AD:AD,11):INDEX(AD:AD,100000),INDEX($F:$F,11):INDEX($F:$F,100000),$P4,INDEX($J:$J,11):INDEX($J:$J,100000),"3_Prototype") +SUMIFS(INDEX(AD:AD,11):INDEX(AD:AD,100000),INDEX($F:$F,11):INDEX($F:$F,100000),$P4,INDEX($J:$J,11):INDEX($J:$J,100000),"4_Testing") -> 0 | AE4: 0 | AF4: =SUMIFS(INDEX(AF:AF,11):INDEX(AF:AF,100000),INDEX($F:$F,11):INDEX($F:$F,100000),$P4,INDEX($J:$J,11):INDEX($J:$J,100000),"0_AttentionNeeded") +SUMIFS(INDEX(AF:AF,11):INDEX(AF:AF,100000),INDEX($F:$F,11):INDEX($F:$F,100000),$P4,INDEX($J:$J,11):INDEX($J:$J,100000),"1_Assigned") +SUMIFS(INDEX(AF:AF,11):INDEX(AF:AF,100000),INDEX($F:$F,11):INDEX($F:$F,100000),$P4,INDEX($J:$J,11):INDEX($J:$J,100000),"2_InProgress") +SUMIFS(INDEX(AF:AF,11):INDEX(AF:AF,100000),INDEX($F:$F,11):INDEX($F:$F,100000),$P4,INDEX($J:$J,11):INDEX($J:$J,100000),"3_Prototype") +SUMIFS(INDEX(AF:AF,11):INDEX(AF:AF,100000),INDEX($F:$F,11):INDEX($F:$F,100000),$P4,INDEX($J:$J,11):INDEX($J:$J,100000),"4_Testing") -> 0 | AG4: =SUMIFS(INDEX(AG:AG,11):INDEX(AG:AG,100000),INDEX($F:$F,11):INDEX($F:$F,100000),$P4,INDEX($J:$J,11):INDEX($J:$J,100000),"0_AttentionNeeded") +SUMIFS(INDEX(AG:AG,11):INDEX(AG:AG,100000),INDEX($F:$F,11):INDEX($F:$F,100000),$P4,INDEX($J:$J,11):INDEX($J:$J,100000),"1_Assigned") +SUMIFS(INDEX(AG:AG,11):INDEX(AG:AG,100000),INDEX($F:$F,11):INDEX($F:$F,100000),$P4,INDEX($J:$J,11):INDEX($J:$J,100000),"2_InProgress") +SUMIFS(INDEX(AG:AG,11):INDEX(AG:AG,100000),INDEX($F:$F,11):INDEX($F:$F,100000),$P4,INDEX($J:$J,11):INDEX($J:$J,100000),"3_Prototype") +SUMIFS(INDEX(AG:AG,11):INDEX(AG:AG,100000),INDEX($F:$F,11):INDEX($F:$F,100000),$P4,INDEX($J:$J,11):INDEX($J:$J,100000),"4_Testing") -> 0 | AH4: =SUMIFS(INDEX(AH:AH,11):INDEX(AH:AH,100000),INDEX($F:$F,11):INDEX($F:$F,100000),$P4,INDEX($J:$J,11):INDEX($J:$J,100000),"0_AttentionNeeded") +SUMIFS(INDEX(AH:AH,11):INDEX(AH:AH,100000),INDEX($F:$F,11):INDEX($F:$F,100000),$P4,INDEX($J:$J,11):INDEX($J:$J,100000),"1_Assigned") +SUMIFS(INDEX(AH:AH,11):INDEX(AH:AH,100000),INDEX($F:$F,11):INDEX($F:$F,100000),$P4,INDEX($J:$J,11):INDEX($J:$J,100000),"2_InProgress") +SUMIFS(INDEX(AH:AH,11):INDEX(AH:AH,100000),INDEX($F:$F,11):INDEX($F:$F,100000),$P4,INDEX($J:$J,11):INDEX($J:$J,100000),"3_Prototype") +SUMIFS(INDEX(AH:AH,11):INDEX(AH:AH,100000),INDEX($F:$F,11):INDEX($F:$F,100000),$P4,INDEX($J:$J,11):INDEX($J:$J,100000),"4_Testing") -> 0 | AI4: =SUMIFS(INDEX(AI:AI,11):INDEX(AI:AI,100000),INDEX($F:$F,11):INDEX($F:$F,100000),$P4,INDEX($J:$J,11):INDEX($J:$J,100000),"0_AttentionNeeded") +SUMIFS(INDEX(AI:AI,11):INDEX(AI:AI,100000),INDEX($F:$F,11):INDEX($F:$F,100000),$P4,INDEX($J:$J,11):INDEX($J:$J,100000),"1_Assigned") +SUMIFS(INDEX(AI:AI,11):INDEX(AI:AI,100000),INDEX($F:$F,11):INDEX($F:$F,100000),$P4,INDEX($J:$J,11):INDEX($J:$J,100000),"2_InProgress") +SUMIFS(INDEX(AI:AI,11):INDEX(AI:AI,100000),INDEX($F:$F,11):INDEX($F:$F,100000),$P4,INDEX($J:$J,11):INDEX($J:$J,100000),"3_Prototype") +SUMIFS(INDEX(AI:AI,11):INDEX(AI:AI,100000),INDEX($F:$F,11):INDEX($F:$F,100000),$P4,INDEX($J:$J,11):INDEX($J:$J,100000),"4_Testing") -> 0 | AJ4: =SUMIFS(INDEX(AJ:AJ,11):INDEX(AJ:AJ,100000),INDEX($F:$F,11):INDEX($F:$F,100000),$P4,INDEX($J:$J,11):INDEX($J:$J,100000),"0_AttentionNeeded") +SUMIFS(INDEX(AJ:AJ,11):INDEX(AJ:AJ,100000),INDEX($F:$F,11):INDEX($F:$F,100000),$P4,INDEX($J:$J,11):INDEX($J:$J,100000),"1_Assigned") +SUMIFS(INDEX(AJ:AJ,11):INDEX(AJ:AJ,100000),INDEX($F:$F,11):INDEX($F:$F,100000),$P4,INDEX($J:$J,11):INDEX($J:$J,100000),"2_InProgress") +SUMIFS(INDEX(AJ:AJ,11):INDEX(AJ:AJ,100000),INDEX($F:$F,11):INDEX($F:$F,100000),$P4,INDEX($J:$J,11):INDEX($J:$J,100000),"3_Prototype") +SUMIFS(INDEX(AJ:AJ,11):INDEX(AJ:AJ,100000),INDEX($F:$F,11):INDEX($F:$F,100000),$P4,INDEX($J:$J,11):INDEX($J:$J,100000),"4_Testing") -> 0 | AK4: =SUMIFS(INDEX(AK:AK,11):INDEX(AK:AK,100000),INDEX($F:$F,11):INDEX($F:$F,100000),$P4,INDEX($J:$J,11):INDEX($J:$J,100000),"0_AttentionNeeded") +SUMIFS(INDEX(AK:AK,11):INDEX(AK:AK,100000),INDEX($F:$F,11):INDEX($F:$F,100000),$P4,INDEX($J:$J,11):INDEX($J:$J,100000),"1_Assigned") +SUMIFS(INDEX(AK:AK,11):INDEX(AK:AK,100000),INDEX($F:$F,11):INDEX($F:$F,100000),$P4,INDEX($J:$J,11):INDEX($J:$J,100000),"2_InProgress") +SUMIFS(INDEX(AK:AK,11):INDEX(AK:AK,100000),INDEX($F:$F,11):INDEX($F:$F,100000),$P4,INDEX($J:$J,11):INDEX($J:$J,100000),"3_Prototype") +SUMIFS(INDEX(AK:AK,11):INDEX(AK:AK,100000),INDEX($F:$F,11):INDEX($F:$F,100000),$P4,INDEX($J:$J,11):INDEX($J:$J,100000),"4_Testing") -> 0 | AL4: 0 | AM4: =SUMIFS(INDEX(AM:AM,11):INDEX(AM:AM,100000),INDEX($F:$F,11):INDEX($F:$F,100000),$P4,INDEX($J:$J,11):INDEX($J:$J,100000),"0_AttentionNeeded") +SUMIFS(INDEX(AM:AM,11):INDEX(AM:AM,100000),INDEX($F:$F,11):INDEX($F:$F,100000),$P4,INDEX($J:$J,11):INDEX($J:$J,100000),"1_Assigned") +SUMIFS(INDEX(AM:AM,11):INDEX(AM:AM,100000),INDEX($F:$F,11):INDEX($F:$F,100000),$P4,INDEX($J:$J,11):INDEX($J:$J,100000),"2_InProgress") +SUMIFS(INDEX(AM:AM,11):INDEX(AM:AM,100000),INDEX($F:$F,11):INDEX($F:$F,100000),$P4,INDEX($J:$J,11):INDEX($J:$J,100000),"3_Prototype") +SUMIFS(INDEX(AM:AM,11):INDEX(AM:AM,100000),INDEX($F:$F,11):INDEX($F:$F,100000),$P4,INDEX($J:$J,11):INDEX($J:$J,100000),"4_Testing") -> 0 | AN4: =SUMIFS(INDEX(AN:AN,11):INDEX(AN:AN,100000),INDEX($F:$F,11):INDEX($F:$F,100000),$P4,INDEX($J:$J,11):INDEX($J:$J,100000),"0_AttentionNeeded") +SUMIFS(INDEX(AN:AN,11):INDEX(AN:AN,100000),INDEX($F:$F,11):INDEX($F:$F,100000),$P4,INDEX($J:$J,11):INDEX($J:$J,100000),"1_Assigned") +SUMIFS(INDEX(AN:AN,11):INDEX(AN:AN,100000),INDEX($F:$F,11):INDEX($F:$F,100000),$P4,INDEX($J:$J,11):INDEX($J:$J,100000),"2_InProgress") +SUMIFS(INDEX(AN:AN,11):INDEX(AN:AN,100000),INDEX($F:$F,11):INDEX($F:$F,100000),$P4,INDEX($J:$J,11):INDEX($J:$J,100000),"3_Prototype") +SUMIFS(INDEX(AN:AN,11):INDEX(AN:AN,100000),INDEX($F:$F,11):INDEX($F:$F,100000),$P4,INDEX($J:$J,11):INDEX($J:$J,100000),"4_Testing") -> 0 | AO4: =SUMIFS(INDEX(AO:AO,11):INDEX(AO:AO,100000),INDEX($F:$F,11):INDEX($F:$F,100000),$P4,INDEX($J:$J,11):INDEX($J:$J,100000),"0_AttentionNeeded") +SUMIFS(INDEX(AO:AO,11):INDEX(AO:AO,100000),INDEX($F:$F,11):INDEX($F:$F,100000),$P4,INDEX($J:$J,11):INDEX($J:$J,100000),"1_Assigned") +SUMIFS(INDEX(AO:AO,11):INDEX(AO:AO,100000),INDEX($F:$F,11):INDEX($F:$F,100000),$P4,INDEX($J:$J,11):INDEX($J:$J,100000),"2_InProgress") +SUMIFS(INDEX(AO:AO,11):INDEX(AO:AO,100000),INDEX($F:$F,11):INDEX($F:$F,100000),$P4,INDEX($J:$J,11):INDEX($J:$J,100000),"3_Prototype") +SUMIFS(INDEX(AO:AO,11):INDEX(AO:AO,100000),INDEX($F:$F,11):INDEX($F:$F,100000),$P4,INDEX($J:$J,11):INDEX($J:$J,100000),"4_Testing") -> 0 | AP4: =SUMIFS(INDEX(AP:AP,11):INDEX(AP:AP,100000),INDEX($F:$F,11):INDEX($F:$F,100000),$P4,INDEX($J:$J,11):INDEX($J:$J,100000),"0_AttentionNeeded") +SUMIFS(INDEX(AP:AP,11):INDEX(AP:AP,100000),INDEX($F:$F,11):INDEX($F:$F,100000),$P4,INDEX($J:$J,11):INDEX($J:$J,100000),"1_Assigned") +SUMIFS(INDEX(AP:AP,11):INDEX(AP:AP,100000),INDEX($F:$F,11):INDEX($F:$F,100000),$P4,INDEX($J:$J,11):INDEX($J:$J,100000),"2_InProgress") +SUMIFS(INDEX(AP:AP,11):INDEX(AP:AP,100000),INDEX($F:$F,11):INDEX($F:$F,100000),$P4,INDEX($J:$J,11):INDEX($J:$J,100000),"3_Prototype") +SUMIFS(INDEX(AP:AP,11):INDEX(AP:AP,100000),INDEX($F:$F,11):INDEX($F:$F,100000),$P4,INDEX($J:$J,11):INDEX($J:$J,100000),"4_Testing") -> 0 | AQ4: =SUMIFS(INDEX(AQ:AQ,11):INDEX(AQ:AQ,100000),INDEX($F:$F,11):INDEX($F:$F,100000),$P4,INDEX($J:$J,11):INDEX($J:$J,100000),"0_AttentionNeeded") +SUMIFS(INDEX(AQ:AQ,11):INDEX(AQ:AQ,100000),INDEX($F:$F,11):INDEX($F:$F,100000),$P4,INDEX($J:$J,11):INDEX($J:$J,100000),"1_Assigned") +SUMIFS(INDEX(AQ:AQ,11):INDEX(AQ:AQ,100000),INDEX($F:$F,11):INDEX($F:$F,100000),$P4,INDEX($J:$J,11):INDEX($J:$J,100000),"2_InProgress") +SUMIFS(INDEX(AQ:AQ,11):INDEX(AQ:AQ,100000),INDEX($F:$F,11):INDEX($F:$F,100000),$P4,INDEX($J:$J,11):INDEX($J:$J,100000),"3_Prototype") +SUMIFS(INDEX(AQ:AQ,11):INDEX(AQ:AQ,100000),INDEX($F:$F,11):INDEX($F:$F,100000),$P4,INDEX($J:$J,11):INDEX($J:$J,100000),"4_Testing") -> 0 | AR4: =SUMIFS(INDEX(AR:AR,11):INDEX(AR:AR,100000),INDEX($F:$F,11):INDEX($F:$F,100000),$P4,INDEX($J:$J,11):INDEX($J:$J,100000),"0_AttentionNeeded") +SUMIFS(INDEX(AR:AR,11):INDEX(AR:AR,100000),INDEX($F:$F,11):INDEX($F:$F,100000),$P4,INDEX($J:$J,11):INDEX($J:$J,100000),"1_Assigned") +SUMIFS(INDEX(AR:AR,11):INDEX(AR:AR,100000),INDEX($F:$F,11):INDEX($F:$F,100000),$P4,INDEX($J:$J,11):INDEX($J:$J,100000),"2_InProgress") +SUMIFS(INDEX(AR:AR,11):INDEX(AR:AR,100000),INDEX($F:$F,11):INDEX($F:$F,100000),$P4,INDEX($J:$J,11):INDEX($J:$J,100000),"3_Prototype") +SUMIFS(INDEX(AR:AR,11):INDEX(AR:AR,100000),INDEX($F:$F,11):INDEX($F:$F,100000),$P4,INDEX($J:$J,11):INDEX($J:$J,100000),"4_Testing") -> 0 | AS4: 0 | AT4: =SUMIFS(INDEX(AT:AT,11):INDEX(AT:AT,100000),INDEX($F:$F,11):INDEX($F:$F,100000),$P4,INDEX($J:$J,11):INDEX($J:$J,100000),"0_AttentionNeeded") +SUMIFS(INDEX(AT:AT,11):INDEX(AT:AT,100000),INDEX($F:$F,11):INDEX($F:$F,100000),$P4,INDEX($J:$J,11):INDEX($J:$J,100000),"1_Assigned") +SUMIFS(INDEX(AT:AT,11):INDEX(AT:AT,100000),INDEX($F:$F,11):INDEX($F:$F,100000),$P4,INDEX($J:$J,11):INDEX($J:$J,100000),"2_InProgress") +SUMIFS(INDEX(AT:AT,11):INDEX(AT:AT,100000),INDEX($F:$F,11):INDEX($F:$F,100000),$P4,INDEX($J:$J,11):INDEX($J:$J,100000),"3_Prototype") +SUMIFS(INDEX(AT:AT,11):INDEX(AT:AT,100000),INDEX($F:$F,11):INDEX($F:$F,100000),$P4,INDEX($J:$J,11):INDEX($J:$J,100000),"4_Testing") -> 0 | AU4: =SUMIFS(INDEX(AU:AU,11):INDEX(AU:AU,100000),INDEX($F:$F,11):INDEX($F:$F,100000),$P4,INDEX($J:$J,11):INDEX($J:$J,100000),"0_AttentionNeeded") +SUMIFS(INDEX(AU:AU,11):INDEX(AU:AU,100000),INDEX($F:$F,11):INDEX($F:$F,100000),$P4,INDEX($J:$J,11):INDEX($J:$J,100000),"1_Assigned") +SUMIFS(INDEX(AU:AU,11):INDEX(AU:AU,100000),INDEX($F:$F,11):INDEX($F:$F,100000),$P4,INDEX($J:$J,11):INDEX($J:$J,100000),"2_InProgress") +SUMIFS(INDEX(AU:AU,11):INDEX(AU:AU,100000),INDEX($F:$F,11):INDEX($F:$F,100000),$P4,INDEX($J:$J,11):INDEX($J:$J,100000),"3_Prototype") +SUMIFS(INDEX(AU:AU,11):INDEX(AU:AU,100000),INDEX($F:$F,11):INDEX($F:$F,100000),$P4,INDEX($J:$J,11):INDEX($J:$J,100000),"4_Testing") -> 0 | AV4: =SUMIFS(INDEX(AV:AV,11):INDEX(AV:AV,100000),INDEX($F:$F,11):INDEX($F:$F,100000),$P4,INDEX($J:$J,11):INDEX($J:$J,100000),"0_AttentionNeeded") +SUMIFS(INDEX(AV:AV,11):INDEX(AV:AV,100000),INDEX($F:$F,11):INDEX($F:$F,100000),$P4,INDEX($J:$J,11):INDEX($J:$J,100000),"1_Assigned") +SUMIFS(INDEX(AV:AV,11):INDEX(AV:AV,100000),INDEX($F:$F,11):INDEX($F:$F,100000),$P4,INDEX($J:$J,11):INDEX($J:$J,100000),"2_InProgress") +SUMIFS(INDEX(AV:AV,11):INDEX(AV:AV,100000),INDEX($F:$F,11):INDEX($F:$F,100000),$P4,INDEX($J:$J,11):INDEX($J:$J,100000),"3_Prototype") +SUMIFS(INDEX(AV:AV,11):INDEX(AV:AV,100000),INDEX($F:$F,11):INDEX($F:$F,100000),$P4,INDEX($J:$J,11):INDEX($J:$J,100000),"4_Testing") -> 0 | AW4: =SUMIFS(INDEX(AW:AW,11):INDEX(AW:AW,100000),INDEX($F:$F,11):INDEX($F:$F,100000),$P4,INDEX($J:$J,11):INDEX($J:$J,100000),"0_AttentionNeeded") +SUMIFS(INDEX(AW:AW,11):INDEX(AW:AW,100000),INDEX($F:$F,11):INDEX($F:$F,100000),$P4,INDEX($J:$J,11):INDEX($J:$J,100000),"1_Assigned") +SUMIFS(INDEX(AW:AW,11):INDEX(AW:AW,100000),INDEX($F:$F,11):INDEX($F:$F,100000),$P4,INDEX($J:$J,11):INDEX($J:$J,100000),"2_InProgress") +SUMIFS(INDEX(AW:AW,11):INDEX(AW:AW,100000),INDEX($F:$F,11):INDEX($F:$F,100000),$P4,INDEX($J:$J,11):INDEX($J:$J,100000),"3_Prototype") +SUMIFS(INDEX(AW:AW,11):INDEX(AW:AW,100000),INDEX($F:$F,11):INDEX($F:$F,100000),$P4,INDEX($J:$J,11):INDEX($J:$J,100000),"4_Testing") -> 0 | AX4: =SUMIFS(INDEX(AX:AX,11):INDEX(AX:AX,100000),INDEX($F:$F,11):INDEX($F:$F,100000),$P4,INDEX($J:$J,11):INDEX($J:$J,100000),"0_AttentionNeeded") +SUMIFS(INDEX(AX:AX,11):INDEX(AX:AX,100000),INDEX($F:$F,11):INDEX($F:$F,100000),$P4,INDEX($J:$J,11):INDEX($J:$J,100000),"1_Assigned") +SUMIFS(INDEX(AX:AX,11):INDEX(AX:AX,100000),INDEX($F:$F,11):INDEX($F:$F,100000),$P4,INDEX($J:$J,11):INDEX($J:$J,100000),"2_InProgress") +SUMIFS(INDEX(AX:AX,11):INDEX(AX:AX,100000),INDEX($F:$F,11):INDEX($F:$F,100000),$P4,INDEX($J:$J,11):INDEX($J:$J,100000),"3_Prototype") +SUMIFS(INDEX(AX:AX,11):INDEX(AX:AX,100000),INDEX($F:$F,11):INDEX($F:$F,100000),$P4,INDEX($J:$J,11):INDEX($J:$J,100000),"4_Testing") -> 0 | AY4: =SUMIFS(INDEX(AY:AY,11):INDEX(AY:AY,100000),INDEX($F:$F,11):INDEX($F:$F,100000),$P4,INDEX($J:$J,11):INDEX($J:$J,100000),"0_AttentionNeeded") +SUMIFS(INDEX(AY:AY,11):INDEX(AY:AY,100000),INDEX($F:$F,11):INDEX($F:$F,100000),$P4,INDEX($J:$J,11):INDEX($J:$J,100000),"1_Assigned") +SUMIFS(INDEX(AY:AY,11):INDEX(AY:AY,100000),INDEX($F:$F,11):INDEX($F:$F,100000),$P4,INDEX($J:$J,11):INDEX($J:$J,100000),"2_InProgress") +SUMIFS(INDEX(AY:AY,11):INDEX(AY:AY,100000),INDEX($F:$F,11):INDEX($F:$F,100000),$P4,INDEX($J:$J,11):INDEX($J:$J,100000),"3_Prototype") +SUMIFS(INDEX(AY:AY,11):INDEX(AY:AY,100000),INDEX($F:$F,11):INDEX($F:$F,100000),$P4,INDEX($J:$J,11):INDEX($J:$J,100000),"4_Testing") -> 0 | AZ4: 0 | BA4: =SUMIFS(INDEX(BA:BA,11):INDEX(BA:BA,100000),INDEX($F:$F,11):INDEX($F:$F,100000),$P4,INDEX($J:$J,11):INDEX($J:$J,100000),"0_AttentionNeeded") +SUMIFS(INDEX(BA:BA,11):INDEX(BA:BA,100000),INDEX($F:$F,11):INDEX($F:$F,100000),$P4,INDEX($J:$J,11):INDEX($J:$J,100000),"1_Assigned") +SUMIFS(INDEX(BA:BA,11):INDEX(BA:BA,100000),INDEX($F:$F,11):INDEX($F:$F,100000),$P4,INDEX($J:$J,11):INDEX($J:$J,100000),"2_InProgress") +SUMIFS(INDEX(BA:BA,11):INDEX(BA:BA,100000),INDEX($F:$F,11):INDEX($F:$F,100000),$P4,INDEX($J:$J,11):INDEX($J:$J,100000),"3_Prototype") +SUMIFS(INDEX(BA:BA,11):INDEX(BA:BA,100000),INDEX($F:$F,11):INDEX($F:$F,100000),$P4,INDEX($J:$J,11):INDEX($J:$J,100000),"4_Testing") -> 0 | BB4: =SUMIFS(INDEX(BB:BB,11):INDEX(BB:BB,100000),INDEX($F:$F,11):INDEX($F:$F,100000),$P4,INDEX($J:$J,11):INDEX($J:$J,100000),"0_AttentionNeeded") +SUMIFS(INDEX(BB:BB,11):INDEX(BB:BB,100000),INDEX($F:$F,11):INDEX($F:$F,100000),$P4,INDEX($J:$J,11):INDEX($J:$J,100000),"1_Assigned") +SUMIFS(INDEX(BB:BB,11):INDEX(BB:BB,100000),INDEX($F:$F,11):INDEX($F:$F,100000),$P4,INDEX($J:$J,11):INDEX($J:$J,100000),"2_InProgress") +SUMIFS(INDEX(BB:BB,11):INDEX(BB:BB,100000),INDEX($F:$F,11):INDEX($F:$F,100000),$P4,INDEX($J:$J,11):INDEX($J:$J,100000),"3_Prototype") +SUMIFS(INDEX(BB:BB,11):INDEX(BB:BB,100000),INDEX($F:$F,11):INDEX($F:$F,100000),$P4,INDEX($J:$J,11):INDEX($J:$J,100000),"4_Testing") -> 0 | BC4: =SUMIFS(INDEX(BC:BC,11):INDEX(BC:BC,100000),INDEX($F:$F,11):INDEX($F:$F,100000),$P4,INDEX($J:$J,11):INDEX($J:$J,100000),"0_AttentionNeeded") +SUMIFS(INDEX(BC:BC,11):INDEX(BC:BC,100000),INDEX($F:$F,11):INDEX($F:$F,100000),$P4,INDEX($J:$J,11):INDEX($J:$J,100000),"1_Assigned") +SUMIFS(INDEX(BC:BC,11):INDEX(BC:BC,100000),INDEX($F:$F,11):INDEX($F:$F,100000),$P4,INDEX($J:$J,11):INDEX($J:$J,100000),"2_InProgress") +SUMIFS(INDEX(BC:BC,11):INDEX(BC:BC,100000),INDEX($F:$F,11):INDEX($F:$F,100000),$P4,INDEX($J:$J,11):INDEX($J:$J,100000),"3_Prototype") +SUMIFS(INDEX(BC:BC,11):INDEX(BC:BC,100000),INDEX($F:$F,11):INDEX($F:$F,100000),$P4,INDEX($J:$J,11):INDEX($J:$J,100000),"4_Testing") -> 0 | BD4: =SUMIFS(INDEX(BD:BD,11):INDEX(BD:BD,100000),INDEX($F:$F,11):INDEX($F:$F,100000),$P4,INDEX($J:$J,11):INDEX($J:$J,100000),"0_AttentionNeeded") +SUMIFS(INDEX(BD:BD,11):INDEX(BD:BD,100000),INDEX($F:$F,11):INDEX($F:$F,100000),$P4,INDEX($J:$J,11):INDEX($J:$J,100000),"1_Assigned") +SUMIFS(INDEX(BD:BD,11):INDEX(BD:BD,100000),INDEX($F:$F,11):INDEX($F:$F,100000),$P4,INDEX($J:$J,11):INDEX($J:$J,100000),"2_InProgress") +SUMIFS(INDEX(BD:BD,11):INDEX(BD:BD,100000),INDEX($F:$F,11):INDEX($F:$F,100000),$P4,INDEX($J:$J,11):INDEX($J:$J,100000),"3_Prototype") +SUMIFS(INDEX(BD:BD,11):INDEX(BD:BD,100000),INDEX($F:$F,11):INDEX($F:$F,100000),$P4,INDEX($J:$J,11):INDEX($J:$J,100000),"4_Testing") -> 0 | BE4: =SUMIFS(INDEX(BE:BE,11):INDEX(BE:BE,100000),INDEX($F:$F,11):INDEX($F:$F,100000),$P4,INDEX($J:$J,11):INDEX($J:$J,100000),"0_AttentionNeeded") +SUMIFS(INDEX(BE:BE,11):INDEX(BE:BE,100000),INDEX($F:$F,11):INDEX($F:$F,100000),$P4,INDEX($J:$J,11):INDEX($J:$J,100000),"1_Assigned") +SUMIFS(INDEX(BE:BE,11):INDEX(BE:BE,100000),INDEX($F:$F,11):INDEX($F:$F,100000),$P4,INDEX($J:$J,11):INDEX($J:$J,100000),"2_InProgress") +SUMIFS(INDEX(BE:BE,11):INDEX(BE:BE,100000),INDEX($F:$F,11):INDEX($F:$F,100000),$P4,INDEX($J:$J,11):INDEX($J:$J,100000),"3_Prototype") +SUMIFS(INDEX(BE:BE,11):INDEX(BE:BE,100000),INDEX($F:$F,11):INDEX($F:$F,100000),$P4,INDEX($J:$J,11):INDEX($J:$J,100000),"4_Testing") -> 0 | BF4: =SUMIFS(INDEX(BF:BF,11):INDEX(BF:BF,100000),INDEX($F:$F,11):INDEX($F:$F,100000),$P4,INDEX($J:$J,11):INDEX($J:$J,100000),"0_AttentionNeeded") +SUMIFS(INDEX(BF:BF,11):INDEX(BF:BF,100000),INDEX($F:$F,11):INDEX($F:$F,100000),$P4,INDEX($J:$J,11):INDEX($J:$J,100000),"1_Assigned") +SUMIFS(INDEX(BF:BF,11):INDEX(BF:BF,100000),INDEX($F:$F,11):INDEX($F:$F,100000),$P4,INDEX($J:$J,11):INDEX($J:$J,100000),"2_InProgress") +SUMIFS(INDEX(BF:BF,11):INDEX(BF:BF,100000),INDEX($F:$F,11):INDEX($F:$F,100000),$P4,INDEX($J:$J,11):INDEX($J:$J,100000),"3_Prototype") +SUMIFS(INDEX(BF:BF,11):INDEX(BF:BF,100000),INDEX($F:$F,11):INDEX($F:$F,100000),$P4,INDEX($J:$J,11):INDEX($J:$J,100000),"4_Testing") -> 0
P5: N2 | Q5: 0 | R5: =SUMIFS(INDEX(R:R,11):INDEX(R:R,100000),INDEX($F:$F,11):INDEX($F:$F,100000),$P5,INDEX($J:$J,11):INDEX($J:$J,100000),"0_AttentionNeeded") +SUMIFS(INDEX(R:R,11):INDEX(R:R,100000),INDEX($F:$F,11):INDEX($F:$F,100000),$P5,INDEX($J:$J,11):INDEX($J:$J,100000),"1_Assigned") +SUMIFS(INDEX(R:R,11):INDEX(R:R,100000),INDEX($F:$F,11):INDEX($F:$F,100000),$P5,INDEX($J:$J,11):INDEX($J:$J,100000),"2_InProgress") +SUMIFS(INDEX(R:R,11):INDEX(R:R,100000),INDEX($F:$F,11):INDEX($F:$F,100000),$P5,INDEX($J:$J,11):INDEX($J:$J,100000),"3_Prototype") +SUMIFS(INDEX(R:R,11):INDEX(R:R,100000),INDEX($F:$F,11):INDEX($F:$F,100000),$P5,INDEX($J:$J,11):INDEX($J:$J,100000),"4_Testing") -> 0 | S5: =SUMIFS(INDEX(S:S,11):INDEX(S:S,100000),INDEX($F:$F,11):INDEX($F:$F,100000),$P5,INDEX($J:$J,11):INDEX($J:$J,100000),"0_AttentionNeeded") +SUMIFS(INDEX(S:S,11):INDEX(S:S,100000),INDEX($F:$F,11):INDEX($F:$F,100000),$P5,INDEX($J:$J,11):INDEX($J:$J,100000),"1_Assigned") +SUMIFS(INDEX(S:S,11):INDEX(S:S,100000),INDEX($F:$F,11):INDEX($F:$F,100000),$P5,INDEX($J:$J,11):INDEX($J:$J,100000),"2_InProgress") +SUMIFS(INDEX(S:S,11):INDEX(S:S,100000),INDEX($F:$F,11):INDEX($F:$F,100000),$P5,INDEX($J:$J,11):INDEX($J:$J,100000),"3_Prototype") +SUMIFS(INDEX(S:S,11):INDEX(S:S,100000),INDEX($F:$F,11):INDEX($F:$F,100000),$P5,INDEX($J:$J,11):INDEX($J:$J,100000),"4_Testing") -> 0 | T5: =SUMIFS(INDEX(T:T,11):INDEX(T:T,100000),INDEX($F:$F,11):INDEX($F:$F,100000),$P5,INDEX($J:$J,11):INDEX($J:$J,100000),"0_AttentionNeeded") +SUMIFS(INDEX(T:T,11):INDEX(T:T,100000),INDEX($F:$F,11):INDEX($F:$F,100000),$P5,INDEX($J:$J,11):INDEX($J:$J,100000),"1_Assigned") +SUMIFS(INDEX(T:T,11):INDEX(T:T,100000),INDEX($F:$F,11):INDEX($F:$F,100000),$P5,INDEX($J:$J,11):INDEX($J:$J,100000),"2_InProgress") +SUMIFS(INDEX(T:T,11):INDEX(T:T,100000),INDEX($F:$F,11):INDEX($F:$F,100000),$P5,INDEX($J:$J,11):INDEX($J:$J,100000),"3_Prototype") +SUMIFS(INDEX(T:T,11):INDEX(T:T,100000),INDEX($F:$F,11):INDEX($F:$F,100000),$P5,INDEX($J:$J,11):INDEX($J:$J,100000),"4_Testing") -> 0 | U5: =SUMIFS(INDEX(U:U,11):INDEX(U:U,100000),INDEX($F:$F,11):INDEX($F:$F,100000),$P5,INDEX($J:$J,11):INDEX($J:$J,100000),"0_AttentionNeeded") +SUMIFS(INDEX(U:U,11):INDEX(U:U,100000),INDEX($F:$F,11):INDEX($F:$F,100000),$P5,INDEX($J:$J,11):INDEX($J:$J,100000),"1_Assigned") +SUMIFS(INDEX(U:U,11):INDEX(U:U,100000),INDEX($F:$F,11):INDEX($F:$F,100000),$P5,INDEX($J:$J,11):INDEX($J:$J,100000),"2_InProgress") +SUMIFS(INDEX(U:U,11):INDEX(U:U,100000),INDEX($F:$F,11):INDEX($F:$F,100000),$P5,INDEX($J:$J,11):INDEX($J:$J,100000),"3_Prototype") +SUMIFS(INDEX(U:U,11):INDEX(U:U,100000),INDEX($F:$F,11):INDEX($F:$F,100000),$P5,INDEX($J:$J,11):INDEX($J:$J,100000),"4_Testing") -> 0 | V5: =SUMIFS(INDEX(V:V,11):INDEX(V:V,100000),INDEX($F:$F,11):INDEX($F:$F,100000),$P5,INDEX($J:$J,11):INDEX($J:$J,100000),"0_AttentionNeeded") +SUMIFS(INDEX(V:V,11):INDEX(V:V,100000),INDEX($F:$F,11):INDEX($F:$F,100000),$P5,INDEX($J:$J,11):INDEX($J:$J,100000),"1_Assigned") +SUMIFS(INDEX(V:V,11):INDEX(V:V,100000),INDEX($F:$F,11):INDEX($F:$F,100000),$P5,INDEX($J:$J,11):INDEX($J:$J,100000),"2_InProgress") +SUMIFS(INDEX(V:V,11):INDEX(V:V,100000),INDEX($F:$F,11):INDEX($F:$F,100000),$P5,INDEX($J:$J,11):INDEX($J:$J,100000),"3_Prototype") +SUMIFS(INDEX(V:V,11):INDEX(V:V,100000),INDEX($F:$F,11):INDEX($F:$F,100000),$P5,INDEX($J:$J,11):INDEX($J:$J,100000),"4_Testing") -> 0 | W5: =SUMIFS(INDEX(W:W,11):INDEX(W:W,100000),INDEX($F:$F,11):INDEX($F:$F,100000),$P5,INDEX($J:$J,11):INDEX($J:$J,100000),"0_AttentionNeeded") +SUMIFS(INDEX(W:W,11):INDEX(W:W,100000),INDEX($F:$F,11):INDEX($F:$F,100000),$P5,INDEX($J:$J,11):INDEX($J:$J,100000),"1_Assigned") +SUMIFS(INDEX(W:W,11):INDEX(W:W,100000),INDEX($F:$F,11):INDEX($F:$F,100000),$P5,INDEX($J:$J,11):INDEX($J:$J,100000),"2_InProgress") +SUMIFS(INDEX(W:W,11):INDEX(W:W,100000),INDEX($F:$F,11):INDEX($F:$F,100000),$P5,INDEX($J:$J,11):INDEX($J:$J,100000),"3_Prototype") +SUMIFS(INDEX(W:W,11):INDEX(W:W,100000),INDEX($F:$F,11):INDEX($F:$F,100000),$P5,INDEX($J:$J,11):INDEX($J:$J,100000),"4_Testing") -> 0 | X5: 0 | Y5: =SUMIFS(INDEX(Y:Y,11):INDEX(Y:Y,100000),INDEX($F:$F,11):INDEX($F:$F,100000),$P5,INDEX($J:$J,11):INDEX($J:$J,100000),"0_AttentionNeeded") +SUMIFS(INDEX(Y:Y,11):INDEX(Y:Y,100000),INDEX($F:$F,11):INDEX($F:$F,100000),$P5,INDEX($J:$J,11):INDEX($J:$J,100000),"1_Assigned") +SUMIFS(INDEX(Y:Y,11):INDEX(Y:Y,100000),INDEX($F:$F,11):INDEX($F:$F,100000),$P5,INDEX($J:$J,11):INDEX($J:$J,100000),"2_InProgress") +SUMIFS(INDEX(Y:Y,11):INDEX(Y:Y,100000),INDEX($F:$F,11):INDEX($F:$F,100000),$P5,INDEX($J:$J,11):INDEX($J:$J,100000),"3_Prototype") +SUMIFS(INDEX(Y:Y,11):INDEX(Y:Y,100000),INDEX($F:$F,11):INDEX($F:$F,100000),$P5,INDEX($J:$J,11):INDEX($J:$J,100000),"4_Testing") -> 0 | Z5: =SUMIFS(INDEX(Z:Z,11):INDEX(Z:Z,100000),INDEX($F:$F,11):INDEX($F:$F,100000),$P5,INDEX($J:$J,11):INDEX($J:$J,100000),"0_AttentionNeeded") +SUMIFS(INDEX(Z:Z,11):INDEX(Z:Z,100000),INDEX($F:$F,11):INDEX($F:$F,100000),$P5,INDEX($J:$J,11):INDEX($J:$J,100000),"1_Assigned") +SUMIFS(INDEX(Z:Z,11):INDEX(Z:Z,100000),INDEX($F:$F,11):INDEX($F:$F,100000),$P5,INDEX($J:$J,11):INDEX($J:$J,100000),"2_InProgress") +SUMIFS(INDEX(Z:Z,11):INDEX(Z:Z,100000),INDEX($F:$F,11):INDEX($F:$F,100000),$P5,INDEX($J:$J,11):INDEX($J:$J,100000),"3_Prototype") +SUMIFS(INDEX(Z:Z,11):INDEX(Z:Z,100000),INDEX($F:$F,11):INDEX($F:$F,100000),$P5,INDEX($J:$J,11):INDEX($J:$J,100000),"4_Testing") -> 0 | AA5: =SUMIFS(INDEX(AA:AA,11):INDEX(AA:AA,100000),INDEX($F:$F,11):INDEX($F:$F,100000),$P5,INDEX($J:$J,11):INDEX($J:$J,100000),"0_AttentionNeeded") +SUMIFS(INDEX(AA:AA,11):INDEX(AA:AA,100000),INDEX($F:$F,11):INDEX($F:$F,100000),$P5,INDEX($J:$J,11):INDEX($J:$J,100000),"1_Assigned") +SUMIFS(INDEX(AA:AA,11):INDEX(AA:AA,100000),INDEX($F:$F,11):INDEX($F:$F,100000),$P5,INDEX($J:$J,11):INDEX($J:$J,100000),"2_InProgress") +SUMIFS(INDEX(AA:AA,11):INDEX(AA:AA,100000),INDEX($F:$F,11):INDEX($F:$F,100000),$P5,INDEX($J:$J,11):INDEX($J:$J,100000),"3_Prototype") +SUMIFS(INDEX(AA:AA,11):INDEX(AA:AA,100000),INDEX($F:$F,11):INDEX($F:$F,100000),$P5,INDEX($J:$J,11):INDEX($J:$J,100000),"4_Testing") -> 0 | AB5: =SUMIFS(INDEX(AB:AB,11):INDEX(AB:AB,100000),INDEX($F:$F,11):INDEX($F:$F,100000),$P5,INDEX($J:$J,11):INDEX($J:$J,100000),"0_AttentionNeeded") +SUMIFS(INDEX(AB:AB,11):INDEX(AB:AB,100000),INDEX($F:$F,11):INDEX($F:$F,100000),$P5,INDEX($J:$J,11):INDEX($J:$J,100000),"1_Assigned") +SUMIFS(INDEX(AB:AB,11):INDEX(AB:AB,100000),INDEX($F:$F,11):INDEX($F:$F,100000),$P5,INDEX($J:$J,11):INDEX($J:$J,100000),"2_InProgress") +SUMIFS(INDEX(AB:AB,11):INDEX(AB:AB,100000),INDEX($F:$F,11):INDEX($F:$F,100000),$P5,INDEX($J:$J,11):INDEX($J:$J,100000),"3_Prototype") +SUMIFS(INDEX(AB:AB,11):INDEX(AB:AB,100000),INDEX($F:$F,11):INDEX($F:$F,100000),$P5,INDEX($J:$J,11):INDEX($J:$J,100000),"4_Testing") -> 0 | AC5: =SUMIFS(INDEX(AC:AC,11):INDEX(AC:AC,100000),INDEX($F:$F,11):INDEX($F:$F,100000),$P5,INDEX($J:$J,11):INDEX($J:$J,100000),"0_AttentionNeeded") +SUMIFS(INDEX(AC:AC,11):INDEX(AC:AC,100000),INDEX($F:$F,11):INDEX($F:$F,100000),$P5,INDEX($J:$J,11):INDEX($J:$J,100000),"1_Assigned") +SUMIFS(INDEX(AC:AC,11):INDEX(AC:AC,100000),INDEX($F:$F,11):INDEX($F:$F,100000),$P5,INDEX($J:$J,11):INDEX($J:$J,100000),"2_InProgress") +SUMIFS(INDEX(AC:AC,11):INDEX(AC:AC,100000),INDEX($F:$F,11):INDEX($F:$F,100000),$P5,INDEX($J:$J,11):INDEX($J:$J,100000),"3_Prototype") +SUMIFS(INDEX(AC:AC,11):INDEX(AC:AC,100000),INDEX($F:$F,11):INDEX($F:$F,100000),$P5,INDEX($J:$J,11):INDEX($J:$J,100000),"4_Testing") -> 0 | AD5: =SUMIFS(INDEX(AD:AD,11):INDEX(AD:AD,100000),INDEX($F:$F,11):INDEX($F:$F,100000),$P5,INDEX($J:$J,11):INDEX($J:$J,100000),"0_AttentionNeeded") +SUMIFS(INDEX(AD:AD,11):INDEX(AD:AD,100000),INDEX($F:$F,11):INDEX($F:$F,100000),$P5,INDEX($J:$J,11):INDEX($J:$J,100000),"1_Assigned") +SUMIFS(INDEX(AD:AD,11):INDEX(AD:AD,100000),INDEX($F:$F,11):INDEX($F:$F,100000),$P5,INDEX($J:$J,11):INDEX($J:$J,100000),"2_InProgress") +SUMIFS(INDEX(AD:AD,11):INDEX(AD:AD,100000),INDEX($F:$F,11):INDEX($F:$F,100000),$P5,INDEX($J:$J,11):INDEX($J:$J,100000),"3_Prototype") +SUMIFS(INDEX(AD:AD,11):INDEX(AD:AD,100000),INDEX($F:$F,11):INDEX($F:$F,100000),$P5,INDEX($J:$J,11):INDEX($J:$J,100000),"4_Testing") -> 0 | AE5: 0 | AF5: =SUMIFS(INDEX(AF:AF,11):INDEX(AF:AF,100000),INDEX($F:$F,11):INDEX($F:$F,100000),$P5,INDEX($J:$J,11):INDEX($J:$J,100000),"0_AttentionNeeded") +SUMIFS(INDEX(AF:AF,11):INDEX(AF:AF,100000),INDEX($F:$F,11):INDEX($F:$F,100000),$P5,INDEX($J:$J,11):INDEX($J:$J,100000),"1_Assigned") +SUMIFS(INDEX(AF:AF,11):INDEX(AF:AF,100000),INDEX($F:$F,11):INDEX($F:$F,100000),$P5,INDEX($J:$J,11):INDEX($J:$J,100000),"2_InProgress") +SUMIFS(INDEX(AF:AF,11):INDEX(AF:AF,100000),INDEX($F:$F,11):INDEX($F:$F,100000),$P5,INDEX($J:$J,11):INDEX($J:$J,100000),"3_Prototype") +SUMIFS(INDEX(AF:AF,11):INDEX(AF:AF,100000),INDEX($F:$F,11):INDEX($F:$F,100000),$P5,INDEX($J:$J,11):INDEX($J:$J,100000),"4_Testing") -> 0 | AG5: =SUMIFS(INDEX(AG:AG,11):INDEX(AG:AG,100000),INDEX($F:$F,11):INDEX($F:$F,100000),$P5,INDEX($J:$J,11):INDEX($J:$J,100000),"0_AttentionNeeded") +SUMIFS(INDEX(AG:AG,11):INDEX(AG:AG,100000),INDEX($F:$F,11):INDEX($F:$F,100000),$P5,INDEX($J:$J,11):INDEX($J:$J,100000),"1_Assigned") +SUMIFS(INDEX(AG:AG,11):INDEX(AG:AG,100000),INDEX($F:$F,11):INDEX($F:$F,100000),$P5,INDEX($J:$J,11):INDEX($J:$J,100000),"2_InProgress") +SUMIFS(INDEX(AG:AG,11):INDEX(AG:AG,100000),INDEX($F:$F,11):INDEX($F:$F,100000),$P5,INDEX($J:$J,11):INDEX($J:$J,100000),"3_Prototype") +SUMIFS(INDEX(AG:AG,11):INDEX(AG:AG,100000),INDEX($F:$F,11):INDEX($F:$F,100000),$P5,INDEX($J:$J,11):INDEX($J:$J,100000),"4_Testing") -> 0 | AH5: =SUMIFS(INDEX(AH:AH,11):INDEX(AH:AH,100000),INDEX($F:$F,11):INDEX($F:$F,100000),$P5,INDEX($J:$J,11):INDEX($J:$J,100000),"0_AttentionNeeded") +SUMIFS(INDEX(AH:AH,11):INDEX(AH:AH,100000),INDEX($F:$F,11):INDEX($F:$F,100000),$P5,INDEX($J:$J,11):INDEX($J:$J,100000),"1_Assigned") +SUMIFS(INDEX(AH:AH,11):INDEX(AH:AH,100000),INDEX($F:$F,11):INDEX($F:$F,100000),$P5,INDEX($J:$J,11):INDEX($J:$J,100000),"2_InProgress") +SUMIFS(INDEX(AH:AH,11):INDEX(AH:AH,100000),INDEX($F:$F,11):INDEX($F:$F,100000),$P5,INDEX($J:$J,11):INDEX($J:$J,100000),"3_Prototype") +SUMIFS(INDEX(AH:AH,11):INDEX(AH:AH,100000),INDEX($F:$F,11):INDEX($F:$F,100000),$P5,INDEX($J:$J,11):INDEX($J:$J,100000),"4_Testing") -> 0 | AI5: =SUMIFS(INDEX(AI:AI,11):INDEX(AI:AI,100000),INDEX($F:$F,11):INDEX($F:$F,100000),$P5,INDEX($J:$J,11):INDEX($J:$J,100000),"0_AttentionNeeded") +SUMIFS(INDEX(AI:AI,11):INDEX(AI:AI,100000),INDEX($F:$F,11):INDEX($F:$F,100000),$P5,INDEX($J:$J,11):INDEX($J:$J,100000),"1_Assigned") +SUMIFS(INDEX(AI:AI,11):INDEX(AI:AI,100000),INDEX($F:$F,11):INDEX($F:$F,100000),$P5,INDEX($J:$J,11):INDEX($J:$J,100000),"2_InProgress") +SUMIFS(INDEX(AI:AI,11):INDEX(AI:AI,100000),INDEX($F:$F,11):INDEX($F:$F,100000),$P5,INDEX($J:$J,11):INDEX($J:$J,100000),"3_Prototype") +SUMIFS(INDEX(AI:AI,11):INDEX(AI:AI,100000),INDEX($F:$F,11):INDEX($F:$F,100000),$P5,INDEX($J:$J,11):INDEX($J:$J,100000),"4_Testing") -> 0 | AJ5: =SUMIFS(INDEX(AJ:AJ,11):INDEX(AJ:AJ,100000),INDEX($F:$F,11):INDEX($F:$F,100000),$P5,INDEX($J:$J,11):INDEX($J:$J,100000),"0_AttentionNeeded") +SUMIFS(INDEX(AJ:AJ,11):INDEX(AJ:AJ,100000),INDEX($F:$F,11):INDEX($F:$F,100000),$P5,INDEX($J:$J,11):INDEX($J:$J,100000),"1_Assigned") +SUMIFS(INDEX(AJ:AJ,11):INDEX(AJ:AJ,100000),INDEX($F:$F,11):INDEX($F:$F,100000),$P5,INDEX($J:$J,11):INDEX($J:$J,100000),"2_InProgress") +SUMIFS(INDEX(AJ:AJ,11):INDEX(AJ:AJ,100000),INDEX($F:$F,11):INDEX($F:$F,100000),$P5,INDEX($J:$J,11):INDEX($J:$J,100000),"3_Prototype") +SUMIFS(INDEX(AJ:AJ,11):INDEX(AJ:AJ,100000),INDEX($F:$F,11):INDEX($F:$F,100000),$P5,INDEX($J:$J,11):INDEX($J:$J,100000),"4_Testing") -> 0 | AK5: =SUMIFS(INDEX(AK:AK,11):INDEX(AK:AK,100000),INDEX($F:$F,11):INDEX($F:$F,100000),$P5,INDEX($J:$J,11):INDEX($J:$J,100000),"0_AttentionNeeded") +SUMIFS(INDEX(AK:AK,11):INDEX(AK:AK,100000),INDEX($F:$F,11):INDEX($F:$F,100000),$P5,INDEX($J:$J,11):INDEX($J:$J,100000),"1_Assigned") +SUMIFS(INDEX(AK:AK,11):INDEX(AK:AK,100000),INDEX($F:$F,11):INDEX($F:$F,100000),$P5,INDEX($J:$J,11):INDEX($J:$J,100000),"2_InProgress") +SUMIFS(INDEX(AK:AK,11):INDEX(AK:AK,100000),INDEX($F:$F,11):INDEX($F:$F,100000),$P5,INDEX($J:$J,11):INDEX($J:$J,100000),"3_Prototype") +SUMIFS(INDEX(AK:AK,11):INDEX(AK:AK,100000),INDEX($F:$F,11):INDEX($F:$F,100000),$P5,INDEX($J:$J,11):INDEX($J:$J,100000),"4_Testing") -> 0 | AL5: 0 | AM5: =SUMIFS(INDEX(AM:AM,11):INDEX(AM:AM,100000),INDEX($F:$F,11):INDEX($F:$F,100000),$P5,INDEX($J:$J,11):INDEX($J:$J,100000),"0_AttentionNeeded") +SUMIFS(INDEX(AM:AM,11):INDEX(AM:AM,100000),INDEX($F:$F,11):INDEX($F:$F,100000),$P5,INDEX($J:$J,11):INDEX($J:$J,100000),"1_Assigned") +SUMIFS(INDEX(AM:AM,11):INDEX(AM:AM,100000),INDEX($F:$F,11):INDEX($F:$F,100000),$P5,INDEX($J:$J,11):INDEX($J:$J,100000),"2_InProgress") +SUMIFS(INDEX(AM:AM,11):INDEX(AM:AM,100000),INDEX($F:$F,11):INDEX($F:$F,100000),$P5,INDEX($J:$J,11):INDEX($J:$J,100000),"3_Prototype") +SUMIFS(INDEX(AM:AM,11):INDEX(AM:AM,100000),INDEX($F:$F,11):INDEX($F:$F,100000),$P5,INDEX($J:$J,11):INDEX($J:$J,100000),"4_Testing") -> 0 | AN5: =SUMIFS(INDEX(AN:AN,11):INDEX(AN:AN,100000),INDEX($F:$F,11):INDEX($F:$F,100000),$P5,INDEX($J:$J,11):INDEX($J:$J,100000),"0_AttentionNeeded") +SUMIFS(INDEX(AN:AN,11):INDEX(AN:AN,100000),INDEX($F:$F,11):INDEX($F:$F,100000),$P5,INDEX($J:$J,11):INDEX($J:$J,100000),"1_Assigned") +SUMIFS(INDEX(AN:AN,11):INDEX(AN:AN,100000),INDEX($F:$F,11):INDEX($F:$F,100000),$P5,INDEX($J:$J,11):INDEX($J:$J,100000),"2_InProgress") +SUMIFS(INDEX(AN:AN,11):INDEX(AN:AN,100000),INDEX($F:$F,11):INDEX($F:$F,100000),$P5,INDEX($J:$J,11):INDEX($J:$J,100000),"3_Prototype") +SUMIFS(INDEX(AN:AN,11):INDEX(AN:AN,100000),INDEX($F:$F,11):INDEX($F:$F,100000),$P5,INDEX($J:$J,11):INDEX($J:$J,100000),"4_Testing") -> 0 | AO5: =SUMIFS(INDEX(AO:AO,11):INDEX(AO:AO,100000),INDEX($F:$F,11):INDEX($F:$F,100000),$P5,INDEX($J:$J,11):INDEX($J:$J,100000),"0_AttentionNeeded") +SUMIFS(INDEX(AO:AO,11):INDEX(AO:AO,100000),INDEX($F:$F,11):INDEX($F:$F,100000),$P5,INDEX($J:$J,11):INDEX($J:$J,100000),"1_Assigned") +SUMIFS(INDEX(AO:AO,11):INDEX(AO:AO,100000),INDEX($F:$F,11):INDEX($F:$F,100000),$P5,INDEX($J:$J,11):INDEX($J:$J,100000),"2_InProgress") +SUMIFS(INDEX(AO:AO,11):INDEX(AO:AO,100000),INDEX($F:$F,11):INDEX($F:$F,100000),$P5,INDEX($J:$J,11):INDEX($J:$J,100000),"3_Prototype") +SUMIFS(INDEX(AO:AO,11):INDEX(AO:AO,100000),INDEX($F:$F,11):INDEX($F:$F,100000),$P5,INDEX($J:$J,11):INDEX($J:$J,100000),"4_Testing") -> 0 | AP5: =SUMIFS(INDEX(AP:AP,11):INDEX(AP:AP,100000),INDEX($F:$F,11):INDEX($F:$F,100000),$P5,INDEX($J:$J,11):INDEX($J:$J,100000),"0_AttentionNeeded") +SUMIFS(INDEX(AP:AP,11):INDEX(AP:AP,100000),INDEX($F:$F,11):INDEX($F:$F,100000),$P5,INDEX($J:$J,11):INDEX($J:$J,100000),"1_Assigned") +SUMIFS(INDEX(AP:AP,11):INDEX(AP:AP,100000),INDEX($F:$F,11):INDEX($F:$F,100000),$P5,INDEX($J:$J,11):INDEX($J:$J,100000),"2_InProgress") +SUMIFS(INDEX(AP:AP,11):INDEX(AP:AP,100000),INDEX($F:$F,11):INDEX($F:$F,100000),$P5,INDEX($J:$J,11):INDEX($J:$J,100000),"3_Prototype") +SUMIFS(INDEX(AP:AP,11):INDEX(AP:AP,100000),INDEX($F:$F,11):INDEX($F:$F,100000),$P5,INDEX($J:$J,11):INDEX($J:$J,100000),"4_Testing") -> 0 | AQ5: =SUMIFS(INDEX(AQ:AQ,11):INDEX(AQ:AQ,100000),INDEX($F:$F,11):INDEX($F:$F,100000),$P5,INDEX($J:$J,11):INDEX($J:$J,100000),"0_AttentionNeeded") +SUMIFS(INDEX(AQ:AQ,11):INDEX(AQ:AQ,100000),INDEX($F:$F,11):INDEX($F:$F,100000),$P5,INDEX($J:$J,11):INDEX($J:$J,100000),"1_Assigned") +SUMIFS(INDEX(AQ:AQ,11):INDEX(AQ:AQ,100000),INDEX($F:$F,11):INDEX($F:$F,100000),$P5,INDEX($J:$J,11):INDEX($J:$J,100000),"2_InProgress") +SUMIFS(INDEX(AQ:AQ,11):INDEX(AQ:AQ,100000),INDEX($F:$F,11):INDEX($F:$F,100000),$P5,INDEX($J:$J,11):INDEX($J:$J,100000),"3_Prototype") +SUMIFS(INDEX(AQ:AQ,11):INDEX(AQ:AQ,100000),INDEX($F:$F,11):INDEX($F:$F,100000),$P5,INDEX($J:$J,11):INDEX($J:$J,100000),"4_Testing") -> 0 | AR5: =SUMIFS(INDEX(AR:AR,11):INDEX(AR:AR,100000),INDEX($F:$F,11):INDEX($F:$F,100000),$P5,INDEX($J:$J,11):INDEX($J:$J,100000),"0_AttentionNeeded") +SUMIFS(INDEX(AR:AR,11):INDEX(AR:AR,100000),INDEX($F:$F,11):INDEX($F:$F,100000),$P5,INDEX($J:$J,11):INDEX($J:$J,100000),"1_Assigned") +SUMIFS(INDEX(AR:AR,11):INDEX(AR:AR,100000),INDEX($F:$F,11):INDEX($F:$F,100000),$P5,INDEX($J:$J,11):INDEX($J:$J,100000),"2_InProgress") +SUMIFS(INDEX(AR:AR,11):INDEX(AR:AR,100000),INDEX($F:$F,11):INDEX($F:$F,100000),$P5,INDEX($J:$J,11):INDEX($J:$J,100000),"3_Prototype") +SUMIFS(INDEX(AR:AR,11):INDEX(AR:AR,100000),INDEX($F:$F,11):INDEX($F:$F,100000),$P5,INDEX($J:$J,11):INDEX($J:$J,100000),"4_Testing") -> 0 | AS5: 0 | AT5: =SUMIFS(INDEX(AT:AT,11):INDEX(AT:AT,100000),INDEX($F:$F,11):INDEX($F:$F,100000),$P5,INDEX($J:$J,11):INDEX($J:$J,100000),"0_AttentionNeeded") +SUMIFS(INDEX(AT:AT,11):INDEX(AT:AT,100000),INDEX($F:$F,11):INDEX($F:$F,100000),$P5,INDEX($J:$J,11):INDEX($J:$J,100000),"1_Assigned") +SUMIFS(INDEX(AT:AT,11):INDEX(AT:AT,100000),INDEX($F:$F,11):INDEX($F:$F,100000),$P5,INDEX($J:$J,11):INDEX($J:$J,100000),"2_InProgress") +SUMIFS(INDEX(AT:AT,11):INDEX(AT:AT,100000),INDEX($F:$F,11):INDEX($F:$F,100000),$P5,INDEX($J:$J,11):INDEX($J:$J,100000),"3_Prototype") +SUMIFS(INDEX(AT:AT,11):INDEX(AT:AT,100000),INDEX($F:$F,11):INDEX($F:$F,100000),$P5,INDEX($J:$J,11):INDEX($J:$J,100000),"4_Testing") -> 0 | AU5: =SUMIFS(INDEX(AU:AU,11):INDEX(AU:AU,100000),INDEX($F:$F,11):INDEX($F:$F,100000),$P5,INDEX($J:$J,11):INDEX($J:$J,100000),"0_AttentionNeeded") +SUMIFS(INDEX(AU:AU,11):INDEX(AU:AU,100000),INDEX($F:$F,11):INDEX($F:$F,100000),$P5,INDEX($J:$J,11):INDEX($J:$J,100000),"1_Assigned") +SUMIFS(INDEX(AU:AU,11):INDEX(AU:AU,100000),INDEX($F:$F,11):INDEX($F:$F,100000),$P5,INDEX($J:$J,11):INDEX($J:$J,100000),"2_InProgress") +SUMIFS(INDEX(AU:AU,11):INDEX(AU:AU,100000),INDEX($F:$F,11):INDEX($F:$F,100000),$P5,INDEX($J:$J,11):INDEX($J:$J,100000),"3_Prototype") +SUMIFS(INDEX(AU:AU,11):INDEX(AU:AU,100000),INDEX($F:$F,11):INDEX($F:$F,100000),$P5,INDEX($J:$J,11):INDEX($J:$J,100000),"4_Testing") -> 0 | AV5: =SUMIFS(INDEX(AV:AV,11):INDEX(AV:AV,100000),INDEX($F:$F,11):INDEX($F:$F,100000),$P5,INDEX($J:$J,11):INDEX($J:$J,100000),"0_AttentionNeeded") +SUMIFS(INDEX(AV:AV,11):INDEX(AV:AV,100000),INDEX($F:$F,11):INDEX($F:$F,100000),$P5,INDEX($J:$J,11):INDEX($J:$J,100000),"1_Assigned") +SUMIFS(INDEX(AV:AV,11):INDEX(AV:AV,100000),INDEX($F:$F,11):INDEX($F:$F,100000),$P5,INDEX($J:$J,11):INDEX($J:$J,100000),"2_InProgress") +SUMIFS(INDEX(AV:AV,11):INDEX(AV:AV,100000),INDEX($F:$F,11):INDEX($F:$F,100000),$P5,INDEX($J:$J,11):INDEX($J:$J,100000),"3_Prototype") +SUMIFS(INDEX(AV:AV,11):INDEX(AV:AV,100000),INDEX($F:$F,11):INDEX($F:$F,100000),$P5,INDEX($J:$J,11):INDEX($J:$J,100000),"4_Testing") -> 0 | AW5: =SUMIFS(INDEX(AW:AW,11):INDEX(AW:AW,100000),INDEX($F:$F,11):INDEX($F:$F,100000),$P5,INDEX($J:$J,11):INDEX($J:$J,100000),"0_AttentionNeeded") +SUMIFS(INDEX(AW:AW,11):INDEX(AW:AW,100000),INDEX($F:$F,11):INDEX($F:$F,100000),$P5,INDEX($J:$J,11):INDEX($J:$J,100000),"1_Assigned") +SUMIFS(INDEX(AW:AW,11):INDEX(AW:AW,100000),INDEX($F:$F,11):INDEX($F:$F,100000),$P5,INDEX($J:$J,11):INDEX($J:$J,100000),"2_InProgress") +SUMIFS(INDEX(AW:AW,11):INDEX(AW:AW,100000),INDEX($F:$F,11):INDEX($F:$F,100000),$P5,INDEX($J:$J,11):INDEX($J:$J,100000),"3_Prototype") +SUMIFS(INDEX(AW:AW,11):INDEX(AW:AW,100000),INDEX($F:$F,11):INDEX($F:$F,100000),$P5,INDEX($J:$J,11):INDEX($J:$J,100000),"4_Testing") -> 0 | AX5: =SUMIFS(INDEX(AX:AX,11):INDEX(AX:AX,100000),INDEX($F:$F,11):INDEX($F:$F,100000),$P5,INDEX($J:$J,11):INDEX($J:$J,100000),"0_AttentionNeeded") +SUMIFS(INDEX(AX:AX,11):INDEX(AX:AX,100000),INDEX($F:$F,11):INDEX($F:$F,100000),$P5,INDEX($J:$J,11):INDEX($J:$J,100000),"1_Assigned") +SUMIFS(INDEX(AX:AX,11):INDEX(AX:AX,100000),INDEX($F:$F,11):INDEX($F:$F,100000),$P5,INDEX($J:$J,11):INDEX($J:$J,100000),"2_InProgress") +SUMIFS(INDEX(AX:AX,11):INDEX(AX:AX,100000),INDEX($F:$F,11):INDEX($F:$F,100000),$P5,INDEX($J:$J,11):INDEX($J:$J,100000),"3_Prototype") +SUMIFS(INDEX(AX:AX,11):INDEX(AX:AX,100000),INDEX($F:$F,11):INDEX($F:$F,100000),$P5,INDEX($J:$J,11):INDEX($J:$J,100000),"4_Testing") -> 0 | AY5: =SUMIFS(INDEX(AY:AY,11):INDEX(AY:AY,100000),INDEX($F:$F,11):INDEX($F:$F,100000),$P5,INDEX($J:$J,11):INDEX($J:$J,100000),"0_AttentionNeeded") +SUMIFS(INDEX(AY:AY,11):INDEX(AY:AY,100000),INDEX($F:$F,11):INDEX($F:$F,100000),$P5,INDEX($J:$J,11):INDEX($J:$J,100000),"1_Assigned") +SUMIFS(INDEX(AY:AY,11):INDEX(AY:AY,100000),INDEX($F:$F,11):INDEX($F:$F,100000),$P5,INDEX($J:$J,11):INDEX($J:$J,100000),"2_InProgress") +SUMIFS(INDEX(AY:AY,11):INDEX(AY:AY,100000),INDEX($F:$F,11):INDEX($F:$F,100000),$P5,INDEX($J:$J,11):INDEX($J:$J,100000),"3_Prototype") +SUMIFS(INDEX(AY:AY,11):INDEX(AY:AY,100000),INDEX($F:$F,11):INDEX($F:$F,100000),$P5,INDEX($J:$J,11):INDEX($J:$J,100000),"4_Testing") -> 0 | AZ5: 0 | BA5: =SUMIFS(INDEX(BA:BA,11):INDEX(BA:BA,100000),INDEX($F:$F,11):INDEX($F:$F,100000),$P5,INDEX($J:$J,11):INDEX($J:$J,100000),"0_AttentionNeeded") +SUMIFS(INDEX(BA:BA,11):INDEX(BA:BA,100000),INDEX($F:$F,11):INDEX($F:$F,100000),$P5,INDEX($J:$J,11):INDEX($J:$J,100000),"1_Assigned") +SUMIFS(INDEX(BA:BA,11):INDEX(BA:BA,100000),INDEX($F:$F,11):INDEX($F:$F,100000),$P5,INDEX($J:$J,11):INDEX($J:$J,100000),"2_InProgress") +SUMIFS(INDEX(BA:BA,11):INDEX(BA:BA,100000),INDEX($F:$F,11):INDEX($F:$F,100000),$P5,INDEX($J:$J,11):INDEX($J:$J,100000),"3_Prototype") +SUMIFS(INDEX(BA:BA,11):INDEX(BA:BA,100000),INDEX($F:$F,11):INDEX($F:$F,100000),$P5,INDEX($J:$J,11):INDEX($J:$J,100000),"4_Testing") -> 0 | BB5: =SUMIFS(INDEX(BB:BB,11):INDEX(BB:BB,100000),INDEX($F:$F,11):INDEX($F:$F,100000),$P5,INDEX($J:$J,11):INDEX($J:$J,100000),"0_AttentionNeeded") +SUMIFS(INDEX(BB:BB,11):INDEX(BB:BB,100000),INDEX($F:$F,11):INDEX($F:$F,100000),$P5,INDEX($J:$J,11):INDEX($J:$J,100000),"1_Assigned") +SUMIFS(INDEX(BB:BB,11):INDEX(BB:BB,100000),INDEX($F:$F,11):INDEX($F:$F,100000),$P5,INDEX($J:$J,11):INDEX($J:$J,100000),"2_InProgress") +SUMIFS(INDEX(BB:BB,11):INDEX(BB:BB,100000),INDEX($F:$F,11):INDEX($F:$F,100000),$P5,INDEX($J:$J,11):INDEX($J:$J,100000),"3_Prototype") +SUMIFS(INDEX(BB:BB,11):INDEX(BB:BB,100000),INDEX($F:$F,11):INDEX($F:$F,100000),$P5,INDEX($J:$J,11):INDEX($J:$J,100000),"4_Testing") -> 0 | BC5: =SUMIFS(INDEX(BC:BC,11):INDEX(BC:BC,100000),INDEX($F:$F,11):INDEX($F:$F,100000),$P5,INDEX($J:$J,11):INDEX($J:$J,100000),"0_AttentionNeeded") +SUMIFS(INDEX(BC:BC,11):INDEX(BC:BC,100000),INDEX($F:$F,11):INDEX($F:$F,100000),$P5,INDEX($J:$J,11):INDEX($J:$J,100000),"1_Assigned") +SUMIFS(INDEX(BC:BC,11):INDEX(BC:BC,100000),INDEX($F:$F,11):INDEX($F:$F,100000),$P5,INDEX($J:$J,11):INDEX($J:$J,100000),"2_InProgress") +SUMIFS(INDEX(BC:BC,11):INDEX(BC:BC,100000),INDEX($F:$F,11):INDEX($F:$F,100000),$P5,INDEX($J:$J,11):INDEX($J:$J,100000),"3_Prototype") +SUMIFS(INDEX(BC:BC,11):INDEX(BC:BC,100000),INDEX($F:$F,11):INDEX($F:$F,100000),$P5,INDEX($J:$J,11):INDEX($J:$J,100000),"4_Testing") -> 0 | BD5: =SUMIFS(INDEX(BD:BD,11):INDEX(BD:BD,100000),INDEX($F:$F,11):INDEX($F:$F,100000),$P5,INDEX($J:$J,11):INDEX($J:$J,100000),"0_AttentionNeeded") +SUMIFS(INDEX(BD:BD,11):INDEX(BD:BD,100000),INDEX($F:$F,11):INDEX($F:$F,100000),$P5,INDEX($J:$J,11):INDEX($J:$J,100000),"1_Assigned") +SUMIFS(INDEX(BD:BD,11):INDEX(BD:BD,100000),INDEX($F:$F,11):INDEX($F:$F,100000),$P5,INDEX($J:$J,11):INDEX($J:$J,100000),"2_InProgress") +SUMIFS(INDEX(BD:BD,11):INDEX(BD:BD,100000),INDEX($F:$F,11):INDEX($F:$F,100000),$P5,INDEX($J:$J,11):INDEX($J:$J,100000),"3_Prototype") +SUMIFS(INDEX(BD:BD,11):INDEX(BD:BD,100000),INDEX($F:$F,11):INDEX($F:$F,100000),$P5,INDEX($J:$J,11):INDEX($J:$J,100000),"4_Testing") -> 0 | BE5: =SUMIFS(INDEX(BE:BE,11):INDEX(BE:BE,100000),INDEX($F:$F,11):INDEX($F:$F,100000),$P5,INDEX($J:$J,11):INDEX($J:$J,100000),"0_AttentionNeeded") +SUMIFS(INDEX(BE:BE,11):INDEX(BE:BE,100000),INDEX($F:$F,11):INDEX($F:$F,100000),$P5,INDEX($J:$J,11):INDEX($J:$J,100000),"1_Assigned") +SUMIFS(INDEX(BE:BE,11):INDEX(BE:BE,100000),INDEX($F:$F,11):INDEX($F:$F,100000),$P5,INDEX($J:$J,11):INDEX($J:$J,100000),"2_InProgress") +SUMIFS(INDEX(BE:BE,11):INDEX(BE:BE,100000),INDEX($F:$F,11):INDEX($F:$F,100000),$P5,INDEX($J:$J,11):INDEX($J:$J,100000),"3_Prototype") +SUMIFS(INDEX(BE:BE,11):INDEX(BE:BE,100000),INDEX($F:$F,11):INDEX($F:$F,100000),$P5,INDEX($J:$J,11):INDEX($J:$J,100000),"4_Testing") -> 0 | BF5: =SUMIFS(INDEX(BF:BF,11):INDEX(BF:BF,100000),INDEX($F:$F,11):INDEX($F:$F,100000),$P5,INDEX($J:$J,11):INDEX($J:$J,100000),"0_AttentionNeeded") +SUMIFS(INDEX(BF:BF,11):INDEX(BF:BF,100000),INDEX($F:$F,11):INDEX($F:$F,100000),$P5,INDEX($J:$J,11):INDEX($J:$J,100000),"1_Assigned") +SUMIFS(INDEX(BF:BF,11):INDEX(BF:BF,100000),INDEX($F:$F,11):INDEX($F:$F,100000),$P5,INDEX($J:$J,11):INDEX($J:$J,100000),"2_InProgress") +SUMIFS(INDEX(BF:BF,11):INDEX(BF:BF,100000),INDEX($F:$F,11):INDEX($F:$F,100000),$P5,INDEX($J:$J,11):INDEX($J:$J,100000),"3_Prototype") +SUMIFS(INDEX(BF:BF,11):INDEX(BF:BF,100000),INDEX($F:$F,11):INDEX($F:$F,100000),$P5,INDEX($J:$J,11):INDEX($J:$J,100000),"4_Testing") -> 0
P6: N3 | Q6: 0 | R6: =SUMIFS(INDEX(R:R,11):INDEX(R:R,100000),INDEX($F:$F,11):INDEX($F:$F,100000),$P6,INDEX($J:$J,11):INDEX($J:$J,100000),"0_AttentionNeeded") +SUMIFS(INDEX(R:R,11):INDEX(R:R,100000),INDEX($F:$F,11):INDEX($F:$F,100000),$P6,INDEX($J:$J,11):INDEX($J:$J,100000),"1_Assigned") +SUMIFS(INDEX(R:R,11):INDEX(R:R,100000),INDEX($F:$F,11):INDEX($F:$F,100000),$P6,INDEX($J:$J,11):INDEX($J:$J,100000),"2_InProgress") +SUMIFS(INDEX(R:R,11):INDEX(R:R,100000),INDEX($F:$F,11):INDEX($F:$F,100000),$P6,INDEX($J:$J,11):INDEX($J:$J,100000),"3_Prototype") +SUMIFS(INDEX(R:R,11):INDEX(R:R,100000),INDEX($F:$F,11):INDEX($F:$F,100000),$P6,INDEX($J:$J,11):INDEX($J:$J,100000),"4_Testing") -> 0 | S6: =SUMIFS(INDEX(S:S,11):INDEX(S:S,100000),INDEX($F:$F,11):INDEX($F:$F,100000),$P6,INDEX($J:$J,11):INDEX($J:$J,100000),"0_AttentionNeeded") +SUMIFS(INDEX(S:S,11):INDEX(S:S,100000),INDEX($F:$F,11):INDEX($F:$F,100000),$P6,INDEX($J:$J,11):INDEX($J:$J,100000),"1_Assigned") +SUMIFS(INDEX(S:S,11):INDEX(S:S,100000),INDEX($F:$F,11):INDEX($F:$F,100000),$P6,INDEX($J:$J,11):INDEX($J:$J,100000),"2_InProgress") +SUMIFS(INDEX(S:S,11):INDEX(S:S,100000),INDEX($F:$F,11):INDEX($F:$F,100000),$P6,INDEX($J:$J,11):INDEX($J:$J,100000),"3_Prototype") +SUMIFS(INDEX(S:S,11):INDEX(S:S,100000),INDEX($F:$F,11):INDEX($F:$F,100000),$P6,INDEX($J:$J,11):INDEX($J:$J,100000),"4_Testing") -> 0 | T6: =SUMIFS(INDEX(T:T,11):INDEX(T:T,100000),INDEX($F:$F,11):INDEX($F:$F,100000),$P6,INDEX($J:$J,11):INDEX($J:$J,100000),"0_AttentionNeeded") +SUMIFS(INDEX(T:T,11):INDEX(T:T,100000),INDEX($F:$F,11):INDEX($F:$F,100000),$P6,INDEX($J:$J,11):INDEX($J:$J,100000),"1_Assigned") +SUMIFS(INDEX(T:T,11):INDEX(T:T,100000),INDEX($F:$F,11):INDEX($F:$F,100000),$P6,INDEX($J:$J,11):INDEX($J:$J,100000),"2_InProgress") +SUMIFS(INDEX(T:T,11):INDEX(T:T,100000),INDEX($F:$F,11):INDEX($F:$F,100000),$P6,INDEX($J:$J,11):INDEX($J:$J,100000),"3_Prototype") +SUMIFS(INDEX(T:T,11):INDEX(T:T,100000),INDEX($F:$F,11):INDEX($F:$F,100000),$P6,INDEX($J:$J,11):INDEX($J:$J,100000),"4_Testing") -> 0 | U6: =SUMIFS(INDEX(U:U,11):INDEX(U:U,100000),INDEX($F:$F,11):INDEX($F:$F,100000),$P6,INDEX($J:$J,11):INDEX($J:$J,100000),"0_AttentionNeeded") +SUMIFS(INDEX(U:U,11):INDEX(U:U,100000),INDEX($F:$F,11):INDEX($F:$F,100000),$P6,INDEX($J:$J,11):INDEX($J:$J,100000),"1_Assigned") +SUMIFS(INDEX(U:U,11):INDEX(U:U,100000),INDEX($F:$F,11):INDEX($F:$F,100000),$P6,INDEX($J:$J,11):INDEX($J:$J,100000),"2_InProgress") +SUMIFS(INDEX(U:U,11):INDEX(U:U,100000),INDEX($F:$F,11):INDEX($F:$F,100000),$P6,INDEX($J:$J,11):INDEX($J:$J,100000),"3_Prototype") +SUMIFS(INDEX(U:U,11):INDEX(U:U,100000),INDEX($F:$F,11):INDEX($F:$F,100000),$P6,INDEX($J:$J,11):INDEX($J:$J,100000),"4_Testing") -> 0 | V6: =SUMIFS(INDEX(V:V,11):INDEX(V:V,100000),INDEX($F:$F,11):INDEX($F:$F,100000),$P6,INDEX($J:$J,11):INDEX($J:$J,100000),"0_AttentionNeeded") +SUMIFS(INDEX(V:V,11):INDEX(V:V,100000),INDEX($F:$F,11):INDEX($F:$F,100000),$P6,INDEX($J:$J,11):INDEX($J:$J,100000),"1_Assigned") +SUMIFS(INDEX(V:V,11):INDEX(V:V,100000),INDEX($F:$F,11):INDEX($F:$F,100000),$P6,INDEX($J:$J,11):INDEX($J:$J,100000),"2_InProgress") +SUMIFS(INDEX(V:V,11):INDEX(V:V,100000),INDEX($F:$F,11):INDEX($F:$F,100000),$P6,INDEX($J:$J,11):INDEX($J:$J,100000),"3_Prototype") +SUMIFS(INDEX(V:V,11):INDEX(V:V,100000),INDEX($F:$F,11):INDEX($F:$F,100000),$P6,INDEX($J:$J,11):INDEX($J:$J,100000),"4_Testing") -> 0 | W6: =SUMIFS(INDEX(W:W,11):INDEX(W:W,100000),INDEX($F:$F,11):INDEX($F:$F,100000),$P6,INDEX($J:$J,11):INDEX($J:$J,100000),"0_AttentionNeeded") +SUMIFS(INDEX(W:W,11):INDEX(W:W,100000),INDEX($F:$F,11):INDEX($F:$F,100000),$P6,INDEX($J:$J,11):INDEX($J:$J,100000),"1_Assigned") +SUMIFS(INDEX(W:W,11):INDEX(W:W,100000),INDEX($F:$F,11):INDEX($F:$F,100000),$P6,INDEX($J:$J,11):INDEX($J:$J,100000),"2_InProgress") +SUMIFS(INDEX(W:W,11):INDEX(W:W,100000),INDEX($F:$F,11):INDEX($F:$F,100000),$P6,INDEX($J:$J,11):INDEX($J:$J,100000),"3_Prototype") +SUMIFS(INDEX(W:W,11):INDEX(W:W,100000),INDEX($F:$F,11):INDEX($F:$F,100000),$P6,INDEX($J:$J,11):INDEX($J:$J,100000),"4_Testing") -> 0 | X6: 0 | Y6: =SUMIFS(INDEX(Y:Y,11):INDEX(Y:Y,100000),INDEX($F:$F,11):INDEX($F:$F,100000),$P6,INDEX($J:$J,11):INDEX($J:$J,100000),"0_AttentionNeeded") +SUMIFS(INDEX(Y:Y,11):INDEX(Y:Y,100000),INDEX($F:$F,11):INDEX($F:$F,100000),$P6,INDEX($J:$J,11):INDEX($J:$J,100000),"1_Assigned") +SUMIFS(INDEX(Y:Y,11):INDEX(Y:Y,100000),INDEX($F:$F,11):INDEX($F:$F,100000),$P6,INDEX($J:$J,11):INDEX($J:$J,100000),"2_InProgress") +SUMIFS(INDEX(Y:Y,11):INDEX(Y:Y,100000),INDEX($F:$F,11):INDEX($F:$F,100000),$P6,INDEX($J:$J,11):INDEX($J:$J,100000),"3_Prototype") +SUMIFS(INDEX(Y:Y,11):INDEX(Y:Y,100000),INDEX($F:$F,11):INDEX($F:$F,100000),$P6,INDEX($J:$J,11):INDEX($J:$J,100000),"4_Testing") -> 0 | Z6: =SUMIFS(INDEX(Z:Z,11):INDEX(Z:Z,100000),INDEX($F:$F,11):INDEX($F:$F,100000),$P6,INDEX($J:$J,11):INDEX($J:$J,100000),"0_AttentionNeeded") +SUMIFS(INDEX(Z:Z,11):INDEX(Z:Z,100000),INDEX($F:$F,11):INDEX($F:$F,100000),$P6,INDEX($J:$J,11):INDEX($J:$J,100000),"1_Assigned") +SUMIFS(INDEX(Z:Z,11):INDEX(Z:Z,100000),INDEX($F:$F,11):INDEX($F:$F,100000),$P6,INDEX($J:$J,11):INDEX($J:$J,100000),"2_InProgress") +SUMIFS(INDEX(Z:Z,11):INDEX(Z:Z,100000),INDEX($F:$F,11):INDEX($F:$F,100000),$P6,INDEX($J:$J,11):INDEX($J:$J,100000),"3_Prototype") +SUMIFS(INDEX(Z:Z,11):INDEX(Z:Z,100000),INDEX($F:$F,11):INDEX($F:$F,100000),$P6,INDEX($J:$J,11):INDEX($J:$J,100000),"4_Testing") -> 0 | AA6: =SUMIFS(INDEX(AA:AA,11):INDEX(AA:AA,100000),INDEX($F:$F,11):INDEX($F:$F,100000),$P6,INDEX($J:$J,11):INDEX($J:$J,100000),"0_AttentionNeeded") +SUMIFS(INDEX(AA:AA,11):INDEX(AA:AA,100000),INDEX($F:$F,11):INDEX($F:$F,100000),$P6,INDEX($J:$J,11):INDEX($J:$J,100000),"1_Assigned") +SUMIFS(INDEX(AA:AA,11):INDEX(AA:AA,100000),INDEX($F:$F,11):INDEX($F:$F,100000),$P6,INDEX($J:$J,11):INDEX($J:$J,100000),"2_InProgress") +SUMIFS(INDEX(AA:AA,11):INDEX(AA:AA,100000),INDEX($F:$F,11):INDEX($F:$F,100000),$P6,INDEX($J:$J,11):INDEX($J:$J,100000),"3_Prototype") +SUMIFS(INDEX(AA:AA,11):INDEX(AA:AA,100000),INDEX($F:$F,11):INDEX($F:$F,100000),$P6,INDEX($J:$J,11):INDEX($J:$J,100000),"4_Testing") -> 0 | AB6: =SUMIFS(INDEX(AB:AB,11):INDEX(AB:AB,100000),INDEX($F:$F,11):INDEX($F:$F,100000),$P6,INDEX($J:$J,11):INDEX($J:$J,100000),"0_AttentionNeeded") +SUMIFS(INDEX(AB:AB,11):INDEX(AB:AB,100000),INDEX($F:$F,11):INDEX($F:$F,100000),$P6,INDEX($J:$J,11):INDEX($J:$J,100000),"1_Assigned") +SUMIFS(INDEX(AB:AB,11):INDEX(AB:AB,100000),INDEX($F:$F,11):INDEX($F:$F,100000),$P6,INDEX($J:$J,11):INDEX($J:$J,100000),"2_InProgress") +SUMIFS(INDEX(AB:AB,11):INDEX(AB:AB,100000),INDEX($F:$F,11):INDEX($F:$F,100000),$P6,INDEX($J:$J,11):INDEX($J:$J,100000),"3_Prototype") +SUMIFS(INDEX(AB:AB,11):INDEX(AB:AB,100000),INDEX($F:$F,11):INDEX($F:$F,100000),$P6,INDEX($J:$J,11):INDEX($J:$J,100000),"4_Testing") -> 0 | AC6: =SUMIFS(INDEX(AC:AC,11):INDEX(AC:AC,100000),INDEX($F:$F,11):INDEX($F:$F,100000),$P6,INDEX($J:$J,11):INDEX($J:$J,100000),"0_AttentionNeeded") +SUMIFS(INDEX(AC:AC,11):INDEX(AC:AC,100000),INDEX($F:$F,11):INDEX($F:$F,100000),$P6,INDEX($J:$J,11):INDEX($J:$J,100000),"1_Assigned") +SUMIFS(INDEX(AC:AC,11):INDEX(AC:AC,100000),INDEX($F:$F,11):INDEX($F:$F,100000),$P6,INDEX($J:$J,11):INDEX($J:$J,100000),"2_InProgress") +SUMIFS(INDEX(AC:AC,11):INDEX(AC:AC,100000),INDEX($F:$F,11):INDEX($F:$F,100000),$P6,INDEX($J:$J,11):INDEX($J:$J,100000),"3_Prototype") +SUMIFS(INDEX(AC:AC,11):INDEX(AC:AC,100000),INDEX($F:$F,11):INDEX($F:$F,100000),$P6,INDEX($J:$J,11):INDEX($J:$J,100000),"4_Testing") -> 0 | AD6: =SUMIFS(INDEX(AD:AD,11):INDEX(AD:AD,100000),INDEX($F:$F,11):INDEX($F:$F,100000),$P6,INDEX($J:$J,11):INDEX($J:$J,100000),"0_AttentionNeeded") +SUMIFS(INDEX(AD:AD,11):INDEX(AD:AD,100000),INDEX($F:$F,11):INDEX($F:$F,100000),$P6,INDEX($J:$J,11):INDEX($J:$J,100000),"1_Assigned") +SUMIFS(INDEX(AD:AD,11):INDEX(AD:AD,100000),INDEX($F:$F,11):INDEX($F:$F,100000),$P6,INDEX($J:$J,11):INDEX($J:$J,100000),"2_InProgress") +SUMIFS(INDEX(AD:AD,11):INDEX(AD:AD,100000),INDEX($F:$F,11):INDEX($F:$F,100000),$P6,INDEX($J:$J,11):INDEX($J:$J,100000),"3_Prototype") +SUMIFS(INDEX(AD:AD,11):INDEX(AD:AD,100000),INDEX($F:$F,11):INDEX($F:$F,100000),$P6,INDEX($J:$J,11):INDEX($J:$J,100000),"4_Testing") -> 0 | AE6: 0 | AF6: =SUMIFS(INDEX(AF:AF,11):INDEX(AF:AF,100000),INDEX($F:$F,11):INDEX($F:$F,100000),$P6,INDEX($J:$J,11):INDEX($J:$J,100000),"0_AttentionNeeded") +SUMIFS(INDEX(AF:AF,11):INDEX(AF:AF,100000),INDEX($F:$F,11):INDEX($F:$F,100000),$P6,INDEX($J:$J,11):INDEX($J:$J,100000),"1_Assigned") +SUMIFS(INDEX(AF:AF,11):INDEX(AF:AF,100000),INDEX($F:$F,11):INDEX($F:$F,100000),$P6,INDEX($J:$J,11):INDEX($J:$J,100000),"2_InProgress") +SUMIFS(INDEX(AF:AF,11):INDEX(AF:AF,100000),INDEX($F:$F,11):INDEX($F:$F,100000),$P6,INDEX($J:$J,11):INDEX($J:$J,100000),"3_Prototype") +SUMIFS(INDEX(AF:AF,11):INDEX(AF:AF,100000),INDEX($F:$F,11):INDEX($F:$F,100000),$P6,INDEX($J:$J,11):INDEX($J:$J,100000),"4_Testing") -> 0 | AG6: =SUMIFS(INDEX(AG:AG,11):INDEX(AG:AG,100000),INDEX($F:$F,11):INDEX($F:$F,100000),$P6,INDEX($J:$J,11):INDEX($J:$J,100000),"0_AttentionNeeded") +SUMIFS(INDEX(AG:AG,11):INDEX(AG:AG,100000),INDEX($F:$F,11):INDEX($F:$F,100000),$P6,INDEX($J:$J,11):INDEX($J:$J,100000),"1_Assigned") +SUMIFS(INDEX(AG:AG,11):INDEX(AG:AG,100000),INDEX($F:$F,11):INDEX($F:$F,100000),$P6,INDEX($J:$J,11):INDEX($J:$J,100000),"2_InProgress") +SUMIFS(INDEX(AG:AG,11):INDEX(AG:AG,100000),INDEX($F:$F,11):INDEX($F:$F,100000),$P6,INDEX($J:$J,11):INDEX($J:$J,100000),"3_Prototype") +SUMIFS(INDEX(AG:AG,11):INDEX(AG:AG,100000),INDEX($F:$F,11):INDEX($F:$F,100000),$P6,INDEX($J:$J,11):INDEX($J:$J,100000),"4_Testing") -> 0 | AH6: =SUMIFS(INDEX(AH:AH,11):INDEX(AH:AH,100000),INDEX($F:$F,11):INDEX($F:$F,100000),$P6,INDEX($J:$J,11):INDEX($J:$J,100000),"0_AttentionNeeded") +SUMIFS(INDEX(AH:AH,11):INDEX(AH:AH,100000),INDEX($F:$F,11):INDEX($F:$F,100000),$P6,INDEX($J:$J,11):INDEX($J:$J,100000),"1_Assigned") +SUMIFS(INDEX(AH:AH,11):INDEX(AH:AH,100000),INDEX($F:$F,11):INDEX($F:$F,100000),$P6,INDEX($J:$J,11):INDEX($J:$J,100000),"2_InProgress") +SUMIFS(INDEX(AH:AH,11):INDEX(AH:AH,100000),INDEX($F:$F,11):INDEX($F:$F,100000),$P6,INDEX($J:$J,11):INDEX($J:$J,100000),"3_Prototype") +SUMIFS(INDEX(AH:AH,11):INDEX(AH:AH,100000),INDEX($F:$F,11):INDEX($F:$F,100000),$P6,INDEX($J:$J,11):INDEX($J:$J,100000),"4_Testing") -> 0 | AI6: =SUMIFS(INDEX(AI:AI,11):INDEX(AI:AI,100000),INDEX($F:$F,11):INDEX($F:$F,100000),$P6,INDEX($J:$J,11):INDEX($J:$J,100000),"0_AttentionNeeded") +SUMIFS(INDEX(AI:AI,11):INDEX(AI:AI,100000),INDEX($F:$F,11):INDEX($F:$F,100000),$P6,INDEX($J:$J,11):INDEX($J:$J,100000),"1_Assigned") +SUMIFS(INDEX(AI:AI,11):INDEX(AI:AI,100000),INDEX($F:$F,11):INDEX($F:$F,100000),$P6,INDEX($J:$J,11):INDEX($J:$J,100000),"2_InProgress") +SUMIFS(INDEX(AI:AI,11):INDEX(AI:AI,100000),INDEX($F:$F,11):INDEX($F:$F,100000),$P6,INDEX($J:$J,11):INDEX($J:$J,100000),"3_Prototype") +SUMIFS(INDEX(AI:AI,11):INDEX(AI:AI,100000),INDEX($F:$F,11):INDEX($F:$F,100000),$P6,INDEX($J:$J,11):INDEX($J:$J,100000),"4_Testing") -> 0 | AJ6: =SUMIFS(INDEX(AJ:AJ,11):INDEX(AJ:AJ,100000),INDEX($F:$F,11):INDEX($F:$F,100000),$P6,INDEX($J:$J,11):INDEX($J:$J,100000),"0_AttentionNeeded") +SUMIFS(INDEX(AJ:AJ,11):INDEX(AJ:AJ,100000),INDEX($F:$F,11):INDEX($F:$F,100000),$P6,INDEX($J:$J,11):INDEX($J:$J,100000),"1_Assigned") +SUMIFS(INDEX(AJ:AJ,11):INDEX(AJ:AJ,100000),INDEX($F:$F,11):INDEX($F:$F,100000),$P6,INDEX($J:$J,11):INDEX($J:$J,100000),"2_InProgress") +SUMIFS(INDEX(AJ:AJ,11):INDEX(AJ:AJ,100000),INDEX($F:$F,11):INDEX($F:$F,100000),$P6,INDEX($J:$J,11):INDEX($J:$J,100000),"3_Prototype") +SUMIFS(INDEX(AJ:AJ,11):INDEX(AJ:AJ,100000),INDEX($F:$F,11):INDEX($F:$F,100000),$P6,INDEX($J:$J,11):INDEX($J:$J,100000),"4_Testing") -> 0 | AK6: =SUMIFS(INDEX(AK:AK,11):INDEX(AK:AK,100000),INDEX($F:$F,11):INDEX($F:$F,100000),$P6,INDEX($J:$J,11):INDEX($J:$J,100000),"0_AttentionNeeded") +SUMIFS(INDEX(AK:AK,11):INDEX(AK:AK,100000),INDEX($F:$F,11):INDEX($F:$F,100000),$P6,INDEX($J:$J,11):INDEX($J:$J,100000),"1_Assigned") +SUMIFS(INDEX(AK:AK,11):INDEX(AK:AK,100000),INDEX($F:$F,11):INDEX($F:$F,100000),$P6,INDEX($J:$J,11):INDEX($J:$J,100000),"2_InProgress") +SUMIFS(INDEX(AK:AK,11):INDEX(AK:AK,100000),INDEX($F:$F,11):INDEX($F:$F,100000),$P6,INDEX($J:$J,11):INDEX($J:$J,100000),"3_Prototype") +SUMIFS(INDEX(AK:AK,11):INDEX(AK:AK,100000),INDEX($F:$F,11):INDEX($F:$F,100000),$P6,INDEX($J:$J,11):INDEX($J:$J,100000),"4_Testing") -> 0 | AL6: 0 | AM6: =SUMIFS(INDEX(AM:AM,11):INDEX(AM:AM,100000),INDEX($F:$F,11):INDEX($F:$F,100000),$P6,INDEX($J:$J,11):INDEX($J:$J,100000),"0_AttentionNeeded") +SUMIFS(INDEX(AM:AM,11):INDEX(AM:AM,100000),INDEX($F:$F,11):INDEX($F:$F,100000),$P6,INDEX($J:$J,11):INDEX($J:$J,100000),"1_Assigned") +SUMIFS(INDEX(AM:AM,11):INDEX(AM:AM,100000),INDEX($F:$F,11):INDEX($F:$F,100000),$P6,INDEX($J:$J,11):INDEX($J:$J,100000),"2_InProgress") +SUMIFS(INDEX(AM:AM,11):INDEX(AM:AM,100000),INDEX($F:$F,11):INDEX($F:$F,100000),$P6,INDEX($J:$J,11):INDEX($J:$J,100000),"3_Prototype") +SUMIFS(INDEX(AM:AM,11):INDEX(AM:AM,100000),INDEX($F:$F,11):INDEX($F:$F,100000),$P6,INDEX($J:$J,11):INDEX($J:$J,100000),"4_Testing") -> 0 | AN6: =SUMIFS(INDEX(AN:AN,11):INDEX(AN:AN,100000),INDEX($F:$F,11):INDEX($F:$F,100000),$P6,INDEX($J:$J,11):INDEX($J:$J,100000),"0_AttentionNeeded") +SUMIFS(INDEX(AN:AN,11):INDEX(AN:AN,100000),INDEX($F:$F,11):INDEX($F:$F,100000),$P6,INDEX($J:$J,11):INDEX($J:$J,100000),"1_Assigned") +SUMIFS(INDEX(AN:AN,11):INDEX(AN:AN,100000),INDEX($F:$F,11):INDEX($F:$F,100000),$P6,INDEX($J:$J,11):INDEX($J:$J,100000),"2_InProgress") +SUMIFS(INDEX(AN:AN,11):INDEX(AN:AN,100000),INDEX($F:$F,11):INDEX($F:$F,100000),$P6,INDEX($J:$J,11):INDEX($J:$J,100000),"3_Prototype") +SUMIFS(INDEX(AN:AN,11):INDEX(AN:AN,100000),INDEX($F:$F,11):INDEX($F:$F,100000),$P6,INDEX($J:$J,11):INDEX($J:$J,100000),"4_Testing") -> 0 | AO6: =SUMIFS(INDEX(AO:AO,11):INDEX(AO:AO,100000),INDEX($F:$F,11):INDEX($F:$F,100000),$P6,INDEX($J:$J,11):INDEX($J:$J,100000),"0_AttentionNeeded") +SUMIFS(INDEX(AO:AO,11):INDEX(AO:AO,100000),INDEX($F:$F,11):INDEX($F:$F,100000),$P6,INDEX($J:$J,11):INDEX($J:$J,100000),"1_Assigned") +SUMIFS(INDEX(AO:AO,11):INDEX(AO:AO,100000),INDEX($F:$F,11):INDEX($F:$F,100000),$P6,INDEX($J:$J,11):INDEX($J:$J,100000),"2_InProgress") +SUMIFS(INDEX(AO:AO,11):INDEX(AO:AO,100000),INDEX($F:$F,11):INDEX($F:$F,100000),$P6,INDEX($J:$J,11):INDEX($J:$J,100000),"3_Prototype") +SUMIFS(INDEX(AO:AO,11):INDEX(AO:AO,100000),INDEX($F:$F,11):INDEX($F:$F,100000),$P6,INDEX($J:$J,11):INDEX($J:$J,100000),"4_Testing") -> 0 | AP6: =SUMIFS(INDEX(AP:AP,11):INDEX(AP:AP,100000),INDEX($F:$F,11):INDEX($F:$F,100000),$P6,INDEX($J:$J,11):INDEX($J:$J,100000),"0_AttentionNeeded") +SUMIFS(INDEX(AP:AP,11):INDEX(AP:AP,100000),INDEX($F:$F,11):INDEX($F:$F,100000),$P6,INDEX($J:$J,11):INDEX($J:$J,100000),"1_Assigned") +SUMIFS(INDEX(AP:AP,11):INDEX(AP:AP,100000),INDEX($F:$F,11):INDEX($F:$F,100000),$P6,INDEX($J:$J,11):INDEX($J:$J,100000),"2_InProgress") +SUMIFS(INDEX(AP:AP,11):INDEX(AP:AP,100000),INDEX($F:$F,11):INDEX($F:$F,100000),$P6,INDEX($J:$J,11):INDEX($J:$J,100000),"3_Prototype") +SUMIFS(INDEX(AP:AP,11):INDEX(AP:AP,100000),INDEX($F:$F,11):INDEX($F:$F,100000),$P6,INDEX($J:$J,11):INDEX($J:$J,100000),"4_Testing") -> 0 | AQ6: =SUMIFS(INDEX(AQ:AQ,11):INDEX(AQ:AQ,100000),INDEX($F:$F,11):INDEX($F:$F,100000),$P6,INDEX($J:$J,11):INDEX($J:$J,100000),"0_AttentionNeeded") +SUMIFS(INDEX(AQ:AQ,11):INDEX(AQ:AQ,100000),INDEX($F:$F,11):INDEX($F:$F,100000),$P6,INDEX($J:$J,11):INDEX($J:$J,100000),"1_Assigned") +SUMIFS(INDEX(AQ:AQ,11):INDEX(AQ:AQ,100000),INDEX($F:$F,11):INDEX($F:$F,100000),$P6,INDEX($J:$J,11):INDEX($J:$J,100000),"2_InProgress") +SUMIFS(INDEX(AQ:AQ,11):INDEX(AQ:AQ,100000),INDEX($F:$F,11):INDEX($F:$F,100000),$P6,INDEX($J:$J,11):INDEX($J:$J,100000),"3_Prototype") +SUMIFS(INDEX(AQ:AQ,11):INDEX(AQ:AQ,100000),INDEX($F:$F,11):INDEX($F:$F,100000),$P6,INDEX($J:$J,11):INDEX($J:$J,100000),"4_Testing") -> 0 | AR6: =SUMIFS(INDEX(AR:AR,11):INDEX(AR:AR,100000),INDEX($F:$F,11):INDEX($F:$F,100000),$P6,INDEX($J:$J,11):INDEX($J:$J,100000),"0_AttentionNeeded") +SUMIFS(INDEX(AR:AR,11):INDEX(AR:AR,100000),INDEX($F:$F,11):INDEX($F:$F,100000),$P6,INDEX($J:$J,11):INDEX($J:$J,100000),"1_Assigned") +SUMIFS(INDEX(AR:AR,11):INDEX(AR:AR,100000),INDEX($F:$F,11):INDEX($F:$F,100000),$P6,INDEX($J:$J,11):INDEX($J:$J,100000),"2_InProgress") +SUMIFS(INDEX(AR:AR,11):INDEX(AR:AR,100000),INDEX($F:$F,11):INDEX($F:$F,100000),$P6,INDEX($J:$J,11):INDEX($J:$J,100000),"3_Prototype") +SUMIFS(INDEX(AR:AR,11):INDEX(AR:AR,100000),INDEX($F:$F,11):INDEX($F:$F,100000),$P6,INDEX($J:$J,11):INDEX($J:$J,100000),"4_Testing") -> 0 | AS6: 0 | AT6: =SUMIFS(INDEX(AT:AT,11):INDEX(AT:AT,100000),INDEX($F:$F,11):INDEX($F:$F,100000),$P6,INDEX($J:$J,11):INDEX($J:$J,100000),"0_AttentionNeeded") +SUMIFS(INDEX(AT:AT,11):INDEX(AT:AT,100000),INDEX($F:$F,11):INDEX($F:$F,100000),$P6,INDEX($J:$J,11):INDEX($J:$J,100000),"1_Assigned") +SUMIFS(INDEX(AT:AT,11):INDEX(AT:AT,100000),INDEX($F:$F,11):INDEX($F:$F,100000),$P6,INDEX($J:$J,11):INDEX($J:$J,100000),"2_InProgress") +SUMIFS(INDEX(AT:AT,11):INDEX(AT:AT,100000),INDEX($F:$F,11):INDEX($F:$F,100000),$P6,INDEX($J:$J,11):INDEX($J:$J,100000),"3_Prototype") +SUMIFS(INDEX(AT:AT,11):INDEX(AT:AT,100000),INDEX($F:$F,11):INDEX($F:$F,100000),$P6,INDEX($J:$J,11):INDEX($J:$J,100000),"4_Testing") -> 0 | AU6: =SUMIFS(INDEX(AU:AU,11):INDEX(AU:AU,100000),INDEX($F:$F,11):INDEX($F:$F,100000),$P6,INDEX($J:$J,11):INDEX($J:$J,100000),"0_AttentionNeeded") +SUMIFS(INDEX(AU:AU,11):INDEX(AU:AU,100000),INDEX($F:$F,11):INDEX($F:$F,100000),$P6,INDEX($J:$J,11):INDEX($J:$J,100000),"1_Assigned") +SUMIFS(INDEX(AU:AU,11):INDEX(AU:AU,100000),INDEX($F:$F,11):INDEX($F:$F,100000),$P6,INDEX($J:$J,11):INDEX($J:$J,100000),"2_InProgress") +SUMIFS(INDEX(AU:AU,11):INDEX(AU:AU,100000),INDEX($F:$F,11):INDEX($F:$F,100000),$P6,INDEX($J:$J,11):INDEX($J:$J,100000),"3_Prototype") +SUMIFS(INDEX(AU:AU,11):INDEX(AU:AU,100000),INDEX($F:$F,11):INDEX($F:$F,100000),$P6,INDEX($J:$J,11):INDEX($J:$J,100000),"4_Testing") -> 0 | AV6: =SUMIFS(INDEX(AV:AV,11):INDEX(AV:AV,100000),INDEX($F:$F,11):INDEX($F:$F,100000),$P6,INDEX($J:$J,11):INDEX($J:$J,100000),"0_AttentionNeeded") +SUMIFS(INDEX(AV:AV,11):INDEX(AV:AV,100000),INDEX($F:$F,11):INDEX($F:$F,100000),$P6,INDEX($J:$J,11):INDEX($J:$J,100000),"1_Assigned") +SUMIFS(INDEX(AV:AV,11):INDEX(AV:AV,100000),INDEX($F:$F,11):INDEX($F:$F,100000),$P6,INDEX($J:$J,11):INDEX($J:$J,100000),"2_InProgress") +SUMIFS(INDEX(AV:AV,11):INDEX(AV:AV,100000),INDEX($F:$F,11):INDEX($F:$F,100000),$P6,INDEX($J:$J,11):INDEX($J:$J,100000),"3_Prototype") +SUMIFS(INDEX(AV:AV,11):INDEX(AV:AV,100000),INDEX($F:$F,11):INDEX($F:$F,100000),$P6,INDEX($J:$J,11):INDEX($J:$J,100000),"4_Testing") -> 0 | AW6: =SUMIFS(INDEX(AW:AW,11):INDEX(AW:AW,100000),INDEX($F:$F,11):INDEX($F:$F,100000),$P6,INDEX($J:$J,11):INDEX($J:$J,100000),"0_AttentionNeeded") +SUMIFS(INDEX(AW:AW,11):INDEX(AW:AW,100000),INDEX($F:$F,11):INDEX($F:$F,100000),$P6,INDEX($J:$J,11):INDEX($J:$J,100000),"1_Assigned") +SUMIFS(INDEX(AW:AW,11):INDEX(AW:AW,100000),INDEX($F:$F,11):INDEX($F:$F,100000),$P6,INDEX($J:$J,11):INDEX($J:$J,100000),"2_InProgress") +SUMIFS(INDEX(AW:AW,11):INDEX(AW:AW,100000),INDEX($F:$F,11):INDEX($F:$F,100000),$P6,INDEX($J:$J,11):INDEX($J:$J,100000),"3_Prototype") +SUMIFS(INDEX(AW:AW,11):INDEX(AW:AW,100000),INDEX($F:$F,11):INDEX($F:$F,100000),$P6,INDEX($J:$J,11):INDEX($J:$J,100000),"4_Testing") -> 0 | AX6: =SUMIFS(INDEX(AX:AX,11):INDEX(AX:AX,100000),INDEX($F:$F,11):INDEX($F:$F,100000),$P6,INDEX($J:$J,11):INDEX($J:$J,100000),"0_AttentionNeeded") +SUMIFS(INDEX(AX:AX,11):INDEX(AX:AX,100000),INDEX($F:$F,11):INDEX($F:$F,100000),$P6,INDEX($J:$J,11):INDEX($J:$J,100000),"1_Assigned") +SUMIFS(INDEX(AX:AX,11):INDEX(AX:AX,100000),INDEX($F:$F,11):INDEX($F:$F,100000),$P6,INDEX($J:$J,11):INDEX($J:$J,100000),"2_InProgress") +SUMIFS(INDEX(AX:AX,11):INDEX(AX:AX,100000),INDEX($F:$F,11):INDEX($F:$F,100000),$P6,INDEX($J:$J,11):INDEX($J:$J,100000),"3_Prototype") +SUMIFS(INDEX(AX:AX,11):INDEX(AX:AX,100000),INDEX($F:$F,11):INDEX($F:$F,100000),$P6,INDEX($J:$J,11):INDEX($J:$J,100000),"4_Testing") -> 0 | AY6: =SUMIFS(INDEX(AY:AY,11):INDEX(AY:AY,100000),INDEX($F:$F,11):INDEX($F:$F,100000),$P6,INDEX($J:$J,11):INDEX($J:$J,100000),"0_AttentionNeeded") +SUMIFS(INDEX(AY:AY,11):INDEX(AY:AY,100000),INDEX($F:$F,11):INDEX($F:$F,100000),$P6,INDEX($J:$J,11):INDEX($J:$J,100000),"1_Assigned") +SUMIFS(INDEX(AY:AY,11):INDEX(AY:AY,100000),INDEX($F:$F,11):INDEX($F:$F,100000),$P6,INDEX($J:$J,11):INDEX($J:$J,100000),"2_InProgress") +SUMIFS(INDEX(AY:AY,11):INDEX(AY:AY,100000),INDEX($F:$F,11):INDEX($F:$F,100000),$P6,INDEX($J:$J,11):INDEX($J:$J,100000),"3_Prototype") +SUMIFS(INDEX(AY:AY,11):INDEX(AY:AY,100000),INDEX($F:$F,11):INDEX($F:$F,100000),$P6,INDEX($J:$J,11):INDEX($J:$J,100000),"4_Testing") -> 0 | AZ6: 0 | BA6: =SUMIFS(INDEX(BA:BA,11):INDEX(BA:BA,100000),INDEX($F:$F,11):INDEX($F:$F,100000),$P6,INDEX($J:$J,11):INDEX($J:$J,100000),"0_AttentionNeeded") +SUMIFS(INDEX(BA:BA,11):INDEX(BA:BA,100000),INDEX($F:$F,11):INDEX($F:$F,100000),$P6,INDEX($J:$J,11):INDEX($J:$J,100000),"1_Assigned") +SUMIFS(INDEX(BA:BA,11):INDEX(BA:BA,100000),INDEX($F:$F,11):INDEX($F:$F,100000),$P6,INDEX($J:$J,11):INDEX($J:$J,100000),"2_InProgress") +SUMIFS(INDEX(BA:BA,11):INDEX(BA:BA,100000),INDEX($F:$F,11):INDEX($F:$F,100000),$P6,INDEX($J:$J,11):INDEX($J:$J,100000),"3_Prototype") +SUMIFS(INDEX(BA:BA,11):INDEX(BA:BA,100000),INDEX($F:$F,11):INDEX($F:$F,100000),$P6,INDEX($J:$J,11):INDEX($J:$J,100000),"4_Testing") -> 0 | BB6: =SUMIFS(INDEX(BB:BB,11):INDEX(BB:BB,100000),INDEX($F:$F,11):INDEX($F:$F,100000),$P6,INDEX($J:$J,11):INDEX($J:$J,100000),"0_AttentionNeeded") +SUMIFS(INDEX(BB:BB,11):INDEX(BB:BB,100000),INDEX($F:$F,11):INDEX($F:$F,100000),$P6,INDEX($J:$J,11):INDEX($J:$J,100000),"1_Assigned") +SUMIFS(INDEX(BB:BB,11):INDEX(BB:BB,100000),INDEX($F:$F,11):INDEX($F:$F,100000),$P6,INDEX($J:$J,11):INDEX($J:$J,100000),"2_InProgress") +SUMIFS(INDEX(BB:BB,11):INDEX(BB:BB,100000),INDEX($F:$F,11):INDEX($F:$F,100000),$P6,INDEX($J:$J,11):INDEX($J:$J,100000),"3_Prototype") +SUMIFS(INDEX(BB:BB,11):INDEX(BB:BB,100000),INDEX($F:$F,11):INDEX($F:$F,100000),$P6,INDEX($J:$J,11):INDEX($J:$J,100000),"4_Testing") -> 0 | BC6: =SUMIFS(INDEX(BC:BC,11):INDEX(BC:BC,100000),INDEX($F:$F,11):INDEX($F:$F,100000),$P6,INDEX($J:$J,11):INDEX($J:$J,100000),"0_AttentionNeeded") +SUMIFS(INDEX(BC:BC,11):INDEX(BC:BC,100000),INDEX($F:$F,11):INDEX($F:$F,100000),$P6,INDEX($J:$J,11):INDEX($J:$J,100000),"1_Assigned") +SUMIFS(INDEX(BC:BC,11):INDEX(BC:BC,100000),INDEX($F:$F,11):INDEX($F:$F,100000),$P6,INDEX($J:$J,11):INDEX($J:$J,100000),"2_InProgress") +SUMIFS(INDEX(BC:BC,11):INDEX(BC:BC,100000),INDEX($F:$F,11):INDEX($F:$F,100000),$P6,INDEX($J:$J,11):INDEX($J:$J,100000),"3_Prototype") +SUMIFS(INDEX(BC:BC,11):INDEX(BC:BC,100000),INDEX($F:$F,11):INDEX($F:$F,100000),$P6,INDEX($J:$J,11):INDEX($J:$J,100000),"4_Testing") -> 0 | BD6: =SUMIFS(INDEX(BD:BD,11):INDEX(BD:BD,100000),INDEX($F:$F,11):INDEX($F:$F,100000),$P6,INDEX($J:$J,11):INDEX($J:$J,100000),"0_AttentionNeeded") +SUMIFS(INDEX(BD:BD,11):INDEX(BD:BD,100000),INDEX($F:$F,11):INDEX($F:$F,100000),$P6,INDEX($J:$J,11):INDEX($J:$J,100000),"1_Assigned") +SUMIFS(INDEX(BD:BD,11):INDEX(BD:BD,100000),INDEX($F:$F,11):INDEX($F:$F,100000),$P6,INDEX($J:$J,11):INDEX($J:$J,100000),"2_InProgress") +SUMIFS(INDEX(BD:BD,11):INDEX(BD:BD,100000),INDEX($F:$F,11):INDEX($F:$F,100000),$P6,INDEX($J:$J,11):INDEX($J:$J,100000),"3_Prototype") +SUMIFS(INDEX(BD:BD,11):INDEX(BD:BD,100000),INDEX($F:$F,11):INDEX($F:$F,100000),$P6,INDEX($J:$J,11):INDEX($J:$J,100000),"4_Testing") -> 0 | BE6: =SUMIFS(INDEX(BE:BE,11):INDEX(BE:BE,100000),INDEX($F:$F,11):INDEX($F:$F,100000),$P6,INDEX($J:$J,11):INDEX($J:$J,100000),"0_AttentionNeeded") +SUMIFS(INDEX(BE:BE,11):INDEX(BE:BE,100000),INDEX($F:$F,11):INDEX($F:$F,100000),$P6,INDEX($J:$J,11):INDEX($J:$J,100000),"1_Assigned") +SUMIFS(INDEX(BE:BE,11):INDEX(BE:BE,100000),INDEX($F:$F,11):INDEX($F:$F,100000),$P6,INDEX($J:$J,11):INDEX($J:$J,100000),"2_InProgress") +SUMIFS(INDEX(BE:BE,11):INDEX(BE:BE,100000),INDEX($F:$F,11):INDEX($F:$F,100000),$P6,INDEX($J:$J,11):INDEX($J:$J,100000),"3_Prototype") +SUMIFS(INDEX(BE:BE,11):INDEX(BE:BE,100000),INDEX($F:$F,11):INDEX($F:$F,100000),$P6,INDEX($J:$J,11):INDEX($J:$J,100000),"4_Testing") -> 0 | BF6: =SUMIFS(INDEX(BF:BF,11):INDEX(BF:BF,100000),INDEX($F:$F,11):INDEX($F:$F,100000),$P6,INDEX($J:$J,11):INDEX($J:$J,100000),"0_AttentionNeeded") +SUMIFS(INDEX(BF:BF,11):INDEX(BF:BF,100000),INDEX($F:$F,11):INDEX($F:$F,100000),$P6,INDEX($J:$J,11):INDEX($J:$J,100000),"1_Assigned") +SUMIFS(INDEX(BF:BF,11):INDEX(BF:BF,100000),INDEX($F:$F,11):INDEX($F:$F,100000),$P6,INDEX($J:$J,11):INDEX($J:$J,100000),"2_InProgress") +SUMIFS(INDEX(BF:BF,11):INDEX(BF:BF,100000),INDEX($F:$F,11):INDEX($F:$F,100000),$P6,INDEX($J:$J,11):INDEX($J:$J,100000),"3_Prototype") +SUMIFS(INDEX(BF:BF,11):INDEX(BF:BF,100000),INDEX($F:$F,11):INDEX($F:$F,100000),$P6,INDEX($J:$J,11):INDEX($J:$J,100000),"4_Testing") -> 0
A7: Updated 2023-07-17 08:25:20 | P7: N4 | Q7: 0 | R7: =SUMIFS(INDEX(R:R,11):INDEX(R:R,100000),INDEX($F:$F,11):INDEX($F:$F,100000),$P7,INDEX($J:$J,11):INDEX($J:$J,100000),"0_AttentionNeeded") +SUMIFS(INDEX(R:R,11):INDEX(R:R,100000),INDEX($F:$F,11):INDEX($F:$F,100000),$P7,INDEX($J:$J,11):INDEX($J:$J,100000),"1_Assigned") +SUMIFS(INDEX(R:R,11):INDEX(R:R,100000),INDEX($F:$F,11):INDEX($F:$F,100000),$P7,INDEX($J:$J,11):INDEX($J:$J,100000),"2_InProgress") +SUMIFS(INDEX(R:R,11):INDEX(R:R,100000),INDEX($F:$F,11):INDEX($F:$F,100000),$P7,INDEX($J:$J,11):INDEX($J:$J,100000),"3_Prototype") +SUMIFS(INDEX(R:R,11):INDEX(R:R,100000),INDEX($F:$F,11):INDEX($F:$F,100000),$P7,INDEX($J:$J,11):INDEX($J:$J,100000),"4_Testing") -> 0 | S7: =SUMIFS(INDEX(S:S,11):INDEX(S:S,100000),INDEX($F:$F,11):INDEX($F:$F,100000),$P7,INDEX($J:$J,11):INDEX($J:$J,100000),"0_AttentionNeeded") +SUMIFS(INDEX(S:S,11):INDEX(S:S,100000),INDEX($F:$F,11):INDEX($F:$F,100000),$P7,INDEX($J:$J,11):INDEX($J:$J,100000),"1_Assigned") +SUMIFS(INDEX(S:S,11):INDEX(S:S,100000),INDEX($F:$F,11):INDEX($F:$F,100000),$P7,INDEX($J:$J,11):INDEX($J:$J,100000),"2_InProgress") +SUMIFS(INDEX(S:S,11):INDEX(S:S,100000),INDEX($F:$F,11):INDEX($F:$F,100000),$P7,INDEX($J:$J,11):INDEX($J:$J,100000),"3_Prototype") +SUMIFS(INDEX(S:S,11):INDEX(S:S,100000),INDEX($F:$F,11):INDEX($F:$F,100000),$P7,INDEX($J:$J,11):INDEX($J:$J,100000),"4_Testing") -> 0 | T7: =SUMIFS(INDEX(T:T,11):INDEX(T:T,100000),INDEX($F:$F,11):INDEX($F:$F,100000),$P7,INDEX($J:$J,11):INDEX($J:$J,100000),"0_AttentionNeeded") +SUMIFS(INDEX(T:T,11):INDEX(T:T,100000),INDEX($F:$F,11):INDEX($F:$F,100000),$P7,INDEX($J:$J,11):INDEX($J:$J,100000),"1_Assigned") +SUMIFS(INDEX(T:T,11):INDEX(T:T,100000),INDEX($F:$F,11):INDEX($F:$F,100000),$P7,INDEX($J:$J,11):INDEX($J:$J,100000),"2_InProgress") +SUMIFS(INDEX(T:T,11):INDEX(T:T,100000),INDEX($F:$F,11):INDEX($F:$F,100000),$P7,INDEX($J:$J,11):INDEX($J:$J,100000),"3_Prototype") +SUMIFS(INDEX(T:T,11):INDEX(T:T,100000),INDEX($F:$F,11):INDEX($F:$F,100000),$P7,INDEX($J:$J,11):INDEX($J:$J,100000),"4_Testing") -> 0 | U7: =SUMIFS(INDEX(U:U,11):INDEX(U:U,100000),INDEX($F:$F,11):INDEX($F:$F,100000),$P7,INDEX($J:$J,11):INDEX($J:$J,100000),"0_AttentionNeeded") +SUMIFS(INDEX(U:U,11):INDEX(U:U,100000),INDEX($F:$F,11):INDEX($F:$F,100000),$P7,INDEX($J:$J,11):INDEX($J:$J,100000),"1_Assigned") +SUMIFS(INDEX(U:U,11):INDEX(U:U,100000),INDEX($F:$F,11):INDEX($F:$F,100000),$P7,INDEX($J:$J,11):INDEX($J:$J,100000),"2_InProgress") +SUMIFS(INDEX(U:U,11):INDEX(U:U,100000),INDEX($F:$F,11):INDEX($F:$F,100000),$P7,INDEX($J:$J,11):INDEX($J:$J,100000),"3_Prototype") +SUMIFS(INDEX(U:U,11):INDEX(U:U,100000),INDEX($F:$F,11):INDEX($F:$F,100000),$P7,INDEX($J:$J,11):INDEX($J:$J,100000),"4_Testing") -> 0 | V7: =SUMIFS(INDEX(V:V,11):INDEX(V:V,100000),INDEX($F:$F,11):INDEX($F:$F,100000),$P7,INDEX($J:$J,11):INDEX($J:$J,100000),"0_AttentionNeeded") +SUMIFS(INDEX(V:V,11):INDEX(V:V,100000),INDEX($F:$F,11):INDEX($F:$F,100000),$P7,INDEX($J:$J,11):INDEX($J:$J,100000),"1_Assigned") +SUMIFS(INDEX(V:V,11):INDEX(V:V,100000),INDEX($F:$F,11):INDEX($F:$F,100000),$P7,INDEX($J:$J,11):INDEX($J:$J,100000),"2_InProgress") +SUMIFS(INDEX(V:V,11):INDEX(V:V,100000),INDEX($F:$F,11):INDEX($F:$F,100000),$P7,INDEX($J:$J,11):INDEX($J:$J,100000),"3_Prototype") +SUMIFS(INDEX(V:V,11):INDEX(V:V,100000),INDEX($F:$F,11):INDEX($F:$F,100000),$P7,INDEX($J:$J,11):INDEX($J:$J,100000),"4_Testing") -> 0 | W7: =SUMIFS(INDEX(W:W,11):INDEX(W:W,100000),INDEX($F:$F,11):INDEX($F:$F,100000),$P7,INDEX($J:$J,11):INDEX($J:$J,100000),"0_AttentionNeeded") +SUMIFS(INDEX(W:W,11):INDEX(W:W,100000),INDEX($F:$F,11):INDEX($F:$F,100000),$P7,INDEX($J:$J,11):INDEX($J:$J,100000),"1_Assigned") +SUMIFS(INDEX(W:W,11):INDEX(W:W,100000),INDEX($F:$F,11):INDEX($F:$F,100000),$P7,INDEX($J:$J,11):INDEX($J:$J,100000),"2_InProgress") +SUMIFS(INDEX(W:W,11):INDEX(W:W,100000),INDEX($F:$F,11):INDEX($F:$F,100000),$P7,INDEX($J:$J,11):INDEX($J:$J,100000),"3_Prototype") +SUMIFS(INDEX(W:W,11):INDEX(W:W,100000),INDEX($F:$F,11):INDEX($F:$F,100000),$P7,INDEX($J:$J,11):INDEX($J:$J,100000),"4_Testing") -> 0 | X7: 0 | Y7: =SUMIFS(INDEX(Y:Y,11):INDEX(Y:Y,100000),INDEX($F:$F,11):INDEX($F:$F,100000),$P7,INDEX($J:$J,11):INDEX($J:$J,100000),"0_AttentionNeeded") +SUMIFS(INDEX(Y:Y,11):INDEX(Y:Y,100000),INDEX($F:$F,11):INDEX($F:$F,100000),$P7,INDEX($J:$J,11):INDEX($J:$J,100000),"1_Assigned") +SUMIFS(INDEX(Y:Y,11):INDEX(Y:Y,100000),INDEX($F:$F,11):INDEX($F:$F,100000),$P7,INDEX($J:$J,11):INDEX($J:$J,100000),"2_InProgress") +SUMIFS(INDEX(Y:Y,11):INDEX(Y:Y,100000),INDEX($F:$F,11):INDEX($F:$F,100000),$P7,INDEX($J:$J,11):INDEX($J:$J,100000),"3_Prototype") +SUMIFS(INDEX(Y:Y,11):INDEX(Y:Y,100000),INDEX($F:$F,11):INDEX($F:$F,100000),$P7,INDEX($J:$J,11):INDEX($J:$J,100000),"4_Testing") -> 0 | Z7: =SUMIFS(INDEX(Z:Z,11):INDEX(Z:Z,100000),INDEX($F:$F,11):INDEX($F:$F,100000),$P7,INDEX($J:$J,11):INDEX($J:$J,100000),"0_AttentionNeeded") +SUMIFS(INDEX(Z:Z,11):INDEX(Z:Z,100000),INDEX($F:$F,11):INDEX($F:$F,100000),$P7,INDEX($J:$J,11):INDEX($J:$J,100000),"1_Assigned") +SUMIFS(INDEX(Z:Z,11):INDEX(Z:Z,100000),INDEX($F:$F,11):INDEX($F:$F,100000),$P7,INDEX($J:$J,11):INDEX($J:$J,100000),"2_InProgress") +SUMIFS(INDEX(Z:Z,11):INDEX(Z:Z,100000),INDEX($F:$F,11):INDEX($F:$F,100000),$P7,INDEX($J:$J,11):INDEX($J:$J,100000),"3_Prototype") +SUMIFS(INDEX(Z:Z,11):INDEX(Z:Z,100000),INDEX($F:$F,11):INDEX($F:$F,100000),$P7,INDEX($J:$J,11):INDEX($J:$J,100000),"4_Testing") -> 0 | AA7: =SUMIFS(INDEX(AA:AA,11):INDEX(AA:AA,100000),INDEX($F:$F,11):INDEX($F:$F,100000),$P7,INDEX($J:$J,11):INDEX($J:$J,100000),"0_AttentionNeeded") +SUMIFS(INDEX(AA:AA,11):INDEX(AA:AA,100000),INDEX($F:$F,11):INDEX($F:$F,100000),$P7,INDEX($J:$J,11):INDEX($J:$J,100000),"1_Assigned") +SUMIFS(INDEX(AA:AA,11):INDEX(AA:AA,100000),INDEX($F:$F,11):INDEX($F:$F,100000),$P7,INDEX($J:$J,11):INDEX($J:$J,100000),"2_InProgress") +SUMIFS(INDEX(AA:AA,11):INDEX(AA:AA,100000),INDEX($F:$F,11):INDEX($F:$F,100000),$P7,INDEX($J:$J,11):INDEX($J:$J,100000),"3_Prototype") +SUMIFS(INDEX(AA:AA,11):INDEX(AA:AA,100000),INDEX($F:$F,11):INDEX($F:$F,100000),$P7,INDEX($J:$J,11):INDEX($J:$J,100000),"4_Testing") -> 0 | AB7: =SUMIFS(INDEX(AB:AB,11):INDEX(AB:AB,100000),INDEX($F:$F,11):INDEX($F:$F,100000),$P7,INDEX($J:$J,11):INDEX($J:$J,100000),"0_AttentionNeeded") +SUMIFS(INDEX(AB:AB,11):INDEX(AB:AB,100000),INDEX($F:$F,11):INDEX($F:$F,100000),$P7,INDEX($J:$J,11):INDEX($J:$J,100000),"1_Assigned") +SUMIFS(INDEX(AB:AB,11):INDEX(AB:AB,100000),INDEX($F:$F,11):INDEX($F:$F,100000),$P7,INDEX($J:$J,11):INDEX($J:$J,100000),"2_InProgress") +SUMIFS(INDEX(AB:AB,11):INDEX(AB:AB,100000),INDEX($F:$F,11):INDEX($F:$F,100000),$P7,INDEX($J:$J,11):INDEX($J:$J,100000),"3_Prototype") +SUMIFS(INDEX(AB:AB,11):INDEX(AB:AB,100000),INDEX($F:$F,11):INDEX($F:$F,100000),$P7,INDEX($J:$J,11):INDEX($J:$J,100000),"4_Testing") -> 0 | AC7: =SUMIFS(INDEX(AC:AC,11):INDEX(AC:AC,100000),INDEX($F:$F,11):INDEX($F:$F,100000),$P7,INDEX($J:$J,11):INDEX($J:$J,100000),"0_AttentionNeeded") +SUMIFS(INDEX(AC:AC,11):INDEX(AC:AC,100000),INDEX($F:$F,11):INDEX($F:$F,100000),$P7,INDEX($J:$J,11):INDEX($J:$J,100000),"1_Assigned") +SUMIFS(INDEX(AC:AC,11):INDEX(AC:AC,100000),INDEX($F:$F,11):INDEX($F:$F,100000),$P7,INDEX($J:$J,11):INDEX($J:$J,100000),"2_InProgress") +SUMIFS(INDEX(AC:AC,11):INDEX(AC:AC,100000),INDEX($F:$F,11):INDEX($F:$F,100000),$P7,INDEX($J:$J,11):INDEX($J:$J,100000),"3_Prototype") +SUMIFS(INDEX(AC:AC,11):INDEX(AC:AC,100000),INDEX($F:$F,11):INDEX($F:$F,100000),$P7,INDEX($J:$J,11):INDEX($J:$J,100000),"4_Testing") -> 0 | AD7: =SUMIFS(INDEX(AD:AD,11):INDEX(AD:AD,100000),INDEX($F:$F,11):INDEX($F:$F,100000),$P7,INDEX($J:$J,11):INDEX($J:$J,100000),"0_AttentionNeeded") +SUMIFS(INDEX(AD:AD,11):INDEX(AD:AD,100000),INDEX($F:$F,11):INDEX($F:$F,100000),$P7,INDEX($J:$J,11):INDEX($J:$J,100000),"1_Assigned") +SUMIFS(INDEX(AD:AD,11):INDEX(AD:AD,100000),INDEX($F:$F,11):INDEX($F:$F,100000),$P7,INDEX($J:$J,11):INDEX($J:$J,100000),"2_InProgress") +SUMIFS(INDEX(AD:AD,11):INDEX(AD:AD,100000),INDEX($F:$F,11):INDEX($F:$F,100000),$P7,INDEX($J:$J,11):INDEX($J:$J,100000),"3_Prototype") +SUMIFS(INDEX(AD:AD,11):INDEX(AD:AD,100000),INDEX($F:$F,11):INDEX($F:$F,100000),$P7,INDEX($J:$J,11):INDEX($J:$J,100000),"4_Testing") -> 0 | AE7: 0 | AF7: =SUMIFS(INDEX(AF:AF,11):INDEX(AF:AF,100000),INDEX($F:$F,11):INDEX($F:$F,100000),$P7,INDEX($J:$J,11):INDEX($J:$J,100000),"0_AttentionNeeded") +SUMIFS(INDEX(AF:AF,11):INDEX(AF:AF,100000),INDEX($F:$F,11):INDEX($F:$F,100000),$P7,INDEX($J:$J,11):INDEX($J:$J,100000),"1_Assigned") +SUMIFS(INDEX(AF:AF,11):INDEX(AF:AF,100000),INDEX($F:$F,11):INDEX($F:$F,100000),$P7,INDEX($J:$J,11):INDEX($J:$J,100000),"2_InProgress") +SUMIFS(INDEX(AF:AF,11):INDEX(AF:AF,100000),INDEX($F:$F,11):INDEX($F:$F,100000),$P7,INDEX($J:$J,11):INDEX($J:$J,100000),"3_Prototype") +SUMIFS(INDEX(AF:AF,11):INDEX(AF:AF,100000),INDEX($F:$F,11):INDEX($F:$F,100000),$P7,INDEX($J:$J,11):INDEX($J:$J,100000),"4_Testing") -> 0 | AG7: =SUMIFS(INDEX(AG:AG,11):INDEX(AG:AG,100000),INDEX($F:$F,11):INDEX($F:$F,100000),$P7,INDEX($J:$J,11):INDEX($J:$J,100000),"0_AttentionNeeded") +SUMIFS(INDEX(AG:AG,11):INDEX(AG:AG,100000),INDEX($F:$F,11):INDEX($F:$F,100000),$P7,INDEX($J:$J,11):INDEX($J:$J,100000),"1_Assigned") +SUMIFS(INDEX(AG:AG,11):INDEX(AG:AG,100000),INDEX($F:$F,11):INDEX($F:$F,100000),$P7,INDEX($J:$J,11):INDEX($J:$J,100000),"2_InProgress") +SUMIFS(INDEX(AG:AG,11):INDEX(AG:AG,100000),INDEX($F:$F,11):INDEX($F:$F,100000),$P7,INDEX($J:$J,11):INDEX($J:$J,100000),"3_Prototype") +SUMIFS(INDEX(AG:AG,11):INDEX(AG:AG,100000),INDEX($F:$F,11):INDEX($F:$F,100000),$P7,INDEX($J:$J,11):INDEX($J:$J,100000),"4_Testing") -> 0 | AH7: =SUMIFS(INDEX(AH:AH,11):INDEX(AH:AH,100000),INDEX($F:$F,11):INDEX($F:$F,100000),$P7,INDEX($J:$J,11):INDEX($J:$J,100000),"0_AttentionNeeded") +SUMIFS(INDEX(AH:AH,11):INDEX(AH:AH,100000),INDEX($F:$F,11):INDEX($F:$F,100000),$P7,INDEX($J:$J,11):INDEX($J:$J,100000),"1_Assigned") +SUMIFS(INDEX(AH:AH,11):INDEX(AH:AH,100000),INDEX($F:$F,11):INDEX($F:$F,100000),$P7,INDEX($J:$J,11):INDEX($J:$J,100000),"2_InProgress") +SUMIFS(INDEX(AH:AH,11):INDEX(AH:AH,100000),INDEX($F:$F,11):INDEX($F:$F,100000),$P7,INDEX($J:$J,11):INDEX($J:$J,100000),"3_Prototype") +SUMIFS(INDEX(AH:AH,11):INDEX(AH:AH,100000),INDEX($F:$F,11):INDEX($F:$F,100000),$P7,INDEX($J:$J,11):INDEX($J:$J,100000),"4_Testing") -> 0 | AI7: =SUMIFS(INDEX(AI:AI,11):INDEX(AI:AI,100000),INDEX($F:$F,11):INDEX($F:$F,100000),$P7,INDEX($J:$J,11):INDEX($J:$J,100000),"0_AttentionNeeded") +SUMIFS(INDEX(AI:AI,11):INDEX(AI:AI,100000),INDEX($F:$F,11):INDEX($F:$F,100000),$P7,INDEX($J:$J,11):INDEX($J:$J,100000),"1_Assigned") +SUMIFS(INDEX(AI:AI,11):INDEX(AI:AI,100000),INDEX($F:$F,11):INDEX($F:$F,100000),$P7,INDEX($J:$J,11):INDEX($J:$J,100000),"2_InProgress") +SUMIFS(INDEX(AI:AI,11):INDEX(AI:AI,100000),INDEX($F:$F,11):INDEX($F:$F,100000),$P7,INDEX($J:$J,11):INDEX($J:$J,100000),"3_Prototype") +SUMIFS(INDEX(AI:AI,11):INDEX(AI:AI,100000),INDEX($F:$F,11):INDEX($F:$F,100000),$P7,INDEX($J:$J,11):INDEX($J:$J,100000),"4_Testing") -> 0 | AJ7: =SUMIFS(INDEX(AJ:AJ,11):INDEX(AJ:AJ,100000),INDEX($F:$F,11):INDEX($F:$F,100000),$P7,INDEX($J:$J,11):INDEX($J:$J,100000),"0_AttentionNeeded") +SUMIFS(INDEX(AJ:AJ,11):INDEX(AJ:AJ,100000),INDEX($F:$F,11):INDEX($F:$F,100000),$P7,INDEX($J:$J,11):INDEX($J:$J,100000),"1_Assigned") +SUMIFS(INDEX(AJ:AJ,11):INDEX(AJ:AJ,100000),INDEX($F:$F,11):INDEX($F:$F,100000),$P7,INDEX($J:$J,11):INDEX($J:$J,100000),"2_InProgress") +SUMIFS(INDEX(AJ:AJ,11):INDEX(AJ:AJ,100000),INDEX($F:$F,11):INDEX($F:$F,100000),$P7,INDEX($J:$J,11):INDEX($J:$J,100000),"3_Prototype") +SUMIFS(INDEX(AJ:AJ,11):INDEX(AJ:AJ,100000),INDEX($F:$F,11):INDEX($F:$F,100000),$P7,INDEX($J:$J,11):INDEX($J:$J,100000),"4_Testing") -> 0 | AK7: =SUMIFS(INDEX(AK:AK,11):INDEX(AK:AK,100000),INDEX($F:$F,11):INDEX($F:$F,100000),$P7,INDEX($J:$J,11):INDEX($J:$J,100000),"0_AttentionNeeded") +SUMIFS(INDEX(AK:AK,11):INDEX(AK:AK,100000),INDEX($F:$F,11):INDEX($F:$F,100000),$P7,INDEX($J:$J,11):INDEX($J:$J,100000),"1_Assigned") +SUMIFS(INDEX(AK:AK,11):INDEX(AK:AK,100000),INDEX($F:$F,11):INDEX($F:$F,100000),$P7,INDEX($J:$J,11):INDEX($J:$J,100000),"2_InProgress") +SUMIFS(INDEX(AK:AK,11):INDEX(AK:AK,100000),INDEX($F:$F,11):INDEX($F:$F,100000),$P7,INDEX($J:$J,11):INDEX($J:$J,100000),"3_Prototype") +SUMIFS(INDEX(AK:AK,11):INDEX(AK:AK,100000),INDEX($F:$F,11):INDEX($F:$F,100000),$P7,INDEX($J:$J,11):INDEX($J:$J,100000),"4_Testing") -> 0 | AL7: 0 | AM7: =SUMIFS(INDEX(AM:AM,11):INDEX(AM:AM,100000),INDEX($F:$F,11):INDEX($F:$F,100000),$P7,INDEX($J:$J,11):INDEX($J:$J,100000),"0_AttentionNeeded") +SUMIFS(INDEX(AM:AM,11):INDEX(AM:AM,100000),INDEX($F:$F,11):INDEX($F:$F,100000),$P7,INDEX($J:$J,11):INDEX($J:$J,100000),"1_Assigned") +SUMIFS(INDEX(AM:AM,11):INDEX(AM:AM,100000),INDEX($F:$F,11):INDEX($F:$F,100000),$P7,INDEX($J:$J,11):INDEX($J:$J,100000),"2_InProgress") +SUMIFS(INDEX(AM:AM,11):INDEX(AM:AM,100000),INDEX($F:$F,11):INDEX($F:$F,100000),$P7,INDEX($J:$J,11):INDEX($J:$J,100000),"3_Prototype") +SUMIFS(INDEX(AM:AM,11):INDEX(AM:AM,100000),INDEX($F:$F,11):INDEX($F:$F,100000),$P7,INDEX($J:$J,11):INDEX($J:$J,100000),"4_Testing") -> 0 | AN7: =SUMIFS(INDEX(AN:AN,11):INDEX(AN:AN,100000),INDEX($F:$F,11):INDEX($F:$F,100000),$P7,INDEX($J:$J,11):INDEX($J:$J,100000),"0_AttentionNeeded") +SUMIFS(INDEX(AN:AN,11):INDEX(AN:AN,100000),INDEX($F:$F,11):INDEX($F:$F,100000),$P7,INDEX($J:$J,11):INDEX($J:$J,100000),"1_Assigned") +SUMIFS(INDEX(AN:AN,11):INDEX(AN:AN,100000),INDEX($F:$F,11):INDEX($F:$F,100000),$P7,INDEX($J:$J,11):INDEX($J:$J,100000),"2_InProgress") +SUMIFS(INDEX(AN:AN,11):INDEX(AN:AN,100000),INDEX($F:$F,11):INDEX($F:$F,100000),$P7,INDEX($J:$J,11):INDEX($J:$J,100000),"3_Prototype") +SUMIFS(INDEX(AN:AN,11):INDEX(AN:AN,100000),INDEX($F:$F,11):INDEX($F:$F,100000),$P7,INDEX($J:$J,11):INDEX($J:$J,100000),"4_Testing") -> 0 | AO7: =SUMIFS(INDEX(AO:AO,11):INDEX(AO:AO,100000),INDEX($F:$F,11):INDEX($F:$F,100000),$P7,INDEX($J:$J,11):INDEX($J:$J,100000),"0_AttentionNeeded") +SUMIFS(INDEX(AO:AO,11):INDEX(AO:AO,100000),INDEX($F:$F,11):INDEX($F:$F,100000),$P7,INDEX($J:$J,11):INDEX($J:$J,100000),"1_Assigned") +SUMIFS(INDEX(AO:AO,11):INDEX(AO:AO,100000),INDEX($F:$F,11):INDEX($F:$F,100000),$P7,INDEX($J:$J,11):INDEX($J:$J,100000),"2_InProgress") +SUMIFS(INDEX(AO:AO,11):INDEX(AO:AO,100000),INDEX($F:$F,11):INDEX($F:$F,100000),$P7,INDEX($J:$J,11):INDEX($J:$J,100000),"3_Prototype") +SUMIFS(INDEX(AO:AO,11):INDEX(AO:AO,100000),INDEX($F:$F,11):INDEX($F:$F,100000),$P7,INDEX($J:$J,11):INDEX($J:$J,100000),"4_Testing") -> 0 | AP7: =SUMIFS(INDEX(AP:AP,11):INDEX(AP:AP,100000),INDEX($F:$F,11):INDEX($F:$F,100000),$P7,INDEX($J:$J,11):INDEX($J:$J,100000),"0_AttentionNeeded") +SUMIFS(INDEX(AP:AP,11):INDEX(AP:AP,100000),INDEX($F:$F,11):INDEX($F:$F,100000),$P7,INDEX($J:$J,11):INDEX($J:$J,100000),"1_Assigned") +SUMIFS(INDEX(AP:AP,11):INDEX(AP:AP,100000),INDEX($F:$F,11):INDEX($F:$F,100000),$P7,INDEX($J:$J,11):INDEX($J:$J,100000),"2_InProgress") +SUMIFS(INDEX(AP:AP,11):INDEX(AP:AP,100000),INDEX($F:$F,11):INDEX($F:$F,100000),$P7,INDEX($J:$J,11):INDEX($J:$J,100000),"3_Prototype") +SUMIFS(INDEX(AP:AP,11):INDEX(AP:AP,100000),INDEX($F:$F,11):INDEX($F:$F,100000),$P7,INDEX($J:$J,11):INDEX($J:$J,100000),"4_Testing") -> 0 | AQ7: =SUMIFS(INDEX(AQ:AQ,11):INDEX(AQ:AQ,100000),INDEX($F:$F,11):INDEX($F:$F,100000),$P7,INDEX($J:$J,11):INDEX($J:$J,100000),"0_AttentionNeeded") +SUMIFS(INDEX(AQ:AQ,11):INDEX(AQ:AQ,100000),INDEX($F:$F,11):INDEX($F:$F,100000),$P7,INDEX($J:$J,11):INDEX($J:$J,100000),"1_Assigned") +SUMIFS(INDEX(AQ:AQ,11):INDEX(AQ:AQ,100000),INDEX($F:$F,11):INDEX($F:$F,100000),$P7,INDEX($J:$J,11):INDEX($J:$J,100000),"2_InProgress") +SUMIFS(INDEX(AQ:AQ,11):INDEX(AQ:AQ,100000),INDEX($F:$F,11):INDEX($F:$F,100000),$P7,INDEX($J:$J,11):INDEX($J:$J,100000),"3_Prototype") +SUMIFS(INDEX(AQ:AQ,11):INDEX(AQ:AQ,100000),INDEX($F:$F,11):INDEX($F:$F,100000),$P7,INDEX($J:$J,11):INDEX($J:$J,100000),"4_Testing") -> 0 | AR7: =SUMIFS(INDEX(AR:AR,11):INDEX(AR:AR,100000),INDEX($F:$F,11):INDEX($F:$F,100000),$P7,INDEX($J:$J,11):INDEX($J:$J,100000),"0_AttentionNeeded") +SUMIFS(INDEX(AR:AR,11):INDEX(AR:AR,100000),INDEX($F:$F,11):INDEX($F:$F,100000),$P7,INDEX($J:$J,11):INDEX($J:$J,100000),"1_Assigned") +SUMIFS(INDEX(AR:AR,11):INDEX(AR:AR,100000),INDEX($F:$F,11):INDEX($F:$F,100000),$P7,INDEX($J:$J,11):INDEX($J:$J,100000),"2_InProgress") +SUMIFS(INDEX(AR:AR,11):INDEX(AR:AR,100000),INDEX($F:$F,11):INDEX($F:$F,100000),$P7,INDEX($J:$J,11):INDEX($J:$J,100000),"3_Prototype") +SUMIFS(INDEX(AR:AR,11):INDEX(AR:AR,100000),INDEX($F:$F,11):INDEX($F:$F,100000),$P7,INDEX($J:$J,11):INDEX($J:$J,100000),"4_Testing") -> 0 | AS7: 0 | AT7: =SUMIFS(INDEX(AT:AT,11):INDEX(AT:AT,100000),INDEX($F:$F,11):INDEX($F:$F,100000),$P7,INDEX($J:$J,11):INDEX($J:$J,100000),"0_AttentionNeeded") +SUMIFS(INDEX(AT:AT,11):INDEX(AT:AT,100000),INDEX($F:$F,11):INDEX($F:$F,100000),$P7,INDEX($J:$J,11):INDEX($J:$J,100000),"1_Assigned") +SUMIFS(INDEX(AT:AT,11):INDEX(AT:AT,100000),INDEX($F:$F,11):INDEX($F:$F,100000),$P7,INDEX($J:$J,11):INDEX($J:$J,100000),"2_InProgress") +SUMIFS(INDEX(AT:AT,11):INDEX(AT:AT,100000),INDEX($F:$F,11):INDEX($F:$F,100000),$P7,INDEX($J:$J,11):INDEX($J:$J,100000),"3_Prototype") +SUMIFS(INDEX(AT:AT,11):INDEX(AT:AT,100000),INDEX($F:$F,11):INDEX($F:$F,100000),$P7,INDEX($J:$J,11):INDEX($J:$J,100000),"4_Testing") -> 0 | AU7: =SUMIFS(INDEX(AU:AU,11):INDEX(AU:AU,100000),INDEX($F:$F,11):INDEX($F:$F,100000),$P7,INDEX($J:$J,11):INDEX($J:$J,100000),"0_AttentionNeeded") +SUMIFS(INDEX(AU:AU,11):INDEX(AU:AU,100000),INDEX($F:$F,11):INDEX($F:$F,100000),$P7,INDEX($J:$J,11):INDEX($J:$J,100000),"1_Assigned") +SUMIFS(INDEX(AU:AU,11):INDEX(AU:AU,100000),INDEX($F:$F,11):INDEX($F:$F,100000),$P7,INDEX($J:$J,11):INDEX($J:$J,100000),"2_InProgress") +SUMIFS(INDEX(AU:AU,11):INDEX(AU:AU,100000),INDEX($F:$F,11):INDEX($F:$F,100000),$P7,INDEX($J:$J,11):INDEX($J:$J,100000),"3_Prototype") +SUMIFS(INDEX(AU:AU,11):INDEX(AU:AU,100000),INDEX($F:$F,11):INDEX($F:$F,100000),$P7,INDEX($J:$J,11):INDEX($J:$J,100000),"4_Testing") -> 0 | AV7: =SUMIFS(INDEX(AV:AV,11):INDEX(AV:AV,100000),INDEX($F:$F,11):INDEX($F:$F,100000),$P7,INDEX($J:$J,11):INDEX($J:$J,100000),"0_AttentionNeeded") +SUMIFS(INDEX(AV:AV,11):INDEX(AV:AV,100000),INDEX($F:$F,11):INDEX($F:$F,100000),$P7,INDEX($J:$J,11):INDEX($J:$J,100000),"1_Assigned") +SUMIFS(INDEX(AV:AV,11):INDEX(AV:AV,100000),INDEX($F:$F,11):INDEX($F:$F,100000),$P7,INDEX($J:$J,11):INDEX($J:$J,100000),"2_InProgress") +SUMIFS(INDEX(AV:AV,11):INDEX(AV:AV,100000),INDEX($F:$F,11):INDEX($F:$F,100000),$P7,INDEX($J:$J,11):INDEX($J:$J,100000),"3_Prototype") +SUMIFS(INDEX(AV:AV,11):INDEX(AV:AV,100000),INDEX($F:$F,11):INDEX($F:$F,100000),$P7,INDEX($J:$J,11):INDEX($J:$J,100000),"4_Testing") -> 0 | AW7: =SUMIFS(INDEX(AW:AW,11):INDEX(AW:AW,100000),INDEX($F:$F,11):INDEX($F:$F,100000),$P7,INDEX($J:$J,11):INDEX($J:$J,100000),"0_AttentionNeeded") +SUMIFS(INDEX(AW:AW,11):INDEX(AW:AW,100000),INDEX($F:$F,11):INDEX($F:$F,100000),$P7,INDEX($J:$J,11):INDEX($J:$J,100000),"1_Assigned") +SUMIFS(INDEX(AW:AW,11):INDEX(AW:AW,100000),INDEX($F:$F,11):INDEX($F:$F,100000),$P7,INDEX($J:$J,11):INDEX($J:$J,100000),"2_InProgress") +SUMIFS(INDEX(AW:AW,11):INDEX(AW:AW,100000),INDEX($F:$F,11):INDEX($F:$F,100000),$P7,INDEX($J:$J,11):INDEX($J:$J,100000),"3_Prototype") +SUMIFS(INDEX(AW:AW,11):INDEX(AW:AW,100000),INDEX($F:$F,11):INDEX($F:$F,100000),$P7,INDEX($J:$J,11):INDEX($J:$J,100000),"4_Testing") -> 0 | AX7: =SUMIFS(INDEX(AX:AX,11):INDEX(AX:AX,100000),INDEX($F:$F,11):INDEX($F:$F,100000),$P7,INDEX($J:$J,11):INDEX($J:$J,100000),"0_AttentionNeeded") +SUMIFS(INDEX(AX:AX,11):INDEX(AX:AX,100000),INDEX($F:$F,11):INDEX($F:$F,100000),$P7,INDEX($J:$J,11):INDEX($J:$J,100000),"1_Assigned") +SUMIFS(INDEX(AX:AX,11):INDEX(AX:AX,100000),INDEX($F:$F,11):INDEX($F:$F,100000),$P7,INDEX($J:$J,11):INDEX($J:$J,100000),"2_InProgress") +SUMIFS(INDEX(AX:AX,11):INDEX(AX:AX,100000),INDEX($F:$F,11):INDEX($F:$F,100000),$P7,INDEX($J:$J,11):INDEX($J:$J,100000),"3_Prototype") +SUMIFS(INDEX(AX:AX,11):INDEX(AX:AX,100000),INDEX($F:$F,11):INDEX($F:$F,100000),$P7,INDEX($J:$J,11):INDEX($J:$J,100000),"4_Testing") -> 0 | AY7: =SUMIFS(INDEX(AY:AY,11):INDEX(AY:AY,100000),INDEX($F:$F,11):INDEX($F:$F,100000),$P7,INDEX($J:$J,11):INDEX($J:$J,100000),"0_AttentionNeeded") +SUMIFS(INDEX(AY:AY,11):INDEX(AY:AY,100000),INDEX($F:$F,11):INDEX($F:$F,100000),$P7,INDEX($J:$J,11):INDEX($J:$J,100000),"1_Assigned") +SUMIFS(INDEX(AY:AY,11):INDEX(AY:AY,100000),INDEX($F:$F,11):INDEX($F:$F,100000),$P7,INDEX($J:$J,11):INDEX($J:$J,100000),"2_InProgress") +SUMIFS(INDEX(AY:AY,11):INDEX(AY:AY,100000),INDEX($F:$F,11):INDEX($F:$F,100000),$P7,INDEX($J:$J,11):INDEX($J:$J,100000),"3_Prototype") +SUMIFS(INDEX(AY:AY,11):INDEX(AY:AY,100000),INDEX($F:$F,11):INDEX($F:$F,100000),$P7,INDEX($J:$J,11):INDEX($J:$J,100000),"4_Testing") -> 0 | AZ7: 0 | BA7: =SUMIFS(INDEX(BA:BA,11):INDEX(BA:BA,100000),INDEX($F:$F,11):INDEX($F:$F,100000),$P7,INDEX($J:$J,11):INDEX($J:$J,100000),"0_AttentionNeeded") +SUMIFS(INDEX(BA:BA,11):INDEX(BA:BA,100000),INDEX($F:$F,11):INDEX($F:$F,100000),$P7,INDEX($J:$J,11):INDEX($J:$J,100000),"1_Assigned") +SUMIFS(INDEX(BA:BA,11):INDEX(BA:BA,100000),INDEX($F:$F,11):INDEX($F:$F,100000),$P7,INDEX($J:$J,11):INDEX($J:$J,100000),"2_InProgress") +SUMIFS(INDEX(BA:BA,11):INDEX(BA:BA,100000),INDEX($F:$F,11):INDEX($F:$F,100000),$P7,INDEX($J:$J,11):INDEX($J:$J,100000),"3_Prototype") +SUMIFS(INDEX(BA:BA,11):INDEX(BA:BA,100000),INDEX($F:$F,11):INDEX($F:$F,100000),$P7,INDEX($J:$J,11):INDEX($J:$J,100000),"4_Testing") -> 0 | BB7: =SUMIFS(INDEX(BB:BB,11):INDEX(BB:BB,100000),INDEX($F:$F,11):INDEX($F:$F,100000),$P7,INDEX($J:$J,11):INDEX($J:$J,100000),"0_AttentionNeeded") +SUMIFS(INDEX(BB:BB,11):INDEX(BB:BB,100000),INDEX($F:$F,11):INDEX($F:$F,100000),$P7,INDEX($J:$J,11):INDEX($J:$J,100000),"1_Assigned") +SUMIFS(INDEX(BB:BB,11):INDEX(BB:BB,100000),INDEX($F:$F,11):INDEX($F:$F,100000),$P7,INDEX($J:$J,11):INDEX($J:$J,100000),"2_InProgress") +SUMIFS(INDEX(BB:BB,11):INDEX(BB:BB,100000),INDEX($F:$F,11):INDEX($F:$F,100000),$P7,INDEX($J:$J,11):INDEX($J:$J,100000),"3_Prototype") +SUMIFS(INDEX(BB:BB,11):INDEX(BB:BB,100000),INDEX($F:$F,11):INDEX($F:$F,100000),$P7,INDEX($J:$J,11):INDEX($J:$J,100000),"4_Testing") -> 0 | BC7: =SUMIFS(INDEX(BC:BC,11):INDEX(BC:BC,100000),INDEX($F:$F,11):INDEX($F:$F,100000),$P7,INDEX($J:$J,11):INDEX($J:$J,100000),"0_AttentionNeeded") +SUMIFS(INDEX(BC:BC,11):INDEX(BC:BC,100000),INDEX($F:$F,11):INDEX($F:$F,100000),$P7,INDEX($J:$J,11):INDEX($J:$J,100000),"1_Assigned") +SUMIFS(INDEX(BC:BC,11):INDEX(BC:BC,100000),INDEX($F:$F,11):INDEX($F:$F,100000),$P7,INDEX($J:$J,11):INDEX($J:$J,100000),"2_InProgress") +SUMIFS(INDEX(BC:BC,11):INDEX(BC:BC,100000),INDEX($F:$F,11):INDEX($F:$F,100000),$P7,INDEX($J:$J,11):INDEX($J:$J,100000),"3_Prototype") +SUMIFS(INDEX(BC:BC,11):INDEX(BC:BC,100000),INDEX($F:$F,11):INDEX($F:$F,100000),$P7,INDEX($J:$J,11):INDEX($J:$J,100000),"4_Testing") -> 0 | BD7: =SUMIFS(INDEX(BD:BD,11):INDEX(BD:BD,100000),INDEX($F:$F,11):INDEX($F:$F,100000),$P7,INDEX($J:$J,11):INDEX($J:$J,100000),"0_AttentionNeeded") +SUMIFS(INDEX(BD:BD,11):INDEX(BD:BD,100000),INDEX($F:$F,11):INDEX($F:$F,100000),$P7,INDEX($J:$J,11):INDEX($J:$J,100000),"1_Assigned") +SUMIFS(INDEX(BD:BD,11):INDEX(BD:BD,100000),INDEX($F:$F,11):INDEX($F:$F,100000),$P7,INDEX($J:$J,11):INDEX($J:$J,100000),"2_InProgress") +SUMIFS(INDEX(BD:BD,11):INDEX(BD:BD,100000),INDEX($F:$F,11):INDEX($F:$F,100000),$P7,INDEX($J:$J,11):INDEX($J:$J,100000),"3_Prototype") +SUMIFS(INDEX(BD:BD,11):INDEX(BD:BD,100000),INDEX($F:$F,11):INDEX($F:$F,100000),$P7,INDEX($J:$J,11):INDEX($J:$J,100000),"4_Testing") -> 0 | BE7: =SUMIFS(INDEX(BE:BE,11):INDEX(BE:BE,100000),INDEX($F:$F,11):INDEX($F:$F,100000),$P7,INDEX($J:$J,11):INDEX($J:$J,100000),"0_AttentionNeeded") +SUMIFS(INDEX(BE:BE,11):INDEX(BE:BE,100000),INDEX($F:$F,11):INDEX($F:$F,100000),$P7,INDEX($J:$J,11):INDEX($J:$J,100000),"1_Assigned") +SUMIFS(INDEX(BE:BE,11):INDEX(BE:BE,100000),INDEX($F:$F,11):INDEX($F:$F,100000),$P7,INDEX($J:$J,11):INDEX($J:$J,100000),"2_InProgress") +SUMIFS(INDEX(BE:BE,11):INDEX(BE:BE,100000),INDEX($F:$F,11):INDEX($F:$F,100000),$P7,INDEX($J:$J,11):INDEX($J:$J,100000),"3_Prototype") +SUMIFS(INDEX(BE:BE,11):INDEX(BE:BE,100000),INDEX($F:$F,11):INDEX($F:$F,100000),$P7,INDEX($J:$J,11):INDEX($J:$J,100000),"4_Testing") -> 0 | BF7: =SUMIFS(INDEX(BF:BF,11):INDEX(BF:BF,100000),INDEX($F:$F,11):INDEX($F:$F,100000),$P7,INDEX($J:$J,11):INDEX($J:$J,100000),"0_AttentionNeeded") +SUMIFS(INDEX(BF:BF,11):INDEX(BF:BF,100000),INDEX($F:$F,11):INDEX($F:$F,100000),$P7,INDEX($J:$J,11):INDEX($J:$J,100000),"1_Assigned") +SUMIFS(INDEX(BF:BF,11):INDEX(BF:BF,100000),INDEX($F:$F,11):INDEX($F:$F,100000),$P7,INDEX($J:$J,11):INDEX($J:$J,100000),"2_InProgress") +SUMIFS(INDEX(BF:BF,11):INDEX(BF:BF,100000),INDEX($F:$F,11):INDEX($F:$F,100000),$P7,INDEX($J:$J,11):INDEX($J:$J,100000),"3_Prototype") +SUMIFS(INDEX(BF:BF,11):INDEX(BF:BF,100000),INDEX($F:$F,11):INDEX($F:$F,100000),$P7,INDEX($J:$J,11):INDEX($J:$J,100000),"4_Testing") -> 0
A8: =IF(Admin!$B$10="NO","",IF(Admin!$B$2="MONTH",IF(MONTH(NOW())<>MONTH(Admin!$B$4),"This is a free version. Contact Exceldepartment for unlocking full potential of the model.",""), IF(Admin!$B$2="QRT",IF(INT((MONTH(NOW())+2)/3)<>INT((MONTH(Admin!$B$4)+2)/3),"This is a free version. Contact Exceldepartment for unlocking full potential of the model.",""), IF(Admin!$B$2="YEAR",IF(YEAR(NOW())<>YEAR(Admin!$B$4),"This is a free version. Contact Exceldepartment for unlocking full potential of the model.",""), "This is a free version. Contact Exceldepartment for unlocking full potential of the model.")))) -> This is a free version. Contact Exceldepartment for unlocking full potential of the model. | Q8: 2023-06-17 | Y8: =Y9 -> 2023-06-24 | AF8: =AF9 -> 2023-07-01 | AM8: =AM9 -> 2023-07-08 | AT8: =AT9 -> 2023-07-15 | BA8: =BA9 -> 2023-07-22
P9: =IFERROR(IF(SUM(Y9:AD9)>0,1,IF(SUM(R9:W9)>0,0.5,0)),"") -> 1 | Q9: =Q8-1 -> 2023-06-16 | R9: =Q9+1 -> 2023-06-17 | S9: 2023-06-18 | T9: 2023-06-19 | U9: 2023-06-20 | V9: 2023-06-21 | W9: 2023-06-22 | X9: 2023-06-23 | Y9: 2023-06-24 | Z9: 2023-06-25 | AA9: 2023-06-26 | AB9: 2023-06-27 | AC9: 2023-06-28 | AD9: 2023-06-29 | AE9: 2023-06-30 | AF9: 2023-07-01 | AG9: 2023-07-02 | AH9: 2023-07-03 | AI9: 2023-07-04 | AJ9: 2023-07-05 | AK9: 2023-07-06 | AL9: 2023-07-07 | AM9: 2023-07-08 | AN9: 2023-07-09 | AO9: 2023-07-10 | AP9: 2023-07-11 | AQ9: 2023-07-12 | AR9: 2023-07-13 | AS9: 2023-07-14 | AT9: 2023-07-15 | AU9: 2023-07-16 | AV9: 2023-07-17 | AW9: 2023-07-18 | AX9: 2023-07-19 | AY9: 2023-07-20 | AZ9: 2023-07-21 | BA9: 2023-07-22 | BB9: 2023-07-23 | BC9: 2023-07-24 | BD9: 2023-07-25 | BE9: 2023-07-26 | BF9: 2023-07-27 | BG9: =IF(D9<>"", _xlfn.MINIFS(INDIRECT("$G$17:$G$3000"),INDIRECT("$D$17:$D$3000"),D9,INDIRECT("$C$17:$C$3000"),C9)+LEN(C9)/1000+LEN(D9)/1000, IF(I9="",IF(D9="",G9,_xlfn.MINIFS(INDIRECT("$G$17:$G$3000"),INDIRECT("$D$17:$D$3000"),D9,INDIRECT("$C$17:$C$3000"),C9)),I9)+IF(IF(I9="",H9,I9)<$Q$8,365,0)+IF(IF(D9="",G9,_xlfn.MINIFS(INDIRECT("$G$17:$G$3000"),INDIRECT("$D$17:$D$3000"),D9,INDIRECT("$C$17:$C$3000"),C9))="",$Q$8+365*2,0)+IF(J9="50_none",365,0)+LEN(C9)/1000)-IF(O9="",0,IF(O9*1<100,(100-O9*1)*365,0)) -> 2026-06-16
A10: _Key | B10: _Task | C10: _Project | D10: _SubProject | E10: _Hours | F10: _Staff | G10: _StartDate | H10: _EndDate | I10: _PlannedDate | J10: _Status | K10: _Comment | L10: _MainCategory | M10: _Category | N10: _SubCategory | O10: _Priority | P10: CurrWeek | Q10: Sun | R10: Mon | S10: Tue | T10: Wed | U10: Thr | V10: Fri | W10: Sat | X10: Sun | Y10: Mon | Z10: Tue | AA10: Wed | AB10: Thr | AC10: Fri | AD10: Sat | AE10: Sun | AF10: Mon | AG10: Tue | AH10: Wed | AI10: Thr | AJ10: Fri | AK10: Sat | AL10: Sun | AM10: Mon | AN10: Tue | AO10: Wed | AP10: Thr | AQ10: Fri | AR10: Sat | AS10: Sun | AT10: Mon | AU10: Tue | AV10: Wed | AW10: Thr | AX10: Fri | AY10: Sat | AZ10: Sun | BA10: Mon | BB10: Tue | BC10: Wed | BD10: Thr | BE10: Fri | BF10: Sat | BG10: _SortDate | BH10: _isCurrentWeek
A11: ProjektAUpgradesAcleanUpDesignMain_Test_586120231024 | B11: cleanUpDesign | C11: ProjectA | D11: UpgradesA | E11: 0.5 | F11: GA | G11: 2023-06-22 | H11: 2023-06-29 | J11: 3_Prototype | M11: 1 | P11: =IFERROR(IF(SUM(Y11:AD11)>0,1,IF(SUM(R11:W11)>0,0.5,0)),"") -> 1 | Y11: 0.08333333333 | Z11: 0.08333333333 | AA11: 0.08333333333 | AB11: 0.08333333333 | AC11: 0.08333333333 | BG11: 00:24:28.800
A12: ProjektAUpgradesASaveButtonMain_Test_Mod887020231024 | B12: SaveButton | C12: ProjectA | D12: UpgradesA | E12: 2 | F12: LL | G12: 2023-06-22 | H12: 2023-06-29 | J12: 3_Prototype | K12: Code in VBA? | M12: 1 | P12: =IFERROR(IF(SUM(Y12:AD12)>0,1,IF(SUM(R12:W12)>0,0.5,0)),"") -> 1 | Y12: 0.3333333333 | Z12: 0.3333333333 | AA12: 0.3333333333 | AB12: 0.3333333333 | AC12: 0.3333333333 | BG12: 00:24:28.800
A13: ProjektAPrototypeAMinimumOrderMain_Test_579520231024 | B13: MinimumOrder | C13: ProjectA | D13: PrototypeA | E13: 0.5 | F13: GA | G13: 2023-06-22 | H13: 2023-06-29 | J13: 3_Prototype | K13: if the number is below a certain level, the seller receives a warning about the sales minimum | M13: 1 | P13: =IFERROR(IF(SUM(Y13:AD13)>0,1,IF(SUM(R13:W13)>0,0.5,0)),"") -> 1 | Y13: 0.08333333333 | Z13: 0.08333333333 | AA13: 0.08333333333 | AB13: 0.08333333333 | AC13: 0.08333333333 | BG13: 00:25:55.200
A14: ProjektAPrototypeAUserChoosesParametersM908820231024 | B14: UserChoosesParameters | C14: ProjectA | D14: PrototypeA | E14: 1 | F14: GA | G14: 2023-06-22 | H14: 2023-06-29 | J14: 3_Prototype | K14: the seller selects parameters for the product/item to bring out the desired item group. In the first version there will only be one article group | M14: 1 | P14: =IFERROR(IF(SUM(Y14:AD14)>0,1,IF(SUM(R14:W14)>0,0.5,0)),"") -> 1 | Y14: 0.1666666667 | Z14: 0.1666666667 | AA14: 0.1666666667 | AB14: 0.1666666667 | AC14: 0.1666666667 | BG14: 00:25:55.200
A15: ProjektAPrototypeAStandard priceMain_Tes628320231024 | B15: Standard price | C15: ProjectA | D15: PrototypeA | E15: 1 | F15: LL | G15: 2023-06-22 | H15: 2023-06-29 | J15: 3_Prototype | K15: the 3 different articles are based on price difference from a standard price (taken from a settings sheet/cell) | M15: 1 | P15: =IFERROR(IF(SUM(Y15:AD15)>0,1,IF(SUM(R15:W15)>0,0.5,0)),"") -> 1 | Y15: 0.1666666667 | Z15: 0.1666666667 | AA15: 0.1666666667 | AB15: 0.1666666667 | AC15: 0.1666666667 | BG15: 00:25:55.200
A16: ProjektBUpgradesBcleanUpDesignMain_Test_705020231024 | B16: cleanUpDesign | C16: ProjectB | D16: UpgradesB | E16: 3 | F16: GA | G16: 2023-06-29 | H16: 2023-07-06 | J16: 3_Prototype | M16: 0 | P16: =IFERROR(IF(SUM(Y16:AD16)>0,1,IF(SUM(R16:W16)>0,0.5,0)),"") -> 0 | AF16: 0.5 | AG16: 0.5 | AH16: 0.5 | AI16: 0.5 | AJ16: 0.5 | BG16: 2023-06-29T00:24:28.800
A17: ProjektBUpgradesBSaveButtonMain_Test_Mod832020231024 | B17: SaveButton | C17: ProjectB | D17: UpgradesB | E17: 12 | F17: LL | G17: 2023-06-29 | H17: 2023-07-06 | J17: 3_Prototype | K17: Code in VBA? | M17: 0 | P17: =IFERROR(IF(SUM(Y17:AD17)>0,1,IF(SUM(R17:W17)>0,0.5,0)),"") -> 0 | AF17: 2 | AG17: 2 | AH17: 2 | AI17: 2 | AJ17: 2 | BG17: 2023-06-29T00:24:28.800
A18: ProjektB453420231024 | B18: MinimumOrder | C18: ProjectB | D18: PrototypeB | E18: 30 | F18: GA | G18: 2023-06-29 | H18: 2023-07-06 | J18: 3_Prototype | K18: if the number is below a certain level, the seller receives a warning about the sales minimum | M18: 0 | P18: =IFERROR(IF(SUM(Y18:AD18)>0,1,IF(SUM(R18:W18)>0,0.5,0)),"") -> 0 | AF18: 5 | AG18: 5 | AH18: 5 | AI18: 5 | AJ18: 5 | BG18: 2023-06-29T00:25:55.200
A19: ProjektBPrototypeBUserChoosesParametersM967720231024 | B19: UserChoosesParameters | C19: ProjectB | D19: PrototypeB | E19: 60 | F19: LL | G19: 2023-06-29 | H19: 2023-07-06 | J19: 3_Prototype | K19: the seller selects parameters for the product/item to bring out the desired item group. In the first version there will only be one article group | M19: 0 | P19: =IFERROR(IF(SUM(Y19:AD19)>0,1,IF(SUM(R19:W19)>0,0.5,0)),"") -> 0 | AF19: 10 | AG19: 10 | AH19: 10 | AI19: 10 | AJ19: 10 | BG19: 2023-06-29T00:25:55.200
A20: ProjektB464020231024 | B20: Standard price | C20: ProjectB | D20: PrototypeB | E20: 60 | F20: LL | G20: 2023-06-29 | H20: 2023-07-06 | J20: 3_Prototype | K20: the 3 different articles are based on price difference from a standard price (taken from a settings sheet/cell) | M20: 0 | P20: =IFERROR(IF(SUM(Y20:AD20)>0,1,IF(SUM(R20:W20)>0,0.5,0)),"") -> 0 | AF20: 10 | AG20: 10 | AH20: 10 | AI20: 10 | AJ20: 10 | BG20: 2023-06-29T00:25:55.200
P21: =IFERROR(IF(SUM(Y21:AD21)>0,1,IF(SUM(R21:W21)>0,0.5,0)),"") -> 0 | BG21: 2026-06-16

Sheet BUDGET
B4: =TODAY() -> 2023-10-24
B8: =IF(Admin!$B$10="NO","",IF(Admin!$B$2="MONTH",IF(MONTH(NOW())<>MONTH(Admin!$B$4),"This is a free version. Contact Exceldepartment for unlocking full potential of the model.",""), IF(Admin!$B$2="QRT",IF(INT((MONTH(NOW())+2)/3)<>INT((MONTH(Admin!$B$4)+2)/3),"This is a free version. Contact Exceldepartment for unlocking full potential of the model.",""), IF(Admin!$B$2="YEAR",IF(YEAR(NOW())<>YEAR(Admin!$B$4),"This is a free version. Contact Exceldepartment for unlocking full potential of the model.",""), "This is a free version. Contact Exceldepartment for unlocking full potential of the model.")))) -> This is a free version. Contact Exceldepartment for unlocking full potential of the model. | AD8: Total | AE8: =SUM(AE11:AE105) -> 34.88087778 | AF8: =SUM(AF11:AF105) -> 310.2 | AG8: =SUM(AG11:AG105) -> 0 | AH8: =SUM(AH11:AH105) -> 9.935777775 | AI8: =SUM(AI11:AI105) -> 285.2549 | GL8: =SUM(GL11:GL39) -> 214.0918
B9: Sum of _hours | G9: _ProjectType | AK9: =IF($AD9="","",IF(AK$10<=$AG9,"Finished",IF(AK$10<=MIN($AE9,$AF9),"Actual",IF(AK$10<=$AE9,"BudgetLeft",IF(AK$10<=$AF9,"BudgetOver",""))))) ->  | CW9: =IF($AD9="","",IF(CW$10<=$AG9,"Finished",IF(CW$10<=MIN($AE9,$AF9),"Actual",IF(CW$10<=$AE9,"BudgetLeft",IF(CW$10<=$AF9,"BudgetOver",""))))) ->  | FI9: =IF($AD9="","",IF(FI$10<=$AG9,"Finished",IF(FI$10<=MIN($AE9,$AF9),"Actual",IF(FI$10<=$AE9,"BudgetLeft",IF(FI$10<=$AF9,"BudgetOver",""))))) -> 
B10: _Project | C10: _Status | D10: _SubProject | E10: _Staff | F10: _Comment | G10: STAFF | H10: XLD_PROJECT | I10: (blank) | AA10: Name 1 | AB10: ExcludeList | AC10: Budgeted 2 | AD10: Name 2 | AE10: Budgeted | AF10: Actual | AG10: Finished | AH10: Budget Left | AI10: Over Budget | AK10: 1 | AL10: 2 | AM10: 3 | AN10: 4 | AO10: 5 | AP10: 6 | AQ10: 7 | AR10: 8 | AS10: 9 | AT10: 10 | AU10: 11 | AV10: 12 | AW10: 13 | AX10: 14 | AY10: 15 | AZ10: 16 | BA10: 17 | BB10: 18 | BC10: 19 | BD10: 20 | BE10: 21 | BF10: 22 | BG10: 23 | BH10: 24 | BI10: 25 | BJ10: 26 | BK10: 27 | BL10: 28 | BM10: 29 | BN10: 30 | BO10: 31 | BP10: 32 | BQ10: 33 | BR10: 34 | BS10: 35 | BT10: 36 | BU10: 37 | BV10: 38 | BW10: 39 | BX10: 40 | BY10: 41 | BZ10: 42 | CA10: 43 | CB10: 44 | CC10: 45 | CD10: 46 | CE10: 47 | CF10: 48 | CG10: 49 | CH10: 50 | CI10: 51 | CJ10: 52 | CK10: 53 | CL10: 54 | CM10: 55 | CN10: 56 | CO10: 57 | CP10: 58 | CQ10: 59 | CR10: 60 | CS10: 61 | CT10: 62 | CU10: 63 | CV10: 64 | CW10: 65 | CX10: 66 | CY10: 67 | CZ10: 68 | DA10: 69 | DB10: 70 | DC10: 71 | DD10: 72 | DE10: 73 | DF10: 74 | DG10: 75 | DH10: 76 | DI10: 77 | DJ10: 78 | DK10: 79 | DL10: 80 | DM10: 81 | DN10: 82 | DO10: 83 | DP10: 84 | DQ10: 85 | DR10: 86 | DS10: 87 | DT10: 88 | DU10: 89 | DV10: 90 | DW10: 91 | DX10: 92 | DY10: 93 | DZ10: 94 | EA10: 95 | EB10: 96 | EC10: 97 | ED10: 98 | EE10: 99 | EF10: 100 | EG10: 101 | EH10: 102 | EI10: 103 | EJ10: 104 | EK10: 105 | EL10: 106 | EM10: 107 | EN10: 108 | EO10: 109 | EP10: 110 | EQ10: 111 | ER10: 112 | ES10: 113 | ET10: 114 | EU10: 115 | EV10: 116 | EW10: 117 | EX10: 118 | EY10: 119 | EZ10: 120 | FA10: 121 | FB10: 122 | FC10: 123 | FD10: 124 | FE10: 125 | FF10: 126 | FG10: 127 | FH10: 128 | FI10: 129 | FJ10: 130 | FK10: 131 | FL10: 132 | FM10: 133 | FN10: 134 | FO10: 135 | FP10: 136 | FQ10: 137 | FR10: 138 | FS10: 139 | FT10: 140 | FU10: 141 | FV10: 142 | FW10: 143 | FX10: 144 | FY10: 145 | FZ10: 146 | GA10: 147 | GB10: 148 | GC10: 149 | GD10: 150 | GI10: Name 2 | GJ10: Budgeted | GK10: Chance | GL10: Adjusted Hours
B11: (blank) | C11: (blank) | D11: (blank) | E11: (blank) | F11: (blank) | AA11: =_xlfn.UNIQUE($B$11:$B$917) -> (blank) | AB11: (blank) | AC11: =IF(OR(AA11="",COUNTIFS($AB$11:$AB$38,AA11)=1),"",SUMIFS($G$11:$G$600,$B$11:$B$600,AA11)+ROW(AA11)*0.0001) ->  | AD11: =IFERROR(IF(AE11="","",INDEX($AA$10:$AC$207,MATCH(AE11,$AC$10:$AC$199,0),1)),"") -> ProjectB | AE11: =IFERROR(LARGE($AC$11:$AC$207,ROW(AC11)-10),"") -> 19.9414 | AF11: =IFERROR(SUMIFS($H$11:$H$599,$B$11:$B$599,AD11),"") -> 165 | AG11: =IFERROR(SUMIFS($G$11:$G$599,$B$11:$B$599,AD11,$C$11:$C$599,"6_Implemented")+SUMIFS($G$11:$G$599,$B$11:$B$599,AD11,$C$11:$C$599,"5_Readay"),"") -> 0 | AH11: =IFERROR(MAX(AE11-AF11,0),"") -> 0 | AI11: =IFERROR(MAX(AF11-AE11,0),"") -> 145.0586 | AK11: =IF($AD11="","",IF(AK$10<=$AG11,"Finished",IF(AK$10<=MIN($AE11,$AF11),"Actual",IF(AK$10<=$AE11,"BudgetLeft",IF(AK$10<=$AF11,"BudgetOver",""))))) -> Actual | AL11: Actual | AM11: Actual | AN11: Actual | AO11: Actual | AP11: Actual | AQ11: Actual | AR11: Actual | AS11: Actual | AT11: Actual | AU11: Actual | AV11: Actual | AW11: Actual | AX11: Actual | AY11: Actual | AZ11: Actual | BA11: =IF($AD11="","",IF(BA$10<=$AG11,"Finished",IF(BA$10<=MIN($AE11,$AF11),"Actual",IF(BA$10<=$AE11,"BudgetLeft",IF(BA$10<=$AF11,"BudgetOver",""))))) -> Actual | BB11: Actual | BC11: Actual | BD11: BudgetOver | BE11: BudgetOver | BF11: BudgetOver | BG11: BudgetOver | BH11: BudgetOver | BI11: BudgetOver | BJ11: BudgetOver | BK11: BudgetOver | BL11: BudgetOver | BM11: BudgetOver | BN11: BudgetOver | BO11: BudgetOver | BP11: BudgetOver | BQ11: =IF($AD11="","",IF(BQ$10<=$AG11,"Finished",IF(BQ$10<=MIN($AE11,$AF11),"Actual",IF(BQ$10<=$AE11,"BudgetLeft",IF(BQ$10<=$AF11,"BudgetOver",""))))) -> BudgetOver | BR11: BudgetOver | BS11: BudgetOver | BT11: BudgetOver | BU11: BudgetOver | BV11: BudgetOver | BW11: BudgetOver | BX11: BudgetOver | BY11: BudgetOver | BZ11: BudgetOver | CA11: BudgetOver | CB11: BudgetOver | CC11: BudgetOver | CD11: BudgetOver | CE11: BudgetOver | CF11: BudgetOver | CG11: =IF($AD11="","",IF(CG$10<=$AG11,"Finished",IF(CG$10<=MIN($AE11,$AF11),"Actual",IF(CG$10<=$AE11,"BudgetLeft",IF(CG$10<=$AF11,"BudgetOver",""))))) -> BudgetOver | CH11: BudgetOver | CI11: BudgetOver | CJ11: BudgetOver | CK11: BudgetOver | CL11: BudgetOver | CM11: BudgetOver | CN11: BudgetOver | CO11: BudgetOver | CP11: BudgetOver | CQ11: BudgetOver | CR11: BudgetOver | CS11: BudgetOver | CT11: BudgetOver | CU11: BudgetOver | CV11: BudgetOver | CW11: =IF($AD11="","",IF(CW$10<=$AG11,"Finished",IF(CW$10<=MIN($AE11,$AF11),"Actual",IF(CW$10<=$AE11,"BudgetLeft",IF(CW$10<=$AF11,"BudgetOver",""))))) -> BudgetOver | CX11: BudgetOver | CY11: BudgetOver | CZ11: BudgetOver | DA11: BudgetOver | DB11: BudgetOver | DC11: BudgetOver | DD11: BudgetOver | DE11: BudgetOver | DF11: BudgetOver | DG11: BudgetOver | DH11: BudgetOver | DI11: BudgetOver | DJ11: BudgetOver | DK11: BudgetOver | DL11: BudgetOver | DM11: =IF($AD11="","",IF(DM$10<=$AG11,"Finished",IF(DM$10<=MIN($AE11,$AF11),"Actual",IF(DM$10<=$AE11,"BudgetLeft",IF(DM$10<=$AF11,"BudgetOver",""))))) -> BudgetOver | DN11: BudgetOver | DO11: BudgetOver | DP11: BudgetOver | DQ11: BudgetOver | DR11: BudgetOver | DS11: BudgetOver | DT11: BudgetOver | DU11: BudgetOver | DV11: BudgetOver | DW11: BudgetOver | DX11: BudgetOver | DY11: BudgetOver | DZ11: BudgetOver | EA11: BudgetOver | EB11: BudgetOver | EC11: =IF($AD11="","",IF(EC$10<=$AG11,"Finished",IF(EC$10<=MIN($AE11,$AF11),"Actual",IF(EC$10<=$AE11,"BudgetLeft",IF(EC$10<=$AF11,"BudgetOver",""))))) -> BudgetOver | ED11: BudgetOver | EE11: BudgetOver | EF11: BudgetOver | EG11: BudgetOver | EH11: BudgetOver | EI11: BudgetOver | EJ11: BudgetOver | EK11: BudgetOver | EL11: BudgetOver | EM11: BudgetOver | EN11: BudgetOver | EO11: BudgetOver | EP11: BudgetOver | EQ11: BudgetOver | ER11: BudgetOver | ES11: =IF($AD11="","",IF(ES$10<=$AG11,"Finished",IF(ES$10<=MIN($AE11,$AF11),"Actual",IF(ES$10<=$AE11,"BudgetLeft",IF(ES$10<=$AF11,"BudgetOver",""))))) -> BudgetOver | ET11: BudgetOver | EU11: BudgetOver | EV11: BudgetOver | EW11: BudgetOver | EX11: BudgetOver | EY11: BudgetOver | EZ11: BudgetOver | FA11: BudgetOver | FB11: BudgetOver | FC11: BudgetOver | FD11: BudgetOver | FE11: BudgetOver | FF11: BudgetOver | FG11: BudgetOver | FH11: BudgetOver | FI11: =IF($AD11="","",IF(FI$10<=$AG11,"Finished",IF(FI$10<=MIN($AE11,$AF11),"Actual",IF(FI$10<=$AE11,"BudgetLeft",IF(FI$10<=$AF11,"BudgetOver",""))))) -> BudgetOver | FJ11: BudgetOver | FK11: BudgetOver | FL11: BudgetOver | FM11: BudgetOver | FN11: BudgetOver | FO11: BudgetOver | FP11: BudgetOver | FQ11: BudgetOver | FR11: BudgetOver | FS11: BudgetOver | FT11: BudgetOver | FU11: BudgetOver | FV11: BudgetOver | FW11: BudgetOver | FX11: BudgetOver | FY11: =IF($AD11="","",IF(FY$10<=$AG11,"Finished",IF(FY$10<=MIN($AE11,$AF11),"Actual",IF(FY$10<=$AE11,"BudgetLeft",IF(FY$10<=$AF11,"BudgetOver",""))))) -> BudgetOver | FZ11: BudgetOver | GA11: BudgetOver | GB11: BudgetOver | GC11: BudgetOver | GD11: BudgetOver | GI11: JobMan | GJ11: 82.5018 | GK11: 0.6 | GL11: =GK11*GJ11 -> 49.50108
B12: (blank) | C12: (blank) | D12: (blank) | E12: LL | F12: (blank) | AA12: Internt | AB12: 0 | AC12: =IF(OR(AA12="",COUNTIFS($AB$11:$AB$38,AA12)=1),"",SUMIFS($G$11:$G$600,$B$11:$B$600,AA12)+ROW(AA12)*0.0001) ->  | AD12: ProjectC | AE12: =IFERROR(LARGE($AC$11:$AC$207,ROW(AC12)-10),"") -> 8.759755555 | AF12: =IFERROR(SUMIFS($H$11:$H$599,$B$11:$B$599,AD12),"") -> 0 | AG12: =IFERROR(SUMIFS($G$11:$G$599,$B$11:$B$599,AD12,$C$11:$C$599,"6_Implemented")+SUMIFS($G$11:$G$599,$B$11:$B$599,AD12,$C$11:$C$599,"5_Readay"),"") -> 0 | AH12: =IFERROR(MAX(AE12-AF12,0),"") -> 8.759755555 | AI12: =IFERROR(MAX(AF12-AE12,0),"") -> 0 | AK12: BudgetLeft | AL12: BudgetLeft | AM12: BudgetLeft | AN12: BudgetLeft | AO12: BudgetLeft | AP12: BudgetLeft | AQ12: BudgetLeft | AR12: BudgetLeft | GI12: Enköping | GJ12: 34.0013 | GK12: 0.4 | GL12: 13.60052
B13: Internt | C13: (blank) | D13: XLD_Internal | E13: GA | F13: schedule, email, customer contact, project planning, staff etc | G13: 3.5 | AA13: ProjectA | AB13: Internt | AC13: 6.17602222 | AD13: ProjectA | AE13: 6.17602222 | AF13: 5 | AG13: 0 | AH13: 1.17602222 | AI13: 0 | AK13: Actual | AL13: Actual | AM13: Actual | AN13: Actual | AO13: Actual | AP13: BudgetLeft | GI13: Landshypotek | GJ13: 25.002 | GK13: 0.4 | GL13: 10.0008
B14: Internt | C14: (blank) | D14: XLD_Internal | E14: GA | F14: Organize, Clean and understand ColorDB | G14: 0.9 | AA14: ProjectB | AB14: XLD_Internal | AC14: 19.9414 | AD14: ProjektB | AE14: 0.0019 | AF14: 135.6 | AG14: 0 | AH14: 0 | AI14: 135.5981 | AK14: BudgetOver | AL14: BudgetOver | AM14: BudgetOver | AN14: BudgetOver | AO14: BudgetOver | AP14: BudgetOver | AQ14: BudgetOver | AR14: BudgetOver | AS14: BudgetOver | AT14: BudgetOver | AU14: BudgetOver | AV14: BudgetOver | AW14: BudgetOver | AX14: BudgetOver | AY14: BudgetOver | AZ14: BudgetOver | BA14: BudgetOver | BB14: BudgetOver | BC14: BudgetOver | BD14: BudgetOver | BE14: BudgetOver | BF14: BudgetOver | BG14: BudgetOver | BH14: BudgetOver | BI14: BudgetOver | BJ14: BudgetOver | BK14: BudgetOver | BL14: BudgetOver | BM14: BudgetOver | BN14: BudgetOver | BO14: BudgetOver | BP14: BudgetOver | BQ14: BudgetOver | BR14: BudgetOver | BS14: BudgetOver | BT14: BudgetOver | BU14: BudgetOver | BV14: BudgetOver | BW14: BudgetOver | BX14: BudgetOver | BY14: BudgetOver | BZ14: BudgetOver | CA14: BudgetOver | CB14: BudgetOver | CC14: BudgetOver | CD14: BudgetOver | CE14: BudgetOver | CF14: BudgetOver | CG14: BudgetOver | CH14: BudgetOver | CI14: BudgetOver | CJ14: BudgetOver | CK14: BudgetOver | CL14: BudgetOver | CM14: BudgetOver | CN14: BudgetOver | CO14: BudgetOver | CP14: BudgetOver | CQ14: BudgetOver | CR14: BudgetOver | CS14: BudgetOver | CT14: BudgetOver | CU14: BudgetOver | CV14: BudgetOver | CW14: BudgetOver | CX14: BudgetOver | CY14: BudgetOver | CZ14: BudgetOver | DA14: BudgetOver | DB14: BudgetOver | DC14: BudgetOver | DD14: BudgetOver | DE14: BudgetOver | DF14: BudgetOver | DG14: BudgetOver | DH14: BudgetOver | DI14: BudgetOver | DJ14: BudgetOver | DK14: BudgetOver | DL14: BudgetOver | DM14: BudgetOver | DN14: BudgetOver | DO14: BudgetOver | DP14: BudgetOver | DQ14: BudgetOver | DR14: BudgetOver | DS14: BudgetOver | DT14: BudgetOver | DU14: BudgetOver | DV14: BudgetOver | DW14: BudgetOver | DX14: BudgetOver | DY14: BudgetOver | DZ14: BudgetOver | EA14: BudgetOver | EB14: BudgetOver | EC14: BudgetOver | ED14: BudgetOver | EE14: BudgetOver | EF14: BudgetOver | EG14: BudgetOver | EH14: BudgetOver | EI14: BudgetOver | EJ14: BudgetOver | EK14: BudgetOver | EL14: BudgetOver | EM14: BudgetOver | EN14: BudgetOver | EO14: BudgetOver | EP14: BudgetOver | EQ14: BudgetOver | ER14: BudgetOver | ES14: BudgetOver | ET14: BudgetOver | EU14: BudgetOver | EV14: BudgetOver | EW14: BudgetOver | EX14: BudgetOver | EY14: BudgetOver | EZ14: BudgetOver | FA14: BudgetOver | FB14: BudgetOver | FC14: BudgetOver | FD14: BudgetOver | FE14: BudgetOver | FF14: BudgetOver | FG14: BudgetOver | FH14: BudgetOver | FI14: BudgetOver | FJ14: BudgetOver | FK14: BudgetOver | FL14: BudgetOver | FM14: BudgetOver | FN14: BudgetOver | FO14: BudgetOver | GI14: XLD_Course | GJ14: 21.0033 | GK14: 1 | GL14: 21.0033
B15: Internt | C15: (blank) | D15: MeetingAboutClientProject | E15: GA | F15: meeting with Ivan (about Company_1) | G15: 0.4 | AA15: XLD_Internal | AB15: StaffPlanning | AD15: ProjektA | AE15: 0.0018 | AF15: 4.6 | AG15: 0 | AH15: 0 | AI15: 4.5982 | AK15: BudgetOver | AL15: BudgetOver | AM15: BudgetOver | AN15: BudgetOver | GI15: Lasingoo | GJ15: 6 | GK15: 1 | GL15: 6
B16: Internt | C16: (blank) | D16: Internal | E16: LL | F16: (blank) | G16: 0.2502777767 | AA16: StaffPlanning | AF16: 0 | AG16: 0 | GI16: Company_12Periodisk | GJ16: 10.503 | GK16: 1 | GL16: 10.503
B17: Internt | C17: (blank) | D17: Internal | E17: LL | F17: 8:43 - 18:4 / Schedule_P | G17: 0.08 | AA17: ProjectC | AC17: 8.759755555 | AF17: 0 | AG17: 0 | GI17: WeAndWine | GJ17: 3.7531 | GK17: 1 | GL17: 3.7531
B18: Internt | C18: (blank) | D18: Internal | E18: LL | F18: 8:43 - 18:4 / Schedule_I | G18: 0.08 | AA18: ProjektA | AC18: 0.0018 | AF18: 0 | AG18: 0 | GI18: XLD_Marketing | GJ18: 6.0035 | GK18: 0 | GL18: 0
B19: Internt | C19: (blank) | D19: Internal | E19: LL | F19: 8:43 - 18:4 / BudgetAndA | G19: 1.12 | AA19: ProjektB | AC19: 0.0019 | AF19: 0 | AG19: 0 | GI19: teknikutveckling-bv | GJ19: 6 | GK19: 0.5 | GL19: 3
B20: Internt | C20: (blank) | D20: Email Importer | E20: LL | F20: (blank) | G20: 1.5 | AA20: 0 | AF20: 0 | AG20: 0 | GI20: Company_13 | GJ20: 6 | GK20: 0.5 | GL20: 3
B21: ProjectA | C21: (blank) | D21: Basic model 2306 | E21: GA | F21: fixed design, functions, and little gets a long time on 3D map | G21: 3 | AF21: 0 | AG21: 0 | GI21: Company_5 | GJ21: 5 | GK21: 0.5 | GL21: 2.5
B22: ProjectA | C22: (blank) | D22: Basic model 2306 | E22: GA | F22: meeting with customer and lukas | G22: 0.5 | AF22: 0 | AG22: 0 | GI22: PriceGainInternal | GJ22: 20 | GK22: 0.5 | GL22: 10
B23: ProjectA | C23: (blank) | D23: 230615_OffertMall | E23: GA | F23: meeting with customer and lukas | G23: 1 | AF23: 0 | AG23: 0 | GI23: Company_13 | GJ23: 10 | GK23: 0.5 | GL23: 5
B24: ProjectA | C24: (blank) | D24: Updates2303 | E24: LL | F24: (blank) | G24: 1.67472222 | AF24: 0 | AG24: 0 | GI24: PriceGainInternal | GJ24: 20 | GK24: 0.5 | GL24: 10
B25: ProjectA | C25: 3_Prototype | D25: PrototypeA | E25: GA | F25: if the number is below a certain level, the seller receives a warning about the sales minimum | H25: 0.5 | AF25: 0 | AG25: 0 | GI25: Company_11 | GJ25: 10 | GK25: 0.5 | GL25: 5
B26: ProjectA | C26: 3_Prototype | D26: PrototypeA | E26: GA | F26: the seller selects parameters for the product/item to bring out the desired item group. In the first version there will only be one article group | H26: 1 | AF26: 0 | AG26: 0 | AZ26: =IF($AD26="","",IF(AZ$10<=$AG26,"Finished",IF(AZ$10<=MIN($AE26,$AF26),"Actual",IF(AZ$10<=$AE26,"BudgetLeft",IF(AZ$10<=$AF26,"BudgetOver",""))))) ->  | CF26: =IF($AD26="","",IF(CF$10<=$AG26,"Finished",IF(CF$10<=MIN($AE26,$AF26),"Actual",IF(CF$10<=$AE26,"BudgetLeft",IF(CF$10<=$AF26,"BudgetOver",""))))) ->  | CG26: =IF($AD26="","",IF(CG$10<=$AG26,"Finished",IF(CG$10<=MIN($AE26,$AF26),"Actual",IF(CG$10<=$AE26,"BudgetLeft",IF(CG$10<=$AF26,"BudgetOver",""))))) ->  | CH26: =IF($AD26="","",IF(CH$10<=$AG26,"Finished",IF(CH$10<=MIN($AE26,$AF26),"Actual",IF(CH$10<=$AE26,"BudgetLeft",IF(CH$10<=$AF26,"BudgetOver",""))))) ->  | DL26: =IF($AD26="","",IF(DL$10<=$AG26,"Finished",IF(DL$10<=MIN($AE26,$AF26),"Actual",IF(DL$10<=$AE26,"BudgetLeft",IF(DL$10<=$AF26,"BudgetOver",""))))) ->  | EB26: =IF($AD26="","",IF(EB$10<=$AG26,"Finished",IF(EB$10<=MIN($AE26,$AF26),"Actual",IF(EB$10<=$AE26,"BudgetLeft",IF(EB$10<=$AF26,"BudgetOver",""))))) ->  | FH26: =IF($AD26="","",IF(FH$10<=$AG26,"Finished",IF(FH$10<=MIN($AE26,$AF26),"Actual",IF(FH$10<=$AE26,"BudgetLeft",IF(FH$10<=$AF26,"BudgetOver",""))))) ->  | FI26: =IF($AD26="","",IF(FI$10<=$AG26,"Finished",IF(FI$10<=MIN($AE26,$AF26),"Actual",IF(FI$10<=$AE26,"BudgetLeft",IF(FI$10<=$AF26,"BudgetOver",""))))) ->  | FJ26: =IF($AD26="","",IF(FJ$10<=$AG26,"Finished",IF(FJ$10<=MIN($AE26,$AF26),"Actual",IF(FJ$10<=$AE26,"BudgetLeft",IF(FJ$10<=$AF26,"BudgetOver",""))))) ->  | GI26: Company_2 | GJ26: 20 | GK26: 0.5 | GL26: 10
B27: ProjectA | C27: 3_Prototype | D27: PrototypeA | E27: LL | F27: the 3 different articles are based on price difference from a standard price (taken from a settings sheet/cell) | H27: 1 | AF27: 0 | AG27: 0 | AK27: =IF($AD27="","",IF(AK$10<=$AG27,"Finished",IF(AK$10<=MIN($AE27,$AF27),"Actual",IF(AK$10<=$AE27,"BudgetLeft",IF(AK$10<=$AF27,"BudgetOver",""))))) ->  | BK27: =IF($AD27="","",IF(BK$10<=$AG27,"Finished",IF(BK$10<=MIN($AE27,$AF27),"Actual",IF(BK$10<=$AE27,"BudgetLeft",IF(BK$10<=$AF27,"BudgetOver",""))))) ->  | CA27: =IF($AD27="","",IF(CA$10<=$AG27,"Finished",IF(CA$10<=MIN($AE27,$AF27),"Actual",IF(CA$10<=$AE27,"BudgetLeft",IF(CA$10<=$AF27,"BudgetOver",""))))) ->  | CQ27: =IF($AD27="","",IF(CQ$10<=$AG27,"Finished",IF(CQ$10<=MIN($AE27,$AF27),"Actual",IF(CQ$10<=$AE27,"BudgetLeft",IF(CQ$10<=$AF27,"BudgetOver",""))))) ->  | DG27: =IF($AD27="","",IF(DG$10<=$AG27,"Finished",IF(DG$10<=MIN($AE27,$AF27),"Actual",IF(DG$10<=$AE27,"BudgetLeft",IF(DG$10<=$AF27,"BudgetOver",""))))) ->  | EM27: =IF($AD27="","",IF(EM$10<=$AG27,"Finished",IF(EM$10<=MIN($AE27,$AF27),"Actual",IF(EM$10<=$AE27,"BudgetLeft",IF(EM$10<=$AF27,"BudgetOver",""))))) ->  | FC27: =IF($AD27="","",IF(FC$10<=$AG27,"Finished",IF(FC$10<=MIN($AE27,$AF27),"Actual",IF(FC$10<=$AE27,"BudgetLeft",IF(FC$10<=$AF27,"BudgetOver",""))))) ->  | FS27: =IF($AD27="","",IF(FS$10<=$AG27,"Finished",IF(FS$10<=MIN($AE27,$AF27),"Actual",IF(FS$10<=$AE27,"BudgetLeft",IF(FS$10<=$AF27,"BudgetOver",""))))) ->  | GI27: Company_5New | GJ27: 5 | GK27: 0.5 | GL27: 2.5
B28: ProjectA | C28: 3_Prototype | D28: UpgradesA | E28: GA | F28: (blank) | H28: 0.5 | AF28: 0 | AG28: 0 | GI28: Company_1 | GJ28: 19.7 | GK28: 0.9 | GL28: 17.73
B29: ProjectA | C29: 3_Prototype | D29: UpgradesA | E29: LL | F29: Code in VBA? | H29: 2 | AF29: 0 | AG29: 0 | GI29: Company_8 | GJ29: 15 | GK29: 0.9 | GL29: =GK29*GJ29 -> 13.5
B30: ProjectB | C30: (blank) | D30: XLD_Internal | E30: GA | F30: meeting ivan, pontus | G30: 0.6 | AF30: 0 | AG30: 0 | GI30: JobbEntren | GJ30: 25 | GK30: 0.7 | GL30: =GK30*GJ30 -> 17.5
B31: ProjectB | C31: (blank) | D31: XLD_Internal | E31: GA | F31: meeting lukas, pontus | G31: 1.3 | AF31: 0 | AG31: 0
B32: ProjectB | C32: (blank) | D32: Updates2303Suggestion | E32: GA | F32: delete in db and restore in quick save | G32: 2 | AF32: 0 | AG32: 0
B33: ProjectB | C33: (blank) | D33: 230425_XX | E33: GA | F33: have gone through the pivot tables and fix some formulas to get the right data | G33: 1 | AF33: 0 | AG33: 0
B34: ProjectB | C34: (blank) | D34: MonthlyBudget | E34: GA | F34: added the missing customer addresses (the most important ones) | G34: 2 | AF34: 0 | AG34: 0
B35: ProjectB | C35: (blank) | D35: QuarterlBudget | E35: GA | F35: fixed (hopefully) the last wishes from Fredrik for Q1 | G35: 2.7 | AF35: 0 | AG35: 0
B36: ProjectB | C36: (blank) | D36: HandOverFile | E36: GA | F36: fixed so the model can read "Sheet" and "Blad" | G36: 0.5 | AF36: 0 | AG36: 0
B37: ProjectB | C37: (blank) | D37: CSV Import | E37: GA | F37: have hopefully solved the problem with their model (code change in ExportCSV) | G37: 0.8 | AF37: 0 | AG37: 0
B38: ProjectB | C38: (blank) | D38: Support2303 | E38: GA | F38: last on PriceHistory | G38: 1.2 | AF38: 0 | AG38: 0
B39: ProjectB | C39: (blank) | D39: Premium_Not_Zero | E39: GA | F39: Meeting | G39: 0.7 | AF39: 0 | AG39: 0
B40: ProjectB | C40: (blank) | D40: Premium_Not_Zero | E40: GA | F40: a quick draft (3x the rate) | G40: 0.7 | AF40: 0 | AG40: 0
B41: ProjectB | C41: (blank) | D41: Support | E41: LL | F41: 10:43 - 15:39 / ProdCostMo | G41: 2.24 | AF41: 0 | AG41: 0
B42: ProjectB | C42: (blank) | D42: Support | E42: LL | F42: 14:9 - 15:19 / AddaMoble | G42: 1.12 | AF42: 0 | AG42: 0 | BA42: =IF($AD42="","",IF(BA$10<=$AG42,"Finished",IF(BA$10<=MIN($AE42,$AF42),"Actual",IF(BA$10<=$AE42,"BudgetLeft",IF(BA$10<=$AF42,"BudgetOver",""))))) ->  | CP42: =IF($AD42="","",IF(CP$10<=$AG42,"Finished",IF(CP$10<=MIN($AE42,$AF42),"Actual",IF(CP$10<=$AE42,"BudgetLeft",IF(CP$10<=$AF42,"BudgetOver",""))))) ->  | CQ42: =IF($AD42="","",IF(CQ$10<=$AG42,"Finished",IF(CQ$10<=MIN($AE42,$AF42),"Actual",IF(CQ$10<=$AE42,"BudgetLeft",IF(CQ$10<=$AF42,"BudgetOver",""))))) ->  | CR42: =IF($AD42="","",IF(CR$10<=$AG42,"Finished",IF(CR$10<=MIN($AE42,$AF42),"Actual",IF(CR$10<=$AE42,"BudgetLeft",IF(CR$10<=$AF42,"BudgetOver",""))))) ->  | DV42: =IF($AD42="","",IF(DV$10<=$AG42,"Finished",IF(DV$10<=MIN($AE42,$AF42),"Actual",IF(DV$10<=$AE42,"BudgetLeft",IF(DV$10<=$AF42,"BudgetOver",""))))) ->  | EL42: =IF($AD42="","",IF(EL$10<=$AG42,"Finished",IF(EL$10<=MIN($AE42,$AF42),"Actual",IF(EL$10<=$AE42,"BudgetLeft",IF(EL$10<=$AF42,"BudgetOver",""))))) ->  | FR42: =IF($AD42="","",IF(FR$10<=$AG42,"Finished",IF(FR$10<=MIN($AE42,$AF42),"Actual",IF(FR$10<=$AE42,"BudgetLeft",IF(FR$10<=$AF42,"BudgetOver",""))))) ->  | FS42: =IF($AD42="","",IF(FS$10<=$AG42,"Finished",IF(FS$10<=MIN($AE42,$AF42),"Actual",IF(FS$10<=$AE42,"BudgetLeft",IF(FS$10<=$AF42,"BudgetOver",""))))) ->  | FT42: =IF($AD42="","",IF(FT$10<=$AG42,"Finished",IF(FT$10<=MIN($AE42,$AF42),"Actual",IF(FT$10<=$AE42,"BudgetLeft",IF(FT$10<=$AF42,"BudgetOver",""))))) -> 
B43: ProjectB | C43: (blank) | D43: UNKNOWN | E43: LL | F43: 18:24 - 19:50 / StatsBudge | G43: 0.08 | AF43: 0 | AG43: 0 | AK43: =IF($AD43="","",IF(AK$10<=$AG43,"Finished",IF(AK$10<=MIN($AE43,$AF43),"Actual",IF(AK$10<=$AE43,"BudgetLeft",IF(AK$10<=$AF43,"BudgetOver",""))))) ->  | BQ43: =IF($AD43="","",IF(BQ$10<=$AG43,"Finished",IF(BQ$10<=MIN($AE43,$AF43),"Actual",IF(BQ$10<=$AE43,"BudgetLeft",IF(BQ$10<=$AF43,"BudgetOver",""))))) ->  | CG43: =IF($AD43="","",IF(CG$10<=$AG43,"Finished",IF(CG$10<=MIN($AE43,$AF43),"Actual",IF(CG$10<=$AE43,"BudgetLeft",IF(CG$10<=$AF43,"BudgetOver",""))))) ->  | CW43: =IF($AD43="","",IF(CW$10<=$AG43,"Finished",IF(CW$10<=MIN($AE43,$AF43),"Actual",IF(CW$10<=$AE43,"BudgetLeft",IF(CW$10<=$AF43,"BudgetOver",""))))) ->  | DM43: =IF($AD43="","",IF(DM$10<=$AG43,"Finished",IF(DM$10<=MIN($AE43,$AF43),"Actual",IF(DM$10<=$AE43,"BudgetLeft",IF(DM$10<=$AF43,"BudgetOver",""))))) ->  | EW43: =IF($AD43="","",IF(EW$10<=$AG43,"Finished",IF(EW$10<=MIN($AE43,$AF43),"Actual",IF(EW$10<=$AE43,"BudgetLeft",IF(EW$10<=$AF43,"BudgetOver",""))))) ->  | FM43: =IF($AD43="","",IF(FM$10<=$AG43,"Finished",IF(FM$10<=MIN($AE43,$AF43),"Actual",IF(FM$10<=$AE43,"BudgetLeft",IF(FM$10<=$AF43,"BudgetOver",""))))) ->  | GC43: =IF($AD43="","",IF(GC$10<=$AG43,"Finished",IF(GC$10<=MIN($AE43,$AF43),"Actual",IF(GC$10<=$AE43,"BudgetLeft",IF(GC$10<=$AF43,"BudgetOver",""))))) -> 
B44: ProjectB | C44: (blank) | D44: Invoicing | E44: LL | F44: (blank) | G44: 2.5 | AF44: 0 | AG44: 0
B45: ProjectB | C45: (blank) | D45: Liquidity | E45: LL | F45: (blank) | G45: 0.5 | AF45: 0 | AG45: 0
B46: ProjectB | C46: 3_Prototype | D46: PrototypeB | E46: GA | F46: if the number is below a certain level, the seller receives a warning about the sales minimum | H46: 30 | AF46: 0 | AG46: 0
B47: ProjectB | C47: 3_Prototype | D47: PrototypeB | E47: LL | F47: the seller selects parameters for the product/item to bring out the desired item group. In the first version there will only be one article group | H47: 60 | AF47: 0 | AG47: 0
B48: ProjectB | C48: 3_Prototype | D48: PrototypeB | E48: LL | F48: the 3 different articles are based on price difference from a standard price (taken from a settings sheet/cell) | H48: 60 | AF48: 0 | AG48: 0
B49: ProjectB | C49: 3_Prototype | D49: UpgradesB | E49: GA | F49: (blank) | H49: 3 | AF49: 0 | AG49: 0
B50: ProjectB | C50: 3_Prototype | D50: UpgradesB | E50: LL | F50: Code in VBA? | H50: 12 | AF50: 0 | AG50: 0
B51: XLD_Internal | C51: (blank) | D51: XLD_Internal | E51: GA | F51: schedule, email, customer contact, project planning, staff etc | G51: 2.8 | AF51: 0 | AG51: 0
B52: StaffPlanning | C52: 4_HolidayRequested | D52: Holiday | E52: GA | F52: (blank) | G52: 120 | AF52: 0 | AG52: 0
B53: StaffPlanning | C53: 2_Working | D53: Holiday | E53: GA | F53: (blank) | G53: 300 | AF53: 0 | AG53: 0
B54: StaffPlanning | C54: 3_NotAvailable | D54: Holiday | E54: GA | F54: (blank) | G54: 46 | AF54: 0 | AG54: 0
B55: ProjectC | C55: (blank) | D55: OfferOfImprovements | E55: LL | F55: (blank) | AF55: 0 | AG55: 0
B56: ProjectC | C56: (blank) | D56: Support | E56: LL | F56: (blank) | G56: 1 | AF56: 0 | AG56: 0
B57: ProjectC | C57: (blank) | D57: Company_19 | E57: LL | F57: (blank) | G57: 1.5 | AF57: 0 | AG57: 0
B58: ProjectC | C58: (blank) | D58: Support2305 | E58: LL | F58: (blank) | G58: 0.08333333273 | AF58: 0 | AG58: 0 | AZ58: =IF($AD58="","",IF(AZ$10<=$AG58,"Finished",IF(AZ$10<=MIN($AE58,$AF58),"Actual",IF(AZ$10<=$AE58,"BudgetLeft",IF(AZ$10<=$AF58,"BudgetOver",""))))) ->  | BP58: =IF($AD58="","",IF(BP$10<=$AG58,"Finished",IF(BP$10<=MIN($AE58,$AF58),"Actual",IF(BP$10<=$AE58,"BudgetLeft",IF(BP$10<=$AF58,"BudgetOver",""))))) ->  | CV58: =IF($AD58="","",IF(CV$10<=$AG58,"Finished",IF(CV$10<=MIN($AE58,$AF58),"Actual",IF(CV$10<=$AE58,"BudgetLeft",IF(CV$10<=$AF58,"BudgetOver",""))))) ->  | EC58: =IF($AD58="","",IF(EC$10<=$AG58,"Finished",IF(EC$10<=MIN($AE58,$AF58),"Actual",IF(EC$10<=$AE58,"BudgetLeft",IF(EC$10<=$AF58,"BudgetOver",""))))) ->  | ES58: =IF($AD58="","",IF(ES$10<=$AG58,"Finished",IF(ES$10<=MIN($AE58,$AF58),"Actual",IF(ES$10<=$AE58,"BudgetLeft",IF(ES$10<=$AF58,"BudgetOver",""))))) ->  | GB58: =IF($AD58="","",IF(GB$10<=$AG58,"Finished",IF(GB$10<=MIN($AE58,$AF58),"Actual",IF(GB$10<=$AE58,"BudgetLeft",IF(GB$10<=$AF58,"BudgetOver",""))))) ->  | GC58: =IF($AD58="","",IF(GC$10<=$AG58,"Finished",IF(GC$10<=MIN($AE58,$AF58),"Actual",IF(GC$10<=$AE58,"BudgetLeft",IF(GC$10<=$AF58,"BudgetOver",""))))) ->  | GD58: =IF($AD58="","",IF(GD$10<=$AG58,"Finished",IF(GD$10<=MIN($AE58,$AF58),"Actual",IF(GD$10<=$AE58,"BudgetLeft",IF(GD$10<=$AF58,"BudgetOver",""))))) -> 
B59: ProjectC | C59: (blank) | D59: ManualHelp2305 | E59: LL | F59: (blank) | G59: 1.674722222 | AF59: 0 | AG59: 0 | AK59: =IF($AD59="","",IF(AK$10<=$AG59,"Finished",IF(AK$10<=MIN($AE59,$AF59),"Actual",IF(AK$10<=$AE59,"BudgetLeft",IF(AK$10<=$AF59,"BudgetOver",""))))) ->  | CE59: =IF($AD59="","",IF(CE$10<=$AG59,"Finished",IF(CE$10<=MIN($AE59,$AF59),"Actual",IF(CE$10<=$AE59,"BudgetLeft",IF(CE$10<=$AF59,"BudgetOver",""))))) ->  | DI59: =IF($AD59="","",IF(DI$10<=$AG59,"Finished",IF(DI$10<=MIN($AE59,$AF59),"Actual",IF(DI$10<=$AE59,"BudgetLeft",IF(DI$10<=$AF59,"BudgetOver",""))))) ->  | DY59: =IF($AD59="","",IF(DY$10<=$AG59,"Finished",IF(DY$10<=MIN($AE59,$AF59),"Actual",IF(DY$10<=$AE59,"BudgetLeft",IF(DY$10<=$AF59,"BudgetOver",""))))) ->  | FG59: =IF($AD59="","",IF(FG$10<=$AG59,"Finished",IF(FG$10<=MIN($AE59,$AF59),"Actual",IF(FG$10<=$AE59,"BudgetLeft",IF(FG$10<=$AF59,"BudgetOver",""))))) ->  | FW59: =IF($AD59="","",IF(FW$10<=$AG59,"Finished",IF(FW$10<=MIN($AE59,$AF59),"Actual",IF(FW$10<=$AE59,"BudgetLeft",IF(FW$10<=$AF59,"BudgetOver",""))))) -> 
B60: ProjectC | C60: (blank) | D60: FileNorse | E60: LL | F60: (blank) | G60: 2 | AF60: 0 | AG60: 0
B61: ProjectC | C61: (blank) | D61: Company_23 | E61: LL | F61: (blank) | G61: 2.5 | AF61: 0 | AG61: 0
B62: ProjektA | C62: 6_Implemented | D62: PrototypeA | E62: LL | F62: 4 different output price columns that can either have formulas or direct value | H62: 1 | AF62: 0 | AG62: 0
B63: ProjektA | C63: 6_Implemented | D63: PrototypeA | E63: IK | F63: from the article group that the seller has chosen, you see 3 articles (basic, standard, premium) in the pdf offer | H63: 1 | AF63: 0 | AG63: 0
B64: ProjektA | C64: 6_Implemented | D64: UpgradesA | E64: LL | F64: Code in VBA? can be good, to copy and paste as value | H64: 2 | AF64: 0 | AG64: 0
B65: ProjektA | C65: 6_Implemented | D65: UpgradesA | E65: IK | F65: (blank) | H65: 0.1 | AF65: 0 | AG65: 0
B66: ProjektA | C66: 1_Assigned | D66: UpgradesA | E66: LL | F66: a type of unique key that is based on different data from the article | H66: 0.5 | AF66: 0 | AG66: 0
B67: ProjektB | C67: 6_Implemented | D67: PrototypeB | E67: LL | F67: 4 different output price columns that can either have formulas or direct value | H67: 60 | AF67: 0 | AG67: 0
B68: ProjektB | C68: 6_Implemented | D68: PrototypeB | E68: IK | F68: from the article group that the seller has chosen, you see 3 articles (basic, standard, premium) in the pdf offer | H68: 60 | AF68: 0 | AG68: 0
B69: ProjektB | C69: 6_Implemented | D69: UpgradesB | E69: LL | F69: Code in VBA? can be good, to copy and paste as value | H69: 12 | AF69: 0 | AG69: 0
B70: ProjektB | C70: 6_Implemented | D70: UpgradesB | E70: IK | F70: (blank) | H70: 0.6 | AF70: 0 | AG70: 0
B71: ProjektB | C71: 1_Assigned | D71: UpgradesB | E71: LL | F71: a type of unique key that is based on different data from the article | H71: 3 | AF71: 0 | AG71: 0
AF72: 0 | AG72: 0
AF73: 0 | AG73: 0
AF74: 0 | AG74: 0 | AZ74: =IF($AD74="","",IF(AZ$10<=$AG74,"Finished",IF(AZ$10<=MIN($AE74,$AF74),"Actual",IF(AZ$10<=$AE74,"BudgetLeft",IF(AZ$10<=$AF74,"BudgetOver",""))))) ->  | BP74: =IF($AD74="","",IF(BP$10<=$AG74,"Finished",IF(BP$10<=MIN($AE74,$AF74),"Actual",IF(BP$10<=$AE74,"BudgetLeft",IF(BP$10<=$AF74,"BudgetOver",""))))) ->  | CU74: =IF($AD74="","",IF(CU$10<=$AG74,"Finished",IF(CU$10<=MIN($AE74,$AF74),"Actual",IF(CU$10<=$AE74,"BudgetLeft",IF(CU$10<=$AF74,"BudgetOver",""))))) ->  | EM74: =IF($AD74="","",IF(EM$10<=$AG74,"Finished",IF(EM$10<=MIN($AE74,$AF74),"Actual",IF(EM$10<=$AE74,"BudgetLeft",IF(EM$10<=$AF74,"BudgetOver",""))))) ->  | FC74: =IF($AD74="","",IF(FC$10<=$AG74,"Finished",IF(FC$10<=MIN($AE74,$AF74),"Actual",IF(FC$10<=$AE74,"BudgetLeft",IF(FC$10<=$AF74,"BudgetOver",""))))) -> 
AD75: =IFERROR(IF(AE75="","",INDEX($AA$10:$AC$207,MATCH(AE75,$AC$10:$AC$199,0),1)),"") ->  | AF75: 0 | AG75: 0 | AK75: =IF($AD75="","",IF(AK$10<=$AG75,"Finished",IF(AK$10<=MIN($AE75,$AF75),"Actual",IF(AK$10<=$AE75,"BudgetLeft",IF(AK$10<=$AF75,"BudgetOver",""))))) ->  | CF75: =IF($AD75="","",IF(CF$10<=$AG75,"Finished",IF(CF$10<=MIN($AE75,$AF75),"Actual",IF(CF$10<=$AE75,"BudgetLeft",IF(CF$10<=$AF75,"BudgetOver",""))))) ->  | DK75: =IF($AD75="","",IF(DK$10<=$AG75,"Finished",IF(DK$10<=MIN($AE75,$AF75),"Actual",IF(DK$10<=$AE75,"BudgetLeft",IF(DK$10<=$AF75,"BudgetOver",""))))) ->  | EA75: =IF($AD75="","",IF(EA$10<=$AG75,"Finished",IF(EA$10<=MIN($AE75,$AF75),"Actual",IF(EA$10<=$AE75,"BudgetLeft",IF(EA$10<=$AF75,"BudgetOver",""))))) ->  | FQ75: =IF($AD75="","",IF(FQ$10<=$AG75,"Finished",IF(FQ$10<=MIN($AE75,$AF75),"Actual",IF(FQ$10<=$AE75,"BudgetLeft",IF(FQ$10<=$AF75,"BudgetOver",""))))) -> 
AC76: =IF(OR(AA76="",COUNTIFS($AB$11:$AB$38,AA76)=1),"",SUMIFS($G$11:$G$600,$B$11:$B$600,AA76)+ROW(AA76)*0.0001) ->  | AE76: =IFERROR(LARGE($AC$11:$AC$207,ROW(AC76)-10),"") ->  | AF76: =IFERROR(SUMIFS($H$11:$H$599,$B$11:$B$599,AD76),"") -> 0 | AG76: =IFERROR(SUMIFS($G$11:$G$599,$B$11:$B$599,AD76,$C$11:$C$599,"6_Implemented")+SUMIFS($G$11:$G$599,$B$11:$B$599,AD76,$C$11:$C$599,"5_Readay"),"") -> 0 | AH76: =IFERROR(MAX(AE76-AF76,0),"") ->  | AI76: =IFERROR(MAX(AF76-AE76,0),"") -> 
AF77: 0 | AG77: 0
AF78: 0 | AG78: 0
AF79: 0 | AG79: 0
AF80: 0 | AG80: 0
AF81: 0 | AG81: 0
AF82: 0 | AG82: 0
AF83: 0 | AG83: 0
AF84: 0 | AG84: 0
AF85: 0 | AG85: 0
AF86: 0 | AG86: 0
AF87: 0 | AG87: 0
AF88: 0 | AG88: 0
AF89: 0 | AG89: 0 | CE89: =IF($AD89="","",IF(CE$10<=$AG89,"Finished",IF(CE$10<=MIN($AE89,$AF89),"Actual",IF(CE$10<=$AE89,"BudgetLeft",IF(CE$10<=$AF89,"BudgetOver",""))))) -> 
AF90: 0 | AG90: 0 | AZ90: =IF($AD90="","",IF(AZ$10<=$AG90,"Finished",IF(AZ$10<=MIN($AE90,$AF90),"Actual",IF(AZ$10<=$AE90,"BudgetLeft",IF(AZ$10<=$AF90,"BudgetOver",""))))) ->  | BP90: =IF($AD90="","",IF(BP$10<=$AG90,"Finished",IF(BP$10<=MIN($AE90,$AF90),"Actual",IF(BP$10<=$AE90,"BudgetLeft",IF(BP$10<=$AF90,"BudgetOver",""))))) ->  | CV90: =IF($AD90="","",IF(CV$10<=$AG90,"Finished",IF(CV$10<=MIN($AE90,$AF90),"Actual",IF(CV$10<=$AE90,"BudgetLeft",IF(CV$10<=$AF90,"BudgetOver",""))))) ->  | EP90: =IF($AD90="","",IF(EP$10<=$AG90,"Finished",IF(EP$10<=MIN($AE90,$AF90),"Actual",IF(EP$10<=$AE90,"BudgetLeft",IF(EP$10<=$AF90,"BudgetOver",""))))) ->  | FF90: =IF($AD90="","",IF(FF$10<=$AG90,"Finished",IF(FF$10<=MIN($AE90,$AF90),"Actual",IF(FF$10<=$AE90,"BudgetLeft",IF(FF$10<=$AF90,"BudgetOver",""))))) -> 
AF91: 0 | AG91: 0 | AK91: =IF($AD91="","",IF(AK$10<=$AG91,"Finished",IF(AK$10<=MIN($AE91,$AF91),"Actual",IF(AK$10<=$AE91,"BudgetLeft",IF(AK$10<=$AF91,"BudgetOver",""))))) ->  | CO91: =IF($AD91="","",IF(CO$10<=$AG91,"Finished",IF(CO$10<=MIN($AE91,$AF91),"Actual",IF(CO$10<=$AE91,"BudgetLeft",IF(CO$10<=$AF91,"BudgetOver",""))))) ->  | DL91: =IF($AD91="","",IF(DL$10<=$AG91,"Finished",IF(DL$10<=MIN($AE91,$AF91),"Actual",IF(DL$10<=$AE91,"BudgetLeft",IF(DL$10<=$AF91,"BudgetOver",""))))) ->  | EB91: =IF($AD91="","",IF(EB$10<=$AG91,"Finished",IF(EB$10<=MIN($AE91,$AF91),"Actual",IF(EB$10<=$AE91,"BudgetLeft",IF(EB$10<=$AF91,"BudgetOver",""))))) ->  | FV91: =IF($AD91="","",IF(FV$10<=$AG91,"Finished",IF(FV$10<=MIN($AE91,$AF91),"Actual",IF(FV$10<=$AE91,"BudgetLeft",IF(FV$10<=$AF91,"BudgetOver",""))))) -> 
AF92: 0 | AG92: 0
AF93: 0 | AG93: 0
AF94: 0 | AG94: 0
AF95: 0 | AG95: 0
AF96: 0 | AG96: 0
AF97: 0 | AG97: 0
AF98: 0 | AG98: 0
AF99: 0 | AG99: 0
AF100: 0 | AG100: 0
AF101: 0 | AG101: 0
AF102: 0 | AG102: 0
AF103: 0 | AG103: 0
AF104: 0 | AG104: 0
AF105: 0 | AG105: 0 | CE105: =IF($AD105="","",IF(CE$10<=$AG105,"Finished",IF(CE$10<=MIN($AE105,$AF105),"Actual",IF(CE$10<=$AE105,"BudgetLeft",IF(CE$10<=$AF105,"BudgetOver",""))))) -> 
AF106: 0 | AG106: 0 | AZ106: =IF($AD106="","",IF(AZ$10<=$AG106,"Finished",IF(AZ$10<=MIN($AE106,$AF106),"Actual",IF(AZ$10<=$AE106,"BudgetLeft",IF(AZ$10<=$AF106,"BudgetOver",""))))) ->  | BP106: =IF($AD106="","",IF(BP$10<=$AG106,"Finished",IF(BP$10<=MIN($AE106,$AF106),"Actual",IF(BP$10<=$AE106,"BudgetLeft",IF(BP$10<=$AF106,"BudgetOver",""))))) ->  | DE106: =IF($AD106="","",IF(DE$10<=$AG106,"Finished",IF(DE$10<=MIN($AE106,$AF106),"Actual",IF(DE$10<=$AE106,"BudgetLeft",IF(DE$10<=$AF106,"BudgetOver",""))))) ->  | ER106: =IF($AD106="","",IF(ER$10<=$AG106,"Finished",IF(ER$10<=MIN($AE106,$AF106),"Actual",IF(ER$10<=$AE106,"BudgetLeft",IF(ER$10<=$AF106,"BudgetOver",""))))) ->  | FH106: =IF($AD106="","",IF(FH$10<=$AG106,"Finished",IF(FH$10<=MIN($AE106,$AF106),"Actual",IF(FH$10<=$AE106,"BudgetLeft",IF(FH$10<=$AF106,"BudgetOver",""))))) -> 
AF107: 0 | AG107: 0 | AK107: =IF($AD107="","",IF(AK$10<=$AG107,"Finished",IF(AK$10<=MIN($AE107,$AF107),"Actual",IF(AK$10<=$AE107,"BudgetLeft",IF(AK$10<=$AF107,"BudgetOver",""))))) ->  | CU107: =IF($AD107="","",IF(CU$10<=$AG107,"Finished",IF(CU$10<=MIN($AE107,$AF107),"Actual",IF(CU$10<=$AE107,"BudgetLeft",IF(CU$10<=$AF107,"BudgetOver",""))))) ->  | DS107: =IF($AD107="","",IF(DS$10<=$AG107,"Finished",IF(DS$10<=MIN($AE107,$AF107),"Actual",IF(DS$10<=$AE107,"BudgetLeft",IF(DS$10<=$AF107,"BudgetOver",""))))) ->  | EI107: =IF($AD107="","",IF(EI$10<=$AG107,"Finished",IF(EI$10<=MIN($AE107,$AF107),"Actual",IF(EI$10<=$AE107,"BudgetLeft",IF(EI$10<=$AF107,"BudgetOver",""))))) ->  | FX107: =IF($AD107="","",IF(FX$10<=$AG107,"Finished",IF(FX$10<=MIN($AE107,$AF107),"Actual",IF(FX$10<=$AE107,"BudgetLeft",IF(FX$10<=$AF107,"BudgetOver",""))))) -> 
AF108: 0 | AG108: 0
AF109: 0 | AG109: 0

Sheet DB (hidden)
A10: _Key | B10: _ProjectType | C10: X1 | D10: _ProjectPrio | E10: _DescShort | F10: Placeholder | G10: FolderFile | H10: _SheetName | I10: _Project | J10: _SubProject | K10: _Task | L10: _Staff | M10: _Status | N10: _Hours | O10: _StartDate | P10: _EndDate | Q10: _Description | R10: _MainCategory | S10: _Category | T10: _SubCategory | U10: _Comment | V10: _ProjectAndSubProject | W10: _PlannedDate | X10: _Priority | Y10: _HourBalance | Z10: _TotalHoursPerDay
G11: https://xldsolution.sharepoint.com/sites/XLDSolutions/Shared Documents/Projects/ProjectFolders/XLD_ModelTemplates/SmallConsultatn | H11: Schedule
A12: InterntXLD_Internal-1,5748820231024 | B12: STAFF | G12: https://xldsolution.sharepoint.com/sites/XLDSolutions/Shared Documents/Projects/ProjectFolders/XLD_ModelTemplates/SmallConsultatn | H12: IK | I12: Internt | J12: XLD_Internal | L12: GA | N12: 1.5 | O12: 2023-06-21 | U12: schedule, email, customer contact, project planning, staff etc | V12: Internt_XLD_Internal | Y12: -1.5
A13: InterntXLD_Internal-0,9652320231024 | B13: STAFF | G13: https://xldsolution.sharepoint.com/sites/XLDSolutions/Shared Documents/Projects/ProjectFolders/XLD_ModelTemplates/SmallConsultatn | H13: IK | I13: Internt | J13: XLD_Internal | L13: GA | N13: 0.9 | O13: 2023-06-21 | U13: Organize, Clean and understand ColorDB | V13: Internt_XLD_Internal | Y13: -0.9
A14: ProjectABasic model 2306-3429320231024 | B14: STAFF | G14: https://xldsolution.sharepoint.com/sites/XLDSolutions/Shared Documents/Projects/ProjectFolders/XLD_ModelTemplates/SmallConsultatn | H14: IK | I14: ProjectA | J14: Basic model 2306 | L14: GA | N14: 3 | O14: 2023-06-21 | U14: fixed design, functions, and little gets a long time on 3D map | V14: ProjectA_Basic model 2306 | Y14: -3
A15: ProjectABasic model 2306-0,5867020231024 | B15: STAFF | G15: https://xldsolution.sharepoint.com/sites/XLDSolutions/Shared Documents/Projects/ProjectFolders/XLD_ModelTemplates/SmallConsultatn | H15: IK | I15: ProjectA | J15: Basic model 2306 | L15: GA | N15: 0.5 | O15: 2023-06-21 | U15: meeting with customer and lukas | V15: ProjectA_Basic model 2306 | Y15: -0.5
A16: ProjectA230615_OffertMall-1239320231024 | B16: STAFF | G16: https://xldsolution.sharepoint.com/sites/XLDSolutions/Shared Documents/Projects/ProjectFolders/XLD_ModelTemplates/SmallConsultatn | H16: IK | I16: ProjectA | J16: 230615_OffertMall | L16: GA | N16: 1 | O16: 2023-06-21 | U16: meeting with customer and lukas | V16: ProjectA_230615_OffertMall | Y16: -1
A17: InterntMeetingAboutClientProject-0,4603120231024 | B17: STAFF | G17: https://xldsolution.sharepoint.com/sites/XLDSolutions/Shared Documents/Projects/ProjectFolders/XLD_ModelTemplates/SmallConsultatn | H17: IK | I17: Internt | J17: MeetingAboutClientProject | L17: GA | N17: 0.4 | O17: 2023-06-22 | U17: meeting with Ivan (about Company_1) | V17: Internt_MeetingAboutClientProject | Y17: -0.4
A18: ProjectBUpdates2303Suggestion-2257620231024 | B18: STAFF | G18: https://xldsolution.sharepoint.com/sites/XLDSolutions/Shared Documents/Projects/ProjectFolders/XLD_ModelTemplates/SmallConsultatn | H18: IK | I18: ProjectB | J18: Updates2303Suggestion | L18: GA | N18: 2 | O18: 2023-06-22 | U18: delete in db and restore in quick save | V18: ProjectB_Updates2303Suggestion | Y18: -2
A19: ProjectB230425_XX-1453720231024 | B19: STAFF | G19: https://xldsolution.sharepoint.com/sites/XLDSolutions/Shared Documents/Projects/ProjectFolders/XLD_ModelTemplates/SmallConsultatn | H19: IK | I19: ProjectB | J19: 230425_XX | L19: GA | N19: 1 | O19: 2023-06-22 | U19: have gone through the pivot tables and fix some formulas to get the right data | V19: ProjectB_230425_XX | Y19: -1
A20: ProjectBMonthlyBudget-2897520231024 | B20: STAFF | G20: https://xldsolution.sharepoint.com/sites/XLDSolutions/Shared Documents/Projects/ProjectFolders/XLD_ModelTemplates/SmallConsultatn | H20: IK | I20: ProjectB | J20: MonthlyBudget | L20: GA | N20: 2 | O20: 2023-06-22 | U20: added the missing customer addresses (the most important ones) | V20: ProjectB_MonthlyBudget | Y20: -2
A21: InterntXLD_Internal-2438020231024 | B21: STAFF | G21: https://xldsolution.sharepoint.com/sites/XLDSolutions/Shared Documents/Projects/ProjectFolders/XLD_ModelTemplates/SmallConsultatn | H21: IK | I21: Internt | J21: XLD_Internal | L21: GA | N21: 2 | O21: 2023-06-23 | U21: schedule, email, customer contact, project planning, staff etc | V21: Internt_XLD_Internal | Y21: -2
A22: ProjectBXLD_Internal-0,6862120231024 | B22: STAFF | G22: https://xldsolution.sharepoint.com/sites/XLDSolutions/Shared Documents/Projects/ProjectFolders/XLD_ModelTemplates/SmallConsultatn | H22: IK | I22: ProjectB | J22: XLD_Internal | L22: GA | N22: 0.6 | O22: 2023-06-23 | U22: meeting ivan, pontus | V22: ProjectB_XLD_Internal | Y22: -0.6
A23: ProjectBXLD_Internal-1,3836420231024 | B23: STAFF | G23: https://xldsolution.sharepoint.com/sites/XLDSolutions/Shared Documents/Projects/ProjectFolders/XLD_ModelTemplates/SmallConsultatn | H23: IK | I23: ProjectB | J23: XLD_Internal | L23: GA | N23: 1.3 | O23: 2023-06-23 | U23: meeting lukas, pontus | V23: ProjectB_XLD_Internal | Y23: -1.3
A24: ProjectBQuarterlBudget-2,7807920231024 | B24: STAFF | G24: https://xldsolution.sharepoint.com/sites/XLDSolutions/Shared Documents/Projects/ProjectFolders/XLD_ModelTemplates/SmallConsultatn | H24: IK | I24: ProjectB | J24: QuarterlBudget | L24: GA | N24: 2.7 | O24: 2023-06-23 | U24: fixed (hopefully) the last wishes from Fredrik for Q1 | V24: ProjectB_QuarterlBudget | Y24: -2.7
A25: ProjectBHandOverFile-0,5626520231024 | B25: STAFF | G25: https://xldsolution.sharepoint.com/sites/XLDSolutions/Shared Documents/Projects/ProjectFolders/XLD_ModelTemplates/SmallConsultatn | H25: IK | I25: ProjectB | J25: HandOverFile | L25: GA | N25: 0.5 | O25: 2023-06-23 | U25: fixed so the model can read "Sheet" and "Blad" | V25: ProjectB_HandOverFile | Y25: -0.5
A26: ProjectBCSV Import-0,8764020231024 | B26: STAFF | G26: https://xldsolution.sharepoint.com/sites/XLDSolutions/Shared Documents/Projects/ProjectFolders/XLD_ModelTemplates/SmallConsultatn | H26: IK | I26: ProjectB | J26: CSV Import | L26: GA | N26: 0.8 | O26: 2023-06-23 | U26: have hopefully solved the problem with their model (code change in ExportCSV) | V26: ProjectB_CSV Import | Y26: -0.8
A27: XLD_InternalXLD_Internal-2,8769620231024 | B27: STAFF | G27: https://xldsolution.sharepoint.com/sites/XLDSolutions/Shared Documents/Projects/ProjectFolders/XLD_ModelTemplates/SmallConsultatn | H27: IK | I27: XLD_Internal | J27: XLD_Internal | L27: GA | N27: 2.8 | O27: 2023-06-23 | U27: schedule, email, customer contact, project planning, staff etc | V27: XLD_Internal_XLD_Internal | Y27: -2.8
A28: ProjectBSupport2303-1,2331120231024 | B28: STAFF | G28: https://xldsolution.sharepoint.com/sites/XLDSolutions/Shared Documents/Projects/ProjectFolders/XLD_ModelTemplates/SmallConsultatn | H28: IK | I28: ProjectB | J28: Support2303 | L28: GA | N28: 1.2 | O28: 2023-06-24 | U28: last on PriceHistory | V28: ProjectB_Support2303 | Y28: -1.2
A29: ProjectBPremium_Not_Zero-0,7522320231024 | B29: STAFF | G29: https://xldsolution.sharepoint.com/sites/XLDSolutions/Shared Documents/Projects/ProjectFolders/XLD_ModelTemplates/SmallConsultatn | H29: IK | I29: ProjectB | J29: Premium_Not_Zero | L29: GA | N29: 0.7 | O29: 2023-06-24 | U29: Meeting | V29: ProjectB_Premium_Not_Zero | Y29: -0.7
A30: ProjectBPremium_Not_Zero-0,7231420231024 | B30: STAFF | G30: https://xldsolution.sharepoint.com/sites/XLDSolutions/Shared Documents/Projects/ProjectFolders/XLD_ModelTemplates/SmallConsultatn | H30: IK | I30: ProjectB | J30: Premium_Not_Zero | L30: GA | N30: 0.7 | O30: 2023-06-24 | U30: a quick draft (3x the rate) | V30: ProjectB_Premium_Not_Zero | Y30: -0.7
A31: StaffPlanningHolidayThe Thailand trip4_H140920231024 | B31: STAFF | G31: https://xldsolution.sharepoint.com/sites/XLDSolutions/Shared Documents/Projects/ProjectFolders/XLD_ModelTemplates/SmallConsultatn | H31: IK | I31: StaffPlanning | J31: Holiday | K31: The Thailand trip | L31: GA | M31: 4_HolidayRequested | N31: 112.5 | O31: 2023-03-01 | P31: 2023-03-20 | Q31: The Thailand trip | R31: DayOff | S31: Holiday | T31: The Thailand trip
A32: StaffPlanningHolidayThailand trip_22_Wor898420231024 | B32: STAFF | G32: https://xldsolution.sharepoint.com/sites/XLDSolutions/Shared Documents/Projects/ProjectFolders/XLD_ModelTemplates/SmallConsultatn | H32: IK | I32: StaffPlanning | J32: Holiday | K32: Thailand trip_2 | L32: GA | M32: 2_Working | N32: 300 | O32: 2023-04-24 | P32: 2023-06-16 | Q32: Thailand trip 2 (8v) | R32: DayOff | S32: Holiday | T32: Thailand trip_2
A33: StaffPlanningHolidayPassaPa4_HolidayRequ184320231024 | B33: STAFF | G33: https://xldsolution.sharepoint.com/sites/XLDSolutions/Shared Documents/Projects/ProjectFolders/XLD_ModelTemplates/SmallConsultatn | H33: IK | I33: StaffPlanning | J33: Holiday | K33: PassaPa | L33: GA | M33: 4_HolidayRequested | N33: 7.5 | O33: 2023-04-21 | P33: 2023-04-21 | Q33: free to do things with the girl when she is in stockholm | R33: DayOff | S33: Holiday | T33: PassaPa
A34: StaffPlanningHolidayDeduction3_NotAvaila958920231024 | B34: STAFF | G34: https://xldsolution.sharepoint.com/sites/XLDSolutions/Shared Documents/Projects/ProjectFolders/XLD_ModelTemplates/SmallConsultatn | H34: IK | I34: StaffPlanning | J34: Holiday | K34: Deduction | L34: GA | M34: 3_NotAvailable | N34: 23 | O34: 2023-06-24 | P34: 2023-04-19 | R34: DayOff | S34: MissingDays | T34: Deduction
A35: StaffPlanningHolidayDeduction23_NotAvail220420231024 | B35: STAFF | G35: https://xldsolution.sharepoint.com/sites/XLDSolutions/Shared Documents/Projects/ProjectFolders/XLD_ModelTemplates/SmallConsultatn | H35: IK | I35: StaffPlanning | J35: Holiday | K35: Deduction2 | L35: GA | M35: 3_NotAvailable | N35: 23 | O35: 2023-06-25 | P35: 2023-05-17 | Q35: GA : 3 days deduction for private but important matters | R35: DayOff | S35: MissingDays | T35: Deduction2
A36: InterntInternalInternal-0,25027777673676806520231024 | B36: STAFF | G36: https://xldsolution.sharepoint.com/sites/XLDSolutions/Shared Documents/Projects/ProjectFolders/XLD_ModelTemplates/SmallConsultatn | H36: LL | I36: Internt | J36: Internal | K36: Internal | L36: LL | N36: 0.2502777767 | O36: 2023-06-17 | V36: Internt_Internal | Y36: -0.2502777767
A37: ProjectAUpdates2303Updates2303-1,6747222871320231024 | B37: STAFF | G37: https://xldsolution.sharepoint.com/sites/XLDSolutions/Shared Documents/Projects/ProjectFolders/XLD_ModelTemplates/SmallConsultatn | H37: LL | I37: ProjectA | J37: Updates2303 | K37: Updates2303 | L37: LL | N37: 1.67472222 | O37: 2023-06-17 | V37: ProjectA_Updates2303 | Y37: -1.67472222
A38: ProjectCOfferOfImprovementsOfferOfImprov570020231024 | B38: STAFF | G38: https://xldsolution.sharepoint.com/sites/XLDSolutions/Shared Documents/Projects/ProjectFolders/XLD_ModelTemplates/SmallConsultatn | H38: LL | I38: ProjectC | J38: OfferOfImprovements | K38: OfferOfImprovements | L38: LL | O38: 2023-06-17 | V38: ProjectC_OfferOfImprovements
A39: ProjectCSupportSupport-1206120231024 | B39: STAFF | G39: https://xldsolution.sharepoint.com/sites/XLDSolutions/Shared Documents/Projects/ProjectFolders/XLD_ModelTemplates/SmallConsultatn | H39: LL | I39: ProjectC | J39: Support | K39: Support | L39: LL | N39: 1 | O39: 2023-06-17 | V39: ProjectC_Support | Y39: -1
A40: ProjectCCompany_19Company_19-1,5359420231024 | B40: STAFF | G40: https://xldsolution.sharepoint.com/sites/XLDSolutions/Shared Documents/Projects/ProjectFolders/XLD_ModelTemplates/SmallConsultatn | H40: LL | I40: ProjectC | J40: Company_19 | K40: Company_19 | L40: LL | N40: 1.5 | O40: 2023-06-17 | V40: ProjectC_Company_19 | Y40: -1.5
A41: ProjectCSupport2305Support2305-8,3333332253420231024 | B41: STAFF | G41: https://xldsolution.sharepoint.com/sites/XLDSolutions/Shared Documents/Projects/ProjectFolders/XLD_ModelTemplates/SmallConsultatn | H41: LL | I41: ProjectC | J41: Support2305 | K41: Support2305 | L41: LL | N41: 0.08333333273 | O41: 2023-06-17 | V41: ProjectC_Support2305 | Y41: -0.08333333273
A42: ProjectCManualHelp2305ManualHelp2305-1,6126020231024 | B42: STAFF | G42: https://xldsolution.sharepoint.com/sites/XLDSolutions/Shared Documents/Projects/ProjectFolders/XLD_ModelTemplates/SmallConsultatn | H42: LL | I42: ProjectC | J42: ManualHelp2305 | K42: ManualHelp2305 | L42: LL | N42: 1.674722222 | O42: 2023-06-18 | V42: ProjectC_ManualHelp2305 | Y42: -1.674722222
A43: InterntInternalInternal-0,08329820231024 | B43: STAFF | G43: https://xldsolution.sharepoint.com/sites/XLDSolutions/Shared Documents/Projects/ProjectFolders/XLD_ModelTemplates/SmallConsultatn | H43: LL | I43: Internt | J43: Internal | K43: Internal | L43: LL | N43: 0.08 | O43: 2023-06-18 | U43: 8:43 - 18:4 / Schedule_P | V43: Internt_Internal | Y43: -0.08
A44: InterntInternalInternal-0,08524120231024 | B44: STAFF | G44: https://xldsolution.sharepoint.com/sites/XLDSolutions/Shared Documents/Projects/ProjectFolders/XLD_ModelTemplates/SmallConsultatn | H44: LL | I44: Internt | J44: Internal | K44: Internal | L44: LL | N44: 0.08 | O44: 2023-06-18 | U44: 8:43 - 18:4 / Schedule_I | V44: Internt_Internal | Y44: -0.08
A45: InterntInternalInternal-1,12694320231024 | B45: STAFF | G45: https://xldsolution.sharepoint.com/sites/XLDSolutions/Shared Documents/Projects/ProjectFolders/XLD_ModelTemplates/SmallConsultatn | H45: LL | I45: Internt | J45: Internal | K45: Internal | L45: LL | N45: 1.12 | O45: 2023-06-18 | U45: 8:43 - 18:4 / BudgetAndA | V45: Internt_Internal | Y45: -1.12
A46: ProjectBSupportSupport-2,24120220231024 | B46: STAFF | G46: https://xldsolution.sharepoint.com/sites/XLDSolutions/Shared Documents/Projects/ProjectFolders/XLD_ModelTemplates/SmallConsultatn | H46: LL | I46: ProjectB | J46: Support | K46: Support | L46: LL | N46: 2.24 | O46: 2023-06-18 | U46: 10:43 - 15:39 / ProdCostMo | V46: ProjectB_Support | Y46: -2.24
A47: ProjectBSupportSupport-1,12220820231024 | B47: STAFF | G47: https://xldsolution.sharepoint.com/sites/XLDSolutions/Shared Documents/Projects/ProjectFolders/XLD_ModelTemplates/SmallConsultatn | H47: LL | I47: ProjectB | J47: Support | K47: Support | L47: LL | N47: 1.12 | O47: 2023-06-18 | U47: 14:9 - 15:19 / AddaMoble | V47: ProjectB_Support | Y47: -1.12
A48: ProjectBUNKNOWNUNKNOWN-0,08466520231024 | B48: STAFF | G48: https://xldsolution.sharepoint.com/sites/XLDSolutions/Shared Documents/Projects/ProjectFolders/XLD_ModelTemplates/SmallConsultatn | H48: LL | I48: ProjectB | J48: UNKNOWN | K48: UNKNOWN | L48: LL | N48: 0.08 | O48: 2023-06-18 | U48: 18:24 - 19:50 / StatsBudge | V48: ProjectB_UNKNOWN | Y48: -0.08
A49: ProjectBInvoicingInvoicing-2,5200420231024 | B49: STAFF | G49: https://xldsolution.sharepoint.com/sites/XLDSolutions/Shared Documents/Projects/ProjectFolders/XLD_ModelTemplates/SmallConsultatn | H49: LL | I49: ProjectB | J49: Invoicing | K49: Invoicing | L49: LL | N49: 2.5 | O49: 2023-06-19 | V49: ProjectB_Invoicing | Y49: -2.5
A50: ProjectBLiquidityLiquidity-0,5954920231024 | B50: STAFF | G50: https://xldsolution.sharepoint.com/sites/XLDSolutions/Shared Documents/Projects/ProjectFolders/XLD_ModelTemplates/SmallConsultatn | H50: LL | I50: ProjectB | J50: Liquidity | K50: Liquidity | L50: LL | N50: 0.5 | O50: 2023-06-19 | V50: ProjectB_Liquidity | Y50: -0.5
A51: InterntEmail ImporterEmail Importer-1,5157220231024 | B51: STAFF | G51: https://xldsolution.sharepoint.com/sites/XLDSolutions/Shared Documents/Projects/ProjectFolders/XLD_ModelTemplates/SmallConsultatn | H51: LL | I51: Internt | J51: Email Importer | K51: Email Importer | L51: LL | N51: 1.5 | O51: 2023-06-19 | V51: Internt_Email Importer | Y51: -1.5
A52: ProjectCFileNorseFileNorse-2474720231024 | B52: STAFF | G52: https://xldsolution.sharepoint.com/sites/XLDSolutions/Shared Documents/Projects/ProjectFolders/XLD_ModelTemplates/SmallConsultatn | H52: LL | I52: ProjectC | J52: FileNorse | K52: FileNorse | L52: LL | N52: 2 | O52: 2023-06-19 | V52: ProjectC_FileNorse | Y52: -2
A53: ProjectCCompany_23Company_23-2,5110520231024 | B53: STAFF | G53: https://xldsolution.sharepoint.com/sites/XLDSolutions/Shared Documents/Projects/ProjectFolders/XLD_ModelTemplates/SmallConsultatn | H53: LL | I53: ProjectC | J53: Company_23 | K53: Company_23 | L53: LL | N53: 2.5 | O53: 2023-06-19 | V53: ProjectC_Company_23 | Y53: -2.5
A54: 816220231024 | B54: STAFF | G54: https://xldsolution.sharepoint.com/sites/XLDSolutions/Shared Documents/Projects/ProjectFolders/XLD_ModelTemplates/SmallConsultatn | H54: LL | L54: LL
A55: 609820231024 | B55: STAFF | G55: https://xldsolution.sharepoint.com/sites/XLDSolutions/Shared Documents/Projects/ProjectFolders/XLD_ModelTemplates/SmallConsultatn | H55: LL | L55: LL
A56: 265220231024 | B56: STAFF | G56: https://xldsolution.sharepoint.com/sites/XLDSolutions/Shared Documents/Projects/ProjectFolders/XLD_ModelTemplates/SmallConsultatn | H56: LL | L56: LL
A57: ProjektAPrototypeAMinimumOrderMain_Test_579520231024 | B57: XLD_PROJECT | G57: https://xldsolution.sharepoint.com/sites/XLDSolutions/Shared Documents/Projects/ProjectFolders/XLD_ModelTemplates/SmallConsultatn | H57: ProjektA | I57: ProjectA | J57: PrototypeA | K57: MinimumOrder | L57: GA | M57: 3_Prototype | N57: 0.5 | O57: 2023-06-22 | P57: 2023-06-29 | Q57: Minimum order value to be added. | R57: Main_Test_ModelA | S57: 1 | T57: MinimumOrder | U57: if the number is below a certain level, the seller receives a warning about the sales minimum
A58: ProjektAPrototypeAUserChoosesParametersM908820231024 | B58: XLD_PROJECT | G58: https://xldsolution.sharepoint.com/sites/XLDSolutions/Shared Documents/Projects/ProjectFolders/XLD_ModelTemplates/SmallConsultatn | H58: ProjektA | I58: ProjectA | J58: PrototypeA | K58: UserChoosesParameters | L58: GA | M58: 3_Prototype | N58: 1 | O58: 2023-06-22 | P58: 2023-06-29 | Q58: User chose the parameters, | R58: Main_Test_ModelA | S58: 1 | T58: UserChoosesParameters | U58: the seller selects parameters for the product/item to bring out the desired item group. In the first version there will only be one article group
A59: ProjektAPrototypeAModelPresentsThreeAlte214720231024 | B59: XLD_PROJECT | G59: https://xldsolution.sharepoint.com/sites/XLDSolutions/Shared Documents/Projects/ProjectFolders/XLD_ModelTemplates/SmallConsultatn | H59: ProjektA | I59: ProjektA | J59: PrototypeA | K59: ModelPresentsThreeAlternatives | L59: IK | M59: 6_Implemented | N59: 1 | O59: 2023-06-22 | P59: 2023-06-29 | Q59: Model shows three alternatives | R59: Main_Test_ModelA | S59: Prototype2306A | T59: ModelPresentsThreeAlternatives | U59: from the article group that the seller has chosen, you see 3 articles (basic, standard, premium) in the pdf offer
A60: ProjektAPrototypeAStandard priceMain_Tes628320231024 | B60: XLD_PROJECT | G60: https://xldsolution.sharepoint.com/sites/XLDSolutions/Shared Documents/Projects/ProjectFolders/XLD_ModelTemplates/SmallConsultatn | H60: ProjektA | I60: ProjectA | J60: PrototypeA | K60: Standard price | L60: LL | M60: 3_Prototype | N60: 1 | O60: 2023-06-22 | P60: 2023-06-29 | Q60: Basic x*3, standard x*6, premium x*12 | R60: Main_Test_ModelA | S60: 1 | T60: Standard price | U60: the 3 different articles are based on price difference from a standard price (taken from a settings sheet/cell)
A61: ProjektAPrototypeACustomerCategoryMain_T801920231024 | B61: XLD_PROJECT | G61: https://xldsolution.sharepoint.com/sites/XLDSolutions/Shared Documents/Projects/ProjectFolders/XLD_ModelTemplates/SmallConsultatn | H61: ProjektA | I61: ProjektA | J61: PrototypeA | K61: CustomerCategory | L61: LL | M61: 6_Implemented | N61: 1 | O61: 2023-06-22 | P61: 2023-06-29 | Q61: Customers are A, B, C, D | R61: Main_Test_ModelA | S61: Prototype2306A | T61: CustomerCategory | U61: 4 different output price columns that can either have formulas or direct value
A62: ProjektAUpgradesANoOfParametersMain_Test111320231024 | B62: XLD_PROJECT | G62: https://xldsolution.sharepoint.com/sites/XLDSolutions/Shared Documents/Projects/ProjectFolders/XLD_ModelTemplates/SmallConsultatn | H62: ProjektA | I62: ProjektA | J62: UpgradesA | K62: NoOfParameters | L62: IK | M62: 6_Implemented | N62: 0.1 | O62: 2023-06-22 | P62: 2023-06-29 | Q62: Minimum 5, maximum 10. | R62: Main_Test_ModelA | S62: Prototype_5A | T62: NoOfParameters
A63: ProjektAUpgradesAcleanUpDesignMain_Test_586120231024 | B63: XLD_PROJECT | G63: https://xldsolution.sharepoint.com/sites/XLDSolutions/Shared Documents/Projects/ProjectFolders/XLD_ModelTemplates/SmallConsultatn | H63: ProjektA | I63: ProjectA | J63: UpgradesA | K63: cleanUpDesign | L63: GA | M63: 3_Prototype | N63: 0.5 | O63: 2023-06-22 | P63: 2023-06-29 | Q63: remove merged cells, chose colors for input, create small distance between the input parameters | R63: Main_Test_ModelA | S63: 1 | T63: cleanUpDesign
A64: ProjektAUpgradesASaveButtonMain_Test_Mod887020231024 | B64: XLD_PROJECT | G64: https://xldsolution.sharepoint.com/sites/XLDSolutions/Shared Documents/Projects/ProjectFolders/XLD_ModelTemplates/SmallConsultatn | H64: ProjektA | I64: ProjectA | J64: UpgradesA | K64: SaveButton | L64: LL | M64: 3_Prototype | N64: 2 | O64: 2023-06-22 | P64: 2023-06-29 | Q64: A save button that moves the data to the offer page. | R64: Main_Test_ModelA | S64: 1 | T64: SaveButton | U64: Code in VBA?
A65: ProjektAUpgradesACreateAlternativesMain_315520231024 | B65: XLD_PROJECT | G65: https://xldsolution.sharepoint.com/sites/XLDSolutions/Shared Documents/Projects/ProjectFolders/XLD_ModelTemplates/SmallConsultatn | H65: ProjektA | I65: ProjektA | J65: UpgradesA | K65: CreateAlternatives | L65: LL | M65: 6_Implemented | N65: 2 | O65: 2023-06-22 | P65: 2023-06-29 | Q65: based on the choices above, show the tree possible offers, with the 3 different price-classes | R65: Main_Test_ModelA | S65: Prototype_5A | T65: CreateAlternatives | U65: Code in VBA? can be good, to copy and paste as value
A66: ProjektAUpgradesACreateRefMain_Test_Mode959020231024 | B66: XLD_PROJECT | G66: https://xldsolution.sharepoint.com/sites/XLDSolutions/Shared Documents/Projects/ProjectFolders/XLD_ModelTemplates/SmallConsultatn | H66: ProjektA | I66: ProjektA | J66: UpgradesA | K66: CreateRef | L66: LL | M66: 1_Assigned | N66: 0.5 | O66: 2023-08-09 | P66: 2023-08-10 | Q66: Create a ref based on Parameter | R66: Main_Test_ModelA | S66: Prototype_5A | T66: CreateRef | U66: a type of unique key that is based on different data from the article
A67: ProjektB453420231024 | B67: XLD_PROJECT | G67: https://xldsolution.sharepoint.com/sites/XLDSolutions/Shared Documents/Projects/ProjectFolders/XLD_ModelTemplates/SmallConsultatn | H67: ProjektB | I67: ProjectB | J67: PrototypeB | K67: MinimumOrder | L67: GA | M67: 3_Prototype | N67: 30 | O67: 2023-06-29 | P67: 2023-07-06 | Q67: Minimum order value to be added. | R67: Main_Test_ModelB | S67: Prototype2306B | T67: MinimumOrder | U67: if the number is below a certain level, the seller receives a warning about the sales minimum
A68: ProjektB464020231024 | B68: XLD_PROJECT | G68: https://xldsolution.sharepoint.com/sites/XLDSolutions/Shared Documents/Projects/ProjectFolders/XLD_ModelTemplates/SmallConsultatn | H68: ProjektB | I68: ProjectB | J68: PrototypeB | K68: Standard price | L68: LL | M68: 3_Prototype | N68: 60 | O68: 2023-06-29 | P68: 2023-07-06 | Q68: Basic x*3, standard x*6, premium x*12 | R68: Main_Test_ModelB | S68: Prototype2306B | T68: Standard price | U68: the 3 different articles are based on price difference from a standard price (taken from a settings sheet/cell)
A69: ProjektB471220231024 | B69: XLD_PROJECT | G69: https://xldsolution.sharepoint.com/sites/XLDSolutions/Shared Documents/Projects/ProjectFolders/XLD_ModelTemplates/SmallConsultatn | H69: ProjektB | I69: ProjektB | J69: PrototypeB | K69: CustomerCategory | L69: LL | M69: 6_Implemented | N69: 60 | O69: 2023-06-29 | P69: 2023-07-06 | Q69: Customers are A, B, C, D | R69: Main_Test_ModelB | S69: Prototype2306B | T69: CustomerCategory | U69: 4 different output price columns that can either have formulas or direct value
A70: ProjektB745920231024 | B70: XLD_PROJECT | G70: https://xldsolution.sharepoint.com/sites/XLDSolutions/Shared Documents/Projects/ProjectFolders/XLD_ModelTemplates/SmallConsultatn | H70: ProjektB | I70: ProjektB | J70: UpgradesB | K70: NoOfParameters | L70: IK | M70: 6_Implemented | N70: 0.6 | O70: 2023-06-29 | P70: 2023-07-06 | Q70: Minimum 5, maximum 10. | R70: Main_Test_ModelB | S70: Prototype_5B | T70: NoOfParameters
A71: ProjektB770820231024 | B71: XLD_PROJECT | G71: https://xldsolution.sharepoint.com/sites/XLDSolutions/Shared Documents/Projects/ProjectFolders/XLD_ModelTemplates/SmallConsultatn | H71: ProjektB | I71: ProjektB | J71: UpgradesB | K71: CreateAlternatives | L71: LL | M71: 6_Implemented | N71: 12 | O71: 2023-06-29 | P71: 2023-07-06 | Q71: based on the choices above, show the tree possible offers, with the 3 different price-classes | R71: Main_Test_ModelB | S71: Prototype_5B | T71: CreateAlternatives | U71: Code in VBA? can be good, to copy and paste as value
A72: ProjektB682420231024 | B72: XLD_PROJECT | G72: https://xldsolution.sharepoint.com/sites/XLDSolutions/Shared Documents/Projects/ProjectFolders/XLD_ModelTemplates/SmallConsultatn | H72: ProjektB | I72: ProjektB | J72: UpgradesB | K72: CreateRef | L72: LL | M72: 1_Assigned | N72: 3 | O72: 2023-08-16 | P72: 2023-08-17 | Q72: Create a ref based on Parameter | R72: Main_Test_ModelB | S72: Prototype_5B | T72: CreateRef | U72: a type of unique key that is based on different data from the article
A73: ProjektBPrototypeBUserChoosesParametersM967720231024 | B73: XLD_PROJECT | G73: https://xldsolution.sharepoint.com/sites/XLDSolutions/Shared Documents/Projects/ProjectFolders/XLD_ModelTemplates/SmallConsultatn | H73: ProjektB | I73: ProjectB | J73: PrototypeB | K73: UserChoosesParameters | L73: LL | M73: 3_Prototype | N73: 60 | O73: 2023-06-29 | P73: 2023-07-06 | Q73: User chose the parameters, | R73: Main_Test_ModelB | S73: Prototype2306B | T73: UserChoosesParameters | U73: the seller selects parameters for the product/item to bring out the desired item group. In the first version there will only be one article group
A74: ProjektBPrototypeBModelPresentsThreeAlte333520231024 | B74: XLD_PROJECT | G74: https://xldsolution.sharepoint.com/sites/XLDSolutions/Shared Documents/Projects/ProjectFolders/XLD_ModelTemplates/SmallConsultatn | H74: ProjektB | I74: ProjektB | J74: PrototypeB | K74: ModelPresentsThreeAlternatives | L74: IK | M74: 6_Implemented | N74: 60 | O74: 2023-06-29 | P74: 2023-07-06 | Q74: Model shows three alternatives | R74: Main_Test_ModelB | S74: Prototype2306B | T74: ModelPresentsThreeAlternatives | U74: from the article group that the seller has chosen, you see 3 articles (basic, standard, premium) in the pdf offer
A75: ProjektBUpgradesBcleanUpDesignMain_Test_705020231024 | B75: XLD_PROJECT | G75: https://xldsolution.sharepoint.com/sites/XLDSolutions/Shared Documents/Projects/ProjectFolders/XLD_ModelTemplates/SmallConsultatn | H75: ProjektB | I75: ProjectB | J75: UpgradesB | K75: cleanUpDesign | L75: GA | M75: 3_Prototype | N75: 3 | O75: 2023-06-29 | P75: 2023-07-06 | Q75: remove merged cells, chose colors for input, create small distance between the input parameters | R75: Main_Test_ModelB | S75: Prototype_5B | T75: cleanUpDesign
A76: ProjektBUpgradesBSaveButtonMain_Test_Mod832020231024 | B76: XLD_PROJECT | G76: https://xldsolution.sharepoint.com/sites/XLDSolutions/Shared Documents/Projects/ProjectFolders/XLD_ModelTemplates/SmallConsultatn | H76: ProjektB | I76: ProjectB | J76: UpgradesB | K76: SaveButton | L76: LL | M76: 3_Prototype | N76: 12 | O76: 2023-06-29 | P76: 2023-07-06 | Q76: A save button that moves the data to the offer page. | R76: Main_Test_ModelB | S76: Prototype_5B | T76: SaveButton | U76: Code in VBA?

Sheet ClientMaster (hidden)
A1: _Project | B1: _SubProject | D1: _Project | F1: _ProjectType | G1: (All) | J1: _ProjectType | K1: (All)
A2: (blank) | B2: (blank) | D2: (blank)
A3: Internt | B3: XLD_Internal | D3: Internt | F3: _Project | G3: _SubProject | H3: Sum of _hours | J3: _Project | K3: _SubProject | L3: Sum of _Hours
A4: Internt | B4: MeetingAboutClientProject | D4: ProjectA | F4: (blank) | G4: (blank) | J4: (blank) | K4: (blank)
A5: Internt | B5: Internal | D5: ProjectB | F5: Internt | G5: XLD_Internal | H5: 4.4 | J5: Internt | K5: XLD_Internal | L5: 4.4
A6: Internt | B6: Email Importer | D6: XLD_Internal | F6: Internt | G6: MeetingAboutClientProject | H6: 0.4 | J6: Internt | K6: MeetingAboutClientProject | L6: 0.4
A7: ProjectA | B7: Basic model 2306 | D7: StaffPlanning | F7: Internt | G7: Internal | H7: 1.530277777 | J7: Internt | K7: Internal | L7: 1.530277777
A8: ProjectA | B8: 230615_OffertMall | D8: ProjectC | F8: Internt | G8: Email Importer | H8: 1.5 | J8: Internt | K8: Email Importer | L8: 1.5
A9: ProjectA | B9: Updates2303 | D9: ProjektA | F9: ProjectA | G9: Basic model 2306 | H9: 3.5 | J9: ProjectA | K9: Basic model 2306 | L9: 3.5
A10: ProjectA | B10: PrototypeA | D10: ProjektB | F10: ProjectA | G10: 230615_OffertMall | H10: 1 | J10: ProjectA | K10: 230615_OffertMall | L10: 1
A11: ProjectA | B11: UpgradesA | F11: ProjectA | G11: Updates2303 | H11: 1.67472222 | J11: ProjectA | K11: Updates2303 | L11: 1.67472222
A12: ProjectB | B12: XLD_Internal | F12: ProjectA | G12: PrototypeA | H12: 2.5 | J12: ProjectA | K12: PrototypeA | L12: 2.5
A13: ProjectB | B13: Updates2303Suggestion | F13: ProjectA | G13: UpgradesA | H13: 2.5 | J13: ProjectA | K13: UpgradesA | L13: 2.5
A14: ProjectB | B14: 230425_XX | F14: ProjectB | G14: XLD_Internal | H14: 1.9 | J14: ProjectB | K14: XLD_Internal | L14: 1.9
A15: ProjectB | B15: MonthlyBudget | F15: ProjectB | G15: Updates2303Suggestion | H15: 2 | J15: ProjectB | K15: Updates2303Suggestion | L15: 2
A16: ProjectB | B16: QuarterlBudget | F16: ProjectB | G16: 230425_XX | H16: 1 | J16: ProjectB | K16: 230425_XX | L16: 1
A17: ProjectB | B17: HandOverFile | F17: ProjectB | G17: MonthlyBudget | H17: 2 | J17: ProjectB | K17: MonthlyBudget | L17: 2
A18: ProjectB | B18: CSV Import | F18: ProjectB | G18: QuarterlBudget | H18: 2.7 | J18: ProjectB | K18: QuarterlBudget | L18: 2.7
A19: ProjectB | B19: Support2303 | F19: ProjectB | G19: HandOverFile | H19: 0.5 | J19: ProjectB | K19: HandOverFile | L19: 0.5
A20: ProjectB | B20: Premium_Not_Zero | F20: ProjectB | G20: CSV Import | H20: 0.8 | J20: ProjectB | K20: CSV Import | L20: 0.8
A21: ProjectB | B21: Support | F21: ProjectB | G21: Support2303 | H21: 1.2 | J21: ProjectB | K21: Support2303 | L21: 1.2
A22: ProjectB | B22: UNKNOWN | F22: ProjectB | G22: Premium_Not_Zero | H22: 1.4 | J22: ProjectB | K22: Premium_Not_Zero | L22: 1.4
A23: ProjectB | B23: Invoicing | F23: ProjectB | G23: Support | H23: 3.36 | J23: ProjectB | K23: Support | L23: 3.36
A24: ProjectB | B24: Liquidity | F24: ProjectB | G24: UNKNOWN | H24: 0.08 | J24: ProjectB | K24: UNKNOWN | L24: 0.08
A25: ProjectB | B25: PrototypeB | F25: ProjectB | G25: Invoicing | H25: 2.5 | J25: ProjectB | K25: Invoicing | L25: 2.5
A26: ProjectB | B26: UpgradesB | F26: ProjectB | G26: Liquidity | H26: 0.5 | J26: ProjectB | K26: Liquidity | L26: 0.5
A27: XLD_Internal | B27: XLD_Internal | F27: ProjectB | G27: PrototypeB | H27: 150 | J27: ProjectB | K27: PrototypeB | L27: 150
A28: StaffPlanning | B28: Holiday | F28: ProjectB | G28: UpgradesB | H28: 15 | J28: ProjectB | K28: UpgradesB | L28: 15
A29: ProjectC | B29: OfferOfImprovements | F29: XLD_Internal | G29: XLD_Internal | H29: 2.8 | J29: XLD_Internal | K29: XLD_Internal | L29: 2.8
A30: ProjectC | B30: Support | F30: StaffPlanning | G30: Holiday | H30: 466 | J30: StaffPlanning | K30: Holiday | L30: 466
A31: ProjectC | B31: Company_19 | F31: ProjectC | G31: OfferOfImprovements | J31: ProjectC | K31: OfferOfImprovements
A32: ProjectC | B32: Support2305 | F32: ProjectC | G32: Support | H32: 1 | J32: ProjectC | K32: Support | L32: 1
A33: ProjectC | B33: ManualHelp2305 | F33: ProjectC | G33: Company_19 | H33: 1.5 | J33: ProjectC | K33: Company_19 | L33: 1.5
A34: ProjectC | B34: FileNorse | F34: ProjectC | G34: Support2305 | H34: 0.08333333273 | J34: ProjectC | K34: Support2305 | L34: 0.08333333273
A35: ProjectC | B35: Company_23 | F35: ProjectC | G35: ManualHelp2305 | H35: 1.674722222 | J35: ProjectC | K35: ManualHelp2305 | L35: 1.674722222
A36: ProjektA | B36: PrototypeA | F36: ProjectC | G36: FileNorse | H36: 2 | J36: ProjectC | K36: FileNorse | L36: 2
A37: ProjektA | B37: UpgradesA | F37: ProjectC | G37: Company_23 | H37: 2.5 | J37: ProjectC | K37: Company_23 | L37: 2.5
A38: ProjektB | B38: PrototypeB | F38: ProjektA | G38: PrototypeA | H38: 2 | J38: ProjektA | K38: PrototypeA | L38: 2
A39: ProjektB | B39: UpgradesB | F39: ProjektA | G39: UpgradesA | H39: 2.6 | J39: ProjektA | K39: UpgradesA | L39: 2.6
F40: ProjektB | G40: PrototypeB | H40: 120 | J40: ProjektB | K40: PrototypeB | L40: 120
F41: ProjektB | G41: UpgradesB | H41: 15.6 | J41: ProjektB | K41: UpgradesB | L41: 15.6

Sheet Admin (hidden)
A1: RootForGeneratingPasswords | B1: LOCKDATE | E1: UNLOCKED SHEETS | F1: HIDE SHEETS | G1: Explaination | H1: Settings | I1: Value | K1: ConnectedCells | O1: DatabaseLocation | Q1: =COLUMN() -> 17 | R1: =COLUMN() -> 18 | AG1: HOLIDAYS | AI1: file | AK1: Agents | AM1: MonthToText | AP1: DEV / PROD | AR1: Status_DropDown | AT1: Status_DropDown | AV1: LastUpdate | BA1: Format Update Row Hight | CA1: TemplateToCopy | EA1: Password
A2: zX1mHOF4BzSE | B2: 2023-10-24 | C2: DataColor | D2: Values | E2: wClientMaster | F2: wDB | G2: Looks for titles in the rows, the code will loop upwards for the TitleColor | H2: Search Rows | I2: Yes | K2: FromR | L2: FromC | M2: Column | Q2: Graph Title | R2: Color list | AG2: 2020-12-31 | AI2: PRODUCTION | AM2: 1 | AN2: January | AP2: DEV | AR2: 0_AttentionNeeded | AT2: 0_AttentionNeeded | AV2: 2023-07-17 | BA2: 14 | CA2: _Key | CB2: _Project | CC2: _SubProject | CD2: _Task | CE2: _Staff | CF2: _Status | CG2: _Hours | CH2: _StartDate | CI2: _EndDate | CJ2: _Description | CK2: _MainCategory | CL2: _Category | CM2: _SubCategory | CN2: _Comment | EA2: Serviceyeah
A3: oIP7ALgV2TbD | B3: QRT/MNTH | C3: _Key | D3: Ref | E3: wPVTsql2 | F3: wClientMaster | G3: Looks for titles in the columns to the right, the code will loop right for the TitleColor | H3: Search Columns | I3: No | K3: 2 | L3: 7 | M3: 2 | Q3: Antal Bokningar | AG3: 2021-01-01 | AK3: LL | AM3: 2 | AN3: February | CB3: =$C$2 -> DataColor
A4: PBf1K6hy2ANJ | B4: YEAR | C4: Title1 | D4: Marknad | G4: Looks for references in the columns to the right, the code will loop right for the Ref-color | H4: Search for Ref | I4: Yes | Q4: AntalKunder | AG4: 2021-01-02 | AI4: Updated | AK4: GA | AM4: 3 | AN4: March | AR4: 1_Available | AT4: 1_Assigned | CB4: =$C$2 -> DataColor
A5: U22abS0FBELA | B5: MANUAL DATE | G5: Writes the data to the local DB-sheet | H5: WriteToLocalDB | I5: Yes | Q5: Produktkostnad | AG5: 2021-01-03 | AI5: Updated | AK5: PG | AM5: 4 | AN5: April | AR5: 2_Working | AT5: 2_InProgress | CB5: =$C$2 -> DataColor
A6: IgN18Hgg4NAT | B6: 2023-09-01 | G6: Clear the database (but is currently not active) | H6: ClearDataBase | I6: No | Q6: Säljkostnad | AG6: 2021-01-05 | AK6: IK | AM6: 5 | AN6: May | AR6: 3_NotAvailable | AT6: 3_Prototype | AY6: =INDIRECT("Admin!AK2:AK9")&"" -> 
A7: PXSz19ba6IVA | B7: LOCKFORMULA | G7: In case a new title is found, it is added to the title-row in the database, this only works for adding to local DB-sheet | H7: AddNewTitles | I7: Yes | Q7: Personal | AI7: Uploaded | AK7: EP | AM7: 6 | AN7: June | AR7: 4_HolidayRequested | AT7: 4_Testing | AY7: LL | BA7: =INDIRECT("Admin!AT2:AT14") -> 0_AttentionNeeded
A8: P07GgaK1bKOC | B8: =IF(Admin!$B$10="NO","",IF(Admin!$B$2="MONTH",IF(MONTH(NOW())<>MONTH(Admin!$B$4),"This is a free version. Contact Exceldepartment for unlocking full potential of the model.",""), IF(Admin!$B$2="QRT",IF(INT((MONTH(NOW())+2)/3)<>INT((MONTH(Admin!$B$4)+2)/3),"This is a free version. Contact Exceldepartment for unlocking full potential of the model.",""), IF(Admin!$B$2="YEAR",IF(YEAR(NOW())<>YEAR(Admin!$B$4),"This is a free version. Contact Exceldepartment for unlocking full potential of the model.",""), "This is a free version. Contact Exceldepartment for unlocking full potential of the model.")))) -> This is a free version. Contact Exceldepartment for unlocking full potential of the model. | G8: Defines the title row in the local DB-sheet | H8: Titles row in DB-sheet | I8: 10 | Q8: Kostnad | T8: _Key | U8: _SubCategory | V8: _startDate | W8: _endDate | X8: _hours | Y8: _Staff | Z8: _Comment | AA8: _Category | AB8: _Description | AC8: _Status | AI8: NotUploaded | AM8: 7 | AN8: July | AR8: 41_HolidayApproved | AT8: 5_Ready | AY8: GA | BA8: 0
A9: G90BabzCLSLO | B9: PASSWORD | G9: This is used in connection with the Access/SQL-upload. It means only changes are uploaded. This is to prevent upload and overwrite changes from the schedule-file and similar. | H9: CheckPrevious | I9: Yes | Q9: Kvantitet | Y9: =$C$4 -> Title1 | AM9: 8 | AN9: August | AR9: 42_HolidayDenied | AT9: 6_Implemented | AY9: PG | BA9: 1_Assigned
A10: JSJml83TDVIN | B10: 42 | G10: Uloades to Access | H10: UploadToAccess | I10: No | Q10: Ledning | AI10: LeftClick | AM10: 9 | AN10: September | AT10: 51_PlaceHolder | AY10: IK | BA10: 2_InProgress
A11: Wr15KDosZSAN | B11: USEPROTECTION | G11: Adds general data such as project-name etc. | H11: AddGeneralData | I11: Yes | Q11: IT | AI11: Dectivate | AM11: 10 | AN11: October | AR11: 1_Assigned | AT11: 50_none | AY11: EP | BA11: 3_Prototype
A12: HWilC19QXIRE | B12: YES | G12: Only looks for visible cells, so if you filter cells, they will not be uploaded. | H12: OnlyAddVisible | I12: Yes | K12: CLASS | L12: INPUT | Q12: Fast kostnad | AM12: 11 | AN12: November | AR12: 2_InProgress | AT12: 97_awaitingClient | BA12: 4_Testing
A13: ABIZG12qzMAR | B13: USEPROTECTIONWORKBOOK | G13: Lets the names of the cells of the titles-colors define the names of the titles in the database. So the name of the titles in the sheet will not matter. | H13: Titles from Admin | I13: No | K13: SERVER | Q13: Försäljning | AI13: RowToMove | AM13: 12 | AN13: December | AR13: 3_Prototype | AT13: 98_OfferSent | BA13: 5_Ready
A14: FGYhhJ0SABUB | B14: YES | G14: Ussed with Titles from Admin. | H14: Match Titles From Admin | I14: No | K14: DATABASE | Q14: Kontorskostnad | AR14: 4_Testing | AT14: 99_discountinued | BA14: 6_Implemented
G15: Push to SQL instead of Access | H15: PushToSQL | I15: No | K15: USERNAME | Q15: Total | AR15: 5_Documentation | BA15: 51_PlaceHolder
K16: PASSWORD | AI16: ResetFilter | AR16: 6_Implemented | BA16: 50_none
AI17: No | AR17: 51_PlaceHolder | BA17: 97_awaitingClient
K18: COLOROUT | AR18: 50_none | BA18: 98_OfferSent
AA19: FORMAT | AB19: Active User | AI19: ActiveUser | AR19: 97_awaitingClient | BA19: 99_discountinued
AA20: 1_Available | AB20: LL | AI20: GA
AA21: 2_Working | AR21: 98_done
G22: This setting is how the import filter is working when it takes data from DB to schedual | H22: AddedBy | I22: Both | L22: Status;Date;Both;Any;All | AA22: 3_NotAvailable | AR22: 99_discountinued
AA23: 4_HolidayRequested
AA24: 41_HolidayApproved
AA25: 42_HolidayDenied

Sheet Holiday&Work day
B1: Holiday & Adjusted work day
B2: ※Please at "Date field" input the correct Date Format "mm/dd/yyyy".
B3: Holiday | D3: Adjusted work day
B4: M/D/YY | C4: Holiday name | D4: M/D/YY | E4: Reason
B5: 2023-01-01 | C5: New Year's Day
B6: 2023-12-24 | C6: Christmas Eve
B7: 2023-12-25 | C7: Christmas Day
B8: 2023-12-26 | C8: Second Day of Christmas
B9: 2023-12-31 | C9: New Year's Eve
